Workbook

Sheet Auction-Rank (hidden)
A1: PLAYERNAME | B1: PlayerID | C1: Pos | D1: OF Pos | E1: TEAM | F1: Age | G1: 1.RotoChamp | H1: 2.CBS | I1: 4.ESPN | J1: 5.Yahoo_Proj | K1: 6.Yahoo_Mock | L1: 7.FantasyPro_Exp | M1: 8.FantasyPro_Proj | N1: 9.Exp_Avg | O1: 10.Import | P1: RotoChamp | Q1: Yahoo Staff | R1: ESPN Points | S1: ESPN Karabell | T1: Fantasy Pros Avg | U1: MC | V1: Team In Sheet? | W1: Rank Chosen | X1: Filtered-Rank | Y1: Chosen Auction | Z1: Filtered Auction | AA1: Adjusted Filter | AB1: =IFERROR(IF(VLOOKUP(A2,'Name-Sort'!$D$2:$E$948,2,FALSE)="",A2,""),"") -> Bryan Abreu | AC1: =IFERROR(INDEX($AB$1:$AB$961,SMALL(IF($AB$1:$AB$961<>"",ROW($AB$1:$AB$961)),ROW(AB1))),"") -> Bryan Abreu
A2: Bryan Abreu | B2: abreubr01 | C2: RP | E2: HOU | F2: 22 | N2: 0 | O2: =IFERROR(VLOOKUP(A2,'Import (Values)'!$B$2:$C$999,2,FALSE)/3120,"") ->  | T2: 551 | V2: =IFERROR(INDEX('Guts-2'!$K$1:$K$30,MATCH(E2,'Guts-2'!$J$1:$J$30,0)),TRUE) -> TRUE | W2: =IF(V2=FALSE,"",IFERROR(CHOOSE('Guts-2'!$D$27,P2,Q2,R2,S2,T2,U2),"")) -> 551 | X2: =IFERROR(RANK(W2,$W$2:$W$961,1),"") -> 543 | Y2: =IFERROR(IF(INDEX('Auction-Rank'!$G$1:$O$961,MATCH($A2,'Auction-Rank'!$A$1:$A$961,0),'Guts-2'!$D$26)="","",INDEX('Auction-Rank'!$G$1:$O$961,MATCH($A2,'Auction-Rank'!$A$1:$A$961,0),'Guts-2'!$D$26)),"") -> 0 | Z2: =IF(V2=FALSE,"",IFERROR(IF(INDEX('Auction-Rank'!$G$1:$O$961,MATCH($A2,'Auction-Rank'!$A$1:$A$961,0),'Guts-2'!$D$26)="","",INDEX('Auction-Rank'!$G$1:$O$961,MATCH($A2,'Auction-Rank'!$A$1:$A$961,0),'Guts-2'!$D$26)),"")) -> 0 | AA2: =IF(Z2="","",IF(V2=FALSE,"",Z2*(SUMIF($Y$2:$Y$961,"<>""",$Y$2:$Y$961)/SUMIF($Z$2:$Z$961,"<>""",$Z$2:$Z$961)))) -> 0 | AB2: =IFERROR(IF(VLOOKUP(A3,'Name-Sort'!$D$2:$E$948,2,FALSE)="",A3,""),"") -> Jose Abreu | AC2: =IFERROR(INDEX($AB$1:$AB$961,SMALL(IF($AB$1:$AB$961<>"",ROW($AB$1:$AB$961)),ROW(AB2))),"") -> Jose Abreu
A3: Jose Abreu | B3: abreujo02 | C3: 1B | E3: CHW | F3: 33 | G3: 0.003802777778 | H3: 0.003888888889 | J3: 0.004166666667 | K3: 0.004555555556 | M3: 0.005 | N3: 0.003568981481 | O3: =IFERROR(VLOOKUP(A3,'Import (Values)'!$B$2:$C$999,2,FALSE)/3120,"") ->  | P3: 84 | Q3: 73 | R3: 51 | S3: 74 | T3: 59 | V3: =IFERROR(INDEX('Guts-2'!$K$1:$K$30,MATCH(E3,'Guts-2'!$J$1:$J$30,0)),TRUE) -> TRUE | W3: =IF(V3=FALSE,"",IFERROR(CHOOSE('Guts-2'!$D$27,P3,Q3,R3,S3,T3,U3),"")) -> 59 | X3: 59 | Y3: =IFERROR(IF(INDEX('Auction-Rank'!$G$1:$O$961,MATCH($A3,'Auction-Rank'!$A$1:$A$961,0),'Guts-2'!$D$26)="","",INDEX('Auction-Rank'!$G$1:$O$961,MATCH($A3,'Auction-Rank'!$A$1:$A$961,0),'Guts-2'!$D$26)),"") -> 0.003568981481 | Z3: =IF(V3=FALSE,"",IFERROR(IF(INDEX('Auction-Rank'!$G$1:$O$961,MATCH($A3,'Auction-Rank'!$A$1:$A$961,0),'Guts-2'!$D$26)="","",INDEX('Auction-Rank'!$G$1:$O$961,MATCH($A3,'Auction-Rank'!$A$1:$A$961,0),'Guts-2'!$D$26)),"")) -> 0.003568981481 | AA3: =IF(Z3="","",IF(V3=FALSE,"",Z3*(SUMIF($Y$2:$Y$961,"<>""",$Y$2:$Y$961)/SUMIF($Z$2:$Z$961,"<>""",$Z$2:$Z$961)))) -> 0.003568981481 | AB3: =IFERROR(IF(VLOOKUP(A4,'Name-Sort'!$D$2:$E$948,2,FALSE)="",A4,""),"") -> Ronald Acuna | AC3: =IFERROR(INDEX($AB$1:$AB$961,SMALL(IF($AB$1:$AB$961<>"",ROW($AB$1:$AB$961)),ROW(AB3))),"") -> Ronald Acuna
A4: Ronald Acuna | B4: acunaro01 | C4: OF | D4: LF,CF,RF | E4: ATL | F4: 22 | G4: 0.01437777778 | H4: 0.01166666667 | J4: 0.01333333333 | K4: 0.01569444444 | M4: 0.01361111111 | N4: 0.01144722222 | O4: =IFERROR(VLOOKUP(A4,'Import (Values)'!$B$2:$C$999,2,FALSE)/3120,"") -> 0.01185897436 | P4: 1 | Q4: 1 | R4: 1 | S4: 1 | T4: 1 | V4: =IFERROR(INDEX('Guts-2'!$K$1:$K$30,MATCH(E4,'Guts-2'!$J$1:$J$30,0)),TRUE) -> TRUE | W4: =IF(V4=FALSE,"",IFERROR(CHOOSE('Guts-2'!$D$27,P4,Q4,R4,S4,T4,U4),"")) -> 1 | X4: 1 | Y4: =IFERROR(IF(INDEX('Auction-Rank'!$G$1:$O$961,MATCH($A4,'Auction-Rank'!$A$1:$A$961,0),'Guts-2'!$D$26)="","",INDEX('Auction-Rank'!$G$1:$O$961,MATCH($A4,'Auction-Rank'!$A$1:$A$961,0),'Guts-2'!$D$26)),"") -> 0.01144722222 | Z4: =IF(V4=FALSE,"",IFERROR(IF(INDEX('Auction-Rank'!$G$1:$O$961,MATCH($A4,'Auction-Rank'!$A$1:$A$961,0),'Guts-2'!$D$26)="","",INDEX('Auction-Rank'!$G$1:$O$961,MATCH($A4,'Auction-Rank'!$A$1:$A$961,0),'Guts-2'!$D$26)),"")) -> 0.01144722222 | AA4: =IF(Z4="","",IF(V4=FALSE,"",Z4*(SUMIF($Y$2:$Y$961,"<>""",$Y$2:$Y$961)/SUMIF($Z$2:$Z$961,"<>""",$Z$2:$Z$961)))) -> 0.01144722222 | AB4: =IFERROR(IF(VLOOKUP(A5,'Name-Sort'!$D$2:$E$948,2,FALSE)="",A5,""),"") -> Willy Adames | AC4: =IFERROR(INDEX($AB$1:$AB$961,SMALL(IF($AB$1:$AB$961<>"",ROW($AB$1:$AB$961)),ROW(AB4))),"") -> Willy Adames
A5: Willy Adames | B5: adamewi01 | C5: SS | E5: TB | F5: 24 | J5: 0 | K5: 0.0003055555556 | M5: 0.0005555555556 | N5: 0.0002152777778 | O5: =IFERROR(VLOOKUP(A5,'Import (Values)'!$B$2:$C$999,2,FALSE)/3120,"") ->  | Q5: 305 | R5: 260 | S5: 298 | T5: 271 | V5: =IFERROR(INDEX('Guts-2'!$K$1:$K$30,MATCH(E5,'Guts-2'!$J$1:$J$30,0)),TRUE) -> TRUE | W5: =IF(V5=FALSE,"",IFERROR(CHOOSE('Guts-2'!$D$27,P5,Q5,R5,S5,T5,U5),"")) -> 271 | X5: 270 | Y5: =IFERROR(IF(INDEX('Auction-Rank'!$G$1:$O$961,MATCH($A5,'Auction-Rank'!$A$1:$A$961,0),'Guts-2'!$D$26)="","",INDEX('Auction-Rank'!$G$1:$O$961,MATCH($A5,'Auction-Rank'!$A$1:$A$961,0),'Guts-2'!$D$26)),"") -> 0.0002152777778 | Z5: =IF(V5=FALSE,"",IFERROR(IF(INDEX('Auction-Rank'!$G$1:$O$961,MATCH($A5,'Auction-Rank'!$A$1:$A$961,0),'Guts-2'!$D$26)="","",INDEX('Auction-Rank'!$G$1:$O$961,MATCH($A5,'Auction-Rank'!$A$1:$A$961,0),'Guts-2'!$D$26)),"")) -> 0.0002152777778 | AA5: =IF(Z5="","",IF(V5=FALSE,"",Z5*(SUMIF($Y$2:$Y$961,"<>""",$Y$2:$Y$961)/SUMIF($Z$2:$Z$961,"<>""",$Z$2:$Z$961)))) -> 0.0002152777778 | AB5: =IFERROR(IF(VLOOKUP(A6,'Name-Sort'!$D$2:$E$948,2,FALSE)="",A6,""),"") -> Matt Adams | AC5: =IFERROR(INDEX($AB$1:$AB$961,SMALL(IF($AB$1:$AB$961<>"",ROW($AB$1:$AB$961)),ROW(AB5))),"") -> Matt Adams
A6: Matt Adams | B6: adamsma01 | C6: 1B | E6: NYM | F6: 31 | N6: 0 | O6: =IFERROR(VLOOKUP(A6,'Import (Values)'!$B$2:$C$999,2,FALSE)/3120,"") ->  | T6: 705 | V6: =IFERROR(INDEX('Guts-2'!$K$1:$K$30,MATCH(E6,'Guts-2'!$J$1:$J$30,0)),TRUE) -> TRUE | W6: =IF(V6=FALSE,"",IFERROR(CHOOSE('Guts-2'!$D$27,P6,Q6,R6,S6,T6,U6),"")) -> 705 | X6: 648 | Y6: =IFERROR(IF(INDEX('Auction-Rank'!$G$1:$O$961,MATCH($A6,'Auction-Rank'!$A$1:$A$961,0),'Guts-2'!$D$26)="","",INDEX('Auction-Rank'!$G$1:$O$961,MATCH($A6,'Auction-Rank'!$A$1:$A$961,0),'Guts-2'!$D$26)),"") -> 0 | Z6: =IF(V6=FALSE,"",IFERROR(IF(INDEX('Auction-Rank'!$G$1:$O$961,MATCH($A6,'Auction-Rank'!$A$1:$A$961,0),'Guts-2'!$D$26)="","",INDEX('Auction-Rank'!$G$1:$O$961,MATCH($A6,'Auction-Rank'!$A$1:$A$961,0),'Guts-2'!$D$26)),"")) -> 0 | AA6: =IF(Z6="","",IF(V6=FALSE,"",Z6*(SUMIF($Y$2:$Y$961,"<>""",$Y$2:$Y$961)/SUMIF($Z$2:$Z$961,"<>""",$Z$2:$Z$961)))) -> 0 | AB6: =IFERROR(IF(VLOOKUP(A7,'Name-Sort'!$D$2:$E$948,2,FALSE)="",A7,""),"") -> Jo Adell | AC6: =IFERROR(INDEX($AB$1:$AB$961,SMALL(IF($AB$1:$AB$961<>"",ROW($AB$1:$AB$961)),ROW(AB6))),"") -> Jo Adell
A7: Jo Adell | B7: adelljo01 | C7: OF | D7: LF,CF,RF | E7: LAA | F7: 20 | J7: 0.0002777777778 | K7: 0.0004722222222 | N7: 0.00025 | O7: =IFERROR(VLOOKUP(A7,'Import (Values)'!$B$2:$C$999,2,FALSE)/3120,"") ->  | Q7: 283 | S7: 224 | T7: 322 | V7: =IFERROR(INDEX('Guts-2'!$K$1:$K$30,MATCH(E7,'Guts-2'!$J$1:$J$30,0)),TRUE) -> TRUE | W7: =IF(V7=FALSE,"",IFERROR(CHOOSE('Guts-2'!$D$27,P7,Q7,R7,S7,T7,U7),"")) -> 322 | X7: 321 | Y7: =IFERROR(IF(INDEX('Auction-Rank'!$G$1:$O$961,MATCH($A7,'Auction-Rank'!$A$1:$A$961,0),'Guts-2'!$D$26)="","",INDEX('Auction-Rank'!$G$1:$O$961,MATCH($A7,'Auction-Rank'!$A$1:$A$961,0),'Guts-2'!$D$26)),"") -> 0.00025 | Z7: =IF(V7=FALSE,"",IFERROR(IF(INDEX('Auction-Rank'!$G$1:$O$961,MATCH($A7,'Auction-Rank'!$A$1:$A$961,0),'Guts-2'!$D$26)="","",INDEX('Auction-Rank'!$G$1:$O$961,MATCH($A7,'Auction-Rank'!$A$1:$A$961,0),'Guts-2'!$D$26)),"")) -> 0.00025 | AA7: =IF(Z7="","",IF(V7=FALSE,"",Z7*(SUMIF($Y$2:$Y$961,"<>""",$Y$2:$Y$961)/SUMIF($Z$2:$Z$961,"<>""",$Z$2:$Z$961)))) -> 0.00025 | AB7: =IFERROR(IF(VLOOKUP(A8,'Name-Sort'!$D$2:$E$948,2,FALSE)="",A8,""),"") -> Ehire Adrianza | AC7: =IFERROR(INDEX($AB$1:$AB$961,SMALL(IF($AB$1:$AB$961<>"",ROW($AB$1:$AB$961)),ROW(AB7))),"") -> Ehire Adrianza
A8: Ehire Adrianza | B8: adriaeh01 | C8: SS | D8: RF | E8: MIN | F8: 30 | N8: 0 | O8: =IFERROR(VLOOKUP(A8,'Import (Values)'!$B$2:$C$999,2,FALSE)/3120,"") ->  | T8: 668 | V8: =IFERROR(INDEX('Guts-2'!$K$1:$K$30,MATCH(E8,'Guts-2'!$J$1:$J$30,0)),TRUE) -> TRUE | W8: =IF(V8=FALSE,"",IFERROR(CHOOSE('Guts-2'!$D$27,P8,Q8,R8,S8,T8,U8),"")) -> 668 | X8: 624 | Y8: =IFERROR(IF(INDEX('Auction-Rank'!$G$1:$O$961,MATCH($A8,'Auction-Rank'!$A$1:$A$961,0),'Guts-2'!$D$26)="","",INDEX('Auction-Rank'!$G$1:$O$961,MATCH($A8,'Auction-Rank'!$A$1:$A$961,0),'Guts-2'!$D$26)),"") -> 0 | Z8: =IF(V8=FALSE,"",IFERROR(IF(INDEX('Auction-Rank'!$G$1:$O$961,MATCH($A8,'Auction-Rank'!$A$1:$A$961,0),'Guts-2'!$D$26)="","",INDEX('Auction-Rank'!$G$1:$O$961,MATCH($A8,'Auction-Rank'!$A$1:$A$961,0),'Guts-2'!$D$26)),"")) -> 0 | AA8: =IF(Z8="","",IF(V8=FALSE,"",Z8*(SUMIF($Y$2:$Y$961,"<>""",$Y$2:$Y$961)/SUMIF($Z$2:$Z$961,"<>""",$Z$2:$Z$961)))) -> 0 | AB8: =IFERROR(IF(VLOOKUP(A9,'Name-Sort'!$D$2:$E$948,2,FALSE)="",A9,""),"") -> Dario Agrazal | AC8: =IFERROR(INDEX($AB$1:$AB$961,SMALL(IF($AB$1:$AB$961<>"",ROW($AB$1:$AB$961)),ROW(AB8))),"") -> Dario Agrazal
A9: Dario Agrazal | B9: agrazda01 | C9: RP | E9: DET | F9: 25 | N9: 0 | O9: =IFERROR(VLOOKUP(A9,'Import (Values)'!$B$2:$C$999,2,FALSE)/3120,"") ->  | V9: =IFERROR(INDEX('Guts-2'!$K$1:$K$30,MATCH(E9,'Guts-2'!$J$1:$J$30,0)),TRUE) -> TRUE | W9: =IF(V9=FALSE,"",IFERROR(CHOOSE('Guts-2'!$D$27,P9,Q9,R9,S9,T9,U9),"")) ->  | Y9: =IFERROR(IF(INDEX('Auction-Rank'!$G$1:$O$961,MATCH($A9,'Auction-Rank'!$A$1:$A$961,0),'Guts-2'!$D$26)="","",INDEX('Auction-Rank'!$G$1:$O$961,MATCH($A9,'Auction-Rank'!$A$1:$A$961,0),'Guts-2'!$D$26)),"") -> 0 | Z9: =IF(V9=FALSE,"",IFERROR(IF(INDEX('Auction-Rank'!$G$1:$O$961,MATCH($A9,'Auction-Rank'!$A$1:$A$961,0),'Guts-2'!$D$26)="","",INDEX('Auction-Rank'!$G$1:$O$961,MATCH($A9,'Auction-Rank'!$A$1:$A$961,0),'Guts-2'!$D$26)),"")) -> 0 | AA9: =IF(Z9="","",IF(V9=FALSE,"",Z9*(SUMIF($Y$2:$Y$961,"<>""",$Y$2:$Y$961)/SUMIF($Z$2:$Z$961,"<>""",$Z$2:$Z$961)))) -> 0 | AB9: =IFERROR(IF(VLOOKUP(A10,'Name-Sort'!$D$2:$E$948,2,FALSE)="",A10,""),"") -> Jesus Aguilar | AC9: =IFERROR(INDEX($AB$1:$AB$961,SMALL(IF($AB$1:$AB$961<>"",ROW($AB$1:$AB$961)),ROW(AB9))),"") -> Jesus Aguilar
A10: Jesus Aguilar | B10: aguilje01 | C10: 1B | E10: MIA | F10: 29 | J10: 0 | N10: 0 | O10: =IFERROR(VLOOKUP(A10,'Import (Values)'!$B$2:$C$999,2,FALSE)/3120,"") ->  | Q10: 382 | S10: 276 | T10: 331 | V10: =IFERROR(INDEX('Guts-2'!$K$1:$K$30,MATCH(E10,'Guts-2'!$J$1:$J$30,0)),TRUE) -> TRUE | W10: =IF(V10=FALSE,"",IFERROR(CHOOSE('Guts-2'!$D$27,P10,Q10,R10,S10,T10,U10),"")) -> 331 | X10: 330 | Y10: =IFERROR(IF(INDEX('Auction-Rank'!$G$1:$O$961,MATCH($A10,'Auction-Rank'!$A$1:$A$961,0),'Guts-2'!$D$26)="","",INDEX('Auction-Rank'!$G$1:$O$961,MATCH($A10,'Auction-Rank'!$A$1:$A$961,0),'Guts-2'!$D$26)),"") -> 0 | Z10: =IF(V10=FALSE,"",IFERROR(IF(INDEX('Auction-Rank'!$G$1:$O$961,MATCH($A10,'Auction-Rank'!$A$1:$A$961,0),'Guts-2'!$D$26)="","",INDEX('Auction-Rank'!$G$1:$O$961,MATCH($A10,'Auction-Rank'!$A$1:$A$961,0),'Guts-2'!$D$26)),"")) -> 0 | AA10: =IF(Z10="","",IF(V10=FALSE,"",Z10*(SUMIF($Y$2:$Y$961,"<>""",$Y$2:$Y$961)/SUMIF($Z$2:$Z$961,"<>""",$Z$2:$Z$961)))) -> 0 | AB10: =IFERROR(IF(VLOOKUP(A11,'Name-Sort'!$D$2:$E$948,2,FALSE)="",A11,""),"") -> Nick Ahmed | AC10: =IFERROR(INDEX($AB$1:$AB$961,SMALL(IF($AB$1:$AB$961<>"",ROW($AB$1:$AB$961)),ROW(AB10))),"") -> Nick Ahmed
A11: Nick Ahmed | B11: ahmedni01 | C11: SS | E11: ARI | F11: 30 | J11: 0 | K11: 0.0003055555556 | N11: 0.0001018518519 | O11: =IFERROR(VLOOKUP(A11,'Import (Values)'!$B$2:$C$999,2,FALSE)/3120,"") ->  | Q11: 358 | R11: 192 | T11: 321 | V11: =IFERROR(INDEX('Guts-2'!$K$1:$K$30,MATCH(E11,'Guts-2'!$J$1:$J$30,0)),TRUE) -> TRUE | W11: =IF(V11=FALSE,"",IFERROR(CHOOSE('Guts-2'!$D$27,P11,Q11,R11,S11,T11,U11),"")) -> 321 | X11: 320 | Y11: =IFERROR(IF(INDEX('Auction-Rank'!$G$1:$O$961,MATCH($A11,'Auction-Rank'!$A$1:$A$961,0),'Guts-2'!$D$26)="","",INDEX('Auction-Rank'!$G$1:$O$961,MATCH($A11,'Auction-Rank'!$A$1:$A$961,0),'Guts-2'!$D$26)),"") -> 0.0001018518519 | Z11: =IF(V11=FALSE,"",IFERROR(IF(INDEX('Auction-Rank'!$G$1:$O$961,MATCH($A11,'Auction-Rank'!$A$1:$A$961,0),'Guts-2'!$D$26)="","",INDEX('Auction-Rank'!$G$1:$O$961,MATCH($A11,'Auction-Rank'!$A$1:$A$961,0),'Guts-2'!$D$26)),"")) -> 0.0001018518519 | AA11: =IF(Z11="","",IF(V11=FALSE,"",Z11*(SUMIF($Y$2:$Y$961,"<>""",$Y$2:$Y$961)/SUMIF($Z$2:$Z$961,"<>""",$Z$2:$Z$961)))) -> 0.0001018518519 | AB11: =IFERROR(IF(VLOOKUP(A12,'Name-Sort'!$D$2:$E$948,2,FALSE)="",A12,""),"") -> Shogo Akiyama | AC11: =IFERROR(INDEX($AB$1:$AB$961,SMALL(IF($AB$1:$AB$961<>"",ROW($AB$1:$AB$961)),ROW(AB11))),"") -> Shogo Akiyama
A12: Shogo Akiyama | B12: akimash01 | C12: OF | E12: CIN | F12: 31 | J12: 0.0008333333333 | K12: 0.0004722222222 | M12: 0.0008333333333 | N12: 0.0005347222222 | O12: =IFERROR(VLOOKUP(A12,'Import (Values)'!$B$2:$C$999,2,FALSE)/3120,"") ->  | Q12: 338 | R12: 163 | T12: 233 | V12: =IFERROR(INDEX('Guts-2'!$K$1:$K$30,MATCH(E12,'Guts-2'!$J$1:$J$30,0)),TRUE) -> TRUE | W12: =IF(V12=FALSE,"",IFERROR(CHOOSE('Guts-2'!$D$27,P12,Q12,R12,S12,T12,U12),"")) -> 233 | X12: 233 | Y12: =IFERROR(IF(INDEX('Auction-Rank'!$G$1:$O$961,MATCH($A12,'Auction-Rank'!$A$1:$A$961,0),'Guts-2'!$D$26)="","",INDEX('Auction-Rank'!$G$1:$O$961,MATCH($A12,'Auction-Rank'!$A$1:$A$961,0),'Guts-2'!$D$26)),"") -> 0.0005347222222 | Z12: =IF(V12=FALSE,"",IFERROR(IF(INDEX('Auction-Rank'!$G$1:$O$961,MATCH($A12,'Auction-Rank'!$A$1:$A$961,0),'Guts-2'!$D$26)="","",INDEX('Auction-Rank'!$G$1:$O$961,MATCH($A12,'Auction-Rank'!$A$1:$A$961,0),'Guts-2'!$D$26)),"")) -> 0.0005347222222 | AA12: =IF(Z12="","",IF(V12=FALSE,"",Z12*(SUMIF($Y$2:$Y$961,"<>""",$Y$2:$Y$961)/SUMIF($Z$2:$Z$961,"<>""",$Z$2:$Z$961)))) -> 0.0005347222222 | AB12: =IFERROR(IF(VLOOKUP(A13,'Name-Sort'!$D$2:$E$948,2,FALSE)="",A13,""),"") -> Hanser Alberto | AC12: =IFERROR(INDEX($AB$1:$AB$961,SMALL(IF($AB$1:$AB$961<>"",ROW($AB$1:$AB$961)),ROW(AB12))),"") -> Hanser Alberto
A13: Hanser Alberto | B13: alberha01 | C13: 2B | E13: BAL | F13: 27 | J13: 0 | K13: 0.0003333333333 | M13: 0.0005555555556 | N13: 0.0002222222222 | O13: =IFERROR(VLOOKUP(A13,'Import (Values)'!$B$2:$C$999,2,FALSE)/3120,"") ->  | Q13: 354 | T13: 334 | V13: =IFERROR(INDEX('Guts-2'!$K$1:$K$30,MATCH(E13,'Guts-2'!$J$1:$J$30,0)),TRUE) -> TRUE | W13: =IF(V13=FALSE,"",IFERROR(CHOOSE('Guts-2'!$D$27,P13,Q13,R13,S13,T13,U13),"")) -> 334 | X13: 333 | Y13: =IFERROR(IF(INDEX('Auction-Rank'!$G$1:$O$961,MATCH($A13,'Auction-Rank'!$A$1:$A$961,0),'Guts-2'!$D$26)="","",INDEX('Auction-Rank'!$G$1:$O$961,MATCH($A13,'Auction-Rank'!$A$1:$A$961,0),'Guts-2'!$D$26)),"") -> 0.0002222222222 | Z13: =IF(V13=FALSE,"",IFERROR(IF(INDEX('Auction-Rank'!$G$1:$O$961,MATCH($A13,'Auction-Rank'!$A$1:$A$961,0),'Guts-2'!$D$26)="","",INDEX('Auction-Rank'!$G$1:$O$961,MATCH($A13,'Auction-Rank'!$A$1:$A$961,0),'Guts-2'!$D$26)),"")) -> 0.0002222222222 | AA13: =IF(Z13="","",IF(V13=FALSE,"",Z13*(SUMIF($Y$2:$Y$961,"<>""",$Y$2:$Y$961)/SUMIF($Z$2:$Z$961,"<>""",$Z$2:$Z$961)))) -> 0.0002222222222 | AB13: =IFERROR(IF(VLOOKUP(A14,'Name-Sort'!$D$2:$E$948,2,FALSE)="",A14,""),"") -> Ozzie Albies | AC13: =IFERROR(INDEX($AB$1:$AB$961,SMALL(IF($AB$1:$AB$961<>"",ROW($AB$1:$AB$961)),ROW(AB13))),"") -> Ozzie Albies
A14: Ozzie Albies | B14: albieoz01 | C14: 2B | E14: ATL | F14: 23 | G14: 0.007675 | H14: 0.006666666667 | J14: 0.005833333333 | K14: 0.006361111111 | M14: 0.006111111111 | N14: 0.005441203704 | O14: =IFERROR(VLOOKUP(A14,'Import (Values)'!$B$2:$C$999,2,FALSE)/3120,"") ->  | P14: 20 | Q14: 39 | R14: 30 | S14: 47 | T14: 32 | V14: =IFERROR(INDEX('Guts-2'!$K$1:$K$30,MATCH(E14,'Guts-2'!$J$1:$J$30,0)),TRUE) -> TRUE | W14: =IF(V14=FALSE,"",IFERROR(CHOOSE('Guts-2'!$D$27,P14,Q14,R14,S14,T14,U14),"")) -> 32 | X14: 32 | Y14: =IFERROR(IF(INDEX('Auction-Rank'!$G$1:$O$961,MATCH($A14,'Auction-Rank'!$A$1:$A$961,0),'Guts-2'!$D$26)="","",INDEX('Auction-Rank'!$G$1:$O$961,MATCH($A14,'Auction-Rank'!$A$1:$A$961,0),'Guts-2'!$D$26)),"") -> 0.005441203704 | Z14: =IF(V14=FALSE,"",IFERROR(IF(INDEX('Auction-Rank'!$G$1:$O$961,MATCH($A14,'Auction-Rank'!$A$1:$A$961,0),'Guts-2'!$D$26)="","",INDEX('Auction-Rank'!$G$1:$O$961,MATCH($A14,'Auction-Rank'!$A$1:$A$961,0),'Guts-2'!$D$26)),"")) -> 0.005441203704 | AA14: =IF(Z14="","",IF(V14=FALSE,"",Z14*(SUMIF($Y$2:$Y$961,"<>""",$Y$2:$Y$961)/SUMIF($Z$2:$Z$961,"<>""",$Z$2:$Z$961)))) -> 0.005441203704 | AB14: =IFERROR(IF(VLOOKUP(A15,'Name-Sort'!$D$2:$E$948,2,FALSE)="",A15,""),"") -> Sandy Alcantara | AC14: =IFERROR(INDEX($AB$1:$AB$961,SMALL(IF($AB$1:$AB$961<>"",ROW($AB$1:$AB$961)),ROW(AB14))),"") -> Sandy Alcantara
A15: Sandy Alcantara | B15: alcansa01 | C15: SP | E15: MIA | F15: 24 | J15: 0.0005555555556 | K15: 0.0003888888889 | N15: 0.0003148148148 | O15: =IFERROR(VLOOKUP(A15,'Import (Values)'!$B$2:$C$999,2,FALSE)/3120,"") ->  | Q15: 277 | R15: 237 | S15: 182 | T15: 258 | V15: =IFERROR(INDEX('Guts-2'!$K$1:$K$30,MATCH(E15,'Guts-2'!$J$1:$J$30,0)),TRUE) -> TRUE | W15: =IF(V15=FALSE,"",IFERROR(CHOOSE('Guts-2'!$D$27,P15,Q15,R15,S15,T15,U15),"")) -> 258 | X15: 257 | Y15: =IFERROR(IF(INDEX('Auction-Rank'!$G$1:$O$961,MATCH($A15,'Auction-Rank'!$A$1:$A$961,0),'Guts-2'!$D$26)="","",INDEX('Auction-Rank'!$G$1:$O$961,MATCH($A15,'Auction-Rank'!$A$1:$A$961,0),'Guts-2'!$D$26)),"") -> 0.0003148148148 | Z15: =IF(V15=FALSE,"",IFERROR(IF(INDEX('Auction-Rank'!$G$1:$O$961,MATCH($A15,'Auction-Rank'!$A$1:$A$961,0),'Guts-2'!$D$26)="","",INDEX('Auction-Rank'!$G$1:$O$961,MATCH($A15,'Auction-Rank'!$A$1:$A$961,0),'Guts-2'!$D$26)),"")) -> 0.0003148148148 | AA15: =IF(Z15="","",IF(V15=FALSE,"",Z15*(SUMIF($Y$2:$Y$961,"<>""",$Y$2:$Y$961)/SUMIF($Z$2:$Z$961,"<>""",$Z$2:$Z$961)))) -> 0.0003148148148 | AB15: =IFERROR(IF(VLOOKUP(A16,'Name-Sort'!$D$2:$E$948,2,FALSE)="",A16,""),"") -> Jorge Alfaro | AC15: =IFERROR(INDEX($AB$1:$AB$961,SMALL(IF($AB$1:$AB$961<>"",ROW($AB$1:$AB$961)),ROW(AB15))),"") -> Jorge Alfaro
A16: Jorge Alfaro | B16: alfarjo01 | C16: C | E16: MIA | F16: 26 | G16: 0.000375 | H16: 0.0002777777778 | J16: 0.0002777777778 | K16: 0.0003333333333 | N16: 0.0002527777778 | O16: =IFERROR(VLOOKUP(A16,'Import (Values)'!$B$2:$C$999,2,FALSE)/3120,"") ->  | P16: 255 | Q16: 286 | T16: 288 | V16: =IFERROR(INDEX('Guts-2'!$K$1:$K$30,MATCH(E16,'Guts-2'!$J$1:$J$30,0)),TRUE) -> TRUE | W16: =IF(V16=FALSE,"",IFERROR(CHOOSE('Guts-2'!$D$27,P16,Q16,R16,S16,T16,U16),"")) -> 288 | X16: 287 | Y16: =IFERROR(IF(INDEX('Auction-Rank'!$G$1:$O$961,MATCH($A16,'Auction-Rank'!$A$1:$A$961,0),'Guts-2'!$D$26)="","",INDEX('Auction-Rank'!$G$1:$O$961,MATCH($A16,'Auction-Rank'!$A$1:$A$961,0),'Guts-2'!$D$26)),"") -> 0.0002527777778 | Z16: =IF(V16=FALSE,"",IFERROR(IF(INDEX('Auction-Rank'!$G$1:$O$961,MATCH($A16,'Auction-Rank'!$A$1:$A$961,0),'Guts-2'!$D$26)="","",INDEX('Auction-Rank'!$G$1:$O$961,MATCH($A16,'Auction-Rank'!$A$1:$A$961,0),'Guts-2'!$D$26)),"")) -> 0.0002527777778 | AA16: =IF(Z16="","",IF(V16=FALSE,"",Z16*(SUMIF($Y$2:$Y$961,"<>""",$Y$2:$Y$961)/SUMIF($Z$2:$Z$961,"<>""",$Z$2:$Z$961)))) -> 0.0002527777778 | AB16: =IFERROR(IF(VLOOKUP(A17,'Name-Sort'!$D$2:$E$948,2,FALSE)="",A17,""),"") -> Kolby Allard | AC16: =IFERROR(INDEX($AB$1:$AB$961,SMALL(IF($AB$1:$AB$961<>"",ROW($AB$1:$AB$961)),ROW(AB16))),"") -> Kolby Allard
A17: Kolby Allard | B17: allarko01 | C17: SP | E17: TEX | F17: 22 | N17: 0 | O17: =IFERROR(VLOOKUP(A17,'Import (Values)'!$B$2:$C$999,2,FALSE)/3120,"") ->  | T17: 679 | V17: =IFERROR(INDEX('Guts-2'!$K$1:$K$30,MATCH(E17,'Guts-2'!$J$1:$J$30,0)),TRUE) -> TRUE | W17: =IF(V17=FALSE,"",IFERROR(CHOOSE('Guts-2'!$D$27,P17,Q17,R17,S17,T17,U17),"")) -> 679 | X17: 633 | Y17: =IFERROR(IF(INDEX('Auction-Rank'!$G$1:$O$961,MATCH($A17,'Auction-Rank'!$A$1:$A$961,0),'Guts-2'!$D$26)="","",INDEX('Auction-Rank'!$G$1:$O$961,MATCH($A17,'Auction-Rank'!$A$1:$A$961,0),'Guts-2'!$D$26)),"") -> 0 | Z17: =IF(V17=FALSE,"",IFERROR(IF(INDEX('Auction-Rank'!$G$1:$O$961,MATCH($A17,'Auction-Rank'!$A$1:$A$961,0),'Guts-2'!$D$26)="","",INDEX('Auction-Rank'!$G$1:$O$961,MATCH($A17,'Auction-Rank'!$A$1:$A$961,0),'Guts-2'!$D$26)),"")) -> 0 | AA17: =IF(Z17="","",IF(V17=FALSE,"",Z17*(SUMIF($Y$2:$Y$961,"<>""",$Y$2:$Y$961)/SUMIF($Z$2:$Z$961,"<>""",$Z$2:$Z$961)))) -> 0 | AB17: =IFERROR(IF(VLOOKUP(A18,'Name-Sort'!$D$2:$E$948,2,FALSE)="",A18,""),"") -> Austin Allen | AC17: =IFERROR(INDEX($AB$1:$AB$961,SMALL(IF($AB$1:$AB$961<>"",ROW($AB$1:$AB$961)),ROW(AB17))),"") -> Austin Allen
A18: Austin Allen | B18: allenau01 | C18: C | E18: OAK | F18: 26 | N18: 0 | O18: =IFERROR(VLOOKUP(A18,'Import (Values)'!$B$2:$C$999,2,FALSE)/3120,"") ->  | T18: 752 | V18: =IFERROR(INDEX('Guts-2'!$K$1:$K$30,MATCH(E18,'Guts-2'!$J$1:$J$30,0)),TRUE) -> TRUE | W18: =IF(V18=FALSE,"",IFERROR(CHOOSE('Guts-2'!$D$27,P18,Q18,R18,S18,T18,U18),"")) -> 752 | X18: 668 | Y18: =IFERROR(IF(INDEX('Auction-Rank'!$G$1:$O$961,MATCH($A18,'Auction-Rank'!$A$1:$A$961,0),'Guts-2'!$D$26)="","",INDEX('Auction-Rank'!$G$1:$O$961,MATCH($A18,'Auction-Rank'!$A$1:$A$961,0),'Guts-2'!$D$26)),"") -> 0 | Z18: =IF(V18=FALSE,"",IFERROR(IF(INDEX('Auction-Rank'!$G$1:$O$961,MATCH($A18,'Auction-Rank'!$A$1:$A$961,0),'Guts-2'!$D$26)="","",INDEX('Auction-Rank'!$G$1:$O$961,MATCH($A18,'Auction-Rank'!$A$1:$A$961,0),'Guts-2'!$D$26)),"")) -> 0 | AA18: =IF(Z18="","",IF(V18=FALSE,"",Z18*(SUMIF($Y$2:$Y$961,"<>""",$Y$2:$Y$961)/SUMIF($Z$2:$Z$961,"<>""",$Z$2:$Z$961)))) -> 0 | AB18: =IFERROR(IF(VLOOKUP(A19,'Name-Sort'!$D$2:$E$948,2,FALSE)="",A19,""),"") -> Greg Allen | AC18: =IFERROR(INDEX($AB$1:$AB$961,SMALL(IF($AB$1:$AB$961<>"",ROW($AB$1:$AB$961)),ROW(AB18))),"") -> Greg Allen
A19: Greg Allen | B19: allengr01 | C19: OF | D19: LF,CF,RF | E19: CLE | F19: 27 | N19: 0 | O19: =IFERROR(VLOOKUP(A19,'Import (Values)'!$B$2:$C$999,2,FALSE)/3120,"") ->  | T19: 684 | V19: =IFERROR(INDEX('Guts-2'!$K$1:$K$30,MATCH(E19,'Guts-2'!$J$1:$J$30,0)),TRUE) -> TRUE | W19: =IF(V19=FALSE,"",IFERROR(CHOOSE('Guts-2'!$D$27,P19,Q19,R19,S19,T19,U19),"")) -> 684 | X19: 637 | Y19: =IFERROR(IF(INDEX('Auction-Rank'!$G$1:$O$961,MATCH($A19,'Auction-Rank'!$A$1:$A$961,0),'Guts-2'!$D$26)="","",INDEX('Auction-Rank'!$G$1:$O$961,MATCH($A19,'Auction-Rank'!$A$1:$A$961,0),'Guts-2'!$D$26)),"") -> 0 | Z19: =IF(V19=FALSE,"",IFERROR(IF(INDEX('Auction-Rank'!$G$1:$O$961,MATCH($A19,'Auction-Rank'!$A$1:$A$961,0),'Guts-2'!$D$26)="","",INDEX('Auction-Rank'!$G$1:$O$961,MATCH($A19,'Auction-Rank'!$A$1:$A$961,0),'Guts-2'!$D$26)),"")) -> 0 | AA19: =IF(Z19="","",IF(V19=FALSE,"",Z19*(SUMIF($Y$2:$Y$961,"<>""",$Y$2:$Y$961)/SUMIF($Z$2:$Z$961,"<>""",$Z$2:$Z$961)))) -> 0 | AB19: =IFERROR(IF(VLOOKUP(A20,'Name-Sort'!$D$2:$E$948,2,FALSE)="",A20,""),"") -> Logan Allen | AC19: =IFERROR(INDEX($AB$1:$AB$961,SMALL(IF($AB$1:$AB$961<>"",ROW($AB$1:$AB$961)),ROW(AB19))),"") -> Logan Allen
A20: Logan Allen | B20: allenlo01 | C20: RP | E20: CLE | F20: 22 | N20: 0 | O20: =IFERROR(VLOOKUP(A20,'Import (Values)'!$B$2:$C$999,2,FALSE)/3120,"") ->  | T20: 669 | V20: =IFERROR(INDEX('Guts-2'!$K$1:$K$30,MATCH(E20,'Guts-2'!$J$1:$J$30,0)),TRUE) -> TRUE | W20: =IF(V20=FALSE,"",IFERROR(CHOOSE('Guts-2'!$D$27,P20,Q20,R20,S20,T20,U20),"")) -> 669 | X20: 625 | Y20: =IFERROR(IF(INDEX('Auction-Rank'!$G$1:$O$961,MATCH($A20,'Auction-Rank'!$A$1:$A$961,0),'Guts-2'!$D$26)="","",INDEX('Auction-Rank'!$G$1:$O$961,MATCH($A20,'Auction-Rank'!$A$1:$A$961,0),'Guts-2'!$D$26)),"") -> 0 | Z20: =IF(V20=FALSE,"",IFERROR(IF(INDEX('Auction-Rank'!$G$1:$O$961,MATCH($A20,'Auction-Rank'!$A$1:$A$961,0),'Guts-2'!$D$26)="","",INDEX('Auction-Rank'!$G$1:$O$961,MATCH($A20,'Auction-Rank'!$A$1:$A$961,0),'Guts-2'!$D$26)),"")) -> 0 | AA20: =IF(Z20="","",IF(V20=FALSE,"",Z20*(SUMIF($Y$2:$Y$961,"<>""",$Y$2:$Y$961)/SUMIF($Z$2:$Z$961,"<>""",$Z$2:$Z$961)))) -> 0 | AB20: =IFERROR(IF(VLOOKUP(A21,'Name-Sort'!$D$2:$E$948,2,FALSE)="",A21,""),"") -> Albert Almora | AC20: =IFERROR(INDEX($AB$1:$AB$961,SMALL(IF($AB$1:$AB$961<>"",ROW($AB$1:$AB$961)),ROW(AB20))),"") -> Albert Almora
A21: Albert Almora | B21: almoral01 | C21: OF | D21: CF | E21: CHC | F21: 25 | N21: 0 | O21: =IFERROR(VLOOKUP(A21,'Import (Values)'!$B$2:$C$999,2,FALSE)/3120,"") ->  | T21: 746 | V21: =IFERROR(INDEX('Guts-2'!$K$1:$K$30,MATCH(E21,'Guts-2'!$J$1:$J$30,0)),TRUE) -> TRUE | W21: =IF(V21=FALSE,"",IFERROR(CHOOSE('Guts-2'!$D$27,P21,Q21,R21,S21,T21,U21),"")) -> 746 | X21: 666 | Y21: =IFERROR(IF(INDEX('Auction-Rank'!$G$1:$O$961,MATCH($A21,'Auction-Rank'!$A$1:$A$961,0),'Guts-2'!$D$26)="","",INDEX('Auction-Rank'!$G$1:$O$961,MATCH($A21,'Auction-Rank'!$A$1:$A$961,0),'Guts-2'!$D$26)),"") -> 0 | Z21: =IF(V21=FALSE,"",IFERROR(IF(INDEX('Auction-Rank'!$G$1:$O$961,MATCH($A21,'Auction-Rank'!$A$1:$A$961,0),'Guts-2'!$D$26)="","",INDEX('Auction-Rank'!$G$1:$O$961,MATCH($A21,'Auction-Rank'!$A$1:$A$961,0),'Guts-2'!$D$26)),"")) -> 0 | AA21: =IF(Z21="","",IF(V21=FALSE,"",Z21*(SUMIF($Y$2:$Y$961,"<>""",$Y$2:$Y$961)/SUMIF($Z$2:$Z$961,"<>""",$Z$2:$Z$961)))) -> 0 | AB21: =IFERROR(IF(VLOOKUP(A22,'Name-Sort'!$D$2:$E$948,2,FALSE)="",A22,""),"") -> Pete Alonso | AC21: =IFERROR(INDEX($AB$1:$AB$961,SMALL(IF($AB$1:$AB$961<>"",ROW($AB$1:$AB$961)),ROW(AB21))),"") -> Pete Alonso
A22: Pete Alonso | B22: alonspe01 | C22: 1B | E22: NYM | F22: 25 | G22: 0.004902777778 | H22: 0.006666666667 | J22: 0.006944444444 | K22: 0.008 | M22: 0.006944444444 | N22: 0.005576388889 | O22: =IFERROR(VLOOKUP(A22,'Import (Values)'!$B$2:$C$999,2,FALSE)/3120,"") ->  | P22: 53 | Q22: 24 | R22: 44 | S22: 25 | T22: 35 | V22: =IFERROR(INDEX('Guts-2'!$K$1:$K$30,MATCH(E22,'Guts-2'!$J$1:$J$30,0)),TRUE) -> TRUE | W22: =IF(V22=FALSE,"",IFERROR(CHOOSE('Guts-2'!$D$27,P22,Q22,R22,S22,T22,U22),"")) -> 35 | X22: 35 | Y22: =IFERROR(IF(INDEX('Auction-Rank'!$G$1:$O$961,MATCH($A22,'Auction-Rank'!$A$1:$A$961,0),'Guts-2'!$D$26)="","",INDEX('Auction-Rank'!$G$1:$O$961,MATCH($A22,'Auction-Rank'!$A$1:$A$961,0),'Guts-2'!$D$26)),"") -> 0.005576388889 | Z22: =IF(V22=FALSE,"",IFERROR(IF(INDEX('Auction-Rank'!$G$1:$O$961,MATCH($A22,'Auction-Rank'!$A$1:$A$961,0),'Guts-2'!$D$26)="","",INDEX('Auction-Rank'!$G$1:$O$961,MATCH($A22,'Auction-Rank'!$A$1:$A$961,0),'Guts-2'!$D$26)),"")) -> 0.005576388889 | AA22: =IF(Z22="","",IF(V22=FALSE,"",Z22*(SUMIF($Y$2:$Y$961,"<>""",$Y$2:$Y$961)/SUMIF($Z$2:$Z$961,"<>""",$Z$2:$Z$961)))) -> 0.005576388889 | AB22: =IFERROR(IF(VLOOKUP(A23,'Name-Sort'!$D$2:$E$948,2,FALSE)="",A23,""),"") -> Yonder Alonso | AC22: =IFERROR(INDEX($AB$1:$AB$961,SMALL(IF($AB$1:$AB$961<>"",ROW($AB$1:$AB$961)),ROW(AB22))),"") -> Yonder Alonso
A23: Yonder Alonso | B23: alonsyo01 | C23: 1B | E23: COL | F23: 32 | N23: 0 | O23: =IFERROR(VLOOKUP(A23,'Import (Values)'!$B$2:$C$999,2,FALSE)/3120,"") ->  | T23: 786 | V23: =IFERROR(INDEX('Guts-2'!$K$1:$K$30,MATCH(E23,'Guts-2'!$J$1:$J$30,0)),TRUE) -> TRUE | W23: =IF(V23=FALSE,"",IFERROR(CHOOSE('Guts-2'!$D$27,P23,Q23,R23,S23,T23,U23),"")) -> 786 | X23: 686 | Y23: =IFERROR(IF(INDEX('Auction-Rank'!$G$1:$O$961,MATCH($A23,'Auction-Rank'!$A$1:$A$961,0),'Guts-2'!$D$26)="","",INDEX('Auction-Rank'!$G$1:$O$961,MATCH($A23,'Auction-Rank'!$A$1:$A$961,0),'Guts-2'!$D$26)),"") -> 0 | Z23: =IF(V23=FALSE,"",IFERROR(IF(INDEX('Auction-Rank'!$G$1:$O$961,MATCH($A23,'Auction-Rank'!$A$1:$A$961,0),'Guts-2'!$D$26)="","",INDEX('Auction-Rank'!$G$1:$O$961,MATCH($A23,'Auction-Rank'!$A$1:$A$961,0),'Guts-2'!$D$26)),"")) -> 0 | AA23: =IF(Z23="","",IF(V23=FALSE,"",Z23*(SUMIF($Y$2:$Y$961,"<>""",$Y$2:$Y$961)/SUMIF($Z$2:$Z$961,"<>""",$Z$2:$Z$961)))) -> 0 | AB23: =IFERROR(IF(VLOOKUP(A24,'Name-Sort'!$D$2:$E$948,2,FALSE)="",A24,""),"") -> Jose Altuve | AC23: =IFERROR(INDEX($AB$1:$AB$961,SMALL(IF($AB$1:$AB$961<>"",ROW($AB$1:$AB$961)),ROW(AB23))),"") -> Jose Altuve
A24: Jose Altuve | B24: altuvjo01 | C24: 2B | E24: HOU | F24: 29 | G24: 0.007883333333 | H24: 0.006944444444 | J24: 0.006388888889 | K24: 0.006888888889 | M24: 0.008888888889 | N24: 0.006165740741 | O24: =IFERROR(VLOOKUP(A24,'Import (Values)'!$B$2:$C$999,2,FALSE)/3120,"") -> 0.01025641026 | P24: 16 | Q24: 36 | R24: 29 | S24: 23 | T24: 29 | V24: =IFERROR(INDEX('Guts-2'!$K$1:$K$30,MATCH(E24,'Guts-2'!$J$1:$J$30,0)),TRUE) -> TRUE | W24: =IF(V24=FALSE,"",IFERROR(CHOOSE('Guts-2'!$D$27,P24,Q24,R24,S24,T24,U24),"")) -> 29 | X24: 29 | Y24: =IFERROR(IF(INDEX('Auction-Rank'!$G$1:$O$961,MATCH($A24,'Auction-Rank'!$A$1:$A$961,0),'Guts-2'!$D$26)="","",INDEX('Auction-Rank'!$G$1:$O$961,MATCH($A24,'Auction-Rank'!$A$1:$A$961,0),'Guts-2'!$D$26)),"") -> 0.006165740741 | Z24: =IF(V24=FALSE,"",IFERROR(IF(INDEX('Auction-Rank'!$G$1:$O$961,MATCH($A24,'Auction-Rank'!$A$1:$A$961,0),'Guts-2'!$D$26)="","",INDEX('Auction-Rank'!$G$1:$O$961,MATCH($A24,'Auction-Rank'!$A$1:$A$961,0),'Guts-2'!$D$26)),"")) -> 0.006165740741 | AA24: =IF(Z24="","",IF(V24=FALSE,"",Z24*(SUMIF($Y$2:$Y$961,"<>""",$Y$2:$Y$961)/SUMIF($Z$2:$Z$961,"<>""",$Z$2:$Z$961)))) -> 0.006165740741 | AB24: =IFERROR(IF(VLOOKUP(A25,'Name-Sort'!$D$2:$E$948,2,FALSE)="",A25,""),"") -> Jose Alvarado | AC24: =IFERROR(INDEX($AB$1:$AB$961,SMALL(IF($AB$1:$AB$961<>"",ROW($AB$1:$AB$961)),ROW(AB24))),"") -> Jose Alvarado
A25: Jose Alvarado | B25: alvarjo03 | C25: RP | E25: TB | F25: 24 | G25: -0.0001305555556 | J25: 0 | K25: 0.0002777777778 | N25: 3.680555556e-05 | O25: =IFERROR(VLOOKUP(A25,'Import (Values)'!$B$2:$C$999,2,FALSE)/3120,"") ->  | P25: 298 | T25: 367 | V25: =IFERROR(INDEX('Guts-2'!$K$1:$K$30,MATCH(E25,'Guts-2'!$J$1:$J$30,0)),TRUE) -> TRUE | W25: =IF(V25=FALSE,"",IFERROR(CHOOSE('Guts-2'!$D$27,P25,Q25,R25,S25,T25,U25),"")) -> 367 | X25: 365 | Y25: =IFERROR(IF(INDEX('Auction-Rank'!$G$1:$O$961,MATCH($A25,'Auction-Rank'!$A$1:$A$961,0),'Guts-2'!$D$26)="","",INDEX('Auction-Rank'!$G$1:$O$961,MATCH($A25,'Auction-Rank'!$A$1:$A$961,0),'Guts-2'!$D$26)),"") -> 3.680555556e-05 | Z25: =IF(V25=FALSE,"",IFERROR(IF(INDEX('Auction-Rank'!$G$1:$O$961,MATCH($A25,'Auction-Rank'!$A$1:$A$961,0),'Guts-2'!$D$26)="","",INDEX('Auction-Rank'!$G$1:$O$961,MATCH($A25,'Auction-Rank'!$A$1:$A$961,0),'Guts-2'!$D$26)),"")) -> 3.680555556e-05 | AA25: =IF(Z25="","",IF(V25=FALSE,"",Z25*(SUMIF($Y$2:$Y$961,"<>""",$Y$2:$Y$961)/SUMIF($Z$2:$Z$961,"<>""",$Z$2:$Z$961)))) -> 3.680555556e-05 | AB25: =IFERROR(IF(VLOOKUP(A26,'Name-Sort'!$D$2:$E$948,2,FALSE)="",A26,""),"") -> Yordan Alvarez | AC25: =IFERROR(INDEX($AB$1:$AB$961,SMALL(IF($AB$1:$AB$961<>"",ROW($AB$1:$AB$961)),ROW(AB25))),"") -> Yordan Alvarez
A26: Yordan Alvarez | B26: alvaryo01 | C26: DH | D26: LF | E26: HOU | F26: 22 | G26: 0.004752777778 | H26: 0.006666666667 | J26: 0.006111111111 | K26: 0.006888888889 | M26: 0.005277777778 | N26: 0.004949537037 | O26: =IFERROR(VLOOKUP(A26,'Import (Values)'!$B$2:$C$999,2,FALSE)/3120,"") ->  | P26: 55 | Q26: 35 | R26: 38 | S26: 46 | T26: 49 | V26: =IFERROR(INDEX('Guts-2'!$K$1:$K$30,MATCH(E26,'Guts-2'!$J$1:$J$30,0)),TRUE) -> TRUE | W26: =IF(V26=FALSE,"",IFERROR(CHOOSE('Guts-2'!$D$27,P26,Q26,R26,S26,T26,U26),"")) -> 49 | X26: 49 | Y26: =IFERROR(IF(INDEX('Auction-Rank'!$G$1:$O$961,MATCH($A26,'Auction-Rank'!$A$1:$A$961,0),'Guts-2'!$D$26)="","",INDEX('Auction-Rank'!$G$1:$O$961,MATCH($A26,'Auction-Rank'!$A$1:$A$961,0),'Guts-2'!$D$26)),"") -> 0.004949537037 | Z26: =IF(V26=FALSE,"",IFERROR(IF(INDEX('Auction-Rank'!$G$1:$O$961,MATCH($A26,'Auction-Rank'!$A$1:$A$961,0),'Guts-2'!$D$26)="","",INDEX('Auction-Rank'!$G$1:$O$961,MATCH($A26,'Auction-Rank'!$A$1:$A$961,0),'Guts-2'!$D$26)),"")) -> 0.004949537037 | AA26: =IF(Z26="","",IF(V26=FALSE,"",Z26*(SUMIF($Y$2:$Y$961,"<>""",$Y$2:$Y$961)/SUMIF($Z$2:$Z$961,"<>""",$Z$2:$Z$961)))) -> 0.004949537037 | AB26: =IFERROR(IF(VLOOKUP(A27,'Name-Sort'!$D$2:$E$948,2,FALSE)="",A27,""),"") -> Adbert Alzolay | AC26: =IFERROR(INDEX($AB$1:$AB$961,SMALL(IF($AB$1:$AB$961<>"",ROW($AB$1:$AB$961)),ROW(AB26))),"") -> Adbert Alzolay
A27: Adbert Alzolay | B27: alzolad01 | C27: SP | E27: CHC | F27: 25 | N27: 0 | O27: =IFERROR(VLOOKUP(A27,'Import (Values)'!$B$2:$C$999,2,FALSE)/3120,"") ->  | V27: =IFERROR(INDEX('Guts-2'!$K$1:$K$30,MATCH(E27,'Guts-2'!$J$1:$J$30,0)),TRUE) -> TRUE | W27: =IF(V27=FALSE,"",IFERROR(CHOOSE('Guts-2'!$D$27,P27,Q27,R27,S27,T27,U27),"")) ->  | Y27: =IFERROR(IF(INDEX('Auction-Rank'!$G$1:$O$961,MATCH($A27,'Auction-Rank'!$A$1:$A$961,0),'Guts-2'!$D$26)="","",INDEX('Auction-Rank'!$G$1:$O$961,MATCH($A27,'Auction-Rank'!$A$1:$A$961,0),'Guts-2'!$D$26)),"") -> 0 | Z27: =IF(V27=FALSE,"",IFERROR(IF(INDEX('Auction-Rank'!$G$1:$O$961,MATCH($A27,'Auction-Rank'!$A$1:$A$961,0),'Guts-2'!$D$26)="","",INDEX('Auction-Rank'!$G$1:$O$961,MATCH($A27,'Auction-Rank'!$A$1:$A$961,0),'Guts-2'!$D$26)),"")) -> 0 | AA27: =IF(Z27="","",IF(V27=FALSE,"",Z27*(SUMIF($Y$2:$Y$961,"<>""",$Y$2:$Y$961)/SUMIF($Z$2:$Z$961,"<>""",$Z$2:$Z$961)))) -> 0 | AB27: =IFERROR(IF(VLOOKUP(A28,'Name-Sort'!$D$2:$E$948,2,FALSE)="",A28,""),"") -> Brett Anderson | AC27: =IFERROR(INDEX($AB$1:$AB$961,SMALL(IF($AB$1:$AB$961<>"",ROW($AB$1:$AB$961)),ROW(AB27))),"") -> Brett Anderson
A28: Brett Anderson | B28: anderbr04 | C28: SP | E28: MIL | F28: 32 | N28: 0 | O28: =IFERROR(VLOOKUP(A28,'Import (Values)'!$B$2:$C$999,2,FALSE)/3120,"") ->  | T28: 515 | V28: =IFERROR(INDEX('Guts-2'!$K$1:$K$30,MATCH(E28,'Guts-2'!$J$1:$J$30,0)),TRUE) -> TRUE | W28: =IF(V28=FALSE,"",IFERROR(CHOOSE('Guts-2'!$D$27,P28,Q28,R28,S28,T28,U28),"")) -> 515 | X28: 509 | Y28: =IFERROR(IF(INDEX('Auction-Rank'!$G$1:$O$961,MATCH($A28,'Auction-Rank'!$A$1:$A$961,0),'Guts-2'!$D$26)="","",INDEX('Auction-Rank'!$G$1:$O$961,MATCH($A28,'Auction-Rank'!$A$1:$A$961,0),'Guts-2'!$D$26)),"") -> 0 | Z28: =IF(V28=FALSE,"",IFERROR(IF(INDEX('Auction-Rank'!$G$1:$O$961,MATCH($A28,'Auction-Rank'!$A$1:$A$961,0),'Guts-2'!$D$26)="","",INDEX('Auction-Rank'!$G$1:$O$961,MATCH($A28,'Auction-Rank'!$A$1:$A$961,0),'Guts-2'!$D$26)),"")) -> 0 | AA28: =IF(Z28="","",IF(V28=FALSE,"",Z28*(SUMIF($Y$2:$Y$961,"<>""",$Y$2:$Y$961)/SUMIF($Z$2:$Z$961,"<>""",$Z$2:$Z$961)))) -> 0 | AB28: =IFERROR(IF(VLOOKUP(A29,'Name-Sort'!$D$2:$E$948,2,FALSE)="",A29,""),"") -> Brian Anderson | AC28: =IFERROR(INDEX($AB$1:$AB$961,SMALL(IF($AB$1:$AB$961<>"",ROW($AB$1:$AB$961)),ROW(AB28))),"") -> Brian Anderson
A29: Brian Anderson | B29: anderbr06 | C29: 3B | D29: RF | E29: MIA | F29: 26 | G29: 0.0002833333333 | J29: 0.0002777777778 | K29: 0.0003055555556 | M29: 0.0008333333333 | N29: 0.00034 | O29: =IFERROR(VLOOKUP(A29,'Import (Values)'!$B$2:$C$999,2,FALSE)/3120,"") ->  | P29: 266 | Q29: 265 | R29: 203 | S29: 175 | T29: 228 | V29: =IFERROR(INDEX('Guts-2'!$K$1:$K$30,MATCH(E29,'Guts-2'!$J$1:$J$30,0)),TRUE) -> TRUE | W29: =IF(V29=FALSE,"",IFERROR(CHOOSE('Guts-2'!$D$27,P29,Q29,R29,S29,T29,U29),"")) -> 228 | X29: 228 | Y29: =IFERROR(IF(INDEX('Auction-Rank'!$G$1:$O$961,MATCH($A29,'Auction-Rank'!$A$1:$A$961,0),'Guts-2'!$D$26)="","",INDEX('Auction-Rank'!$G$1:$O$961,MATCH($A29,'Auction-Rank'!$A$1:$A$961,0),'Guts-2'!$D$26)),"") -> 0.00034 | Z29: =IF(V29=FALSE,"",IFERROR(IF(INDEX('Auction-Rank'!$G$1:$O$961,MATCH($A29,'Auction-Rank'!$A$1:$A$961,0),'Guts-2'!$D$26)="","",INDEX('Auction-Rank'!$G$1:$O$961,MATCH($A29,'Auction-Rank'!$A$1:$A$961,0),'Guts-2'!$D$26)),"")) -> 0.00034 | AA29: =IF(Z29="","",IF(V29=FALSE,"",Z29*(SUMIF($Y$2:$Y$961,"<>""",$Y$2:$Y$961)/SUMIF($Z$2:$Z$961,"<>""",$Z$2:$Z$961)))) -> 0.00034 | AB29: =IFERROR(IF(VLOOKUP(A30,'Name-Sort'!$D$2:$E$948,2,FALSE)="",A30,""),"") -> Chase Anderson | AC29: =IFERROR(INDEX($AB$1:$AB$961,SMALL(IF($AB$1:$AB$961<>"",ROW($AB$1:$AB$961)),ROW(AB29))),"") -> Chase Anderson
A30: Chase Anderson | B30: anderch01 | C30: SP | E30: TOR | F30: 32 | J30: 0 | N30: 0 | O30: =IFERROR(VLOOKUP(A30,'Import (Values)'!$B$2:$C$999,2,FALSE)/3120,"") ->  | T30: 455 | V30: =IFERROR(INDEX('Guts-2'!$K$1:$K$30,MATCH(E30,'Guts-2'!$J$1:$J$30,0)),TRUE) -> TRUE | W30: =IF(V30=FALSE,"",IFERROR(CHOOSE('Guts-2'!$D$27,P30,Q30,R30,S30,T30,U30),"")) -> 455 | X30: 450 | Y30: =IFERROR(IF(INDEX('Auction-Rank'!$G$1:$O$961,MATCH($A30,'Auction-Rank'!$A$1:$A$961,0),'Guts-2'!$D$26)="","",INDEX('Auction-Rank'!$G$1:$O$961,MATCH($A30,'Auction-Rank'!$A$1:$A$961,0),'Guts-2'!$D$26)),"") -> 0 | Z30: =IF(V30=FALSE,"",IFERROR(IF(INDEX('Auction-Rank'!$G$1:$O$961,MATCH($A30,'Auction-Rank'!$A$1:$A$961,0),'Guts-2'!$D$26)="","",INDEX('Auction-Rank'!$G$1:$O$961,MATCH($A30,'Auction-Rank'!$A$1:$A$961,0),'Guts-2'!$D$26)),"")) -> 0 | AA30: =IF(Z30="","",IF(V30=FALSE,"",Z30*(SUMIF($Y$2:$Y$961,"<>""",$Y$2:$Y$961)/SUMIF($Z$2:$Z$961,"<>""",$Z$2:$Z$961)))) -> 0 | AB30: =IFERROR(IF(VLOOKUP(A31,'Name-Sort'!$D$2:$E$948,2,FALSE)="",A31,""),"") -> Ian Anderson | AC30: =IFERROR(INDEX($AB$1:$AB$961,SMALL(IF($AB$1:$AB$961<>"",ROW($AB$1:$AB$961)),ROW(AB30))),"") -> Ian Anderson
A31: Ian Anderson | B31: anderia01 | C31: SP | E31: ATL | F31: 21 | N31: 0 | O31: =IFERROR(VLOOKUP(A31,'Import (Values)'!$B$2:$C$999,2,FALSE)/3120,"") ->  | T31: 599 | V31: =IFERROR(INDEX('Guts-2'!$K$1:$K$30,MATCH(E31,'Guts-2'!$J$1:$J$30,0)),TRUE) -> TRUE | W31: =IF(V31=FALSE,"",IFERROR(CHOOSE('Guts-2'!$D$27,P31,Q31,R31,S31,T31,U31),"")) -> 599 | X31: 582 | Y31: =IFERROR(IF(INDEX('Auction-Rank'!$G$1:$O$961,MATCH($A31,'Auction-Rank'!$A$1:$A$961,0),'Guts-2'!$D$26)="","",INDEX('Auction-Rank'!$G$1:$O$961,MATCH($A31,'Auction-Rank'!$A$1:$A$961,0),'Guts-2'!$D$26)),"") -> 0 | Z31: =IF(V31=FALSE,"",IFERROR(IF(INDEX('Auction-Rank'!$G$1:$O$961,MATCH($A31,'Auction-Rank'!$A$1:$A$961,0),'Guts-2'!$D$26)="","",INDEX('Auction-Rank'!$G$1:$O$961,MATCH($A31,'Auction-Rank'!$A$1:$A$961,0),'Guts-2'!$D$26)),"")) -> 0 | AA31: =IF(Z31="","",IF(V31=FALSE,"",Z31*(SUMIF($Y$2:$Y$961,"<>""",$Y$2:$Y$961)/SUMIF($Z$2:$Z$961,"<>""",$Z$2:$Z$961)))) -> 0 | AB31: =IFERROR(IF(VLOOKUP(A32,'Name-Sort'!$D$2:$E$948,2,FALSE)="",A32,""),"") -> Nick Anderson | AC31: =IFERROR(INDEX($AB$1:$AB$961,SMALL(IF($AB$1:$AB$961<>"",ROW($AB$1:$AB$961)),ROW(AB31))),"") -> Nick Anderson
A32: Nick Anderson | B32: anderni01 | C32: RP | E32: TB | F32: 29 | G32: 0.002405555556 | H32: 0.0025 | J32: 0.002222222222 | K32: 0.002027777778 | M32: 0.0025 | N32: 0.001942592593 | O32: =IFERROR(VLOOKUP(A32,'Import (Values)'!$B$2:$C$999,2,FALSE)/3120,"") ->  | P32: 136 | Q32: 162 | R32: 142 | S32: 153 | T32: 142 | V32: =IFERROR(INDEX('Guts-2'!$K$1:$K$30,MATCH(E32,'Guts-2'!$J$1:$J$30,0)),TRUE) -> TRUE | W32: =IF(V32=FALSE,"",IFERROR(CHOOSE('Guts-2'!$D$27,P32,Q32,R32,S32,T32,U32),"")) -> 142 | X32: 142 | Y32: =IFERROR(IF(INDEX('Auction-Rank'!$G$1:$O$961,MATCH($A32,'Auction-Rank'!$A$1:$A$961,0),'Guts-2'!$D$26)="","",INDEX('Auction-Rank'!$G$1:$O$961,MATCH($A32,'Auction-Rank'!$A$1:$A$961,0),'Guts-2'!$D$26)),"") -> 0.001942592593 | Z32: =IF(V32=FALSE,"",IFERROR(IF(INDEX('Auction-Rank'!$G$1:$O$961,MATCH($A32,'Auction-Rank'!$A$1:$A$961,0),'Guts-2'!$D$26)="","",INDEX('Auction-Rank'!$G$1:$O$961,MATCH($A32,'Auction-Rank'!$A$1:$A$961,0),'Guts-2'!$D$26)),"")) -> 0.001942592593 | AA32: =IF(Z32="","",IF(V32=FALSE,"",Z32*(SUMIF($Y$2:$Y$961,"<>""",$Y$2:$Y$961)/SUMIF($Z$2:$Z$961,"<>""",$Z$2:$Z$961)))) -> 0.001942592593 | AB32: =IFERROR(IF(VLOOKUP(A33,'Name-Sort'!$D$2:$E$948,2,FALSE)="",A33,""),"") -> Shaun Anderson | AC32: =IFERROR(INDEX($AB$1:$AB$961,SMALL(IF($AB$1:$AB$961<>"",ROW($AB$1:$AB$961)),ROW(AB32))),"") -> Shaun Anderson
A33: Shaun Anderson | B33: andersh01 | C33: RP | E33: SF | F33: 25 | G33: 0.0009722222222 | N33: 0.0004861111111 | O33: =IFERROR(VLOOKUP(A33,'Import (Values)'!$B$2:$C$999,2,FALSE)/3120,"") ->  | P33: 204 | Q33: 372 | T33: 511 | V33: =IFERROR(INDEX('Guts-2'!$K$1:$K$30,MATCH(E33,'Guts-2'!$J$1:$J$30,0)),TRUE) -> TRUE | W33: =IF(V33=FALSE,"",IFERROR(CHOOSE('Guts-2'!$D$27,P33,Q33,R33,S33,T33,U33),"")) -> 511 | X33: 505 | Y33: =IFERROR(IF(INDEX('Auction-Rank'!$G$1:$O$961,MATCH($A33,'Auction-Rank'!$A$1:$A$961,0),'Guts-2'!$D$26)="","",INDEX('Auction-Rank'!$G$1:$O$961,MATCH($A33,'Auction-Rank'!$A$1:$A$961,0),'Guts-2'!$D$26)),"") -> 0.0004861111111 | Z33: =IF(V33=FALSE,"",IFERROR(IF(INDEX('Auction-Rank'!$G$1:$O$961,MATCH($A33,'Auction-Rank'!$A$1:$A$961,0),'Guts-2'!$D$26)="","",INDEX('Auction-Rank'!$G$1:$O$961,MATCH($A33,'Auction-Rank'!$A$1:$A$961,0),'Guts-2'!$D$26)),"")) -> 0.0004861111111 | AA33: =IF(Z33="","",IF(V33=FALSE,"",Z33*(SUMIF($Y$2:$Y$961,"<>""",$Y$2:$Y$961)/SUMIF($Z$2:$Z$961,"<>""",$Z$2:$Z$961)))) -> 0.0004861111111 | AB33: =IFERROR(IF(VLOOKUP(A34,'Name-Sort'!$D$2:$E$948,2,FALSE)="",A34,""),"") -> Tim Anderson | AC33: =IFERROR(INDEX($AB$1:$AB$961,SMALL(IF($AB$1:$AB$961<>"",ROW($AB$1:$AB$961)),ROW(AB33))),"") -> Tim Anderson
A34: Tim Anderson | B34: anderti01 | C34: SS | E34: CHW | F34: 26 | G34: 0.006558333333 | H34: 0.003888888889 | J34: 0.004722222222 | K34: 0.00375 | M34: 0.005277777778 | N34: 0.00403287037 | O34: =IFERROR(VLOOKUP(A34,'Import (Values)'!$B$2:$C$999,2,FALSE)/3120,"") ->  | P34: 31 | Q34: 76 | R34: 57 | S34: 151 | T34: 81 | V34: =IFERROR(INDEX('Guts-2'!$K$1:$K$30,MATCH(E34,'Guts-2'!$J$1:$J$30,0)),TRUE) -> TRUE | W34: =IF(V34=FALSE,"",IFERROR(CHOOSE('Guts-2'!$D$27,P34,Q34,R34,S34,T34,U34),"")) -> 81 | X34: 81 | Y34: =IFERROR(IF(INDEX('Auction-Rank'!$G$1:$O$961,MATCH($A34,'Auction-Rank'!$A$1:$A$961,0),'Guts-2'!$D$26)="","",INDEX('Auction-Rank'!$G$1:$O$961,MATCH($A34,'Auction-Rank'!$A$1:$A$961,0),'Guts-2'!$D$26)),"") -> 0.00403287037 | Z34: =IF(V34=FALSE,"",IFERROR(IF(INDEX('Auction-Rank'!$G$1:$O$961,MATCH($A34,'Auction-Rank'!$A$1:$A$961,0),'Guts-2'!$D$26)="","",INDEX('Auction-Rank'!$G$1:$O$961,MATCH($A34,'Auction-Rank'!$A$1:$A$961,0),'Guts-2'!$D$26)),"")) -> 0.00403287037 | AA34: =IF(Z34="","",IF(V34=FALSE,"",Z34*(SUMIF($Y$2:$Y$961,"<>""",$Y$2:$Y$961)/SUMIF($Z$2:$Z$961,"<>""",$Z$2:$Z$961)))) -> 0.00403287037 | AB34: =IFERROR(IF(VLOOKUP(A35,'Name-Sort'!$D$2:$E$948,2,FALSE)="",A35,""),"") -> Tyler Anderson | AC34: =IFERROR(INDEX($AB$1:$AB$961,SMALL(IF($AB$1:$AB$961<>"",ROW($AB$1:$AB$961)),ROW(AB34))),"") -> Tyler Anderson
A35: Tyler Anderson | B35: anderty01 | C35: SP | E35: SF | F35: 30 | N35: 0 | O35: =IFERROR(VLOOKUP(A35,'Import (Values)'!$B$2:$C$999,2,FALSE)/3120,"") ->  | T35: 535 | V35: =IFERROR(INDEX('Guts-2'!$K$1:$K$30,MATCH(E35,'Guts-2'!$J$1:$J$30,0)),TRUE) -> TRUE | W35: =IF(V35=FALSE,"",IFERROR(CHOOSE('Guts-2'!$D$27,P35,Q35,R35,S35,T35,U35),"")) -> 535 | X35: 529 | Y35: =IFERROR(IF(INDEX('Auction-Rank'!$G$1:$O$961,MATCH($A35,'Auction-Rank'!$A$1:$A$961,0),'Guts-2'!$D$26)="","",INDEX('Auction-Rank'!$G$1:$O$961,MATCH($A35,'Auction-Rank'!$A$1:$A$961,0),'Guts-2'!$D$26)),"") -> 0 | Z35: =IF(V35=FALSE,"",IFERROR(IF(INDEX('Auction-Rank'!$G$1:$O$961,MATCH($A35,'Auction-Rank'!$A$1:$A$961,0),'Guts-2'!$D$26)="","",INDEX('Auction-Rank'!$G$1:$O$961,MATCH($A35,'Auction-Rank'!$A$1:$A$961,0),'Guts-2'!$D$26)),"")) -> 0 | AA35: =IF(Z35="","",IF(V35=FALSE,"",Z35*(SUMIF($Y$2:$Y$961,"<>""",$Y$2:$Y$961)/SUMIF($Z$2:$Z$961,"<>""",$Z$2:$Z$961)))) -> 0 | AB35: =IFERROR(IF(VLOOKUP(A36,'Name-Sort'!$D$2:$E$948,2,FALSE)="",A36,""),"") -> Elvis Andrus | AC35: =IFERROR(INDEX($AB$1:$AB$961,SMALL(IF($AB$1:$AB$961<>"",ROW($AB$1:$AB$961)),ROW(AB35))),"") -> Elvis Andrus
A36: Elvis Andrus | B36: andruel01 | C36: SS | E36: TEX | F36: 31 | G36: 0.004219444444 | H36: 0.0005555555556 | J36: 0.0025 | K36: 0.001527777778 | M36: 0.0025 | N36: 0.001883796296 | O36: =IFERROR(VLOOKUP(A36,'Import (Values)'!$B$2:$C$999,2,FALSE)/3120,"") ->  | P36: 66 | Q36: 135 | R36: 50 | S36: 173 | T36: 126 | V36: =IFERROR(INDEX('Guts-2'!$K$1:$K$30,MATCH(E36,'Guts-2'!$J$1:$J$30,0)),TRUE) -> TRUE | W36: =IF(V36=FALSE,"",IFERROR(CHOOSE('Guts-2'!$D$27,P36,Q36,R36,S36,T36,U36),"")) -> 126 | X36: 126 | Y36: =IFERROR(IF(INDEX('Auction-Rank'!$G$1:$O$961,MATCH($A36,'Auction-Rank'!$A$1:$A$961,0),'Guts-2'!$D$26)="","",INDEX('Auction-Rank'!$G$1:$O$961,MATCH($A36,'Auction-Rank'!$A$1:$A$961,0),'Guts-2'!$D$26)),"") -> 0.001883796296 | Z36: =IF(V36=FALSE,"",IFERROR(IF(INDEX('Auction-Rank'!$G$1:$O$961,MATCH($A36,'Auction-Rank'!$A$1:$A$961,0),'Guts-2'!$D$26)="","",INDEX('Auction-Rank'!$G$1:$O$961,MATCH($A36,'Auction-Rank'!$A$1:$A$961,0),'Guts-2'!$D$26)),"")) -> 0.001883796296 | AA36: =IF(Z36="","",IF(V36=FALSE,"",Z36*(SUMIF($Y$2:$Y$961,"<>""",$Y$2:$Y$961)/SUMIF($Z$2:$Z$961,"<>""",$Z$2:$Z$961)))) -> 0.001883796296 | AB36: =IFERROR(IF(VLOOKUP(A37,'Name-Sort'!$D$2:$E$948,2,FALSE)="",A37,""),"") -> Miguel Andujar | AC36: =IFERROR(INDEX($AB$1:$AB$961,SMALL(IF($AB$1:$AB$961<>"",ROW($AB$1:$AB$961)),ROW(AB36))),"") -> Miguel Andujar
A37: Miguel Andujar | B37: andujmi01 | C37: DH | E37: NYY | F37: 25 | H37: 0.001111111111 | J37: 0.0002777777778 | K37: 0.0005277777778 | M37: 0.0002777777778 | N37: 0.0004388888889 | O37: =IFERROR(VLOOKUP(A37,'Import (Values)'!$B$2:$C$999,2,FALSE)/3120,"") ->  | Q37: 264 | S37: 130 | T37: 247 | V37: =IFERROR(INDEX('Guts-2'!$K$1:$K$30,MATCH(E37,'Guts-2'!$J$1:$J$30,0)),TRUE) -> TRUE | W37: =IF(V37=FALSE,"",IFERROR(CHOOSE('Guts-2'!$D$27,P37,Q37,R37,S37,T37,U37),"")) -> 247 | X37: 246 | Y37: =IFERROR(IF(INDEX('Auction-Rank'!$G$1:$O$961,MATCH($A37,'Auction-Rank'!$A$1:$A$961,0),'Guts-2'!$D$26)="","",INDEX('Auction-Rank'!$G$1:$O$961,MATCH($A37,'Auction-Rank'!$A$1:$A$961,0),'Guts-2'!$D$26)),"") -> 0.0004388888889 | Z37: =IF(V37=FALSE,"",IFERROR(IF(INDEX('Auction-Rank'!$G$1:$O$961,MATCH($A37,'Auction-Rank'!$A$1:$A$961,0),'Guts-2'!$D$26)="","",INDEX('Auction-Rank'!$G$1:$O$961,MATCH($A37,'Auction-Rank'!$A$1:$A$961,0),'Guts-2'!$D$26)),"")) -> 0.0004388888889 | AA37: =IF(Z37="","",IF(V37=FALSE,"",Z37*(SUMIF($Y$2:$Y$961,"<>""",$Y$2:$Y$961)/SUMIF($Z$2:$Z$961,"<>""",$Z$2:$Z$961)))) -> 0.0004388888889 | AB37: =IFERROR(IF(VLOOKUP(A38,'Name-Sort'!$D$2:$E$948,2,FALSE)="",A38,""),"") -> Aristides Aquino | AC37: =IFERROR(INDEX($AB$1:$AB$961,SMALL(IF($AB$1:$AB$961<>"",ROW($AB$1:$AB$961)),ROW(AB37))),"") -> Aristides Aquino
A38: Aristides Aquino | B38: aquinar01 | C38: OF | D38: RF | E38: CIN | F38: 25 | J38: 0.0005555555556 | K38: 0.0008611111111 | N38: 0.0004722222222 | O38: =IFERROR(VLOOKUP(A38,'Import (Values)'!$B$2:$C$999,2,FALSE)/3120,"") ->  | Q38: 176 | S38: 212 | T38: 315 | V38: =IFERROR(INDEX('Guts-2'!$K$1:$K$30,MATCH(E38,'Guts-2'!$J$1:$J$30,0)),TRUE) -> TRUE | W38: =IF(V38=FALSE,"",IFERROR(CHOOSE('Guts-2'!$D$27,P38,Q38,R38,S38,T38,U38),"")) -> 315 | X38: 314 | Y38: =IFERROR(IF(INDEX('Auction-Rank'!$G$1:$O$961,MATCH($A38,'Auction-Rank'!$A$1:$A$961,0),'Guts-2'!$D$26)="","",INDEX('Auction-Rank'!$G$1:$O$961,MATCH($A38,'Auction-Rank'!$A$1:$A$961,0),'Guts-2'!$D$26)),"") -> 0.0004722222222 | Z38: =IF(V38=FALSE,"",IFERROR(IF(INDEX('Auction-Rank'!$G$1:$O$961,MATCH($A38,'Auction-Rank'!$A$1:$A$961,0),'Guts-2'!$D$26)="","",INDEX('Auction-Rank'!$G$1:$O$961,MATCH($A38,'Auction-Rank'!$A$1:$A$961,0),'Guts-2'!$D$26)),"")) -> 0.0004722222222 | AA38: =IF(Z38="","",IF(V38=FALSE,"",Z38*(SUMIF($Y$2:$Y$961,"<>""",$Y$2:$Y$961)/SUMIF($Z$2:$Z$961,"<>""",$Z$2:$Z$961)))) -> 0.0004722222222 | AB38: =IFERROR(IF(VLOOKUP(A39,'Name-Sort'!$D$2:$E$948,2,FALSE)="",A39,""),"") -> Chris Archer | AC38: =IFERROR(INDEX($AB$1:$AB$961,SMALL(IF($AB$1:$AB$961<>"",ROW($AB$1:$AB$961)),ROW(AB38))),"") -> Chris Archer
A39: Chris Archer | B39: archech01 | C39: SP | E39: PIT | F39: 31 | J39: 0 | K39: 0.0003611111111 | N39: 0.0001203703704 | O39: =IFERROR(VLOOKUP(A39,'Import (Values)'!$B$2:$C$999,2,FALSE)/3120,"") ->  | Q39: 239 | R39: 273 | V39: =IFERROR(INDEX('Guts-2'!$K$1:$K$30,MATCH(E39,'Guts-2'!$J$1:$J$30,0)),TRUE) -> TRUE | W39: =IF(V39=FALSE,"",IFERROR(CHOOSE('Guts-2'!$D$27,P39,Q39,R39,S39,T39,U39),"")) ->  | Y39: =IFERROR(IF(INDEX('Auction-Rank'!$G$1:$O$961,MATCH($A39,'Auction-Rank'!$A$1:$A$961,0),'Guts-2'!$D$26)="","",INDEX('Auction-Rank'!$G$1:$O$961,MATCH($A39,'Auction-Rank'!$A$1:$A$961,0),'Guts-2'!$D$26)),"") -> 0.0001203703704 | Z39: =IF(V39=FALSE,"",IFERROR(IF(INDEX('Auction-Rank'!$G$1:$O$961,MATCH($A39,'Auction-Rank'!$A$1:$A$961,0),'Guts-2'!$D$26)="","",INDEX('Auction-Rank'!$G$1:$O$961,MATCH($A39,'Auction-Rank'!$A$1:$A$961,0),'Guts-2'!$D$26)),"")) -> 0.0001203703704 | AA39: =IF(Z39="","",IF(V39=FALSE,"",Z39*(SUMIF($Y$2:$Y$961,"<>""",$Y$2:$Y$961)/SUMIF($Z$2:$Z$961,"<>""",$Z$2:$Z$961)))) -> 0.0001203703704 | AB39: =IFERROR(IF(VLOOKUP(A40,'Name-Sort'!$D$2:$E$948,2,FALSE)="",A40,""),"") -> Orlando Arcia | AC39: =IFERROR(INDEX($AB$1:$AB$961,SMALL(IF($AB$1:$AB$961<>"",ROW($AB$1:$AB$961)),ROW(AB39))),"") -> Orlando Arcia
A40: Orlando Arcia | B40: arciaor01 | C40: SS | E40: MIL | F40: 25 | N40: 0 | O40: =IFERROR(VLOOKUP(A40,'Import (Values)'!$B$2:$C$999,2,FALSE)/3120,"") ->  | T40: 563 | V40: =IFERROR(INDEX('Guts-2'!$K$1:$K$30,MATCH(E40,'Guts-2'!$J$1:$J$30,0)),TRUE) -> TRUE | W40: =IF(V40=FALSE,"",IFERROR(CHOOSE('Guts-2'!$D$27,P40,Q40,R40,S40,T40,U40),"")) -> 563 | X40: 555 | Y40: =IFERROR(IF(INDEX('Auction-Rank'!$G$1:$O$961,MATCH($A40,'Auction-Rank'!$A$1:$A$961,0),'Guts-2'!$D$26)="","",INDEX('Auction-Rank'!$G$1:$O$961,MATCH($A40,'Auction-Rank'!$A$1:$A$961,0),'Guts-2'!$D$26)),"") -> 0 | Z40: =IF(V40=FALSE,"",IFERROR(IF(INDEX('Auction-Rank'!$G$1:$O$961,MATCH($A40,'Auction-Rank'!$A$1:$A$961,0),'Guts-2'!$D$26)="","",INDEX('Auction-Rank'!$G$1:$O$961,MATCH($A40,'Auction-Rank'!$A$1:$A$961,0),'Guts-2'!$D$26)),"")) -> 0 | AA40: =IF(Z40="","",IF(V40=FALSE,"",Z40*(SUMIF($Y$2:$Y$961,"<>""",$Y$2:$Y$961)/SUMIF($Z$2:$Z$961,"<>""",$Z$2:$Z$961)))) -> 0 | AB40: =IFERROR(IF(VLOOKUP(A41,'Name-Sort'!$D$2:$E$948,2,FALSE)="",A41,""),"") -> Nolan Arenado | AC40: =IFERROR(INDEX($AB$1:$AB$961,SMALL(IF($AB$1:$AB$961<>"",ROW($AB$1:$AB$961)),ROW(AB40))),"") -> Nolan Arenado
A41: Nolan Arenado | B41: arenano01 | C41: 3B | E41: COL | F41: 28 | G41: 0.008747222222 | H41: 0.009444444444 | J41: 0.009166666667 | K41: 0.01086111111 | M41: 0.01166666667 | N41: 0.008314351852 | O41: =IFERROR(VLOOKUP(A41,'Import (Values)'!$B$2:$C$999,2,FALSE)/3120,"") -> 0.01282051282 | P41: 13 | Q41: 14 | R41: 18 | S41: 11 | T41: 12 | V41: =IFERROR(INDEX('Guts-2'!$K$1:$K$30,MATCH(E41,'Guts-2'!$J$1:$J$30,0)),TRUE) -> TRUE | W41: =IF(V41=FALSE,"",IFERROR(CHOOSE('Guts-2'!$D$27,P41,Q41,R41,S41,T41,U41),"")) -> 12 | X41: 12 | Y41: =IFERROR(IF(INDEX('Auction-Rank'!$G$1:$O$961,MATCH($A41,'Auction-Rank'!$A$1:$A$961,0),'Guts-2'!$D$26)="","",INDEX('Auction-Rank'!$G$1:$O$961,MATCH($A41,'Auction-Rank'!$A$1:$A$961,0),'Guts-2'!$D$26)),"") -> 0.008314351852 | Z41: =IF(V41=FALSE,"",IFERROR(IF(INDEX('Auction-Rank'!$G$1:$O$961,MATCH($A41,'Auction-Rank'!$A$1:$A$961,0),'Guts-2'!$D$26)="","",INDEX('Auction-Rank'!$G$1:$O$961,MATCH($A41,'Auction-Rank'!$A$1:$A$961,0),'Guts-2'!$D$26)),"")) -> 0.008314351852 | AA41: =IF(Z41="","",IF(V41=FALSE,"",Z41*(SUMIF($Y$2:$Y$961,"<>""",$Y$2:$Y$961)/SUMIF($Z$2:$Z$961,"<>""",$Z$2:$Z$961)))) -> 0.008314351852 | AB41: =IFERROR(IF(VLOOKUP(A42,'Name-Sort'!$D$2:$E$948,2,FALSE)="",A42,""),"") -> Rogelio Armenteros | AC41: =IFERROR(INDEX($AB$1:$AB$961,SMALL(IF($AB$1:$AB$961<>"",ROW($AB$1:$AB$961)),ROW(AB41))),"") -> Rogelio Armenteros
A42: Rogelio Armenteros | B42: armenro01 | C42: RP | E42: HOU | F42: 25 | N42: 0 | O42: =IFERROR(VLOOKUP(A42,'Import (Values)'!$B$2:$C$999,2,FALSE)/3120,"") ->  | T42: 608 | V42: =IFERROR(INDEX('Guts-2'!$K$1:$K$30,MATCH(E42,'Guts-2'!$J$1:$J$30,0)),TRUE) -> TRUE | W42: =IF(V42=FALSE,"",IFERROR(CHOOSE('Guts-2'!$D$27,P42,Q42,R42,S42,T42,U42),"")) -> 608 | X42: 587 | Y42: =IFERROR(IF(INDEX('Auction-Rank'!$G$1:$O$961,MATCH($A42,'Auction-Rank'!$A$1:$A$961,0),'Guts-2'!$D$26)="","",INDEX('Auction-Rank'!$G$1:$O$961,MATCH($A42,'Auction-Rank'!$A$1:$A$961,0),'Guts-2'!$D$26)),"") -> 0 | Z42: =IF(V42=FALSE,"",IFERROR(IF(INDEX('Auction-Rank'!$G$1:$O$961,MATCH($A42,'Auction-Rank'!$A$1:$A$961,0),'Guts-2'!$D$26)="","",INDEX('Auction-Rank'!$G$1:$O$961,MATCH($A42,'Auction-Rank'!$A$1:$A$961,0),'Guts-2'!$D$26)),"")) -> 0 | AA42: =IF(Z42="","",IF(V42=FALSE,"",Z42*(SUMIF($Y$2:$Y$961,"<>""",$Y$2:$Y$961)/SUMIF($Z$2:$Z$961,"<>""",$Z$2:$Z$961)))) -> 0 | AB42: =IFERROR(IF(VLOOKUP(A43,'Name-Sort'!$D$2:$E$948,2,FALSE)="",A43,""),"") -> Randy Arozarena | AC42: =IFERROR(INDEX($AB$1:$AB$961,SMALL(IF($AB$1:$AB$961<>"",ROW($AB$1:$AB$961)),ROW(AB42))),"") -> Randy Arozarena
A43: Randy Arozarena | B43: arozara01 | C43: OF | D43: RF | E43: TB | F43: 25 | N43: 0 | O43: =IFERROR(VLOOKUP(A43,'Import (Values)'!$B$2:$C$999,2,FALSE)/3120,"") ->  | T43: 714 | V43: =IFERROR(INDEX('Guts-2'!$K$1:$K$30,MATCH(E43,'Guts-2'!$J$1:$J$30,0)),TRUE) -> TRUE | W43: =IF(V43=FALSE,"",IFERROR(CHOOSE('Guts-2'!$D$27,P43,Q43,R43,S43,T43,U43),"")) -> 714 | X43: 650 | Y43: =IFERROR(IF(INDEX('Auction-Rank'!$G$1:$O$961,MATCH($A43,'Auction-Rank'!$A$1:$A$961,0),'Guts-2'!$D$26)="","",INDEX('Auction-Rank'!$G$1:$O$961,MATCH($A43,'Auction-Rank'!$A$1:$A$961,0),'Guts-2'!$D$26)),"") -> 0 | Z43: =IF(V43=FALSE,"",IFERROR(IF(INDEX('Auction-Rank'!$G$1:$O$961,MATCH($A43,'Auction-Rank'!$A$1:$A$961,0),'Guts-2'!$D$26)="","",INDEX('Auction-Rank'!$G$1:$O$961,MATCH($A43,'Auction-Rank'!$A$1:$A$961,0),'Guts-2'!$D$26)),"")) -> 0 | AA43: =IF(Z43="","",IF(V43=FALSE,"",Z43*(SUMIF($Y$2:$Y$961,"<>""",$Y$2:$Y$961)/SUMIF($Z$2:$Z$961,"<>""",$Z$2:$Z$961)))) -> 0 | AB43: =IFERROR(IF(VLOOKUP(A44,'Name-Sort'!$D$2:$E$948,2,FALSE)="",A44,""),"") -> Luis Arraez | AC43: =IFERROR(INDEX($AB$1:$AB$961,SMALL(IF($AB$1:$AB$961<>"",ROW($AB$1:$AB$961)),ROW(AB43))),"") -> Luis Arraez
A44: Luis Arraez | B44: arraelu01 | C44: 2B | D44: LF | E44: MIN | F44: 22 | G44: 0.001752777778 | H44: 0.0005555555556 | J44: 0.0002777777778 | K44: 0.0004722222222 | M44: 0.001388888889 | N44: 0.0007412037037 | O44: =IFERROR(VLOOKUP(A44,'Import (Values)'!$B$2:$C$999,2,FALSE)/3120,"") ->  | P44: 165 | Q44: 304 | R44: 194 | S44: 282 | T44: 242 | V44: =IFERROR(INDEX('Guts-2'!$K$1:$K$30,MATCH(E44,'Guts-2'!$J$1:$J$30,0)),TRUE) -> TRUE | W44: =IF(V44=FALSE,"",IFERROR(CHOOSE('Guts-2'!$D$27,P44,Q44,R44,S44,T44,U44),"")) -> 242 | X44: 241 | Y44: =IFERROR(IF(INDEX('Auction-Rank'!$G$1:$O$961,MATCH($A44,'Auction-Rank'!$A$1:$A$961,0),'Guts-2'!$D$26)="","",INDEX('Auction-Rank'!$G$1:$O$961,MATCH($A44,'Auction-Rank'!$A$1:$A$961,0),'Guts-2'!$D$26)),"") -> 0.0007412037037 | Z44: =IF(V44=FALSE,"",IFERROR(IF(INDEX('Auction-Rank'!$G$1:$O$961,MATCH($A44,'Auction-Rank'!$A$1:$A$961,0),'Guts-2'!$D$26)="","",INDEX('Auction-Rank'!$G$1:$O$961,MATCH($A44,'Auction-Rank'!$A$1:$A$961,0),'Guts-2'!$D$26)),"")) -> 0.0007412037037 | AA44: =IF(Z44="","",IF(V44=FALSE,"",Z44*(SUMIF($Y$2:$Y$961,"<>""",$Y$2:$Y$961)/SUMIF($Z$2:$Z$961,"<>""",$Z$2:$Z$961)))) -> 0.0007412037037 | AB44: =IFERROR(IF(VLOOKUP(A45,'Name-Sort'!$D$2:$E$948,2,FALSE)="",A45,""),"") -> Jake Arrieta | AC44: =IFERROR(INDEX($AB$1:$AB$961,SMALL(IF($AB$1:$AB$961<>"",ROW($AB$1:$AB$961)),ROW(AB44))),"") -> Jake Arrieta
A45: Jake Arrieta | B45: arrieja01 | C45: SP | E45: PHI | F45: 34 | J45: 0 | K45: 0.0003333333333 | N45: 0.0001111111111 | O45: =IFERROR(VLOOKUP(A45,'Import (Values)'!$B$2:$C$999,2,FALSE)/3120,"") ->  | T45: 479 | V45: =IFERROR(INDEX('Guts-2'!$K$1:$K$30,MATCH(E45,'Guts-2'!$J$1:$J$30,0)),TRUE) -> TRUE | W45: =IF(V45=FALSE,"",IFERROR(CHOOSE('Guts-2'!$D$27,P45,Q45,R45,S45,T45,U45),"")) -> 479 | X45: 474 | Y45: =IFERROR(IF(INDEX('Auction-Rank'!$G$1:$O$961,MATCH($A45,'Auction-Rank'!$A$1:$A$961,0),'Guts-2'!$D$26)="","",INDEX('Auction-Rank'!$G$1:$O$961,MATCH($A45,'Auction-Rank'!$A$1:$A$961,0),'Guts-2'!$D$26)),"") -> 0.0001111111111 | Z45: =IF(V45=FALSE,"",IFERROR(IF(INDEX('Auction-Rank'!$G$1:$O$961,MATCH($A45,'Auction-Rank'!$A$1:$A$961,0),'Guts-2'!$D$26)="","",INDEX('Auction-Rank'!$G$1:$O$961,MATCH($A45,'Auction-Rank'!$A$1:$A$961,0),'Guts-2'!$D$26)),"")) -> 0.0001111111111 | AA45: =IF(Z45="","",IF(V45=FALSE,"",Z45*(SUMIF($Y$2:$Y$961,"<>""",$Y$2:$Y$961)/SUMIF($Z$2:$Z$961,"<>""",$Z$2:$Z$961)))) -> 0.0001111111111 | AB45: =IFERROR(IF(VLOOKUP(A46,'Name-Sort'!$D$2:$E$948,2,FALSE)="",A46,""),"") -> Willians Astudillo | AC45: =IFERROR(INDEX($AB$1:$AB$961,SMALL(IF($AB$1:$AB$961<>"",ROW($AB$1:$AB$961)),ROW(AB45))),"") -> Willians Astudillo
A46: Willians Astudillo | B46: astudwi01 | C46: C | E46: MIN | F46: 28 | J46: 0 | K46: 0.0003333333333 | N46: 0.0001111111111 | O46: =IFERROR(VLOOKUP(A46,'Import (Values)'!$B$2:$C$999,2,FALSE)/3120,"") ->  | T46: 676 | V46: =IFERROR(INDEX('Guts-2'!$K$1:$K$30,MATCH(E46,'Guts-2'!$J$1:$J$30,0)),TRUE) -> TRUE | W46: =IF(V46=FALSE,"",IFERROR(CHOOSE('Guts-2'!$D$27,P46,Q46,R46,S46,T46,U46),"")) -> 676 | X46: 630 | Y46: =IFERROR(IF(INDEX('Auction-Rank'!$G$1:$O$961,MATCH($A46,'Auction-Rank'!$A$1:$A$961,0),'Guts-2'!$D$26)="","",INDEX('Auction-Rank'!$G$1:$O$961,MATCH($A46,'Auction-Rank'!$A$1:$A$961,0),'Guts-2'!$D$26)),"") -> 0.0001111111111 | Z46: =IF(V46=FALSE,"",IFERROR(IF(INDEX('Auction-Rank'!$G$1:$O$961,MATCH($A46,'Auction-Rank'!$A$1:$A$961,0),'Guts-2'!$D$26)="","",INDEX('Auction-Rank'!$G$1:$O$961,MATCH($A46,'Auction-Rank'!$A$1:$A$961,0),'Guts-2'!$D$26)),"")) -> 0.0001111111111 | AA46: =IF(Z46="","",IF(V46=FALSE,"",Z46*(SUMIF($Y$2:$Y$961,"<>""",$Y$2:$Y$961)/SUMIF($Z$2:$Z$961,"<>""",$Z$2:$Z$961)))) -> 0.0001111111111 | AB46: =IFERROR(IF(VLOOKUP(A47,'Name-Sort'!$D$2:$E$948,2,FALSE)="",A47,""),"") -> Alex Avila | AC46: =IFERROR(INDEX($AB$1:$AB$961,SMALL(IF($AB$1:$AB$961<>"",ROW($AB$1:$AB$961)),ROW(AB46))),"") -> Alex Avila
A47: Alex Avila | B47: avilaal01 | C47: C | E47: MIN | F47: 33 | N47: 0 | O47: =IFERROR(VLOOKUP(A47,'Import (Values)'!$B$2:$C$999,2,FALSE)/3120,"") ->  | T47: 791 | V47: =IFERROR(INDEX('Guts-2'!$K$1:$K$30,MATCH(E47,'Guts-2'!$J$1:$J$30,0)),TRUE) -> TRUE | W47: =IF(V47=FALSE,"",IFERROR(CHOOSE('Guts-2'!$D$27,P47,Q47,R47,S47,T47,U47),"")) -> 791 | X47: 690 | Y47: =IFERROR(IF(INDEX('Auction-Rank'!$G$1:$O$961,MATCH($A47,'Auction-Rank'!$A$1:$A$961,0),'Guts-2'!$D$26)="","",INDEX('Auction-Rank'!$G$1:$O$961,MATCH($A47,'Auction-Rank'!$A$1:$A$961,0),'Guts-2'!$D$26)),"") -> 0 | Z47: =IF(V47=FALSE,"",IFERROR(IF(INDEX('Auction-Rank'!$G$1:$O$961,MATCH($A47,'Auction-Rank'!$A$1:$A$961,0),'Guts-2'!$D$26)="","",INDEX('Auction-Rank'!$G$1:$O$961,MATCH($A47,'Auction-Rank'!$A$1:$A$961,0),'Guts-2'!$D$26)),"")) -> 0 | AA47: =IF(Z47="","",IF(V47=FALSE,"",Z47*(SUMIF($Y$2:$Y$961,"<>""",$Y$2:$Y$961)/SUMIF($Z$2:$Z$961,"<>""",$Z$2:$Z$961)))) -> 0 | AB47: =IFERROR(IF(VLOOKUP(A48,'Name-Sort'!$D$2:$E$948,2,FALSE)="",A48,""),"") -> Harrison Bader | AC47: =IFERROR(INDEX($AB$1:$AB$961,SMALL(IF($AB$1:$AB$961<>"",ROW($AB$1:$AB$961)),ROW(AB47))),"") -> Harrison Bader
A48: Harrison Bader | B48: baderha01 | C48: OF | D48: CF | E48: STL | F48: 25 | J48: 0 | N48: 0 | O48: =IFERROR(VLOOKUP(A48,'Import (Values)'!$B$2:$C$999,2,FALSE)/3120,"") ->  | T48: 374 | V48: =IFERROR(INDEX('Guts-2'!$K$1:$K$30,MATCH(E48,'Guts-2'!$J$1:$J$30,0)),TRUE) -> TRUE | W48: =IF(V48=FALSE,"",IFERROR(CHOOSE('Guts-2'!$D$27,P48,Q48,R48,S48,T48,U48),"")) -> 374 | X48: 371 | Y48: =IFERROR(IF(INDEX('Auction-Rank'!$G$1:$O$961,MATCH($A48,'Auction-Rank'!$A$1:$A$961,0),'Guts-2'!$D$26)="","",INDEX('Auction-Rank'!$G$1:$O$961,MATCH($A48,'Auction-Rank'!$A$1:$A$961,0),'Guts-2'!$D$26)),"") -> 0 | Z48: =IF(V48=FALSE,"",IFERROR(IF(INDEX('Auction-Rank'!$G$1:$O$961,MATCH($A48,'Auction-Rank'!$A$1:$A$961,0),'Guts-2'!$D$26)="","",INDEX('Auction-Rank'!$G$1:$O$961,MATCH($A48,'Auction-Rank'!$A$1:$A$961,0),'Guts-2'!$D$26)),"")) -> 0 | AA48: =IF(Z48="","",IF(V48=FALSE,"",Z48*(SUMIF($Y$2:$Y$961,"<>""",$Y$2:$Y$961)/SUMIF($Z$2:$Z$961,"<>""",$Z$2:$Z$961)))) -> 0 | AB48: =IFERROR(IF(VLOOKUP(A49,'Name-Sort'!$D$2:$E$948,2,FALSE)="",A49,""),"") -> Javier Baez | AC48: =IFERROR(INDEX($AB$1:$AB$961,SMALL(IF($AB$1:$AB$961<>"",ROW($AB$1:$AB$961)),ROW(AB48))),"") -> Javier Baez
A49: Javier Baez | B49: baezja01 | C49: SS | E49: CHC | F49: 27 | G49: 0.00765 | H49: 0.005 | J49: 0.007222222222 | K49: 0.007277777778 | M49: 0.009444444444 | N49: 0.006099074074 | O49: =IFERROR(VLOOKUP(A49,'Import (Values)'!$B$2:$C$999,2,FALSE)/3120,"") ->  | P49: 22 | Q49: 27 | R49: 52 | S49: 27 | T49: 24 | V49: =IFERROR(INDEX('Guts-2'!$K$1:$K$30,MATCH(E49,'Guts-2'!$J$1:$J$30,0)),TRUE) -> TRUE | W49: =IF(V49=FALSE,"",IFERROR(CHOOSE('Guts-2'!$D$27,P49,Q49,R49,S49,T49,U49),"")) -> 24 | X49: 24 | Y49: =IFERROR(IF(INDEX('Auction-Rank'!$G$1:$O$961,MATCH($A49,'Auction-Rank'!$A$1:$A$961,0),'Guts-2'!$D$26)="","",INDEX('Auction-Rank'!$G$1:$O$961,MATCH($A49,'Auction-Rank'!$A$1:$A$961,0),'Guts-2'!$D$26)),"") -> 0.006099074074 | Z49: =IF(V49=FALSE,"",IFERROR(IF(INDEX('Auction-Rank'!$G$1:$O$961,MATCH($A49,'Auction-Rank'!$A$1:$A$961,0),'Guts-2'!$D$26)="","",INDEX('Auction-Rank'!$G$1:$O$961,MATCH($A49,'Auction-Rank'!$A$1:$A$961,0),'Guts-2'!$D$26)),"")) -> 0.006099074074 | AA49: =IF(Z49="","",IF(V49=FALSE,"",Z49*(SUMIF($Y$2:$Y$961,"<>""",$Y$2:$Y$961)/SUMIF($Z$2:$Z$961,"<>""",$Z$2:$Z$961)))) -> 0.006099074074 | AB49: =IFERROR(IF(VLOOKUP(A50,'Name-Sort'!$D$2:$E$948,2,FALSE)="",A50,""),"") -> Pedro Baez | AC49: =IFERROR(INDEX($AB$1:$AB$961,SMALL(IF($AB$1:$AB$961<>"",ROW($AB$1:$AB$961)),ROW(AB49))),"") -> Pedro Baez
A50: Pedro Baez | B50: baezpe01 | C50: RP | E50: LAD | F50: 32 | J50: 0 | K50: 0.0002777777778 | N50: 9.259259259e-05 | O50: =IFERROR(VLOOKUP(A50,'Import (Values)'!$B$2:$C$999,2,FALSE)/3120,"") ->  | T50: 468 | V50: =IFERROR(INDEX('Guts-2'!$K$1:$K$30,MATCH(E50,'Guts-2'!$J$1:$J$30,0)),TRUE) -> TRUE | W50: =IF(V50=FALSE,"",IFERROR(CHOOSE('Guts-2'!$D$27,P50,Q50,R50,S50,T50,U50),"")) -> 468 | X50: 463 | Y50: =IFERROR(IF(INDEX('Auction-Rank'!$G$1:$O$961,MATCH($A50,'Auction-Rank'!$A$1:$A$961,0),'Guts-2'!$D$26)="","",INDEX('Auction-Rank'!$G$1:$O$961,MATCH($A50,'Auction-Rank'!$A$1:$A$961,0),'Guts-2'!$D$26)),"") -> 9.259259259e-05 | Z50: =IF(V50=FALSE,"",IFERROR(IF(INDEX('Auction-Rank'!$G$1:$O$961,MATCH($A50,'Auction-Rank'!$A$1:$A$961,0),'Guts-2'!$D$26)="","",INDEX('Auction-Rank'!$G$1:$O$961,MATCH($A50,'Auction-Rank'!$A$1:$A$961,0),'Guts-2'!$D$26)),"")) -> 9.259259259e-05 | AA50: =IF(Z50="","",IF(V50=FALSE,"",Z50*(SUMIF($Y$2:$Y$961,"<>""",$Y$2:$Y$961)/SUMIF($Z$2:$Z$961,"<>""",$Z$2:$Z$961)))) -> 9.259259259e-05 | AB50: =IFERROR(IF(VLOOKUP(A51,'Name-Sort'!$D$2:$E$948,2,FALSE)="",A51,""),"") -> Homer Bailey | AC50: =IFERROR(INDEX($AB$1:$AB$961,SMALL(IF($AB$1:$AB$961<>"",ROW($AB$1:$AB$961)),ROW(AB50))),"") -> Homer Bailey
A51: Homer Bailey | B51: baileho02 | C51: SP | E51: MIN | F51: 33 | N51: 0 | O51: =IFERROR(VLOOKUP(A51,'Import (Values)'!$B$2:$C$999,2,FALSE)/3120,"") ->  | T51: 396 | V51: =IFERROR(INDEX('Guts-2'!$K$1:$K$30,MATCH(E51,'Guts-2'!$J$1:$J$30,0)),TRUE) -> TRUE | W51: =IF(V51=FALSE,"",IFERROR(CHOOSE('Guts-2'!$D$27,P51,Q51,R51,S51,T51,U51),"")) -> 396 | X51: 393 | Y51: =IFERROR(IF(INDEX('Auction-Rank'!$G$1:$O$961,MATCH($A51,'Auction-Rank'!$A$1:$A$961,0),'Guts-2'!$D$26)="","",INDEX('Auction-Rank'!$G$1:$O$961,MATCH($A51,'Auction-Rank'!$A$1:$A$961,0),'Guts-2'!$D$26)),"") -> 0 | Z51: =IF(V51=FALSE,"",IFERROR(IF(INDEX('Auction-Rank'!$G$1:$O$961,MATCH($A51,'Auction-Rank'!$A$1:$A$961,0),'Guts-2'!$D$26)="","",INDEX('Auction-Rank'!$G$1:$O$961,MATCH($A51,'Auction-Rank'!$A$1:$A$961,0),'Guts-2'!$D$26)),"")) -> 0 | AA51: =IF(Z51="","",IF(V51=FALSE,"",Z51*(SUMIF($Y$2:$Y$961,"<>""",$Y$2:$Y$961)/SUMIF($Z$2:$Z$961,"<>""",$Z$2:$Z$961)))) -> 0 | AB51: =IFERROR(IF(VLOOKUP(A52,'Name-Sort'!$D$2:$E$948,2,FALSE)="",A52,""),"") -> Scott Barlow | AC51: =IFERROR(INDEX($AB$1:$AB$961,SMALL(IF($AB$1:$AB$961<>"",ROW($AB$1:$AB$961)),ROW(AB51))),"") -> Scott Barlow
A52: Scott Barlow | B52: barlosc01 | C52: RP | E52: KC | F52: 27 | N52: 0 | O52: =IFERROR(VLOOKUP(A52,'Import (Values)'!$B$2:$C$999,2,FALSE)/3120,"") ->  | T52: 600 | V52: =IFERROR(INDEX('Guts-2'!$K$1:$K$30,MATCH(E52,'Guts-2'!$J$1:$J$30,0)),TRUE) -> TRUE | W52: =IF(V52=FALSE,"",IFERROR(CHOOSE('Guts-2'!$D$27,P52,Q52,R52,S52,T52,U52),"")) -> 600 | X52: 583 | Y52: =IFERROR(IF(INDEX('Auction-Rank'!$G$1:$O$961,MATCH($A52,'Auction-Rank'!$A$1:$A$961,0),'Guts-2'!$D$26)="","",INDEX('Auction-Rank'!$G$1:$O$961,MATCH($A52,'Auction-Rank'!$A$1:$A$961,0),'Guts-2'!$D$26)),"") -> 0 | Z52: =IF(V52=FALSE,"",IFERROR(IF(INDEX('Auction-Rank'!$G$1:$O$961,MATCH($A52,'Auction-Rank'!$A$1:$A$961,0),'Guts-2'!$D$26)="","",INDEX('Auction-Rank'!$G$1:$O$961,MATCH($A52,'Auction-Rank'!$A$1:$A$961,0),'Guts-2'!$D$26)),"")) -> 0 | AA52: =IF(Z52="","",IF(V52=FALSE,"",Z52*(SUMIF($Y$2:$Y$961,"<>""",$Y$2:$Y$961)/SUMIF($Z$2:$Z$961,"<>""",$Z$2:$Z$961)))) -> 0 | AB52: =IFERROR(IF(VLOOKUP(A53,'Name-Sort'!$D$2:$E$948,2,FALSE)="",A53,""),"") -> Austin Barnes | AC52: =IFERROR(INDEX($AB$1:$AB$961,SMALL(IF($AB$1:$AB$961<>"",ROW($AB$1:$AB$961)),ROW(AB52))),"") -> Austin Barnes
A53: Austin Barnes | B53: barneau01 | C53: C | E53: LAD | F53: 30 | N53: 0 | O53: =IFERROR(VLOOKUP(A53,'Import (Values)'!$B$2:$C$999,2,FALSE)/3120,"") ->  | T53: 784 | V53: =IFERROR(INDEX('Guts-2'!$K$1:$K$30,MATCH(E53,'Guts-2'!$J$1:$J$30,0)),TRUE) -> TRUE | W53: =IF(V53=FALSE,"",IFERROR(CHOOSE('Guts-2'!$D$27,P53,Q53,R53,S53,T53,U53),"")) -> 784 | X53: 684 | Y53: =IFERROR(IF(INDEX('Auction-Rank'!$G$1:$O$961,MATCH($A53,'Auction-Rank'!$A$1:$A$961,0),'Guts-2'!$D$26)="","",INDEX('Auction-Rank'!$G$1:$O$961,MATCH($A53,'Auction-Rank'!$A$1:$A$961,0),'Guts-2'!$D$26)),"") -> 0 | Z53: =IF(V53=FALSE,"",IFERROR(IF(INDEX('Auction-Rank'!$G$1:$O$961,MATCH($A53,'Auction-Rank'!$A$1:$A$961,0),'Guts-2'!$D$26)="","",INDEX('Auction-Rank'!$G$1:$O$961,MATCH($A53,'Auction-Rank'!$A$1:$A$961,0),'Guts-2'!$D$26)),"")) -> 0 | AA53: =IF(Z53="","",IF(V53=FALSE,"",Z53*(SUMIF($Y$2:$Y$961,"<>""",$Y$2:$Y$961)/SUMIF($Z$2:$Z$961,"<>""",$Z$2:$Z$961)))) -> 0 | AB53: =IFERROR(IF(VLOOKUP(A54,'Name-Sort'!$D$2:$E$948,2,FALSE)="",A54,""),"") -> Matt Barnes | AC53: =IFERROR(INDEX($AB$1:$AB$961,SMALL(IF($AB$1:$AB$961<>"",ROW($AB$1:$AB$961)),ROW(AB53))),"") -> Matt Barnes
A54: Matt Barnes | B54: barnema01 | C54: RP | E54: BOS | F54: 29 | G54: 0.0007277777778 | J54: 0 | K54: 0.0003055555556 | M54: 0.0008333333333 | N54: 0.0003733333333 | O54: =IFERROR(VLOOKUP(A54,'Import (Values)'!$B$2:$C$999,2,FALSE)/3120,"") ->  | P54: 222 | Q54: 376 | T54: 343 | V54: =IFERROR(INDEX('Guts-2'!$K$1:$K$30,MATCH(E54,'Guts-2'!$J$1:$J$30,0)),TRUE) -> TRUE | W54: =IF(V54=FALSE,"",IFERROR(CHOOSE('Guts-2'!$D$27,P54,Q54,R54,S54,T54,U54),"")) -> 343 | X54: 341 | Y54: =IFERROR(IF(INDEX('Auction-Rank'!$G$1:$O$961,MATCH($A54,'Auction-Rank'!$A$1:$A$961,0),'Guts-2'!$D$26)="","",INDEX('Auction-Rank'!$G$1:$O$961,MATCH($A54,'Auction-Rank'!$A$1:$A$961,0),'Guts-2'!$D$26)),"") -> 0.0003733333333 | Z54: =IF(V54=FALSE,"",IFERROR(IF(INDEX('Auction-Rank'!$G$1:$O$961,MATCH($A54,'Auction-Rank'!$A$1:$A$961,0),'Guts-2'!$D$26)="","",INDEX('Auction-Rank'!$G$1:$O$961,MATCH($A54,'Auction-Rank'!$A$1:$A$961,0),'Guts-2'!$D$26)),"")) -> 0.0003733333333 | AA54: =IF(Z54="","",IF(V54=FALSE,"",Z54*(SUMIF($Y$2:$Y$961,"<>""",$Y$2:$Y$961)/SUMIF($Z$2:$Z$961,"<>""",$Z$2:$Z$961)))) -> 0.0003733333333 | AB54: =IFERROR(IF(VLOOKUP(A55,'Name-Sort'!$D$2:$E$948,2,FALSE)="",A55,""),"") -> Tucker Barnhart | AC54: =IFERROR(INDEX($AB$1:$AB$961,SMALL(IF($AB$1:$AB$961<>"",ROW($AB$1:$AB$961)),ROW(AB54))),"") -> Tucker Barnhart
A55: Tucker Barnhart | B55: barnhtu01 | C55: C | E55: CIN | F55: 29 | N55: 0 | O55: =IFERROR(VLOOKUP(A55,'Import (Values)'!$B$2:$C$999,2,FALSE)/3120,"") ->  | T55: 475 | V55: =IFERROR(INDEX('Guts-2'!$K$1:$K$30,MATCH(E55,'Guts-2'!$J$1:$J$30,0)),TRUE) -> TRUE | W55: =IF(V55=FALSE,"",IFERROR(CHOOSE('Guts-2'!$D$27,P55,Q55,R55,S55,T55,U55),"")) -> 475 | X55: 470 | Y55: =IFERROR(IF(INDEX('Auction-Rank'!$G$1:$O$961,MATCH($A55,'Auction-Rank'!$A$1:$A$961,0),'Guts-2'!$D$26)="","",INDEX('Auction-Rank'!$G$1:$O$961,MATCH($A55,'Auction-Rank'!$A$1:$A$961,0),'Guts-2'!$D$26)),"") -> 0 | Z55: =IF(V55=FALSE,"",IFERROR(IF(INDEX('Auction-Rank'!$G$1:$O$961,MATCH($A55,'Auction-Rank'!$A$1:$A$961,0),'Guts-2'!$D$26)="","",INDEX('Auction-Rank'!$G$1:$O$961,MATCH($A55,'Auction-Rank'!$A$1:$A$961,0),'Guts-2'!$D$26)),"")) -> 0 | AA55: =IF(Z55="","",IF(V55=FALSE,"",Z55*(SUMIF($Y$2:$Y$961,"<>""",$Y$2:$Y$961)/SUMIF($Z$2:$Z$961,"<>""",$Z$2:$Z$961)))) -> 0 | AB55: =IFERROR(IF(VLOOKUP(A56,'Name-Sort'!$D$2:$E$948,2,FALSE)="",A56,""),"") -> Franklin Barreto | AC55: =IFERROR(INDEX($AB$1:$AB$961,SMALL(IF($AB$1:$AB$961<>"",ROW($AB$1:$AB$961)),ROW(AB55))),"") -> Franklin Barreto
A56: Franklin Barreto | B56: barrefr01 | C56: 2B | E56: OAK | F56: 24 | N56: 0 | O56: =IFERROR(VLOOKUP(A56,'Import (Values)'!$B$2:$C$999,2,FALSE)/3120,"") ->  | T56: 518 | V56: =IFERROR(INDEX('Guts-2'!$K$1:$K$30,MATCH(E56,'Guts-2'!$J$1:$J$30,0)),TRUE) -> TRUE | W56: =IF(V56=FALSE,"",IFERROR(CHOOSE('Guts-2'!$D$27,P56,Q56,R56,S56,T56,U56),"")) -> 518 | X56: 512 | Y56: =IFERROR(IF(INDEX('Auction-Rank'!$G$1:$O$961,MATCH($A56,'Auction-Rank'!$A$1:$A$961,0),'Guts-2'!$D$26)="","",INDEX('Auction-Rank'!$G$1:$O$961,MATCH($A56,'Auction-Rank'!$A$1:$A$961,0),'Guts-2'!$D$26)),"") -> 0 | Z56: =IF(V56=FALSE,"",IFERROR(IF(INDEX('Auction-Rank'!$G$1:$O$961,MATCH($A56,'Auction-Rank'!$A$1:$A$961,0),'Guts-2'!$D$26)="","",INDEX('Auction-Rank'!$G$1:$O$961,MATCH($A56,'Auction-Rank'!$A$1:$A$961,0),'Guts-2'!$D$26)),"")) -> 0 | AA56: =IF(Z56="","",IF(V56=FALSE,"",Z56*(SUMIF($Y$2:$Y$961,"<>""",$Y$2:$Y$961)/SUMIF($Z$2:$Z$961,"<>""",$Z$2:$Z$961)))) -> 0 | AB56: =IFERROR(IF(VLOOKUP(A57,'Name-Sort'!$D$2:$E$948,2,FALSE)="",A57,""),"") -> Joey Bart | AC56: =IFERROR(INDEX($AB$1:$AB$961,SMALL(IF($AB$1:$AB$961<>"",ROW($AB$1:$AB$961)),ROW(AB56))),"") -> Joey Bart
A57: Joey Bart | B57: bartjo01 | C57: C | E57: SF | F57: 23 | N57: 0 | O57: =IFERROR(VLOOKUP(A57,'Import (Values)'!$B$2:$C$999,2,FALSE)/3120,"") ->  | T57: 651 | V57: =IFERROR(INDEX('Guts-2'!$K$1:$K$30,MATCH(E57,'Guts-2'!$J$1:$J$30,0)),TRUE) -> TRUE | W57: =IF(V57=FALSE,"",IFERROR(CHOOSE('Guts-2'!$D$27,P57,Q57,R57,S57,T57,U57),"")) -> 651 | X57: 613 | Y57: =IFERROR(IF(INDEX('Auction-Rank'!$G$1:$O$961,MATCH($A57,'Auction-Rank'!$A$1:$A$961,0),'Guts-2'!$D$26)="","",INDEX('Auction-Rank'!$G$1:$O$961,MATCH($A57,'Auction-Rank'!$A$1:$A$961,0),'Guts-2'!$D$26)),"") -> 0 | Z57: =IF(V57=FALSE,"",IFERROR(IF(INDEX('Auction-Rank'!$G$1:$O$961,MATCH($A57,'Auction-Rank'!$A$1:$A$961,0),'Guts-2'!$D$26)="","",INDEX('Auction-Rank'!$G$1:$O$961,MATCH($A57,'Auction-Rank'!$A$1:$A$961,0),'Guts-2'!$D$26)),"")) -> 0 | AA57: =IF(Z57="","",IF(V57=FALSE,"",Z57*(SUMIF($Y$2:$Y$961,"<>""",$Y$2:$Y$961)/SUMIF($Z$2:$Z$961,"<>""",$Z$2:$Z$961)))) -> 0 | AB57: =IFERROR(IF(VLOOKUP(A58,'Name-Sort'!$D$2:$E$948,2,FALSE)="",A58,""),"") -> Anthony Bass | AC57: =IFERROR(INDEX($AB$1:$AB$961,SMALL(IF($AB$1:$AB$961<>"",ROW($AB$1:$AB$961)),ROW(AB57))),"") -> Anthony Bass
A58: Anthony Bass | B58: bassan01 | C58: RP | E58: N/A | F58: 32 | J58: 0 | N58: 0 | O58: =IFERROR(VLOOKUP(A58,'Import (Values)'!$B$2:$C$999,2,FALSE)/3120,"") ->  | T58: 663 | V58: =IFERROR(INDEX('Guts-2'!$K$1:$K$30,MATCH(E58,'Guts-2'!$J$1:$J$30,0)),TRUE) -> TRUE | W58: =IF(V58=FALSE,"",IFERROR(CHOOSE('Guts-2'!$D$27,P58,Q58,R58,S58,T58,U58),"")) -> 663 | X58: 621 | Y58: =IFERROR(IF(INDEX('Auction-Rank'!$G$1:$O$961,MATCH($A58,'Auction-Rank'!$A$1:$A$961,0),'Guts-2'!$D$26)="","",INDEX('Auction-Rank'!$G$1:$O$961,MATCH($A58,'Auction-Rank'!$A$1:$A$961,0),'Guts-2'!$D$26)),"") -> 0 | Z58: =IF(V58=FALSE,"",IFERROR(IF(INDEX('Auction-Rank'!$G$1:$O$961,MATCH($A58,'Auction-Rank'!$A$1:$A$961,0),'Guts-2'!$D$26)="","",INDEX('Auction-Rank'!$G$1:$O$961,MATCH($A58,'Auction-Rank'!$A$1:$A$961,0),'Guts-2'!$D$26)),"")) -> 0 | AA58: =IF(Z58="","",IF(V58=FALSE,"",Z58*(SUMIF($Y$2:$Y$961,"<>""",$Y$2:$Y$961)/SUMIF($Z$2:$Z$961,"<>""",$Z$2:$Z$961)))) -> 0 | AB58: =IFERROR(IF(VLOOKUP(A59,'Name-Sort'!$D$2:$E$948,2,FALSE)="",A59,""),"") -> Chris Bassitt | AC58: =IFERROR(INDEX($AB$1:$AB$961,SMALL(IF($AB$1:$AB$961<>"",ROW($AB$1:$AB$961)),ROW(AB58))),"") -> Chris Bassitt
A59: Chris Bassitt | B59: bassich01 | C59: SP | E59: OAK | F59: 31 | J59: 0 | K59: 0.0003055555556 | M59: 0.0005555555556 | N59: 0.0002152777778 | O59: =IFERROR(VLOOKUP(A59,'Import (Values)'!$B$2:$C$999,2,FALSE)/3120,"") ->  | Q59: 278 | R59: 239 | T59: 296 | V59: =IFERROR(INDEX('Guts-2'!$K$1:$K$30,MATCH(E59,'Guts-2'!$J$1:$J$30,0)),TRUE) -> TRUE | W59: =IF(V59=FALSE,"",IFERROR(CHOOSE('Guts-2'!$D$27,P59,Q59,R59,S59,T59,U59),"")) -> 296 | X59: 295 | Y59: =IFERROR(IF(INDEX('Auction-Rank'!$G$1:$O$961,MATCH($A59,'Auction-Rank'!$A$1:$A$961,0),'Guts-2'!$D$26)="","",INDEX('Auction-Rank'!$G$1:$O$961,MATCH($A59,'Auction-Rank'!$A$1:$A$961,0),'Guts-2'!$D$26)),"") -> 0.0002152777778 | Z59: =IF(V59=FALSE,"",IFERROR(IF(INDEX('Auction-Rank'!$G$1:$O$961,MATCH($A59,'Auction-Rank'!$A$1:$A$961,0),'Guts-2'!$D$26)="","",INDEX('Auction-Rank'!$G$1:$O$961,MATCH($A59,'Auction-Rank'!$A$1:$A$961,0),'Guts-2'!$D$26)),"")) -> 0.0002152777778 | AA59: =IF(Z59="","",IF(V59=FALSE,"",Z59*(SUMIF($Y$2:$Y$961,"<>""",$Y$2:$Y$961)/SUMIF($Z$2:$Z$961,"<>""",$Z$2:$Z$961)))) -> 0.0002152777778 | AB59: =IFERROR(IF(VLOOKUP(A60,'Name-Sort'!$D$2:$E$948,2,FALSE)="",A60,""),"") -> Jake Bauers | AC59: =IFERROR(INDEX($AB$1:$AB$961,SMALL(IF($AB$1:$AB$961<>"",ROW($AB$1:$AB$961)),ROW(AB59))),"") -> Jake Bauers
A60: Jake Bauers | B60: bauerja01 | C60: OF | D60: LF | E60: CLE | F60: 24 | N60: 0 | O60: =IFERROR(VLOOKUP(A60,'Import (Values)'!$B$2:$C$999,2,FALSE)/3120,"") ->  | S60: 251 | T60: 658 | V60: =IFERROR(INDEX('Guts-2'!$K$1:$K$30,MATCH(E60,'Guts-2'!$J$1:$J$30,0)),TRUE) -> TRUE | W60: =IF(V60=FALSE,"",IFERROR(CHOOSE('Guts-2'!$D$27,P60,Q60,R60,S60,T60,U60),"")) -> 658 | X60: 618 | Y60: =IFERROR(IF(INDEX('Auction-Rank'!$G$1:$O$961,MATCH($A60,'Auction-Rank'!$A$1:$A$961,0),'Guts-2'!$D$26)="","",INDEX('Auction-Rank'!$G$1:$O$961,MATCH($A60,'Auction-Rank'!$A$1:$A$961,0),'Guts-2'!$D$26)),"") -> 0 | Z60: =IF(V60=FALSE,"",IFERROR(IF(INDEX('Auction-Rank'!$G$1:$O$961,MATCH($A60,'Auction-Rank'!$A$1:$A$961,0),'Guts-2'!$D$26)="","",INDEX('Auction-Rank'!$G$1:$O$961,MATCH($A60,'Auction-Rank'!$A$1:$A$961,0),'Guts-2'!$D$26)),"")) -> 0 | AA60: =IF(Z60="","",IF(V60=FALSE,"",Z60*(SUMIF($Y$2:$Y$961,"<>""",$Y$2:$Y$961)/SUMIF($Z$2:$Z$961,"<>""",$Z$2:$Z$961)))) -> 0 | AB60: =IFERROR(IF(VLOOKUP(A61,'Name-Sort'!$D$2:$E$948,2,FALSE)="",A61,""),"") -> Trevor Bauer | AC60: =IFERROR(INDEX($AB$1:$AB$961,SMALL(IF($AB$1:$AB$961<>"",ROW($AB$1:$AB$961)),ROW(AB60))),"") -> Trevor Bauer
A61: Trevor Bauer | B61: bauertr01 | C61: SP | E61: CIN | F61: 29 | G61: 0.003733333333 | H61: 0.005 | J61: 0.003888888889 | K61: 0.003805555556 | M61: 0.002777777778 | N61: 0.003200925926 | O61: =IFERROR(VLOOKUP(A61,'Import (Values)'!$B$2:$C$999,2,FALSE)/3120,"") ->  | P61: 87 | Q61: 89 | R61: 85 | S61: 95 | T61: 93 | V61: =IFERROR(INDEX('Guts-2'!$K$1:$K$30,MATCH(E61,'Guts-2'!$J$1:$J$30,0)),TRUE) -> TRUE | W61: =IF(V61=FALSE,"",IFERROR(CHOOSE('Guts-2'!$D$27,P61,Q61,R61,S61,T61,U61),"")) -> 93 | X61: 93 | Y61: =IFERROR(IF(INDEX('Auction-Rank'!$G$1:$O$961,MATCH($A61,'Auction-Rank'!$A$1:$A$961,0),'Guts-2'!$D$26)="","",INDEX('Auction-Rank'!$G$1:$O$961,MATCH($A61,'Auction-Rank'!$A$1:$A$961,0),'Guts-2'!$D$26)),"") -> 0.003200925926 | Z61: =IF(V61=FALSE,"",IFERROR(IF(INDEX('Auction-Rank'!$G$1:$O$961,MATCH($A61,'Auction-Rank'!$A$1:$A$961,0),'Guts-2'!$D$26)="","",INDEX('Auction-Rank'!$G$1:$O$961,MATCH($A61,'Auction-Rank'!$A$1:$A$961,0),'Guts-2'!$D$26)),"")) -> 0.003200925926 | AA61: =IF(Z61="","",IF(V61=FALSE,"",Z61*(SUMIF($Y$2:$Y$961,"<>""",$Y$2:$Y$961)/SUMIF($Z$2:$Z$961,"<>""",$Z$2:$Z$961)))) -> 0.003200925926 | AB61: =IFERROR(IF(VLOOKUP(A62,'Name-Sort'!$D$2:$E$948,2,FALSE)="",A62,""),"") -> Matt Beaty | AC61: =IFERROR(INDEX($AB$1:$AB$961,SMALL(IF($AB$1:$AB$961<>"",ROW($AB$1:$AB$961)),ROW(AB61))),"") -> Matt Beaty
A62: Matt Beaty | B62: beatyma01 | C62: OF | D62: LF | E62: LAD | F62: 26 | N62: 0 | O62: =IFERROR(VLOOKUP(A62,'Import (Values)'!$B$2:$C$999,2,FALSE)/3120,"") ->  | T62: 670 | V62: =IFERROR(INDEX('Guts-2'!$K$1:$K$30,MATCH(E62,'Guts-2'!$J$1:$J$30,0)),TRUE) -> TRUE | W62: =IF(V62=FALSE,"",IFERROR(CHOOSE('Guts-2'!$D$27,P62,Q62,R62,S62,T62,U62),"")) -> 670 | X62: 626 | Y62: =IFERROR(IF(INDEX('Auction-Rank'!$G$1:$O$961,MATCH($A62,'Auction-Rank'!$A$1:$A$961,0),'Guts-2'!$D$26)="","",INDEX('Auction-Rank'!$G$1:$O$961,MATCH($A62,'Auction-Rank'!$A$1:$A$961,0),'Guts-2'!$D$26)),"") -> 0 | Z62: =IF(V62=FALSE,"",IFERROR(IF(INDEX('Auction-Rank'!$G$1:$O$961,MATCH($A62,'Auction-Rank'!$A$1:$A$961,0),'Guts-2'!$D$26)="","",INDEX('Auction-Rank'!$G$1:$O$961,MATCH($A62,'Auction-Rank'!$A$1:$A$961,0),'Guts-2'!$D$26)),"")) -> 0 | AA62: =IF(Z62="","",IF(V62=FALSE,"",Z62*(SUMIF($Y$2:$Y$961,"<>""",$Y$2:$Y$961)/SUMIF($Z$2:$Z$961,"<>""",$Z$2:$Z$961)))) -> 0 | AB62: =IFERROR(IF(VLOOKUP(A63,'Name-Sort'!$D$2:$E$948,2,FALSE)="",A63,""),"") -> Tim Beckham | AC62: =IFERROR(INDEX($AB$1:$AB$961,SMALL(IF($AB$1:$AB$961<>"",ROW($AB$1:$AB$961)),ROW(AB62))),"") -> Tim Beckham
A63: Tim Beckham | B63: beckhti01 | C63: SS | D63: LF | E63: SEA | F63: 30 | N63: 0 | O63: =IFERROR(VLOOKUP(A63,'Import (Values)'!$B$2:$C$999,2,FALSE)/3120,"") ->  | V63: =IFERROR(INDEX('Guts-2'!$K$1:$K$30,MATCH(E63,'Guts-2'!$J$1:$J$30,0)),TRUE) -> TRUE | W63: =IF(V63=FALSE,"",IFERROR(CHOOSE('Guts-2'!$D$27,P63,Q63,R63,S63,T63,U63),"")) ->  | Y63: =IFERROR(IF(INDEX('Auction-Rank'!$G$1:$O$961,MATCH($A63,'Auction-Rank'!$A$1:$A$961,0),'Guts-2'!$D$26)="","",INDEX('Auction-Rank'!$G$1:$O$961,MATCH($A63,'Auction-Rank'!$A$1:$A$961,0),'Guts-2'!$D$26)),"") -> 0 | Z63: =IF(V63=FALSE,"",IFERROR(IF(INDEX('Auction-Rank'!$G$1:$O$961,MATCH($A63,'Auction-Rank'!$A$1:$A$961,0),'Guts-2'!$D$26)="","",INDEX('Auction-Rank'!$G$1:$O$961,MATCH($A63,'Auction-Rank'!$A$1:$A$961,0),'Guts-2'!$D$26)),"")) -> 0 | AA63: =IF(Z63="","",IF(V63=FALSE,"",Z63*(SUMIF($Y$2:$Y$961,"<>""",$Y$2:$Y$961)/SUMIF($Z$2:$Z$961,"<>""",$Z$2:$Z$961)))) -> 0 | AB63: =IFERROR(IF(VLOOKUP(A64,'Name-Sort'!$D$2:$E$948,2,FALSE)="",A64,""),"") -> Cam Bedrosian | AC63: =IFERROR(INDEX($AB$1:$AB$961,SMALL(IF($AB$1:$AB$961<>"",ROW($AB$1:$AB$961)),ROW(AB63))),"") -> Cam Bedrosian
A64: Cam Bedrosian | B64: bedroca01 | C64: RP | E64: LAA | F64: 28 | J64: 0 | N64: 0 | O64: =IFERROR(VLOOKUP(A64,'Import (Values)'!$B$2:$C$999,2,FALSE)/3120,"") ->  | T64: 559 | V64: =IFERROR(INDEX('Guts-2'!$K$1:$K$30,MATCH(E64,'Guts-2'!$J$1:$J$30,0)),TRUE) -> TRUE | W64: =IF(V64=FALSE,"",IFERROR(CHOOSE('Guts-2'!$D$27,P64,Q64,R64,S64,T64,U64),"")) -> 559 | X64: 551 | Y64: =IFERROR(IF(INDEX('Auction-Rank'!$G$1:$O$961,MATCH($A64,'Auction-Rank'!$A$1:$A$961,0),'Guts-2'!$D$26)="","",INDEX('Auction-Rank'!$G$1:$O$961,MATCH($A64,'Auction-Rank'!$A$1:$A$961,0),'Guts-2'!$D$26)),"") -> 0 | Z64: =IF(V64=FALSE,"",IFERROR(IF(INDEX('Auction-Rank'!$G$1:$O$961,MATCH($A64,'Auction-Rank'!$A$1:$A$961,0),'Guts-2'!$D$26)="","",INDEX('Auction-Rank'!$G$1:$O$961,MATCH($A64,'Auction-Rank'!$A$1:$A$961,0),'Guts-2'!$D$26)),"")) -> 0 | AA64: =IF(Z64="","",IF(V64=FALSE,"",Z64*(SUMIF($Y$2:$Y$961,"<>""",$Y$2:$Y$961)/SUMIF($Z$2:$Z$961,"<>""",$Z$2:$Z$961)))) -> 0 | AB64: =IFERROR(IF(VLOOKUP(A65,'Name-Sort'!$D$2:$E$948,2,FALSE)="",A65,""),"") -> Tyler Beede | AC64: =IFERROR(INDEX($AB$1:$AB$961,SMALL(IF($AB$1:$AB$961<>"",ROW($AB$1:$AB$961)),ROW(AB64))),"") -> Tyler Beede
A65: Tyler Beede | B65: beedety01 | C65: SP | E65: N/A | F65: 26 | N65: 0 | O65: =IFERROR(VLOOKUP(A65,'Import (Values)'!$B$2:$C$999,2,FALSE)/3120,"") ->  | V65: =IFERROR(INDEX('Guts-2'!$K$1:$K$30,MATCH(E65,'Guts-2'!$J$1:$J$30,0)),TRUE) -> TRUE | W65: =IF(V65=FALSE,"",IFERROR(CHOOSE('Guts-2'!$D$27,P65,Q65,R65,S65,T65,U65),"")) ->  | Y65: =IFERROR(IF(INDEX('Auction-Rank'!$G$1:$O$961,MATCH($A65,'Auction-Rank'!$A$1:$A$961,0),'Guts-2'!$D$26)="","",INDEX('Auction-Rank'!$G$1:$O$961,MATCH($A65,'Auction-Rank'!$A$1:$A$961,0),'Guts-2'!$D$26)),"") -> 0 | Z65: =IF(V65=FALSE,"",IFERROR(IF(INDEX('Auction-Rank'!$G$1:$O$961,MATCH($A65,'Auction-Rank'!$A$1:$A$961,0),'Guts-2'!$D$26)="","",INDEX('Auction-Rank'!$G$1:$O$961,MATCH($A65,'Auction-Rank'!$A$1:$A$961,0),'Guts-2'!$D$26)),"")) -> 0 | AA65: =IF(Z65="","",IF(V65=FALSE,"",Z65*(SUMIF($Y$2:$Y$961,"<>""",$Y$2:$Y$961)/SUMIF($Z$2:$Z$961,"<>""",$Z$2:$Z$961)))) -> 0 | AB65: =IFERROR(IF(VLOOKUP(A66,'Name-Sort'!$D$2:$E$948,2,FALSE)="",A66,""),"") -> Jalen Beeks | AC65: =IFERROR(INDEX($AB$1:$AB$961,SMALL(IF($AB$1:$AB$961<>"",ROW($AB$1:$AB$961)),ROW(AB65))),"") -> Jalen Beeks
A66: Jalen Beeks | B66: beeksja02 | C66: RP | E66: TB | F66: 26 | N66: 0 | O66: =IFERROR(VLOOKUP(A66,'Import (Values)'!$B$2:$C$999,2,FALSE)/3120,"") ->  | T66: 678 | V66: =IFERROR(INDEX('Guts-2'!$K$1:$K$30,MATCH(E66,'Guts-2'!$J$1:$J$30,0)),TRUE) -> TRUE | W66: =IF(V66=FALSE,"",IFERROR(CHOOSE('Guts-2'!$D$27,P66,Q66,R66,S66,T66,U66),"")) -> 678 | X66: =IFERROR(RANK(W66,$W$2:$W$961,1),"") -> 632 | Y66: =IFERROR(IF(INDEX('Auction-Rank'!$G$1:$O$961,MATCH($A66,'Auction-Rank'!$A$1:$A$961,0),'Guts-2'!$D$26)="","",INDEX('Auction-Rank'!$G$1:$O$961,MATCH($A66,'Auction-Rank'!$A$1:$A$961,0),'Guts-2'!$D$26)),"") -> 0 | Z66: =IF(V66=FALSE,"",IFERROR(IF(INDEX('Auction-Rank'!$G$1:$O$961,MATCH($A66,'Auction-Rank'!$A$1:$A$961,0),'Guts-2'!$D$26)="","",INDEX('Auction-Rank'!$G$1:$O$961,MATCH($A66,'Auction-Rank'!$A$1:$A$961,0),'Guts-2'!$D$26)),"")) -> 0 | AA66: =IF(Z66="","",IF(V66=FALSE,"",Z66*(SUMIF($Y$2:$Y$961,"<>""",$Y$2:$Y$961)/SUMIF($Z$2:$Z$961,"<>""",$Z$2:$Z$961)))) -> 0 | AB66: =IFERROR(IF(VLOOKUP(A67,'Name-Sort'!$D$2:$E$948,2,FALSE)="",A67,""),"") -> Seth Beer | AC66: =IFERROR(INDEX($AB$1:$AB$961,SMALL(IF($AB$1:$AB$961<>"",ROW($AB$1:$AB$961)),ROW(AB66))),"") -> Seth Beer
A67: Seth Beer | B67: beerse01 | C67: 1B | D67: LF | E67: ARI | F67: 23 | N67: 0 | O67: =IFERROR(VLOOKUP(A67,'Import (Values)'!$B$2:$C$999,2,FALSE)/3120,"") ->  | V67: =IFERROR(INDEX('Guts-2'!$K$1:$K$30,MATCH(E67,'Guts-2'!$J$1:$J$30,0)),TRUE) -> TRUE | W67: =IF(V67=FALSE,"",IFERROR(CHOOSE('Guts-2'!$D$27,P67,Q67,R67,S67,T67,U67),"")) ->  | Y67: =IFERROR(IF(INDEX('Auction-Rank'!$G$1:$O$961,MATCH($A67,'Auction-Rank'!$A$1:$A$961,0),'Guts-2'!$D$26)="","",INDEX('Auction-Rank'!$G$1:$O$961,MATCH($A67,'Auction-Rank'!$A$1:$A$961,0),'Guts-2'!$D$26)),"") -> 0 | Z67: =IF(V67=FALSE,"",IFERROR(IF(INDEX('Auction-Rank'!$G$1:$O$961,MATCH($A67,'Auction-Rank'!$A$1:$A$961,0),'Guts-2'!$D$26)="","",INDEX('Auction-Rank'!$G$1:$O$961,MATCH($A67,'Auction-Rank'!$A$1:$A$961,0),'Guts-2'!$D$26)),"")) -> 0 | AA67: =IF(Z67="","",IF(V67=FALSE,"",Z67*(SUMIF($Y$2:$Y$961,"<>""",$Y$2:$Y$961)/SUMIF($Z$2:$Z$961,"<>""",$Z$2:$Z$961)))) -> 0 | AB67: =IFERROR(IF(VLOOKUP(A68,'Name-Sort'!$D$2:$E$948,2,FALSE)="",A68,""),"") -> Cody Bellinger | AC67: =IFERROR(INDEX($AB$1:$AB$961,SMALL(IF($AB$1:$AB$961<>"",ROW($AB$1:$AB$961)),ROW(AB67))),"") -> Cody Bellinger
A68: Cody Bellinger | B68: bellico01 | C68: OF | D68: CF,RF | E68: LAD | F68: 24 | G68: 0.01047222222 | H68: 0.01138888889 | J68: 0.01222222222 | K68: 0.01330555556 | M68: 0.01361111111 | N68: 0.01016666667 | O68: =IFERROR(VLOOKUP(A68,'Import (Values)'!$B$2:$C$999,2,FALSE)/3120,"") -> 0.01314102564 | P68: 6 | Q68: 4 | R68: 11 | S68: 5 | T68: 3 | V68: =IFERROR(INDEX('Guts-2'!$K$1:$K$30,MATCH(E68,'Guts-2'!$J$1:$J$30,0)),TRUE) -> TRUE | W68: =IF(V68=FALSE,"",IFERROR(CHOOSE('Guts-2'!$D$27,P68,Q68,R68,S68,T68,U68),"")) -> 3 | X68: 3 | Y68: =IFERROR(IF(INDEX('Auction-Rank'!$G$1:$O$961,MATCH($A68,'Auction-Rank'!$A$1:$A$961,0),'Guts-2'!$D$26)="","",INDEX('Auction-Rank'!$G$1:$O$961,MATCH($A68,'Auction-Rank'!$A$1:$A$961,0),'Guts-2'!$D$26)),"") -> 0.01016666667 | Z68: =IF(V68=FALSE,"",IFERROR(IF(INDEX('Auction-Rank'!$G$1:$O$961,MATCH($A68,'Auction-Rank'!$A$1:$A$961,0),'Guts-2'!$D$26)="","",INDEX('Auction-Rank'!$G$1:$O$961,MATCH($A68,'Auction-Rank'!$A$1:$A$961,0),'Guts-2'!$D$26)),"")) -> 0.01016666667 | AA68: =IF(Z68="","",IF(V68=FALSE,"",Z68*(SUMIF($Y$2:$Y$961,"<>""",$Y$2:$Y$961)/SUMIF($Z$2:$Z$961,"<>""",$Z$2:$Z$961)))) -> 0.01016666667 | AB68: =IFERROR(IF(VLOOKUP(A69,'Name-Sort'!$D$2:$E$948,2,FALSE)="",A69,""),"") -> Josh Bell | AC68: =IFERROR(INDEX($AB$1:$AB$961,SMALL(IF($AB$1:$AB$961<>"",ROW($AB$1:$AB$961)),ROW(AB68))),"") -> Josh Bell
A69: Josh Bell | B69: belljo02 | C69: 1B | E69: PIT | F69: 27 | G69: 0.003497222222 | H69: 0.005277777778 | J69: 0.003333333333 | K69: 0.003611111111 | M69: 0.004166666667 | N69: 0.003314351852 | O69: =IFERROR(VLOOKUP(A69,'Import (Values)'!$B$2:$C$999,2,FALSE)/3120,"") ->  | P69: 96 | Q69: 98 | R69: 112 | S69: 64 | T69: 76 | V69: =IFERROR(INDEX('Guts-2'!$K$1:$K$30,MATCH(E69,'Guts-2'!$J$1:$J$30,0)),TRUE) -> TRUE | W69: =IF(V69=FALSE,"",IFERROR(CHOOSE('Guts-2'!$D$27,P69,Q69,R69,S69,T69,U69),"")) -> 76 | X69: 76 | Y69: =IFERROR(IF(INDEX('Auction-Rank'!$G$1:$O$961,MATCH($A69,'Auction-Rank'!$A$1:$A$961,0),'Guts-2'!$D$26)="","",INDEX('Auction-Rank'!$G$1:$O$961,MATCH($A69,'Auction-Rank'!$A$1:$A$961,0),'Guts-2'!$D$26)),"") -> 0.003314351852 | Z69: =IF(V69=FALSE,"",IFERROR(IF(INDEX('Auction-Rank'!$G$1:$O$961,MATCH($A69,'Auction-Rank'!$A$1:$A$961,0),'Guts-2'!$D$26)="","",INDEX('Auction-Rank'!$G$1:$O$961,MATCH($A69,'Auction-Rank'!$A$1:$A$961,0),'Guts-2'!$D$26)),"")) -> 0.003314351852 | AA69: =IF(Z69="","",IF(V69=FALSE,"",Z69*(SUMIF($Y$2:$Y$961,"<>""",$Y$2:$Y$961)/SUMIF($Z$2:$Z$961,"<>""",$Z$2:$Z$961)))) -> 0.003314351852 | AB69: =IFERROR(IF(VLOOKUP(A70,'Name-Sort'!$D$2:$E$948,2,FALSE)="",A70,""),"") -> Brandon Belt | AC69: =IFERROR(INDEX($AB$1:$AB$961,SMALL(IF($AB$1:$AB$961<>"",ROW($AB$1:$AB$961)),ROW(AB69))),"") -> Brandon Belt
A70: Brandon Belt | B70: beltbr01 | C70: 1B | D70: LF | E70: SF | F70: 31 | J70: 0 | N70: 0 | O70: =IFERROR(VLOOKUP(A70,'Import (Values)'!$B$2:$C$999,2,FALSE)/3120,"") ->  | Q70: 384 | R70: 244 | S70: 289 | T70: 342 | V70: =IFERROR(INDEX('Guts-2'!$K$1:$K$30,MATCH(E70,'Guts-2'!$J$1:$J$30,0)),TRUE) -> TRUE | W70: =IF(V70=FALSE,"",IFERROR(CHOOSE('Guts-2'!$D$27,P70,Q70,R70,S70,T70,U70),"")) -> 342 | X70: 340 | Y70: =IFERROR(IF(INDEX('Auction-Rank'!$G$1:$O$961,MATCH($A70,'Auction-Rank'!$A$1:$A$961,0),'Guts-2'!$D$26)="","",INDEX('Auction-Rank'!$G$1:$O$961,MATCH($A70,'Auction-Rank'!$A$1:$A$961,0),'Guts-2'!$D$26)),"") -> 0 | Z70: =IF(V70=FALSE,"",IFERROR(IF(INDEX('Auction-Rank'!$G$1:$O$961,MATCH($A70,'Auction-Rank'!$A$1:$A$961,0),'Guts-2'!$D$26)="","",INDEX('Auction-Rank'!$G$1:$O$961,MATCH($A70,'Auction-Rank'!$A$1:$A$961,0),'Guts-2'!$D$26)),"")) -> 0 | AA70: =IF(Z70="","",IF(V70=FALSE,"",Z70*(SUMIF($Y$2:$Y$961,"<>""",$Y$2:$Y$961)/SUMIF($Z$2:$Z$961,"<>""",$Z$2:$Z$961)))) -> 0 | AB70: =IFERROR(IF(VLOOKUP(A71,'Name-Sort'!$D$2:$E$948,2,FALSE)="",A71,""),"") -> Andrew Benintendi | AC70: =IFERROR(INDEX($AB$1:$AB$961,SMALL(IF($AB$1:$AB$961<>"",ROW($AB$1:$AB$961)),ROW(AB70))),"") -> Andrew Benintendi
A71: Andrew Benintendi | B71: beninan01 | C71: OF | D71: LF,CF | E71: BOS | F71: 25 | G71: 0.003583333333 | H71: 0.002777777778 | J71: 0.003611111111 | K71: 0.002861111111 | M71: 0.002777777778 | N71: 0.002601851852 | O71: =IFERROR(VLOOKUP(A71,'Import (Values)'!$B$2:$C$999,2,FALSE)/3120,"") ->  | P71: 93 | Q71: 94 | R71: 84 | S71: 49 | T71: 91 | V71: =IFERROR(INDEX('Guts-2'!$K$1:$K$30,MATCH(E71,'Guts-2'!$J$1:$J$30,0)),TRUE) -> TRUE | W71: =IF(V71=FALSE,"",IFERROR(CHOOSE('Guts-2'!$D$27,P71,Q71,R71,S71,T71,U71),"")) -> 91 | X71: 91 | Y71: =IFERROR(IF(INDEX('Auction-Rank'!$G$1:$O$961,MATCH($A71,'Auction-Rank'!$A$1:$A$961,0),'Guts-2'!$D$26)="","",INDEX('Auction-Rank'!$G$1:$O$961,MATCH($A71,'Auction-Rank'!$A$1:$A$961,0),'Guts-2'!$D$26)),"") -> 0.002601851852 | Z71: =IF(V71=FALSE,"",IFERROR(IF(INDEX('Auction-Rank'!$G$1:$O$961,MATCH($A71,'Auction-Rank'!$A$1:$A$961,0),'Guts-2'!$D$26)="","",INDEX('Auction-Rank'!$G$1:$O$961,MATCH($A71,'Auction-Rank'!$A$1:$A$961,0),'Guts-2'!$D$26)),"")) -> 0.002601851852 | AA71: =IF(Z71="","",IF(V71=FALSE,"",Z71*(SUMIF($Y$2:$Y$961,"<>""",$Y$2:$Y$961)/SUMIF($Z$2:$Z$961,"<>""",$Z$2:$Z$961)))) -> 0.002601851852 | AB71: =IFERROR(IF(VLOOKUP(A72,'Name-Sort'!$D$2:$E$948,2,FALSE)="",A72,""),"") -> Jose Berrios | AC71: =IFERROR(INDEX($AB$1:$AB$961,SMALL(IF($AB$1:$AB$961<>"",ROW($AB$1:$AB$961)),ROW(AB71))),"") -> Jose Berrios
A72: Jose Berrios | B72: berrijo01 | C72: SP | E72: MIN | F72: 25 | G72: 0.002702777778 | H72: 0.004166666667 | J72: 0.004444444444 | K72: 0.004333333333 | M72: 0.002222222222 | N72: 0.002978240741 | O72: =IFERROR(VLOOKUP(A72,'Import (Values)'!$B$2:$C$999,2,FALSE)/3120,"") ->  | P72: 124 | Q72: 83 | R72: 68 | S72: 87 | T72: 92 | V72: =IFERROR(INDEX('Guts-2'!$K$1:$K$30,MATCH(E72,'Guts-2'!$J$1:$J$30,0)),TRUE) -> TRUE | W72: =IF(V72=FALSE,"",IFERROR(CHOOSE('Guts-2'!$D$27,P72,Q72,R72,S72,T72,U72),"")) -> 92 | X72: 92 | Y72: =IFERROR(IF(INDEX('Auction-Rank'!$G$1:$O$961,MATCH($A72,'Auction-Rank'!$A$1:$A$961,0),'Guts-2'!$D$26)="","",INDEX('Auction-Rank'!$G$1:$O$961,MATCH($A72,'Auction-Rank'!$A$1:$A$961,0),'Guts-2'!$D$26)),"") -> 0.002978240741 | Z72: =IF(V72=FALSE,"",IFERROR(IF(INDEX('Auction-Rank'!$G$1:$O$961,MATCH($A72,'Auction-Rank'!$A$1:$A$961,0),'Guts-2'!$D$26)="","",INDEX('Auction-Rank'!$G$1:$O$961,MATCH($A72,'Auction-Rank'!$A$1:$A$961,0),'Guts-2'!$D$26)),"")) -> 0.002978240741 | AA72: =IF(Z72="","",IF(V72=FALSE,"",Z72*(SUMIF($Y$2:$Y$961,"<>""",$Y$2:$Y$961)/SUMIF($Z$2:$Z$961,"<>""",$Z$2:$Z$961)))) -> 0.002978240741 | AB72: =IFERROR(IF(VLOOKUP(A73,'Name-Sort'!$D$2:$E$948,2,FALSE)="",A73,""),"") -> Jon Berti | AC72: =IFERROR(INDEX($AB$1:$AB$961,SMALL(IF($AB$1:$AB$961<>"",ROW($AB$1:$AB$961)),ROW(AB72))),"") -> Jon Berti
A73: Jon Berti | B73: bertijo01 | C73: SS | D73: CF | E73: MIA | F73: 30 | H73: 0.0002777777778 | J73: 0.0002777777778 | K73: 0.0004166666667 | N73: 0.0002430555556 | O73: =IFERROR(VLOOKUP(A73,'Import (Values)'!$B$2:$C$999,2,FALSE)/3120,"") ->  | Q73: 288 | R73: 184 | S73: 246 | T73: 328 | V73: =IFERROR(INDEX('Guts-2'!$K$1:$K$30,MATCH(E73,'Guts-2'!$J$1:$J$30,0)),TRUE) -> TRUE | W73: =IF(V73=FALSE,"",IFERROR(CHOOSE('Guts-2'!$D$27,P73,Q73,R73,S73,T73,U73),"")) -> 328 | X73: 327 | Y73: =IFERROR(IF(INDEX('Auction-Rank'!$G$1:$O$961,MATCH($A73,'Auction-Rank'!$A$1:$A$961,0),'Guts-2'!$D$26)="","",INDEX('Auction-Rank'!$G$1:$O$961,MATCH($A73,'Auction-Rank'!$A$1:$A$961,0),'Guts-2'!$D$26)),"") -> 0.0002430555556 | Z73: =IF(V73=FALSE,"",IFERROR(IF(INDEX('Auction-Rank'!$G$1:$O$961,MATCH($A73,'Auction-Rank'!$A$1:$A$961,0),'Guts-2'!$D$26)="","",INDEX('Auction-Rank'!$G$1:$O$961,MATCH($A73,'Auction-Rank'!$A$1:$A$961,0),'Guts-2'!$D$26)),"")) -> 0.0002430555556 | AA73: =IF(Z73="","",IF(V73=FALSE,"",Z73*(SUMIF($Y$2:$Y$961,"<>""",$Y$2:$Y$961)/SUMIF($Z$2:$Z$961,"<>""",$Z$2:$Z$961)))) -> 0.0002430555556 | AB73: =IFERROR(IF(VLOOKUP(A74,'Name-Sort'!$D$2:$E$948,2,FALSE)="",A74,""),"") -> Dellin Betances | AC73: =IFERROR(INDEX($AB$1:$AB$961,SMALL(IF($AB$1:$AB$961<>"",ROW($AB$1:$AB$961)),ROW(AB73))),"") -> Dellin Betances
A74: Dellin Betances | B74: betande01 | C74: RP | E74: NYM | F74: 32 | G74: 0.00035 | J74: 0 | K74: 0.0003611111111 | M74: 0.001111111111 | N74: 0.0003644444444 | O74: =IFERROR(VLOOKUP(A74,'Import (Values)'!$B$2:$C$999,2,FALSE)/3120,"") ->  | P74: 259 | Q74: 356 | T74: 282 | V74: =IFERROR(INDEX('Guts-2'!$K$1:$K$30,MATCH(E74,'Guts-2'!$J$1:$J$30,0)),TRUE) -> TRUE | W74: =IF(V74=FALSE,"",IFERROR(CHOOSE('Guts-2'!$D$27,P74,Q74,R74,S74,T74,U74),"")) -> 282 | X74: 281 | Y74: =IFERROR(IF(INDEX('Auction-Rank'!$G$1:$O$961,MATCH($A74,'Auction-Rank'!$A$1:$A$961,0),'Guts-2'!$D$26)="","",INDEX('Auction-Rank'!$G$1:$O$961,MATCH($A74,'Auction-Rank'!$A$1:$A$961,0),'Guts-2'!$D$26)),"") -> 0.0003644444444 | Z74: =IF(V74=FALSE,"",IFERROR(IF(INDEX('Auction-Rank'!$G$1:$O$961,MATCH($A74,'Auction-Rank'!$A$1:$A$961,0),'Guts-2'!$D$26)="","",INDEX('Auction-Rank'!$G$1:$O$961,MATCH($A74,'Auction-Rank'!$A$1:$A$961,0),'Guts-2'!$D$26)),"")) -> 0.0003644444444 | AA74: =IF(Z74="","",IF(V74=FALSE,"",Z74*(SUMIF($Y$2:$Y$961,"<>""",$Y$2:$Y$961)/SUMIF($Z$2:$Z$961,"<>""",$Z$2:$Z$961)))) -> 0.0003644444444 | AB74: =IFERROR(IF(VLOOKUP(A75,'Name-Sort'!$D$2:$E$948,2,FALSE)="",A75,""),"") -> Mookie Betts | AC74: =IFERROR(INDEX($AB$1:$AB$961,SMALL(IF($AB$1:$AB$961<>"",ROW($AB$1:$AB$961)),ROW(AB74))),"") -> Mookie Betts
A75: Mookie Betts | B75: bettsmo01 | C75: OF | D75: CF,RF | E75: LAD | F75: 27 | G75: 0.01045833333 | H75: 0.01083333333 | J75: 0.01083333333 | K75: 0.01241666667 | M75: 0.01166666667 | N75: 0.009368055556 | O75: =IFERROR(VLOOKUP(A75,'Import (Values)'!$B$2:$C$999,2,FALSE)/3120,"") -> 0.01121794872 | P75: 7 | Q75: 5 | R75: 8 | S75: 4 | T75: 4 | V75: =IFERROR(INDEX('Guts-2'!$K$1:$K$30,MATCH(E75,'Guts-2'!$J$1:$J$30,0)),TRUE) -> TRUE | W75: =IF(V75=FALSE,"",IFERROR(CHOOSE('Guts-2'!$D$27,P75,Q75,R75,S75,T75,U75),"")) -> 4 | X75: 4 | Y75: =IFERROR(IF(INDEX('Auction-Rank'!$G$1:$O$961,MATCH($A75,'Auction-Rank'!$A$1:$A$961,0),'Guts-2'!$D$26)="","",INDEX('Auction-Rank'!$G$1:$O$961,MATCH($A75,'Auction-Rank'!$A$1:$A$961,0),'Guts-2'!$D$26)),"") -> 0.009368055556 | Z75: =IF(V75=FALSE,"",IFERROR(IF(INDEX('Auction-Rank'!$G$1:$O$961,MATCH($A75,'Auction-Rank'!$A$1:$A$961,0),'Guts-2'!$D$26)="","",INDEX('Auction-Rank'!$G$1:$O$961,MATCH($A75,'Auction-Rank'!$A$1:$A$961,0),'Guts-2'!$D$26)),"")) -> 0.009368055556 | AA75: =IF(Z75="","",IF(V75=FALSE,"",Z75*(SUMIF($Y$2:$Y$961,"<>""",$Y$2:$Y$961)/SUMIF($Z$2:$Z$961,"<>""",$Z$2:$Z$961)))) -> 0.009368055556 | AB75: =IFERROR(IF(VLOOKUP(A76,'Name-Sort'!$D$2:$E$948,2,FALSE)="",A76,""),"") -> Bo Bichette | AC75: =IFERROR(INDEX($AB$1:$AB$961,SMALL(IF($AB$1:$AB$961<>"",ROW($AB$1:$AB$961)),ROW(AB75))),"") -> Bo Bichette
A76: Bo Bichette | B76: bichebo01 | C76: SS | E76: TOR | F76: 22 | G76: 0.007375 | H76: 0.005 | J76: 0.005 | K76: 0.005111111111 | M76: 0.005277777778 | N76: 0.004627314815 | O76: =IFERROR(VLOOKUP(A76,'Import (Values)'!$B$2:$C$999,2,FALSE)/3120,"") ->  | P76: 26 | Q76: 72 | R76: 41 | S76: 54 | T76: 56 | V76: =IFERROR(INDEX('Guts-2'!$K$1:$K$30,MATCH(E76,'Guts-2'!$J$1:$J$30,0)),TRUE) -> TRUE | W76: =IF(V76=FALSE,"",IFERROR(CHOOSE('Guts-2'!$D$27,P76,Q76,R76,S76,T76,U76),"")) -> 56 | X76: 56 | Y76: =IFERROR(IF(INDEX('Auction-Rank'!$G$1:$O$961,MATCH($A76,'Auction-Rank'!$A$1:$A$961,0),'Guts-2'!$D$26)="","",INDEX('Auction-Rank'!$G$1:$O$961,MATCH($A76,'Auction-Rank'!$A$1:$A$961,0),'Guts-2'!$D$26)),"") -> 0.004627314815 | Z76: =IF(V76=FALSE,"",IFERROR(IF(INDEX('Auction-Rank'!$G$1:$O$961,MATCH($A76,'Auction-Rank'!$A$1:$A$961,0),'Guts-2'!$D$26)="","",INDEX('Auction-Rank'!$G$1:$O$961,MATCH($A76,'Auction-Rank'!$A$1:$A$961,0),'Guts-2'!$D$26)),"")) -> 0.004627314815 | AA76: =IF(Z76="","",IF(V76=FALSE,"",Z76*(SUMIF($Y$2:$Y$961,"<>""",$Y$2:$Y$961)/SUMIF($Z$2:$Z$961,"<>""",$Z$2:$Z$961)))) -> 0.004627314815 | AB76: =IFERROR(IF(VLOOKUP(A77,'Name-Sort'!$D$2:$E$948,2,FALSE)="",A77,""),"") -> Shane Bieber | AC76: =IFERROR(INDEX($AB$1:$AB$961,SMALL(IF($AB$1:$AB$961<>"",ROW($AB$1:$AB$961)),ROW(AB76))),"") -> Shane Bieber
A77: Shane Bieber | B77: biebesh01 | C77: SP | E77: CLE | F77: 24 | G77: 0.005397222222 | H77: 0.008611111111 | J77: 0.007777777778 | K77: 0.007666666667 | M77: 0.006111111111 | N77: 0.005927314815 | O77: =IFERROR(VLOOKUP(A77,'Import (Values)'!$B$2:$C$999,2,FALSE)/3120,"") ->  | P77: 49 | Q77: 33 | R77: 12 | S77: 32 | T77: 26 | V77: =IFERROR(INDEX('Guts-2'!$K$1:$K$30,MATCH(E77,'Guts-2'!$J$1:$J$30,0)),TRUE) -> TRUE | W77: =IF(V77=FALSE,"",IFERROR(CHOOSE('Guts-2'!$D$27,P77,Q77,R77,S77,T77,U77),"")) -> 26 | X77: 26 | Y77: =IFERROR(IF(INDEX('Auction-Rank'!$G$1:$O$961,MATCH($A77,'Auction-Rank'!$A$1:$A$961,0),'Guts-2'!$D$26)="","",INDEX('Auction-Rank'!$G$1:$O$961,MATCH($A77,'Auction-Rank'!$A$1:$A$961,0),'Guts-2'!$D$26)),"") -> 0.005927314815 | Z77: =IF(V77=FALSE,"",IFERROR(IF(INDEX('Auction-Rank'!$G$1:$O$961,MATCH($A77,'Auction-Rank'!$A$1:$A$961,0),'Guts-2'!$D$26)="","",INDEX('Auction-Rank'!$G$1:$O$961,MATCH($A77,'Auction-Rank'!$A$1:$A$961,0),'Guts-2'!$D$26)),"")) -> 0.005927314815 | AA77: =IF(Z77="","",IF(V77=FALSE,"",Z77*(SUMIF($Y$2:$Y$961,"<>""",$Y$2:$Y$961)/SUMIF($Z$2:$Z$961,"<>""",$Z$2:$Z$961)))) -> 0.005927314815 | AB77: =IFERROR(IF(VLOOKUP(A78,'Name-Sort'!$D$2:$E$948,2,FALSE)="",A78,""),"") -> Cavan Biggio | AC77: =IFERROR(INDEX($AB$1:$AB$961,SMALL(IF($AB$1:$AB$961<>"",ROW($AB$1:$AB$961)),ROW(AB77))),"") -> Cavan Biggio
A78: Cavan Biggio | B78: biggica01 | C78: 2B | D78: RF | E78: TOR | F78: 24 | G78: 0.001066666667 | H78: 0.002777777778 | J78: 0.001666666667 | K78: 0.001472222222 | M78: 0.001388888889 | N78: 0.00139537037 | O78: =IFERROR(VLOOKUP(A78,'Import (Values)'!$B$2:$C$999,2,FALSE)/3120,"") ->  | P78: 199 | Q78: 198 | R78: 48 | S78: 88 | T78: 144 | V78: =IFERROR(INDEX('Guts-2'!$K$1:$K$30,MATCH(E78,'Guts-2'!$J$1:$J$30,0)),TRUE) -> TRUE | W78: =IF(V78=FALSE,"",IFERROR(CHOOSE('Guts-2'!$D$27,P78,Q78,R78,S78,T78,U78),"")) -> 144 | X78: 144 | Y78: =IFERROR(IF(INDEX('Auction-Rank'!$G$1:$O$961,MATCH($A78,'Auction-Rank'!$A$1:$A$961,0),'Guts-2'!$D$26)="","",INDEX('Auction-Rank'!$G$1:$O$961,MATCH($A78,'Auction-Rank'!$A$1:$A$961,0),'Guts-2'!$D$26)),"") -> 0.00139537037 | Z78: =IF(V78=FALSE,"",IFERROR(IF(INDEX('Auction-Rank'!$G$1:$O$961,MATCH($A78,'Auction-Rank'!$A$1:$A$961,0),'Guts-2'!$D$26)="","",INDEX('Auction-Rank'!$G$1:$O$961,MATCH($A78,'Auction-Rank'!$A$1:$A$961,0),'Guts-2'!$D$26)),"")) -> 0.00139537037 | AA78: =IF(Z78="","",IF(V78=FALSE,"",Z78*(SUMIF($Y$2:$Y$961,"<>""",$Y$2:$Y$961)/SUMIF($Z$2:$Z$961,"<>""",$Z$2:$Z$961)))) -> 0.00139537037 | AB78: =IFERROR(IF(VLOOKUP(A79,'Name-Sort'!$D$2:$E$948,2,FALSE)="",A79,""),"") -> Greg Bird | AC78: =IFERROR(INDEX($AB$1:$AB$961,SMALL(IF($AB$1:$AB$961<>"",ROW($AB$1:$AB$961)),ROW(AB78))),"") -> Greg Bird
A79: Greg Bird | B79: birdgr01 | C79: 1B | E79: TEX | F79: 27 | N79: 0 | O79: =IFERROR(VLOOKUP(A79,'Import (Values)'!$B$2:$C$999,2,FALSE)/3120,"") ->  | T79: 818 | V79: =IFERROR(INDEX('Guts-2'!$K$1:$K$30,MATCH(E79,'Guts-2'!$J$1:$J$30,0)),TRUE) -> TRUE | W79: =IF(V79=FALSE,"",IFERROR(CHOOSE('Guts-2'!$D$27,P79,Q79,R79,S79,T79,U79),"")) -> 818 | X79: 700 | Y79: =IFERROR(IF(INDEX('Auction-Rank'!$G$1:$O$961,MATCH($A79,'Auction-Rank'!$A$1:$A$961,0),'Guts-2'!$D$26)="","",INDEX('Auction-Rank'!$G$1:$O$961,MATCH($A79,'Auction-Rank'!$A$1:$A$961,0),'Guts-2'!$D$26)),"") -> 0 | Z79: =IF(V79=FALSE,"",IFERROR(IF(INDEX('Auction-Rank'!$G$1:$O$961,MATCH($A79,'Auction-Rank'!$A$1:$A$961,0),'Guts-2'!$D$26)="","",INDEX('Auction-Rank'!$G$1:$O$961,MATCH($A79,'Auction-Rank'!$A$1:$A$961,0),'Guts-2'!$D$26)),"")) -> 0 | AA79: =IF(Z79="","",IF(V79=FALSE,"",Z79*(SUMIF($Y$2:$Y$961,"<>""",$Y$2:$Y$961)/SUMIF($Z$2:$Z$961,"<>""",$Z$2:$Z$961)))) -> 0 | AB79: =IFERROR(IF(VLOOKUP(A80,'Name-Sort'!$D$2:$E$948,2,FALSE)="",A80,""),"") -> Charlie Blackmon | AC79: =IFERROR(INDEX($AB$1:$AB$961,SMALL(IF($AB$1:$AB$961<>"",ROW($AB$1:$AB$961)),ROW(AB79))),"") -> Charlie Blackmon
A80: Charlie Blackmon | B80: blackch02 | C80: OF | D80: CF,RF | E80: COL | F80: 33 | G80: 0.005419444444 | H80: 0.006944444444 | J80: 0.005555555556 | K80: 0.006666666667 | M80: 0.005833333333 | N80: 0.005069907407 | O80: =IFERROR(VLOOKUP(A80,'Import (Values)'!$B$2:$C$999,2,FALSE)/3120,"") ->  | P80: 48 | Q80: 38 | R80: 33 | S80: 28 | T80: 39 | V80: =IFERROR(INDEX('Guts-2'!$K$1:$K$30,MATCH(E80,'Guts-2'!$J$1:$J$30,0)),TRUE) -> TRUE | W80: =IF(V80=FALSE,"",IFERROR(CHOOSE('Guts-2'!$D$27,P80,Q80,R80,S80,T80,U80),"")) -> 39 | X80: 39 | Y80: =IFERROR(IF(INDEX('Auction-Rank'!$G$1:$O$961,MATCH($A80,'Auction-Rank'!$A$1:$A$961,0),'Guts-2'!$D$26)="","",INDEX('Auction-Rank'!$G$1:$O$961,MATCH($A80,'Auction-Rank'!$A$1:$A$961,0),'Guts-2'!$D$26)),"") -> 0.005069907407 | Z80: =IF(V80=FALSE,"",IFERROR(IF(INDEX('Auction-Rank'!$G$1:$O$961,MATCH($A80,'Auction-Rank'!$A$1:$A$961,0),'Guts-2'!$D$26)="","",INDEX('Auction-Rank'!$G$1:$O$961,MATCH($A80,'Auction-Rank'!$A$1:$A$961,0),'Guts-2'!$D$26)),"")) -> 0.005069907407 | AA80: =IF(Z80="","",IF(V80=FALSE,"",Z80*(SUMIF($Y$2:$Y$961,"<>""",$Y$2:$Y$961)/SUMIF($Z$2:$Z$961,"<>""",$Z$2:$Z$961)))) -> 0.005069907407 | AB80: =IFERROR(IF(VLOOKUP(A81,'Name-Sort'!$D$2:$E$948,2,FALSE)="",A81,""),"") -> Xander Bogaerts | AC80: =IFERROR(INDEX($AB$1:$AB$961,SMALL(IF($AB$1:$AB$961<>"",ROW($AB$1:$AB$961)),ROW(AB80))),"") -> Xander Bogaerts
A81: Xander Bogaerts | B81: bogaexa01 | C81: SS | E81: BOS | F81: 27 | G81: 0.005741666667 | H81: 0.0075 | J81: 0.006388888889 | K81: 0.006666666667 | M81: 0.008055555556 | N81: 0.005725462963 | O81: =IFERROR(VLOOKUP(A81,'Import (Values)'!$B$2:$C$999,2,FALSE)/3120,"") ->  | P81: 42 | Q81: 31 | R81: 39 | S81: 33 | T81: 28 | V81: =IFERROR(INDEX('Guts-2'!$K$1:$K$30,MATCH(E81,'Guts-2'!$J$1:$J$30,0)),TRUE) -> TRUE | W81: =IF(V81=FALSE,"",IFERROR(CHOOSE('Guts-2'!$D$27,P81,Q81,R81,S81,T81,U81),"")) -> 28 | X81: 28 | Y81: =IFERROR(IF(INDEX('Auction-Rank'!$G$1:$O$961,MATCH($A81,'Auction-Rank'!$A$1:$A$961,0),'Guts-2'!$D$26)="","",INDEX('Auction-Rank'!$G$1:$O$961,MATCH($A81,'Auction-Rank'!$A$1:$A$961,0),'Guts-2'!$D$26)),"") -> 0.005725462963 | Z81: =IF(V81=FALSE,"",IFERROR(IF(INDEX('Auction-Rank'!$G$1:$O$961,MATCH($A81,'Auction-Rank'!$A$1:$A$961,0),'Guts-2'!$D$26)="","",INDEX('Auction-Rank'!$G$1:$O$961,MATCH($A81,'Auction-Rank'!$A$1:$A$961,0),'Guts-2'!$D$26)),"")) -> 0.005725462963 | AA81: =IF(Z81="","",IF(V81=FALSE,"",Z81*(SUMIF($Y$2:$Y$961,"<>""",$Y$2:$Y$961)/SUMIF($Z$2:$Z$961,"<>""",$Z$2:$Z$961)))) -> 0.005725462963 | AB81: =IFERROR(IF(VLOOKUP(A82,'Name-Sort'!$D$2:$E$948,2,FALSE)="",A82,""),"") -> Alec Bohm | AC81: =IFERROR(INDEX($AB$1:$AB$961,SMALL(IF($AB$1:$AB$961<>"",ROW($AB$1:$AB$961)),ROW(AB81))),"") -> Alec Bohm
A82: Alec Bohm | B82: bohmal01 | C82: 3B | E82: PHI | F82: 23 | N82: 0 | O82: =IFERROR(VLOOKUP(A82,'Import (Values)'!$B$2:$C$999,2,FALSE)/3120,"") ->  | T82: 574 | V82: =IFERROR(INDEX('Guts-2'!$K$1:$K$30,MATCH(E82,'Guts-2'!$J$1:$J$30,0)),TRUE) -> TRUE | W82: =IF(V82=FALSE,"",IFERROR(CHOOSE('Guts-2'!$D$27,P82,Q82,R82,S82,T82,U82),"")) -> 574 | X82: 563 | Y82: =IFERROR(IF(INDEX('Auction-Rank'!$G$1:$O$961,MATCH($A82,'Auction-Rank'!$A$1:$A$961,0),'Guts-2'!$D$26)="","",INDEX('Auction-Rank'!$G$1:$O$961,MATCH($A82,'Auction-Rank'!$A$1:$A$961,0),'Guts-2'!$D$26)),"") -> 0 | Z82: =IF(V82=FALSE,"",IFERROR(IF(INDEX('Auction-Rank'!$G$1:$O$961,MATCH($A82,'Auction-Rank'!$A$1:$A$961,0),'Guts-2'!$D$26)="","",INDEX('Auction-Rank'!$G$1:$O$961,MATCH($A82,'Auction-Rank'!$A$1:$A$961,0),'Guts-2'!$D$26)),"")) -> 0 | AA82: =IF(Z82="","",IF(V82=FALSE,"",Z82*(SUMIF($Y$2:$Y$961,"<>""",$Y$2:$Y$961)/SUMIF($Z$2:$Z$961,"<>""",$Z$2:$Z$961)))) -> 0 | AB82: =IFERROR(IF(VLOOKUP(A83,'Name-Sort'!$D$2:$E$948,2,FALSE)="",A83,""),"") -> David Bote | AC82: =IFERROR(INDEX($AB$1:$AB$961,SMALL(IF($AB$1:$AB$961<>"",ROW($AB$1:$AB$961)),ROW(AB82))),"") -> David Bote
A83: David Bote | B83: boteda01 | C83: 3B | E83: CHC | F83: 26 | N83: 0 | O83: =IFERROR(VLOOKUP(A83,'Import (Values)'!$B$2:$C$999,2,FALSE)/3120,"") ->  | T83: 598 | V83: =IFERROR(INDEX('Guts-2'!$K$1:$K$30,MATCH(E83,'Guts-2'!$J$1:$J$30,0)),TRUE) -> TRUE | W83: =IF(V83=FALSE,"",IFERROR(CHOOSE('Guts-2'!$D$27,P83,Q83,R83,S83,T83,U83),"")) -> 598 | X83: 581 | Y83: =IFERROR(IF(INDEX('Auction-Rank'!$G$1:$O$961,MATCH($A83,'Auction-Rank'!$A$1:$A$961,0),'Guts-2'!$D$26)="","",INDEX('Auction-Rank'!$G$1:$O$961,MATCH($A83,'Auction-Rank'!$A$1:$A$961,0),'Guts-2'!$D$26)),"") -> 0 | Z83: =IF(V83=FALSE,"",IFERROR(IF(INDEX('Auction-Rank'!$G$1:$O$961,MATCH($A83,'Auction-Rank'!$A$1:$A$961,0),'Guts-2'!$D$26)="","",INDEX('Auction-Rank'!$G$1:$O$961,MATCH($A83,'Auction-Rank'!$A$1:$A$961,0),'Guts-2'!$D$26)),"")) -> 0 | AA83: =IF(Z83="","",IF(V83=FALSE,"",Z83*(SUMIF($Y$2:$Y$961,"<>""",$Y$2:$Y$961)/SUMIF($Z$2:$Z$961,"<>""",$Z$2:$Z$961)))) -> 0 | AB83: =IFERROR(IF(VLOOKUP(A84,'Name-Sort'!$D$2:$E$948,2,FALSE)="",A84,""),"") -> Matt Boyd | AC83: =IFERROR(INDEX($AB$1:$AB$961,SMALL(IF($AB$1:$AB$961<>"",ROW($AB$1:$AB$961)),ROW(AB83))),"") -> Matt Boyd
A84: Matt Boyd | B84: boydma01 | C84: SP | E84: DET | F84: 29 | G84: 0.002125 | H84: 0.002777777778 | J84: 0.0025 | K84: 0.001527777778 | M84: 0.001666666667 | N84: 0.001766203704 | O84: =IFERROR(VLOOKUP(A84,'Import (Values)'!$B$2:$C$999,2,FALSE)/3120,"") ->  | P84: 148 | Q84: 143 | R84: 174 | S84: 172 | T84: 134 | V84: =IFERROR(INDEX('Guts-2'!$K$1:$K$30,MATCH(E84,'Guts-2'!$J$1:$J$30,0)),TRUE) -> TRUE | W84: =IF(V84=FALSE,"",IFERROR(CHOOSE('Guts-2'!$D$27,P84,Q84,R84,S84,T84,U84),"")) -> 134 | X84: 134 | Y84: =IFERROR(IF(INDEX('Auction-Rank'!$G$1:$O$961,MATCH($A84,'Auction-Rank'!$A$1:$A$961,0),'Guts-2'!$D$26)="","",INDEX('Auction-Rank'!$G$1:$O$961,MATCH($A84,'Auction-Rank'!$A$1:$A$961,0),'Guts-2'!$D$26)),"") -> 0.001766203704 | Z84: =IF(V84=FALSE,"",IFERROR(IF(INDEX('Auction-Rank'!$G$1:$O$961,MATCH($A84,'Auction-Rank'!$A$1:$A$961,0),'Guts-2'!$D$26)="","",INDEX('Auction-Rank'!$G$1:$O$961,MATCH($A84,'Auction-Rank'!$A$1:$A$961,0),'Guts-2'!$D$26)),"")) -> 0.001766203704 | AA84: =IF(Z84="","",IF(V84=FALSE,"",Z84*(SUMIF($Y$2:$Y$961,"<>""",$Y$2:$Y$961)/SUMIF($Z$2:$Z$961,"<>""",$Z$2:$Z$961)))) -> 0.001766203704 | AB84: =IFERROR(IF(VLOOKUP(A85,'Name-Sort'!$D$2:$E$948,2,FALSE)="",A85,""),"") -> Archie Bradley | AC84: =IFERROR(INDEX($AB$1:$AB$961,SMALL(IF($AB$1:$AB$961<>"",ROW($AB$1:$AB$961)),ROW(AB84))),"") -> Archie Bradley
A85: Archie Bradley | B85: bradlar01 | C85: RP | E85: ARI | F85: 27 | G85: 0.001011111111 | H85: 0.0005555555556 | J85: 0.001944444444 | K85: 0.001583333333 | M85: 0.001388888889 | N85: 0.001080555556 | O85: =IFERROR(VLOOKUP(A85,'Import (Values)'!$B$2:$C$999,2,FALSE)/3120,"") ->  | P85: 201 | Q85: 183 | R85: 245 | S85: 133 | T85: 180 | V85: =IFERROR(INDEX('Guts-2'!$K$1:$K$30,MATCH(E85,'Guts-2'!$J$1:$J$30,0)),TRUE) -> TRUE | W85: =IF(V85=FALSE,"",IFERROR(CHOOSE('Guts-2'!$D$27,P85,Q85,R85,S85,T85,U85),"")) -> 180 | X85: 180 | Y85: =IFERROR(IF(INDEX('Auction-Rank'!$G$1:$O$961,MATCH($A85,'Auction-Rank'!$A$1:$A$961,0),'Guts-2'!$D$26)="","",INDEX('Auction-Rank'!$G$1:$O$961,MATCH($A85,'Auction-Rank'!$A$1:$A$961,0),'Guts-2'!$D$26)),"") -> 0.001080555556 | Z85: =IF(V85=FALSE,"",IFERROR(IF(INDEX('Auction-Rank'!$G$1:$O$961,MATCH($A85,'Auction-Rank'!$A$1:$A$961,0),'Guts-2'!$D$26)="","",INDEX('Auction-Rank'!$G$1:$O$961,MATCH($A85,'Auction-Rank'!$A$1:$A$961,0),'Guts-2'!$D$26)),"")) -> 0.001080555556 | AA85: =IF(Z85="","",IF(V85=FALSE,"",Z85*(SUMIF($Y$2:$Y$961,"<>""",$Y$2:$Y$961)/SUMIF($Z$2:$Z$961,"<>""",$Z$2:$Z$961)))) -> 0.001080555556 | AB85: =IFERROR(IF(VLOOKUP(A86,'Name-Sort'!$D$2:$E$948,2,FALSE)="",A86,""),"") -> Jackie Bradley Jr. | AC85: =IFERROR(INDEX($AB$1:$AB$961,SMALL(IF($AB$1:$AB$961<>"",ROW($AB$1:$AB$961)),ROW(AB85))),"") -> Jackie Bradley Jr.
A86: Jackie Bradley Jr. | B86: bradlja02 | C86: OF | D86: CF | E86: BOS | F86: 29 | J86: 0 | K86: 0.0003333333333 | N86: 0.0001111111111 | O86: =IFERROR(VLOOKUP(A86,'Import (Values)'!$B$2:$C$999,2,FALSE)/3120,"") ->  | R86: 254 | T86: 362 | V86: =IFERROR(INDEX('Guts-2'!$K$1:$K$30,MATCH(E86,'Guts-2'!$J$1:$J$30,0)),TRUE) -> TRUE | W86: =IF(V86=FALSE,"",IFERROR(CHOOSE('Guts-2'!$D$27,P86,Q86,R86,S86,T86,U86),"")) -> 362 | X86: 360 | Y86: =IFERROR(IF(INDEX('Auction-Rank'!$G$1:$O$961,MATCH($A86,'Auction-Rank'!$A$1:$A$961,0),'Guts-2'!$D$26)="","",INDEX('Auction-Rank'!$G$1:$O$961,MATCH($A86,'Auction-Rank'!$A$1:$A$961,0),'Guts-2'!$D$26)),"") -> 0.0001111111111 | Z86: =IF(V86=FALSE,"",IFERROR(IF(INDEX('Auction-Rank'!$G$1:$O$961,MATCH($A86,'Auction-Rank'!$A$1:$A$961,0),'Guts-2'!$D$26)="","",INDEX('Auction-Rank'!$G$1:$O$961,MATCH($A86,'Auction-Rank'!$A$1:$A$961,0),'Guts-2'!$D$26)),"")) -> 0.0001111111111 | AA86: =IF(Z86="","",IF(V86=FALSE,"",Z86*(SUMIF($Y$2:$Y$961,"<>""",$Y$2:$Y$961)/SUMIF($Z$2:$Z$961,"<>""",$Z$2:$Z$961)))) -> 0.0001111111111 | AB86: =IFERROR(IF(VLOOKUP(A87,'Name-Sort'!$D$2:$E$948,2,FALSE)="",A87,""),"") -> Michael Brantley | AC86: =IFERROR(INDEX($AB$1:$AB$961,SMALL(IF($AB$1:$AB$961<>"",ROW($AB$1:$AB$961)),ROW(AB86))),"") -> Michael Brantley
A87: Michael Brantley | B87: brantmi02 | C87: OF | D87: LF,RF | E87: HOU | F87: 32 | G87: 0.003433333333 | H87: 0.003888888889 | J87: 0.003333333333 | K87: 0.002361111111 | M87: 0.003055555556 | N87: 0.002678703704 | O87: =IFERROR(VLOOKUP(A87,'Import (Values)'!$B$2:$C$999,2,FALSE)/3120,"") ->  | P87: 98 | Q87: 104 | R87: 73 | S87: 104 | T87: 89 | V87: =IFERROR(INDEX('Guts-2'!$K$1:$K$30,MATCH(E87,'Guts-2'!$J$1:$J$30,0)),TRUE) -> TRUE | W87: =IF(V87=FALSE,"",IFERROR(CHOOSE('Guts-2'!$D$27,P87,Q87,R87,S87,T87,U87),"")) -> 89 | X87: 89 | Y87: =IFERROR(IF(INDEX('Auction-Rank'!$G$1:$O$961,MATCH($A87,'Auction-Rank'!$A$1:$A$961,0),'Guts-2'!$D$26)="","",INDEX('Auction-Rank'!$G$1:$O$961,MATCH($A87,'Auction-Rank'!$A$1:$A$961,0),'Guts-2'!$D$26)),"") -> 0.002678703704 | Z87: =IF(V87=FALSE,"",IFERROR(IF(INDEX('Auction-Rank'!$G$1:$O$961,MATCH($A87,'Auction-Rank'!$A$1:$A$961,0),'Guts-2'!$D$26)="","",INDEX('Auction-Rank'!$G$1:$O$961,MATCH($A87,'Auction-Rank'!$A$1:$A$961,0),'Guts-2'!$D$26)),"")) -> 0.002678703704 | AA87: =IF(Z87="","",IF(V87=FALSE,"",Z87*(SUMIF($Y$2:$Y$961,"<>""",$Y$2:$Y$961)/SUMIF($Z$2:$Z$961,"<>""",$Z$2:$Z$961)))) -> 0.002678703704 | AB87: =IFERROR(IF(VLOOKUP(A88,'Name-Sort'!$D$2:$E$948,2,FALSE)="",A88,""),"") -> Steven Brault | AC87: =IFERROR(INDEX($AB$1:$AB$961,SMALL(IF($AB$1:$AB$961<>"",ROW($AB$1:$AB$961)),ROW(AB87))),"") -> Steven Brault
A88: Steven Brault | B88: braulst01 | C88: RP | E88: PIT | F88: 27 | N88: 0 | O88: =IFERROR(VLOOKUP(A88,'Import (Values)'!$B$2:$C$999,2,FALSE)/3120,"") ->  | T88: 683 | V88: =IFERROR(INDEX('Guts-2'!$K$1:$K$30,MATCH(E88,'Guts-2'!$J$1:$J$30,0)),TRUE) -> TRUE | W88: =IF(V88=FALSE,"",IFERROR(CHOOSE('Guts-2'!$D$27,P88,Q88,R88,S88,T88,U88),"")) -> 683 | X88: 636 | Y88: =IFERROR(IF(INDEX('Auction-Rank'!$G$1:$O$961,MATCH($A88,'Auction-Rank'!$A$1:$A$961,0),'Guts-2'!$D$26)="","",INDEX('Auction-Rank'!$G$1:$O$961,MATCH($A88,'Auction-Rank'!$A$1:$A$961,0),'Guts-2'!$D$26)),"") -> 0 | Z88: =IF(V88=FALSE,"",IFERROR(IF(INDEX('Auction-Rank'!$G$1:$O$961,MATCH($A88,'Auction-Rank'!$A$1:$A$961,0),'Guts-2'!$D$26)="","",INDEX('Auction-Rank'!$G$1:$O$961,MATCH($A88,'Auction-Rank'!$A$1:$A$961,0),'Guts-2'!$D$26)),"")) -> 0 | AA88: =IF(Z88="","",IF(V88=FALSE,"",Z88*(SUMIF($Y$2:$Y$961,"<>""",$Y$2:$Y$961)/SUMIF($Z$2:$Z$961,"<>""",$Z$2:$Z$961)))) -> 0 | AB88: =IFERROR(IF(VLOOKUP(A89,'Name-Sort'!$D$2:$E$948,2,FALSE)="",A89,""),"") -> Ryan Braun | AC88: =IFERROR(INDEX($AB$1:$AB$961,SMALL(IF($AB$1:$AB$961<>"",ROW($AB$1:$AB$961)),ROW(AB88))),"") -> Ryan Braun
A89: Ryan Braun | B89: braunry02 | C89: OF | D89: LF | E89: MIL | F89: 36 | G89: 0.002488888889 | H89: 0.0005555555556 | J89: 0.001111111111 | K89: 0.0003888888889 | M89: 0.001944444444 | N89: 0.001081481481 | O89: =IFERROR(VLOOKUP(A89,'Import (Values)'!$B$2:$C$999,2,FALSE)/3120,"") ->  | P89: 132 | Q89: 220 | R89: 176 | S89: 211 | T89: 178 | V89: =IFERROR(INDEX('Guts-2'!$K$1:$K$30,MATCH(E89,'Guts-2'!$J$1:$J$30,0)),TRUE) -> TRUE | W89: =IF(V89=FALSE,"",IFERROR(CHOOSE('Guts-2'!$D$27,P89,Q89,R89,S89,T89,U89),"")) -> 178 | X89: 178 | Y89: =IFERROR(IF(INDEX('Auction-Rank'!$G$1:$O$961,MATCH($A89,'Auction-Rank'!$A$1:$A$961,0),'Guts-2'!$D$26)="","",INDEX('Auction-Rank'!$G$1:$O$961,MATCH($A89,'Auction-Rank'!$A$1:$A$961,0),'Guts-2'!$D$26)),"") -> 0.001081481481 | Z89: =IF(V89=FALSE,"",IFERROR(IF(INDEX('Auction-Rank'!$G$1:$O$961,MATCH($A89,'Auction-Rank'!$A$1:$A$961,0),'Guts-2'!$D$26)="","",INDEX('Auction-Rank'!$G$1:$O$961,MATCH($A89,'Auction-Rank'!$A$1:$A$961,0),'Guts-2'!$D$26)),"")) -> 0.001081481481 | AA89: =IF(Z89="","",IF(V89=FALSE,"",Z89*(SUMIF($Y$2:$Y$961,"<>""",$Y$2:$Y$961)/SUMIF($Z$2:$Z$961,"<>""",$Z$2:$Z$961)))) -> 0.001081481481 | AB89: =IFERROR(IF(VLOOKUP(A90,'Name-Sort'!$D$2:$E$948,2,FALSE)="",A90,""),"") -> John Brebbia | AC89: =IFERROR(INDEX($AB$1:$AB$961,SMALL(IF($AB$1:$AB$961<>"",ROW($AB$1:$AB$961)),ROW(AB89))),"") -> John Brebbia
A90: John Brebbia | B90: brebbjo01 | C90: RP | E90: STL | F90: 29 | J90: 0 | N90: 0 | O90: =IFERROR(VLOOKUP(A90,'Import (Values)'!$B$2:$C$999,2,FALSE)/3120,"") ->  | V90: =IFERROR(INDEX('Guts-2'!$K$1:$K$30,MATCH(E90,'Guts-2'!$J$1:$J$30,0)),TRUE) -> TRUE | W90: =IF(V90=FALSE,"",IFERROR(CHOOSE('Guts-2'!$D$27,P90,Q90,R90,S90,T90,U90),"")) ->  | Y90: =IFERROR(IF(INDEX('Auction-Rank'!$G$1:$O$961,MATCH($A90,'Auction-Rank'!$A$1:$A$961,0),'Guts-2'!$D$26)="","",INDEX('Auction-Rank'!$G$1:$O$961,MATCH($A90,'Auction-Rank'!$A$1:$A$961,0),'Guts-2'!$D$26)),"") -> 0 | Z90: =IF(V90=FALSE,"",IFERROR(IF(INDEX('Auction-Rank'!$G$1:$O$961,MATCH($A90,'Auction-Rank'!$A$1:$A$961,0),'Guts-2'!$D$26)="","",INDEX('Auction-Rank'!$G$1:$O$961,MATCH($A90,'Auction-Rank'!$A$1:$A$961,0),'Guts-2'!$D$26)),"")) -> 0 | AA90: =IF(Z90="","",IF(V90=FALSE,"",Z90*(SUMIF($Y$2:$Y$961,"<>""",$Y$2:$Y$961)/SUMIF($Z$2:$Z$961,"<>""",$Z$2:$Z$961)))) -> 0 | AB90: =IFERROR(IF(VLOOKUP(A91,'Name-Sort'!$D$2:$E$948,2,FALSE)="",A91,""),"") -> Alex Bregman | AC90: =IFERROR(INDEX($AB$1:$AB$961,SMALL(IF($AB$1:$AB$961<>"",ROW($AB$1:$AB$961)),ROW(AB90))),"") -> Alex Bregman
A91: Alex Bregman | B91: bregmal01 | C91: 3B | E91: HOU | F91: 25 | G91: 0.007716666667 | H91: 0.01027777778 | J91: 0.008611111111 | K91: 0.009916666667 | M91: 0.01083333333 | N91: 0.007892592593 | O91: =IFERROR(VLOOKUP(A91,'Import (Values)'!$B$2:$C$999,2,FALSE)/3120,"") -> 0.01314102564 | P91: 19 | Q91: 18 | R91: 17 | S91: 10 | T91: 15 | V91: =IFERROR(INDEX('Guts-2'!$K$1:$K$30,MATCH(E91,'Guts-2'!$J$1:$J$30,0)),TRUE) -> TRUE | W91: =IF(V91=FALSE,"",IFERROR(CHOOSE('Guts-2'!$D$27,P91,Q91,R91,S91,T91,U91),"")) -> 15 | X91: 15 | Y91: =IFERROR(IF(INDEX('Auction-Rank'!$G$1:$O$961,MATCH($A91,'Auction-Rank'!$A$1:$A$961,0),'Guts-2'!$D$26)="","",INDEX('Auction-Rank'!$G$1:$O$961,MATCH($A91,'Auction-Rank'!$A$1:$A$961,0),'Guts-2'!$D$26)),"") -> 0.007892592593 | Z91: =IF(V91=FALSE,"",IFERROR(IF(INDEX('Auction-Rank'!$G$1:$O$961,MATCH($A91,'Auction-Rank'!$A$1:$A$961,0),'Guts-2'!$D$26)="","",INDEX('Auction-Rank'!$G$1:$O$961,MATCH($A91,'Auction-Rank'!$A$1:$A$961,0),'Guts-2'!$D$26)),"")) -> 0.007892592593 | AA91: =IF(Z91="","",IF(V91=FALSE,"",Z91*(SUMIF($Y$2:$Y$961,"<>""",$Y$2:$Y$961)/SUMIF($Z$2:$Z$961,"<>""",$Z$2:$Z$961)))) -> 0.007892592593 | AB91: =IFERROR(IF(VLOOKUP(A92,'Name-Sort'!$D$2:$E$948,2,FALSE)="",A92,""),"") -> Lewis Brinson | AC91: =IFERROR(INDEX($AB$1:$AB$961,SMALL(IF($AB$1:$AB$961<>"",ROW($AB$1:$AB$961)),ROW(AB91))),"") -> Lewis Brinson
A92: Lewis Brinson | B92: brinsle01 | C92: OF | D92: CF,RF | E92: MIA | F92: 25 | N92: 0 | O92: =IFERROR(VLOOKUP(A92,'Import (Values)'!$B$2:$C$999,2,FALSE)/3120,"") ->  | T92: 555 | V92: =IFERROR(INDEX('Guts-2'!$K$1:$K$30,MATCH(E92,'Guts-2'!$J$1:$J$30,0)),TRUE) -> TRUE | W92: =IF(V92=FALSE,"",IFERROR(CHOOSE('Guts-2'!$D$27,P92,Q92,R92,S92,T92,U92),"")) -> 555 | X92: 547 | Y92: =IFERROR(IF(INDEX('Auction-Rank'!$G$1:$O$961,MATCH($A92,'Auction-Rank'!$A$1:$A$961,0),'Guts-2'!$D$26)="","",INDEX('Auction-Rank'!$G$1:$O$961,MATCH($A92,'Auction-Rank'!$A$1:$A$961,0),'Guts-2'!$D$26)),"") -> 0 | Z92: =IF(V92=FALSE,"",IFERROR(IF(INDEX('Auction-Rank'!$G$1:$O$961,MATCH($A92,'Auction-Rank'!$A$1:$A$961,0),'Guts-2'!$D$26)="","",INDEX('Auction-Rank'!$G$1:$O$961,MATCH($A92,'Auction-Rank'!$A$1:$A$961,0),'Guts-2'!$D$26)),"")) -> 0 | AA92: =IF(Z92="","",IF(V92=FALSE,"",Z92*(SUMIF($Y$2:$Y$961,"<>""",$Y$2:$Y$961)/SUMIF($Z$2:$Z$961,"<>""",$Z$2:$Z$961)))) -> 0 | AB92: =IFERROR(IF(VLOOKUP(A93,'Name-Sort'!$D$2:$E$948,2,FALSE)="",A93,""),"") -> Zach Britton | AC92: =IFERROR(INDEX($AB$1:$AB$961,SMALL(IF($AB$1:$AB$961<>"",ROW($AB$1:$AB$961)),ROW(AB92))),"") -> Zach Britton
A93: Zach Britton | B93: brittza01 | C93: RP | E93: NYY | F93: 32 | H93: 0.0002777777778 | J93: 0 | K93: 0.0005833333333 | N93: 0.0002152777778 | O93: =IFERROR(VLOOKUP(A93,'Import (Values)'!$B$2:$C$999,2,FALSE)/3120,"") ->  | T93: 347 | V93: =IFERROR(INDEX('Guts-2'!$K$1:$K$30,MATCH(E93,'Guts-2'!$J$1:$J$30,0)),TRUE) -> TRUE | W93: =IF(V93=FALSE,"",IFERROR(CHOOSE('Guts-2'!$D$27,P93,Q93,R93,S93,T93,U93),"")) -> 347 | X93: 345 | Y93: =IFERROR(IF(INDEX('Auction-Rank'!$G$1:$O$961,MATCH($A93,'Auction-Rank'!$A$1:$A$961,0),'Guts-2'!$D$26)="","",INDEX('Auction-Rank'!$G$1:$O$961,MATCH($A93,'Auction-Rank'!$A$1:$A$961,0),'Guts-2'!$D$26)),"") -> 0.0002152777778 | Z93: =IF(V93=FALSE,"",IFERROR(IF(INDEX('Auction-Rank'!$G$1:$O$961,MATCH($A93,'Auction-Rank'!$A$1:$A$961,0),'Guts-2'!$D$26)="","",INDEX('Auction-Rank'!$G$1:$O$961,MATCH($A93,'Auction-Rank'!$A$1:$A$961,0),'Guts-2'!$D$26)),"")) -> 0.0002152777778 | AA93: =IF(Z93="","",IF(V93=FALSE,"",Z93*(SUMIF($Y$2:$Y$961,"<>""",$Y$2:$Y$961)/SUMIF($Z$2:$Z$961,"<>""",$Z$2:$Z$961)))) -> 0.0002152777778 | AB93: =IFERROR(IF(VLOOKUP(A94,'Name-Sort'!$D$2:$E$948,2,FALSE)="",A94,""),"") -> Michael Brosseau | AC93: =IFERROR(INDEX($AB$1:$AB$961,SMALL(IF($AB$1:$AB$961<>"",ROW($AB$1:$AB$961)),ROW(AB93))),"") -> Michael Brosseau
A94: Michael Brosseau | B94: brossmi01 | C94: 3B | E94: TB | F94: 26 | N94: 0 | O94: =IFERROR(VLOOKUP(A94,'Import (Values)'!$B$2:$C$999,2,FALSE)/3120,"") ->  | V94: =IFERROR(INDEX('Guts-2'!$K$1:$K$30,MATCH(E94,'Guts-2'!$J$1:$J$30,0)),TRUE) -> TRUE | W94: =IF(V94=FALSE,"",IFERROR(CHOOSE('Guts-2'!$D$27,P94,Q94,R94,S94,T94,U94),"")) ->  | Y94: =IFERROR(IF(INDEX('Auction-Rank'!$G$1:$O$961,MATCH($A94,'Auction-Rank'!$A$1:$A$961,0),'Guts-2'!$D$26)="","",INDEX('Auction-Rank'!$G$1:$O$961,MATCH($A94,'Auction-Rank'!$A$1:$A$961,0),'Guts-2'!$D$26)),"") -> 0 | Z94: =IF(V94=FALSE,"",IFERROR(IF(INDEX('Auction-Rank'!$G$1:$O$961,MATCH($A94,'Auction-Rank'!$A$1:$A$961,0),'Guts-2'!$D$26)="","",INDEX('Auction-Rank'!$G$1:$O$961,MATCH($A94,'Auction-Rank'!$A$1:$A$961,0),'Guts-2'!$D$26)),"")) -> 0 | AA94: =IF(Z94="","",IF(V94=FALSE,"",Z94*(SUMIF($Y$2:$Y$961,"<>""",$Y$2:$Y$961)/SUMIF($Z$2:$Z$961,"<>""",$Z$2:$Z$961)))) -> 0 | AB94: =IFERROR(IF(VLOOKUP(A95,'Name-Sort'!$D$2:$E$948,2,FALSE)="",A95,""),"") -> Seth Brown | AC94: =IFERROR(INDEX($AB$1:$AB$961,SMALL(IF($AB$1:$AB$961<>"",ROW($AB$1:$AB$961)),ROW(AB94))),"") -> Seth Brown
A95: Seth Brown | B95: brownse01 | C95: OF | D95: LF,RF | E95: OAK | F95: 27 | N95: 0 | O95: =IFERROR(VLOOKUP(A95,'Import (Values)'!$B$2:$C$999,2,FALSE)/3120,"") ->  | T95: 661 | V95: =IFERROR(INDEX('Guts-2'!$K$1:$K$30,MATCH(E95,'Guts-2'!$J$1:$J$30,0)),TRUE) -> TRUE | W95: =IF(V95=FALSE,"",IFERROR(CHOOSE('Guts-2'!$D$27,P95,Q95,R95,S95,T95,U95),"")) -> 661 | X95: 620 | Y95: =IFERROR(IF(INDEX('Auction-Rank'!$G$1:$O$961,MATCH($A95,'Auction-Rank'!$A$1:$A$961,0),'Guts-2'!$D$26)="","",INDEX('Auction-Rank'!$G$1:$O$961,MATCH($A95,'Auction-Rank'!$A$1:$A$961,0),'Guts-2'!$D$26)),"") -> 0 | Z95: =IF(V95=FALSE,"",IFERROR(IF(INDEX('Auction-Rank'!$G$1:$O$961,MATCH($A95,'Auction-Rank'!$A$1:$A$961,0),'Guts-2'!$D$26)="","",INDEX('Auction-Rank'!$G$1:$O$961,MATCH($A95,'Auction-Rank'!$A$1:$A$961,0),'Guts-2'!$D$26)),"")) -> 0 | AA95: =IF(Z95="","",IF(V95=FALSE,"",Z95*(SUMIF($Y$2:$Y$961,"<>""",$Y$2:$Y$961)/SUMIF($Z$2:$Z$961,"<>""",$Z$2:$Z$961)))) -> 0 | AB95: =IFERROR(IF(VLOOKUP(A96,'Name-Sort'!$D$2:$E$948,2,FALSE)="",A96,""),"") -> Jay Bruce | AC95: =IFERROR(INDEX($AB$1:$AB$961,SMALL(IF($AB$1:$AB$961<>"",ROW($AB$1:$AB$961)),ROW(AB95))),"") -> Jay Bruce
A96: Jay Bruce | B96: bruceja01 | C96: OF | D96: LF,RF | E96: PHI | F96: 32 | J96: 0 | N96: 0 | O96: =IFERROR(VLOOKUP(A96,'Import (Values)'!$B$2:$C$999,2,FALSE)/3120,"") ->  | T96: 395 | V96: =IFERROR(INDEX('Guts-2'!$K$1:$K$30,MATCH(E96,'Guts-2'!$J$1:$J$30,0)),TRUE) -> TRUE | W96: =IF(V96=FALSE,"",IFERROR(CHOOSE('Guts-2'!$D$27,P96,Q96,R96,S96,T96,U96),"")) -> 395 | X96: 392 | Y96: =IFERROR(IF(INDEX('Auction-Rank'!$G$1:$O$961,MATCH($A96,'Auction-Rank'!$A$1:$A$961,0),'Guts-2'!$D$26)="","",INDEX('Auction-Rank'!$G$1:$O$961,MATCH($A96,'Auction-Rank'!$A$1:$A$961,0),'Guts-2'!$D$26)),"") -> 0 | Z96: =IF(V96=FALSE,"",IFERROR(IF(INDEX('Auction-Rank'!$G$1:$O$961,MATCH($A96,'Auction-Rank'!$A$1:$A$961,0),'Guts-2'!$D$26)="","",INDEX('Auction-Rank'!$G$1:$O$961,MATCH($A96,'Auction-Rank'!$A$1:$A$961,0),'Guts-2'!$D$26)),"")) -> 0 | AA96: =IF(Z96="","",IF(V96=FALSE,"",Z96*(SUMIF($Y$2:$Y$961,"<>""",$Y$2:$Y$961)/SUMIF($Z$2:$Z$961,"<>""",$Z$2:$Z$961)))) -> 0 | AB96: =IFERROR(IF(VLOOKUP(A97,'Name-Sort'!$D$2:$E$948,2,FALSE)="",A97,""),"") -> Vidal Brujan | AC96: =IFERROR(INDEX($AB$1:$AB$961,SMALL(IF($AB$1:$AB$961<>"",ROW($AB$1:$AB$961)),ROW(AB96))),"") -> Vidal Brujan
A97: Vidal Brujan | B97: brujavi01 | C97: 2B | E97: TB | F97: 22 | N97: 0 | O97: =IFERROR(VLOOKUP(A97,'Import (Values)'!$B$2:$C$999,2,FALSE)/3120,"") ->  | T97: 857 | V97: =IFERROR(INDEX('Guts-2'!$K$1:$K$30,MATCH(E97,'Guts-2'!$J$1:$J$30,0)),TRUE) -> TRUE | W97: =IF(V97=FALSE,"",IFERROR(CHOOSE('Guts-2'!$D$27,P97,Q97,R97,S97,T97,U97),"")) -> 857 | X97: 711 | Y97: =IFERROR(IF(INDEX('Auction-Rank'!$G$1:$O$961,MATCH($A97,'Auction-Rank'!$A$1:$A$961,0),'Guts-2'!$D$26)="","",INDEX('Auction-Rank'!$G$1:$O$961,MATCH($A97,'Auction-Rank'!$A$1:$A$961,0),'Guts-2'!$D$26)),"") -> 0 | Z97: =IF(V97=FALSE,"",IFERROR(IF(INDEX('Auction-Rank'!$G$1:$O$961,MATCH($A97,'Auction-Rank'!$A$1:$A$961,0),'Guts-2'!$D$26)="","",INDEX('Auction-Rank'!$G$1:$O$961,MATCH($A97,'Auction-Rank'!$A$1:$A$961,0),'Guts-2'!$D$26)),"")) -> 0 | AA97: =IF(Z97="","",IF(V97=FALSE,"",Z97*(SUMIF($Y$2:$Y$961,"<>""",$Y$2:$Y$961)/SUMIF($Z$2:$Z$961,"<>""",$Z$2:$Z$961)))) -> 0 | AB97: =IFERROR(IF(VLOOKUP(A98,'Name-Sort'!$D$2:$E$948,2,FALSE)="",A98,""),"") -> Kris Bryant | AC97: =IFERROR(INDEX($AB$1:$AB$961,SMALL(IF($AB$1:$AB$961<>"",ROW($AB$1:$AB$961)),ROW(AB97))),"") -> Kris Bryant
A98: Kris Bryant | B98: bryankr01 | C98: 3B | D98: LF,RF | E98: CHC | F98: 28 | G98: 0.004138888889 | H98: 0.006111111111 | J98: 0.005555555556 | K98: 0.006277777778 | M98: 0.005833333333 | N98: 0.004652777778 | O98: =IFERROR(VLOOKUP(A98,'Import (Values)'!$B$2:$C$999,2,FALSE)/3120,"") -> 0.009615384615 | P98: 69 | Q98: 41 | R98: 81 | S98: 48 | T98: 44 | V98: =IFERROR(INDEX('Guts-2'!$K$1:$K$30,MATCH(E98,'Guts-2'!$J$1:$J$30,0)),TRUE) -> TRUE | W98: =IF(V98=FALSE,"",IFERROR(CHOOSE('Guts-2'!$D$27,P98,Q98,R98,S98,T98,U98),"")) -> 44 | X98: 44 | Y98: =IFERROR(IF(INDEX('Auction-Rank'!$G$1:$O$961,MATCH($A98,'Auction-Rank'!$A$1:$A$961,0),'Guts-2'!$D$26)="","",INDEX('Auction-Rank'!$G$1:$O$961,MATCH($A98,'Auction-Rank'!$A$1:$A$961,0),'Guts-2'!$D$26)),"") -> 0.004652777778 | Z98: =IF(V98=FALSE,"",IFERROR(IF(INDEX('Auction-Rank'!$G$1:$O$961,MATCH($A98,'Auction-Rank'!$A$1:$A$961,0),'Guts-2'!$D$26)="","",INDEX('Auction-Rank'!$G$1:$O$961,MATCH($A98,'Auction-Rank'!$A$1:$A$961,0),'Guts-2'!$D$26)),"")) -> 0.004652777778 | AA98: =IF(Z98="","",IF(V98=FALSE,"",Z98*(SUMIF($Y$2:$Y$961,"<>""",$Y$2:$Y$961)/SUMIF($Z$2:$Z$961,"<>""",$Z$2:$Z$961)))) -> 0.004652777778 | AB98: =IFERROR(IF(VLOOKUP(A99,'Name-Sort'!$D$2:$E$948,2,FALSE)="",A99,""),"") -> Walker Buehler | AC98: =IFERROR(INDEX($AB$1:$AB$961,SMALL(IF($AB$1:$AB$961<>"",ROW($AB$1:$AB$961)),ROW(AB98))),"") -> Walker Buehler
A99: Walker Buehler | B99: buehlwa01 | C99: SP | E99: LAD | F99: 25 | G99: 0.005872222222 | H99: 0.008055555556 | J99: 0.008888888889 | K99: 0.009777777778 | M99: 0.006666666667 | N99: 0.006543518519 | O99: =IFERROR(VLOOKUP(A99,'Import (Values)'!$B$2:$C$999,2,FALSE)/3120,"") -> 0.009294871795 | P99: 38 | Q99: 17 | R99: 19 | S99: 26 | T99: 23 | V99: =IFERROR(INDEX('Guts-2'!$K$1:$K$30,MATCH(E99,'Guts-2'!$J$1:$J$30,0)),TRUE) -> TRUE | W99: =IF(V99=FALSE,"",IFERROR(CHOOSE('Guts-2'!$D$27,P99,Q99,R99,S99,T99,U99),"")) -> 23 | X99: 23 | Y99: =IFERROR(IF(INDEX('Auction-Rank'!$G$1:$O$961,MATCH($A99,'Auction-Rank'!$A$1:$A$961,0),'Guts-2'!$D$26)="","",INDEX('Auction-Rank'!$G$1:$O$961,MATCH($A99,'Auction-Rank'!$A$1:$A$961,0),'Guts-2'!$D$26)),"") -> 0.006543518519 | Z99: =IF(V99=FALSE,"",IFERROR(IF(INDEX('Auction-Rank'!$G$1:$O$961,MATCH($A99,'Auction-Rank'!$A$1:$A$961,0),'Guts-2'!$D$26)="","",INDEX('Auction-Rank'!$G$1:$O$961,MATCH($A99,'Auction-Rank'!$A$1:$A$961,0),'Guts-2'!$D$26)),"")) -> 0.006543518519 | AA99: =IF(Z99="","",IF(V99=FALSE,"",Z99*(SUMIF($Y$2:$Y$961,"<>""",$Y$2:$Y$961)/SUMIF($Z$2:$Z$961,"<>""",$Z$2:$Z$961)))) -> 0.006543518519 | AB99: =IFERROR(IF(VLOOKUP(A100,'Name-Sort'!$D$2:$E$948,2,FALSE)="",A100,""),"") -> Madison Bumgarner | AC99: =IFERROR(INDEX($AB$1:$AB$961,SMALL(IF($AB$1:$AB$961<>"",ROW($AB$1:$AB$961)),ROW(AB99))),"") -> Madison Bumgarner
A100: Madison Bumgarner | B100: bumgama01 | C100: SP | E100: ARI | F100: 30 | G100: 0.001705555556 | H100: 0.0025 | J100: 0.0025 | K100: 0.002166666667 | M100: 0.0008333333333 | N100: 0.001617592593 | O100: =IFERROR(VLOOKUP(A100,'Import (Values)'!$B$2:$C$999,2,FALSE)/3120,"") ->  | P100: 169 | Q100: 158 | R100: 79 | S100: 110 | T100: 135 | V100: =IFERROR(INDEX('Guts-2'!$K$1:$K$30,MATCH(E100,'Guts-2'!$J$1:$J$30,0)),TRUE) -> TRUE | W100: =IF(V100=FALSE,"",IFERROR(CHOOSE('Guts-2'!$D$27,P100,Q100,R100,S100,T100,U100),"")) -> 135 | X100: 135 | Y100: =IFERROR(IF(INDEX('Auction-Rank'!$G$1:$O$961,MATCH($A100,'Auction-Rank'!$A$1:$A$961,0),'Guts-2'!$D$26)="","",INDEX('Auction-Rank'!$G$1:$O$961,MATCH($A100,'Auction-Rank'!$A$1:$A$961,0),'Guts-2'!$D$26)),"") -> 0.001617592593 | Z100: =IF(V100=FALSE,"",IFERROR(IF(INDEX('Auction-Rank'!$G$1:$O$961,MATCH($A100,'Auction-Rank'!$A$1:$A$961,0),'Guts-2'!$D$26)="","",INDEX('Auction-Rank'!$G$1:$O$961,MATCH($A100,'Auction-Rank'!$A$1:$A$961,0),'Guts-2'!$D$26)),"")) -> 0.001617592593 | AA100: =IF(Z100="","",IF(V100=FALSE,"",Z100*(SUMIF($Y$2:$Y$961,"<>""",$Y$2:$Y$961)/SUMIF($Z$2:$Z$961,"<>""",$Z$2:$Z$961)))) -> 0.001617592593 | AB100: =IFERROR(IF(VLOOKUP(A101,'Name-Sort'!$D$2:$E$948,2,FALSE)="",A101,""),"") -> Aaron Bummer | AC100: =IFERROR(INDEX($AB$1:$AB$961,SMALL(IF($AB$1:$AB$961<>"",ROW($AB$1:$AB$961)),ROW(AB100))),"") -> Aaron Bummer
A101: Aaron Bummer | B101: bummeaa01 | C101: RP | E101: CHW | F101: 26 | J101: 0 | K101: 0.0003333333333 | N101: 0.0001111111111 | O101: =IFERROR(VLOOKUP(A101,'Import (Values)'!$B$2:$C$999,2,FALSE)/3120,"") ->  | T101: 427 | V101: =IFERROR(INDEX('Guts-2'!$K$1:$K$30,MATCH(E101,'Guts-2'!$J$1:$J$30,0)),TRUE) -> TRUE | W101: =IF(V101=FALSE,"",IFERROR(CHOOSE('Guts-2'!$D$27,P101,Q101,R101,S101,T101,U101),"")) -> 427 | X101: 423 | Y101: =IFERROR(IF(INDEX('Auction-Rank'!$G$1:$O$961,MATCH($A101,'Auction-Rank'!$A$1:$A$961,0),'Guts-2'!$D$26)="","",INDEX('Auction-Rank'!$G$1:$O$961,MATCH($A101,'Auction-Rank'!$A$1:$A$961,0),'Guts-2'!$D$26)),"") -> 0.0001111111111 | Z101: =IF(V101=FALSE,"",IFERROR(IF(INDEX('Auction-Rank'!$G$1:$O$961,MATCH($A101,'Auction-Rank'!$A$1:$A$961,0),'Guts-2'!$D$26)="","",INDEX('Auction-Rank'!$G$1:$O$961,MATCH($A101,'Auction-Rank'!$A$1:$A$961,0),'Guts-2'!$D$26)),"")) -> 0.0001111111111 | AA101: =IF(Z101="","",IF(V101=FALSE,"",Z101*(SUMIF($Y$2:$Y$961,"<>""",$Y$2:$Y$961)/SUMIF($Z$2:$Z$961,"<>""",$Z$2:$Z$961)))) -> 0.0001111111111 | AB101: =IFERROR(IF(VLOOKUP(A102,'Name-Sort'!$D$2:$E$948,2,FALSE)="",A102,""),"") -> Dylan Bundy | AC101: =IFERROR(INDEX($AB$1:$AB$961,SMALL(IF($AB$1:$AB$961<>"",ROW($AB$1:$AB$961)),ROW(AB101))),"") -> Dylan Bundy
A102: Dylan Bundy | B102: bundydy01 | C102: SP | E102: LAA | F102: 27 | G102: 0.0005888888889 | H102: 0.0005555555556 | J102: 0.001111111111 | K102: 0.0006666666667 | M102: 0.0008333333333 | N102: 0.0006259259259 | O102: =IFERROR(VLOOKUP(A102,'Import (Values)'!$B$2:$C$999,2,FALSE)/3120,"") ->  | P102: 236 | Q102: 266 | R102: 198 | S102: 274 | T102: 246 | V102: =IFERROR(INDEX('Guts-2'!$K$1:$K$30,MATCH(E102,'Guts-2'!$J$1:$J$30,0)),TRUE) -> TRUE | W102: =IF(V102=FALSE,"",IFERROR(CHOOSE('Guts-2'!$D$27,P102,Q102,R102,S102,T102,U102),"")) -> 246 | X102: 245 | Y102: =IFERROR(IF(INDEX('Auction-Rank'!$G$1:$O$961,MATCH($A102,'Auction-Rank'!$A$1:$A$961,0),'Guts-2'!$D$26)="","",INDEX('Auction-Rank'!$G$1:$O$961,MATCH($A102,'Auction-Rank'!$A$1:$A$961,0),'Guts-2'!$D$26)),"") -> 0.0006259259259 | Z102: =IF(V102=FALSE,"",IFERROR(IF(INDEX('Auction-Rank'!$G$1:$O$961,MATCH($A102,'Auction-Rank'!$A$1:$A$961,0),'Guts-2'!$D$26)="","",INDEX('Auction-Rank'!$G$1:$O$961,MATCH($A102,'Auction-Rank'!$A$1:$A$961,0),'Guts-2'!$D$26)),"")) -> 0.0006259259259 | AA102: =IF(Z102="","",IF(V102=FALSE,"",Z102*(SUMIF($Y$2:$Y$961,"<>""",$Y$2:$Y$961)/SUMIF($Z$2:$Z$961,"<>""",$Z$2:$Z$961)))) -> 0.0006259259259 | AB102: =IFERROR(IF(VLOOKUP(A103,'Name-Sort'!$D$2:$E$948,2,FALSE)="",A103,""),"") -> Corbin Burnes | AC102: =IFERROR(INDEX($AB$1:$AB$961,SMALL(IF($AB$1:$AB$961<>"",ROW($AB$1:$AB$961)),ROW(AB102))),"") -> Corbin Burnes
A103: Corbin Burnes | B103: burneco01 | C103: RP | E103: MIL | F103: 25 | H103: 0.0002777777778 | J103: 0 | K103: 0.0002777777778 | N103: 0.0001388888889 | O103: =IFERROR(VLOOKUP(A103,'Import (Values)'!$B$2:$C$999,2,FALSE)/3120,"") ->  | T103: 354 | V103: =IFERROR(INDEX('Guts-2'!$K$1:$K$30,MATCH(E103,'Guts-2'!$J$1:$J$30,0)),TRUE) -> TRUE | W103: =IF(V103=FALSE,"",IFERROR(CHOOSE('Guts-2'!$D$27,P103,Q103,R103,S103,T103,U103),"")) -> 354 | X103: 352 | Y103: =IFERROR(IF(INDEX('Auction-Rank'!$G$1:$O$961,MATCH($A103,'Auction-Rank'!$A$1:$A$961,0),'Guts-2'!$D$26)="","",INDEX('Auction-Rank'!$G$1:$O$961,MATCH($A103,'Auction-Rank'!$A$1:$A$961,0),'Guts-2'!$D$26)),"") -> 0.0001388888889 | Z103: =IF(V103=FALSE,"",IFERROR(IF(INDEX('Auction-Rank'!$G$1:$O$961,MATCH($A103,'Auction-Rank'!$A$1:$A$961,0),'Guts-2'!$D$26)="","",INDEX('Auction-Rank'!$G$1:$O$961,MATCH($A103,'Auction-Rank'!$A$1:$A$961,0),'Guts-2'!$D$26)),"")) -> 0.0001388888889 | AA103: =IF(Z103="","",IF(V103=FALSE,"",Z103*(SUMIF($Y$2:$Y$961,"<>""",$Y$2:$Y$961)/SUMIF($Z$2:$Z$961,"<>""",$Z$2:$Z$961)))) -> 0.0001388888889 | AB103: =IFERROR(IF(VLOOKUP(A104,'Name-Sort'!$D$2:$E$948,2,FALSE)="",A104,""),"") -> Ty Buttrey | AC103: =IFERROR(INDEX($AB$1:$AB$961,SMALL(IF($AB$1:$AB$961<>"",ROW($AB$1:$AB$961)),ROW(AB103))),"") -> Ty Buttrey
A104: Ty Buttrey | B104: buttrty01 | C104: RP | E104: LAA | F104: 26 | G104: -9.722222222e-05 | J104: 0 | N104: -3.240740741e-05 | O104: =IFERROR(VLOOKUP(A104,'Import (Values)'!$B$2:$C$999,2,FALSE)/3120,"") ->  | P104: 296 | T104: 423 | V104: =IFERROR(INDEX('Guts-2'!$K$1:$K$30,MATCH(E104,'Guts-2'!$J$1:$J$30,0)),TRUE) -> TRUE | W104: =IF(V104=FALSE,"",IFERROR(CHOOSE('Guts-2'!$D$27,P104,Q104,R104,S104,T104,U104),"")) -> 423 | X104: 419 | Y104: =IFERROR(IF(INDEX('Auction-Rank'!$G$1:$O$961,MATCH($A104,'Auction-Rank'!$A$1:$A$961,0),'Guts-2'!$D$26)="","",INDEX('Auction-Rank'!$G$1:$O$961,MATCH($A104,'Auction-Rank'!$A$1:$A$961,0),'Guts-2'!$D$26)),"") -> -3.240740741e-05 | Z104: =IF(V104=FALSE,"",IFERROR(IF(INDEX('Auction-Rank'!$G$1:$O$961,MATCH($A104,'Auction-Rank'!$A$1:$A$961,0),'Guts-2'!$D$26)="","",INDEX('Auction-Rank'!$G$1:$O$961,MATCH($A104,'Auction-Rank'!$A$1:$A$961,0),'Guts-2'!$D$26)),"")) -> -3.240740741e-05 | AA104: =IF(Z104="","",IF(V104=FALSE,"",Z104*(SUMIF($Y$2:$Y$961,"<>""",$Y$2:$Y$961)/SUMIF($Z$2:$Z$961,"<>""",$Z$2:$Z$961)))) -> -3.240740741e-05 | AB104: =IFERROR(IF(VLOOKUP(A105,'Name-Sort'!$D$2:$E$948,2,FALSE)="",A105,""),"") -> Byron Buxton | AC104: =IFERROR(INDEX($AB$1:$AB$961,SMALL(IF($AB$1:$AB$961<>"",ROW($AB$1:$AB$961)),ROW(AB104))),"") -> Byron Buxton
A105: Byron Buxton | B105: buxtoby01 | C105: OF | D105: CF | E105: MIN | F105: 26 | G105: 0.003827777778 | H105: 0.001388888889 | J105: 0.0025 | K105: 0.001138888889 | M105: 0.001388888889 | N105: 0.001707407407 | O105: =IFERROR(VLOOKUP(A105,'Import (Values)'!$B$2:$C$999,2,FALSE)/3120,"") ->  | P105: 83 | Q105: 133 | R105: 88 | S105: 254 | T105: 158 | V105: =IFERROR(INDEX('Guts-2'!$K$1:$K$30,MATCH(E105,'Guts-2'!$J$1:$J$30,0)),TRUE) -> TRUE | W105: =IF(V105=FALSE,"",IFERROR(CHOOSE('Guts-2'!$D$27,P105,Q105,R105,S105,T105,U105),"")) -> 158 | X105: 158 | Y105: =IFERROR(IF(INDEX('Auction-Rank'!$G$1:$O$961,MATCH($A105,'Auction-Rank'!$A$1:$A$961,0),'Guts-2'!$D$26)="","",INDEX('Auction-Rank'!$G$1:$O$961,MATCH($A105,'Auction-Rank'!$A$1:$A$961,0),'Guts-2'!$D$26)),"") -> 0.001707407407 | Z105: =IF(V105=FALSE,"",IFERROR(IF(INDEX('Auction-Rank'!$G$1:$O$961,MATCH($A105,'Auction-Rank'!$A$1:$A$961,0),'Guts-2'!$D$26)="","",INDEX('Auction-Rank'!$G$1:$O$961,MATCH($A105,'Auction-Rank'!$A$1:$A$961,0),'Guts-2'!$D$26)),"")) -> 0.001707407407 | AA105: =IF(Z105="","",IF(V105=FALSE,"",Z105*(SUMIF($Y$2:$Y$961,"<>""",$Y$2:$Y$961)/SUMIF($Z$2:$Z$961,"<>""",$Z$2:$Z$961)))) -> 0.001707407407 | AB105: =IFERROR(IF(VLOOKUP(A106,'Name-Sort'!$D$2:$E$948,2,FALSE)="",A106,""),"") -> Asdrubal Cabrera | AC105: =IFERROR(INDEX($AB$1:$AB$961,SMALL(IF($AB$1:$AB$961<>"",ROW($AB$1:$AB$961)),ROW(AB105))),"") -> Asdrubal Cabrera
A106: Asdrubal Cabrera | B106: cabreas01 | C106: 3B | E106: WAS | F106: 34 | J106: 0 | K106: 0.0002777777778 | M106: 0.0002777777778 | N106: 0.0001388888889 | O106: =IFERROR(VLOOKUP(A106,'Import (Values)'!$B$2:$C$999,2,FALSE)/3120,"") ->  | Q106: 357 | R106: 243 | T106: 381 | V106: =IFERROR(INDEX('Guts-2'!$K$1:$K$30,MATCH(E106,'Guts-2'!$J$1:$J$30,0)),TRUE) -> TRUE | W106: =IF(V106=FALSE,"",IFERROR(CHOOSE('Guts-2'!$D$27,P106,Q106,R106,S106,T106,U106),"")) -> 381 | X106: 378 | Y106: =IFERROR(IF(INDEX('Auction-Rank'!$G$1:$O$961,MATCH($A106,'Auction-Rank'!$A$1:$A$961,0),'Guts-2'!$D$26)="","",INDEX('Auction-Rank'!$G$1:$O$961,MATCH($A106,'Auction-Rank'!$A$1:$A$961,0),'Guts-2'!$D$26)),"") -> 0.0001388888889 | Z106: =IF(V106=FALSE,"",IFERROR(IF(INDEX('Auction-Rank'!$G$1:$O$961,MATCH($A106,'Auction-Rank'!$A$1:$A$961,0),'Guts-2'!$D$26)="","",INDEX('Auction-Rank'!$G$1:$O$961,MATCH($A106,'Auction-Rank'!$A$1:$A$961,0),'Guts-2'!$D$26)),"")) -> 0.0001388888889 | AA106: =IF(Z106="","",IF(V106=FALSE,"",Z106*(SUMIF($Y$2:$Y$961,"<>""",$Y$2:$Y$961)/SUMIF($Z$2:$Z$961,"<>""",$Z$2:$Z$961)))) -> 0.0001388888889 | AB106: =IFERROR(IF(VLOOKUP(A107,'Name-Sort'!$D$2:$E$948,2,FALSE)="",A107,""),"") -> Miguel Cabrera | AC106: =IFERROR(INDEX($AB$1:$AB$961,SMALL(IF($AB$1:$AB$961<>"",ROW($AB$1:$AB$961)),ROW(AB106))),"") -> Miguel Cabrera
A107: Miguel Cabrera | B107: cabremi01 | C107: 1B | E107: DET | F107: 36 | J107: 0 | K107: 0.0003888888889 | M107: 0.0002777777778 | N107: 0.0001666666667 | O107: =IFERROR(VLOOKUP(A107,'Import (Values)'!$B$2:$C$999,2,FALSE)/3120,"") ->  | Q107: 333 | T107: 318 | V107: =IFERROR(INDEX('Guts-2'!$K$1:$K$30,MATCH(E107,'Guts-2'!$J$1:$J$30,0)),TRUE) -> TRUE | W107: =IF(V107=FALSE,"",IFERROR(CHOOSE('Guts-2'!$D$27,P107,Q107,R107,S107,T107,U107),"")) -> 318 | X107: 317 | Y107: =IFERROR(IF(INDEX('Auction-Rank'!$G$1:$O$961,MATCH($A107,'Auction-Rank'!$A$1:$A$961,0),'Guts-2'!$D$26)="","",INDEX('Auction-Rank'!$G$1:$O$961,MATCH($A107,'Auction-Rank'!$A$1:$A$961,0),'Guts-2'!$D$26)),"") -> 0.0001666666667 | Z107: =IF(V107=FALSE,"",IFERROR(IF(INDEX('Auction-Rank'!$G$1:$O$961,MATCH($A107,'Auction-Rank'!$A$1:$A$961,0),'Guts-2'!$D$26)="","",INDEX('Auction-Rank'!$G$1:$O$961,MATCH($A107,'Auction-Rank'!$A$1:$A$961,0),'Guts-2'!$D$26)),"")) -> 0.0001666666667 | AA107: =IF(Z107="","",IF(V107=FALSE,"",Z107*(SUMIF($Y$2:$Y$961,"<>""",$Y$2:$Y$961)/SUMIF($Z$2:$Z$961,"<>""",$Z$2:$Z$961)))) -> 0.0001666666667 | AB107: =IFERROR(IF(VLOOKUP(A108,'Name-Sort'!$D$2:$E$948,2,FALSE)="",A108,""),"") -> Lorenzo Cain | AC107: =IFERROR(INDEX($AB$1:$AB$961,SMALL(IF($AB$1:$AB$961<>"",ROW($AB$1:$AB$961)),ROW(AB107))),"") -> Lorenzo Cain
A108: Lorenzo Cain | B108: cainlo01 | C108: OF | D108: CF | E108: MIL | F108: 33 | G108: 0.003594444444 | H108: 0.001388888889 | J108: 0.002777777778 | K108: 0.001472222222 | M108: 0.001666666667 | N108: 0.001816666667 | O108: =IFERROR(VLOOKUP(A108,'Import (Values)'!$B$2:$C$999,2,FALSE)/3120,"") ->  | P108: 90 | Q108: 128 | R108: 97 | S108: 106 | T108: 130 | V108: =IFERROR(INDEX('Guts-2'!$K$1:$K$30,MATCH(E108,'Guts-2'!$J$1:$J$30,0)),TRUE) -> TRUE | W108: =IF(V108=FALSE,"",IFERROR(CHOOSE('Guts-2'!$D$27,P108,Q108,R108,S108,T108,U108),"")) -> 130 | X108: 130 | Y108: =IFERROR(IF(INDEX('Auction-Rank'!$G$1:$O$961,MATCH($A108,'Auction-Rank'!$A$1:$A$961,0),'Guts-2'!$D$26)="","",INDEX('Auction-Rank'!$G$1:$O$961,MATCH($A108,'Auction-Rank'!$A$1:$A$961,0),'Guts-2'!$D$26)),"") -> 0.001816666667 | Z108: =IF(V108=FALSE,"",IFERROR(IF(INDEX('Auction-Rank'!$G$1:$O$961,MATCH($A108,'Auction-Rank'!$A$1:$A$961,0),'Guts-2'!$D$26)="","",INDEX('Auction-Rank'!$G$1:$O$961,MATCH($A108,'Auction-Rank'!$A$1:$A$961,0),'Guts-2'!$D$26)),"")) -> 0.001816666667 | AA108: =IF(Z108="","",IF(V108=FALSE,"",Z108*(SUMIF($Y$2:$Y$961,"<>""",$Y$2:$Y$961)/SUMIF($Z$2:$Z$961,"<>""",$Z$2:$Z$961)))) -> 0.001816666667 | AB108: =IFERROR(IF(VLOOKUP(A109,'Name-Sort'!$D$2:$E$948,2,FALSE)="",A109,""),"") -> Kole Calhoun | AC108: =IFERROR(INDEX($AB$1:$AB$961,SMALL(IF($AB$1:$AB$961<>"",ROW($AB$1:$AB$961)),ROW(AB108))),"") -> Kole Calhoun
A109: Kole Calhoun | B109: calhoko01 | C109: OF | D109: RF | E109: ARI | F109: 32 | H109: 0.0002777777778 | J109: 0 | K109: 0.0004166666667 | N109: 0.0001736111111 | O109: =IFERROR(VLOOKUP(A109,'Import (Values)'!$B$2:$C$999,2,FALSE)/3120,"") ->  | Q109: 344 | R109: 180 | S109: 221 | T109: 312 | V109: =IFERROR(INDEX('Guts-2'!$K$1:$K$30,MATCH(E109,'Guts-2'!$J$1:$J$30,0)),TRUE) -> TRUE | W109: =IF(V109=FALSE,"",IFERROR(CHOOSE('Guts-2'!$D$27,P109,Q109,R109,S109,T109,U109),"")) -> 312 | X109: 311 | Y109: =IFERROR(IF(INDEX('Auction-Rank'!$G$1:$O$961,MATCH($A109,'Auction-Rank'!$A$1:$A$961,0),'Guts-2'!$D$26)="","",INDEX('Auction-Rank'!$G$1:$O$961,MATCH($A109,'Auction-Rank'!$A$1:$A$961,0),'Guts-2'!$D$26)),"") -> 0.0001736111111 | Z109: =IF(V109=FALSE,"",IFERROR(IF(INDEX('Auction-Rank'!$G$1:$O$961,MATCH($A109,'Auction-Rank'!$A$1:$A$961,0),'Guts-2'!$D$26)="","",INDEX('Auction-Rank'!$G$1:$O$961,MATCH($A109,'Auction-Rank'!$A$1:$A$961,0),'Guts-2'!$D$26)),"")) -> 0.0001736111111 | AA109: =IF(Z109="","",IF(V109=FALSE,"",Z109*(SUMIF($Y$2:$Y$961,"<>""",$Y$2:$Y$961)/SUMIF($Z$2:$Z$961,"<>""",$Z$2:$Z$961)))) -> 0.0001736111111 | AB109: =IFERROR(IF(VLOOKUP(A110,'Name-Sort'!$D$2:$E$948,2,FALSE)="",A110,""),"") -> Willie Calhoun | AC109: =IFERROR(INDEX($AB$1:$AB$961,SMALL(IF($AB$1:$AB$961<>"",ROW($AB$1:$AB$961)),ROW(AB109))),"") -> Willie Calhoun
A110: Willie Calhoun | B110: calhowi01 | C110: OF | D110: LF | E110: TEX | F110: 25 | H110: 0.001388888889 | J110: 0.0008333333333 | K110: 0.0008055555556 | M110: 0.0008333333333 | N110: 0.0007722222222 | O110: =IFERROR(VLOOKUP(A110,'Import (Values)'!$B$2:$C$999,2,FALSE)/3120,"") ->  | Q110: 145 | R110: 220 | S110: 174 | T110: 203 | V110: =IFERROR(INDEX('Guts-2'!$K$1:$K$30,MATCH(E110,'Guts-2'!$J$1:$J$30,0)),TRUE) -> TRUE | W110: =IF(V110=FALSE,"",IFERROR(CHOOSE('Guts-2'!$D$27,P110,Q110,R110,S110,T110,U110),"")) -> 203 | X110: 203 | Y110: =IFERROR(IF(INDEX('Auction-Rank'!$G$1:$O$961,MATCH($A110,'Auction-Rank'!$A$1:$A$961,0),'Guts-2'!$D$26)="","",INDEX('Auction-Rank'!$G$1:$O$961,MATCH($A110,'Auction-Rank'!$A$1:$A$961,0),'Guts-2'!$D$26)),"") -> 0.0007722222222 | Z110: =IF(V110=FALSE,"",IFERROR(IF(INDEX('Auction-Rank'!$G$1:$O$961,MATCH($A110,'Auction-Rank'!$A$1:$A$961,0),'Guts-2'!$D$26)="","",INDEX('Auction-Rank'!$G$1:$O$961,MATCH($A110,'Auction-Rank'!$A$1:$A$961,0),'Guts-2'!$D$26)),"")) -> 0.0007722222222 | AA110: =IF(Z110="","",IF(V110=FALSE,"",Z110*(SUMIF($Y$2:$Y$961,"<>""",$Y$2:$Y$961)/SUMIF($Z$2:$Z$961,"<>""",$Z$2:$Z$961)))) -> 0.0007722222222 | AB110: =IFERROR(IF(VLOOKUP(A111,'Name-Sort'!$D$2:$E$948,2,FALSE)="",A111,""),"") -> Johan Camargo | AC110: =IFERROR(INDEX($AB$1:$AB$961,SMALL(IF($AB$1:$AB$961<>"",ROW($AB$1:$AB$961)),ROW(AB110))),"") -> Johan Camargo
A111: Johan Camargo | B111: camarjo01 | C111: SS | D111: LF,RF | E111: ATL | F111: 26 | N111: 0 | O111: =IFERROR(VLOOKUP(A111,'Import (Values)'!$B$2:$C$999,2,FALSE)/3120,"") ->  | T111: 480 | V111: =IFERROR(INDEX('Guts-2'!$K$1:$K$30,MATCH(E111,'Guts-2'!$J$1:$J$30,0)),TRUE) -> TRUE | W111: =IF(V111=FALSE,"",IFERROR(CHOOSE('Guts-2'!$D$27,P111,Q111,R111,S111,T111,U111),"")) -> 480 | X111: 475 | Y111: =IFERROR(IF(INDEX('Auction-Rank'!$G$1:$O$961,MATCH($A111,'Auction-Rank'!$A$1:$A$961,0),'Guts-2'!$D$26)="","",INDEX('Auction-Rank'!$G$1:$O$961,MATCH($A111,'Auction-Rank'!$A$1:$A$961,0),'Guts-2'!$D$26)),"") -> 0 | Z111: =IF(V111=FALSE,"",IFERROR(IF(INDEX('Auction-Rank'!$G$1:$O$961,MATCH($A111,'Auction-Rank'!$A$1:$A$961,0),'Guts-2'!$D$26)="","",INDEX('Auction-Rank'!$G$1:$O$961,MATCH($A111,'Auction-Rank'!$A$1:$A$961,0),'Guts-2'!$D$26)),"")) -> 0 | AA111: =IF(Z111="","",IF(V111=FALSE,"",Z111*(SUMIF($Y$2:$Y$961,"<>""",$Y$2:$Y$961)/SUMIF($Z$2:$Z$961,"<>""",$Z$2:$Z$961)))) -> 0 | AB111: =IFERROR(IF(VLOOKUP(A112,'Name-Sort'!$D$2:$E$948,2,FALSE)="",A112,""),"") -> Daz Cameron | AC111: =IFERROR(INDEX($AB$1:$AB$961,SMALL(IF($AB$1:$AB$961<>"",ROW($AB$1:$AB$961)),ROW(AB111))),"") -> Daz Cameron
A112: Daz Cameron | B112: camerda01 | C112: OF | D112: CF | E112: DET | F112: 23 | N112: 0 | O112: =IFERROR(VLOOKUP(A112,'Import (Values)'!$B$2:$C$999,2,FALSE)/3120,"") ->  | V112: =IFERROR(INDEX('Guts-2'!$K$1:$K$30,MATCH(E112,'Guts-2'!$J$1:$J$30,0)),TRUE) -> TRUE | W112: =IF(V112=FALSE,"",IFERROR(CHOOSE('Guts-2'!$D$27,P112,Q112,R112,S112,T112,U112),"")) ->  | Y112: =IFERROR(IF(INDEX('Auction-Rank'!$G$1:$O$961,MATCH($A112,'Auction-Rank'!$A$1:$A$961,0),'Guts-2'!$D$26)="","",INDEX('Auction-Rank'!$G$1:$O$961,MATCH($A112,'Auction-Rank'!$A$1:$A$961,0),'Guts-2'!$D$26)),"") -> 0 | Z112: =IF(V112=FALSE,"",IFERROR(IF(INDEX('Auction-Rank'!$G$1:$O$961,MATCH($A112,'Auction-Rank'!$A$1:$A$961,0),'Guts-2'!$D$26)="","",INDEX('Auction-Rank'!$G$1:$O$961,MATCH($A112,'Auction-Rank'!$A$1:$A$961,0),'Guts-2'!$D$26)),"")) -> 0 | AA112: =IF(Z112="","",IF(V112=FALSE,"",Z112*(SUMIF($Y$2:$Y$961,"<>""",$Y$2:$Y$961)/SUMIF($Z$2:$Z$961,"<>""",$Z$2:$Z$961)))) -> 0 | AB112: =IFERROR(IF(VLOOKUP(A113,'Name-Sort'!$D$2:$E$948,2,FALSE)="",A113,""),"") -> Jeimer Candelario | AC112: =IFERROR(INDEX($AB$1:$AB$961,SMALL(IF($AB$1:$AB$961<>"",ROW($AB$1:$AB$961)),ROW(AB112))),"") -> Jeimer Candelario
A113: Jeimer Candelario | B113: candeje01 | C113: 3B | E113: DET | F113: 26 | N113: 0 | O113: =IFERROR(VLOOKUP(A113,'Import (Values)'!$B$2:$C$999,2,FALSE)/3120,"") ->  | T113: 643 | V113: =IFERROR(INDEX('Guts-2'!$K$1:$K$30,MATCH(E113,'Guts-2'!$J$1:$J$30,0)),TRUE) -> TRUE | W113: =IF(V113=FALSE,"",IFERROR(CHOOSE('Guts-2'!$D$27,P113,Q113,R113,S113,T113,U113),"")) -> 643 | X113: 607 | Y113: =IFERROR(IF(INDEX('Auction-Rank'!$G$1:$O$961,MATCH($A113,'Auction-Rank'!$A$1:$A$961,0),'Guts-2'!$D$26)="","",INDEX('Auction-Rank'!$G$1:$O$961,MATCH($A113,'Auction-Rank'!$A$1:$A$961,0),'Guts-2'!$D$26)),"") -> 0 | Z113: =IF(V113=FALSE,"",IFERROR(IF(INDEX('Auction-Rank'!$G$1:$O$961,MATCH($A113,'Auction-Rank'!$A$1:$A$961,0),'Guts-2'!$D$26)="","",INDEX('Auction-Rank'!$G$1:$O$961,MATCH($A113,'Auction-Rank'!$A$1:$A$961,0),'Guts-2'!$D$26)),"")) -> 0 | AA113: =IF(Z113="","",IF(V113=FALSE,"",Z113*(SUMIF($Y$2:$Y$961,"<>""",$Y$2:$Y$961)/SUMIF($Z$2:$Z$961,"<>""",$Z$2:$Z$961)))) -> 0 | AB113: =IFERROR(IF(VLOOKUP(A114,'Name-Sort'!$D$2:$E$948,2,FALSE)="",A114,""),"") -> Mark Canha | AC113: =IFERROR(INDEX($AB$1:$AB$961,SMALL(IF($AB$1:$AB$961<>"",ROW($AB$1:$AB$961)),ROW(AB113))),"") -> Mark Canha
A114: Mark Canha | B114: canhama01 | C114: OF | D114: LF,CF,RF | E114: OAK | F114: 31 | H114: 0.001666666667 | J114: 0.0005555555556 | K114: 0.0004444444444 | M114: 0.0008333333333 | N114: 0.0007 | O114: =IFERROR(VLOOKUP(A114,'Import (Values)'!$B$2:$C$999,2,FALSE)/3120,"") ->  | Q114: 263 | R114: 272 | S114: 227 | T114: 218 | V114: =IFERROR(INDEX('Guts-2'!$K$1:$K$30,MATCH(E114,'Guts-2'!$J$1:$J$30,0)),TRUE) -> TRUE | W114: =IF(V114=FALSE,"",IFERROR(CHOOSE('Guts-2'!$D$27,P114,Q114,R114,S114,T114,U114),"")) -> 218 | X114: 218 | Y114: =IFERROR(IF(INDEX('Auction-Rank'!$G$1:$O$961,MATCH($A114,'Auction-Rank'!$A$1:$A$961,0),'Guts-2'!$D$26)="","",INDEX('Auction-Rank'!$G$1:$O$961,MATCH($A114,'Auction-Rank'!$A$1:$A$961,0),'Guts-2'!$D$26)),"") -> 0.0007 | Z114: =IF(V114=FALSE,"",IFERROR(IF(INDEX('Auction-Rank'!$G$1:$O$961,MATCH($A114,'Auction-Rank'!$A$1:$A$961,0),'Guts-2'!$D$26)="","",INDEX('Auction-Rank'!$G$1:$O$961,MATCH($A114,'Auction-Rank'!$A$1:$A$961,0),'Guts-2'!$D$26)),"")) -> 0.0007 | AA114: =IF(Z114="","",IF(V114=FALSE,"",Z114*(SUMIF($Y$2:$Y$961,"<>""",$Y$2:$Y$961)/SUMIF($Z$2:$Z$961,"<>""",$Z$2:$Z$961)))) -> 0.0007 | AB114: =IFERROR(IF(VLOOKUP(A115,'Name-Sort'!$D$2:$E$948,2,FALSE)="",A115,""),"") -> Griffin Canning | AC114: =IFERROR(INDEX($AB$1:$AB$961,SMALL(IF($AB$1:$AB$961<>"",ROW($AB$1:$AB$961)),ROW(AB114))),"") -> Griffin Canning
A115: Griffin Canning | B115: cannigr01 | C115: SP | E115: LAA | F115: 23 | H115: 0.0002777777778 | J115: 0.001666666667 | K115: 0.00075 | M115: 0.0008333333333 | N115: 0.0007055555556 | O115: =IFERROR(VLOOKUP(A115,'Import (Values)'!$B$2:$C$999,2,FALSE)/3120,"") ->  | Q115: 187 | T115: 274 | V115: =IFERROR(INDEX('Guts-2'!$K$1:$K$30,MATCH(E115,'Guts-2'!$J$1:$J$30,0)),TRUE) -> TRUE | W115: =IF(V115=FALSE,"",IFERROR(CHOOSE('Guts-2'!$D$27,P115,Q115,R115,S115,T115,U115),"")) -> 274 | X115: 273 | Y115: =IFERROR(IF(INDEX('Auction-Rank'!$G$1:$O$961,MATCH($A115,'Auction-Rank'!$A$1:$A$961,0),'Guts-2'!$D$26)="","",INDEX('Auction-Rank'!$G$1:$O$961,MATCH($A115,'Auction-Rank'!$A$1:$A$961,0),'Guts-2'!$D$26)),"") -> 0.0007055555556 | Z115: =IF(V115=FALSE,"",IFERROR(IF(INDEX('Auction-Rank'!$G$1:$O$961,MATCH($A115,'Auction-Rank'!$A$1:$A$961,0),'Guts-2'!$D$26)="","",INDEX('Auction-Rank'!$G$1:$O$961,MATCH($A115,'Auction-Rank'!$A$1:$A$961,0),'Guts-2'!$D$26)),"")) -> 0.0007055555556 | AA115: =IF(Z115="","",IF(V115=FALSE,"",Z115*(SUMIF($Y$2:$Y$961,"<>""",$Y$2:$Y$961)/SUMIF($Z$2:$Z$961,"<>""",$Z$2:$Z$961)))) -> 0.0007055555556 | AB115: =IFERROR(IF(VLOOKUP(A116,'Name-Sort'!$D$2:$E$948,2,FALSE)="",A116,""),"") -> Robinson Cano | AC115: =IFERROR(INDEX($AB$1:$AB$961,SMALL(IF($AB$1:$AB$961<>"",ROW($AB$1:$AB$961)),ROW(AB115))),"") -> Robinson Cano
A116: Robinson Cano | B116: canoro01 | C116: 2B | E116: NYM | F116: 37 | H116: 0.0002777777778 | J116: 0 | K116: 0.0003611111111 | M116: 0.0005555555556 | N116: 0.0002388888889 | O116: =IFERROR(VLOOKUP(A116,'Import (Values)'!$B$2:$C$999,2,FALSE)/3120,"") ->  | Q116: 315 | S116: 230 | T116: 308 | V116: =IFERROR(INDEX('Guts-2'!$K$1:$K$30,MATCH(E116,'Guts-2'!$J$1:$J$30,0)),TRUE) -> TRUE | W116: =IF(V116=FALSE,"",IFERROR(CHOOSE('Guts-2'!$D$27,P116,Q116,R116,S116,T116,U116),"")) -> 308 | X116: 307 | Y116: =IFERROR(IF(INDEX('Auction-Rank'!$G$1:$O$961,MATCH($A116,'Auction-Rank'!$A$1:$A$961,0),'Guts-2'!$D$26)="","",INDEX('Auction-Rank'!$G$1:$O$961,MATCH($A116,'Auction-Rank'!$A$1:$A$961,0),'Guts-2'!$D$26)),"") -> 0.0002388888889 | Z116: =IF(V116=FALSE,"",IFERROR(IF(INDEX('Auction-Rank'!$G$1:$O$961,MATCH($A116,'Auction-Rank'!$A$1:$A$961,0),'Guts-2'!$D$26)="","",INDEX('Auction-Rank'!$G$1:$O$961,MATCH($A116,'Auction-Rank'!$A$1:$A$961,0),'Guts-2'!$D$26)),"")) -> 0.0002388888889 | AA116: =IF(Z116="","",IF(V116=FALSE,"",Z116*(SUMIF($Y$2:$Y$961,"<>""",$Y$2:$Y$961)/SUMIF($Z$2:$Z$961,"<>""",$Z$2:$Z$961)))) -> 0.0002388888889 | AB116: =IFERROR(IF(VLOOKUP(A117,'Name-Sort'!$D$2:$E$948,2,FALSE)="",A117,""),"") -> Victor Caratini | AC116: =IFERROR(INDEX($AB$1:$AB$961,SMALL(IF($AB$1:$AB$961<>"",ROW($AB$1:$AB$961)),ROW(AB116))),"") -> Victor Caratini
A117: Victor Caratini | B117: caratvi01 | C117: C | E117: CHC | F117: 26 | H117: 0.0002777777778 | J117: 0 | N117: 9.259259259e-05 | O117: =IFERROR(VLOOKUP(A117,'Import (Values)'!$B$2:$C$999,2,FALSE)/3120,"") ->  | T117: 503 | V117: =IFERROR(INDEX('Guts-2'!$K$1:$K$30,MATCH(E117,'Guts-2'!$J$1:$J$30,0)),TRUE) -> TRUE | W117: =IF(V117=FALSE,"",IFERROR(CHOOSE('Guts-2'!$D$27,P117,Q117,R117,S117,T117,U117),"")) -> 503 | X117: 498 | Y117: =IFERROR(IF(INDEX('Auction-Rank'!$G$1:$O$961,MATCH($A117,'Auction-Rank'!$A$1:$A$961,0),'Guts-2'!$D$26)="","",INDEX('Auction-Rank'!$G$1:$O$961,MATCH($A117,'Auction-Rank'!$A$1:$A$961,0),'Guts-2'!$D$26)),"") -> 9.259259259e-05 | Z117: =IF(V117=FALSE,"",IFERROR(IF(INDEX('Auction-Rank'!$G$1:$O$961,MATCH($A117,'Auction-Rank'!$A$1:$A$961,0),'Guts-2'!$D$26)="","",INDEX('Auction-Rank'!$G$1:$O$961,MATCH($A117,'Auction-Rank'!$A$1:$A$961,0),'Guts-2'!$D$26)),"")) -> 9.259259259e-05 | AA117: =IF(Z117="","",IF(V117=FALSE,"",Z117*(SUMIF($Y$2:$Y$961,"<>""",$Y$2:$Y$961)/SUMIF($Z$2:$Z$961,"<>""",$Z$2:$Z$961)))) -> 9.259259259e-05 | AB117: =IFERROR(IF(VLOOKUP(A118,'Name-Sort'!$D$2:$E$948,2,FALSE)="",A118,""),"") -> Dylan Carlson | AC117: =IFERROR(INDEX($AB$1:$AB$961,SMALL(IF($AB$1:$AB$961<>"",ROW($AB$1:$AB$961)),ROW(AB117))),"") -> Dylan Carlson
A118: Dylan Carlson | B118: carlsdy01 | C118: OF | D118: CF,RF | E118: STL | F118: 21 | H118: 0.0002777777778 | J118: 0.0005555555556 | K118: 0.0004166666667 | N118: 0.0003125 | O118: =IFERROR(VLOOKUP(A118,'Import (Values)'!$B$2:$C$999,2,FALSE)/3120,"") ->  | Q118: 309 | T118: 278 | V118: =IFERROR(INDEX('Guts-2'!$K$1:$K$30,MATCH(E118,'Guts-2'!$J$1:$J$30,0)),TRUE) -> TRUE | W118: =IF(V118=FALSE,"",IFERROR(CHOOSE('Guts-2'!$D$27,P118,Q118,R118,S118,T118,U118),"")) -> 278 | X118: 277 | Y118: =IFERROR(IF(INDEX('Auction-Rank'!$G$1:$O$961,MATCH($A118,'Auction-Rank'!$A$1:$A$961,0),'Guts-2'!$D$26)="","",INDEX('Auction-Rank'!$G$1:$O$961,MATCH($A118,'Auction-Rank'!$A$1:$A$961,0),'Guts-2'!$D$26)),"") -> 0.0003125 | Z118: =IF(V118=FALSE,"",IFERROR(IF(INDEX('Auction-Rank'!$G$1:$O$961,MATCH($A118,'Auction-Rank'!$A$1:$A$961,0),'Guts-2'!$D$26)="","",INDEX('Auction-Rank'!$G$1:$O$961,MATCH($A118,'Auction-Rank'!$A$1:$A$961,0),'Guts-2'!$D$26)),"")) -> 0.0003125 | AA118: =IF(Z118="","",IF(V118=FALSE,"",Z118*(SUMIF($Y$2:$Y$961,"<>""",$Y$2:$Y$961)/SUMIF($Z$2:$Z$961,"<>""",$Z$2:$Z$961)))) -> 0.0003125 | AB118: =IFERROR(IF(VLOOKUP(A119,'Name-Sort'!$D$2:$E$948,2,FALSE)="",A119,""),"") -> Matt Carpenter | AC118: =IFERROR(INDEX($AB$1:$AB$961,SMALL(IF($AB$1:$AB$961<>"",ROW($AB$1:$AB$961)),ROW(AB118))),"") -> Matt Carpenter
A119: Matt Carpenter | B119: carpema01 | C119: 3B | E119: STL | F119: 34 | J119: 0 | K119: 0.0003611111111 | N119: 0.0001203703704 | O119: =IFERROR(VLOOKUP(A119,'Import (Values)'!$B$2:$C$999,2,FALSE)/3120,"") ->  | Q119: 350 | R119: 276 | S119: 206 | T119: 281 | V119: =IFERROR(INDEX('Guts-2'!$K$1:$K$30,MATCH(E119,'Guts-2'!$J$1:$J$30,0)),TRUE) -> TRUE | W119: =IF(V119=FALSE,"",IFERROR(CHOOSE('Guts-2'!$D$27,P119,Q119,R119,S119,T119,U119),"")) -> 281 | X119: 280 | Y119: =IFERROR(IF(INDEX('Auction-Rank'!$G$1:$O$961,MATCH($A119,'Auction-Rank'!$A$1:$A$961,0),'Guts-2'!$D$26)="","",INDEX('Auction-Rank'!$G$1:$O$961,MATCH($A119,'Auction-Rank'!$A$1:$A$961,0),'Guts-2'!$D$26)),"") -> 0.0001203703704 | Z119: =IF(V119=FALSE,"",IFERROR(IF(INDEX('Auction-Rank'!$G$1:$O$961,MATCH($A119,'Auction-Rank'!$A$1:$A$961,0),'Guts-2'!$D$26)="","",INDEX('Auction-Rank'!$G$1:$O$961,MATCH($A119,'Auction-Rank'!$A$1:$A$961,0),'Guts-2'!$D$26)),"")) -> 0.0001203703704 | AA119: =IF(Z119="","",IF(V119=FALSE,"",Z119*(SUMIF($Y$2:$Y$961,"<>""",$Y$2:$Y$961)/SUMIF($Z$2:$Z$961,"<>""",$Z$2:$Z$961)))) -> 0.0001203703704 | AB119: =IFERROR(IF(VLOOKUP(A120,'Name-Sort'!$D$2:$E$948,2,FALSE)="",A120,""),"") -> Carlos Carrasco | AC119: =IFERROR(INDEX($AB$1:$AB$961,SMALL(IF($AB$1:$AB$961<>"",ROW($AB$1:$AB$961)),ROW(AB119))),"") -> Carlos Carrasco
A120: Carlos Carrasco | B120: carraca01 | C120: SP | E120: CLE | F120: 33 | G120: 0.002977777778 | H120: 0.003611111111 | J120: 0.002222222222 | K120: 0.002472222222 | M120: 0.003055555556 | N120: 0.002389814815 | O120: =IFERROR(VLOOKUP(A120,'Import (Values)'!$B$2:$C$999,2,FALSE)/3120,"") ->  | P120: 107 | Q120: 107 | R120: 130 | S120: 137 | T120: 120 | V120: =IFERROR(INDEX('Guts-2'!$K$1:$K$30,MATCH(E120,'Guts-2'!$J$1:$J$30,0)),TRUE) -> TRUE | W120: =IF(V120=FALSE,"",IFERROR(CHOOSE('Guts-2'!$D$27,P120,Q120,R120,S120,T120,U120),"")) -> 120 | X120: 120 | Y120: =IFERROR(IF(INDEX('Auction-Rank'!$G$1:$O$961,MATCH($A120,'Auction-Rank'!$A$1:$A$961,0),'Guts-2'!$D$26)="","",INDEX('Auction-Rank'!$G$1:$O$961,MATCH($A120,'Auction-Rank'!$A$1:$A$961,0),'Guts-2'!$D$26)),"") -> 0.002389814815 | Z120: =IF(V120=FALSE,"",IFERROR(IF(INDEX('Auction-Rank'!$G$1:$O$961,MATCH($A120,'Auction-Rank'!$A$1:$A$961,0),'Guts-2'!$D$26)="","",INDEX('Auction-Rank'!$G$1:$O$961,MATCH($A120,'Auction-Rank'!$A$1:$A$961,0),'Guts-2'!$D$26)),"")) -> 0.002389814815 | AA120: =IF(Z120="","",IF(V120=FALSE,"",Z120*(SUMIF($Y$2:$Y$961,"<>""",$Y$2:$Y$961)/SUMIF($Z$2:$Z$961,"<>""",$Z$2:$Z$961)))) -> 0.002389814815 | AB120: =IFERROR(IF(VLOOKUP(A121,'Name-Sort'!$D$2:$E$948,2,FALSE)="",A121,""),"") -> Curt Casali | AC120: =IFERROR(INDEX($AB$1:$AB$961,SMALL(IF($AB$1:$AB$961<>"",ROW($AB$1:$AB$961)),ROW(AB120))),"") -> Curt Casali
A121: Curt Casali | B121: casalcu01 | C121: C | E121: CIN | F121: 31 | N121: 0 | O121: =IFERROR(VLOOKUP(A121,'Import (Values)'!$B$2:$C$999,2,FALSE)/3120,"") ->  | T121: 691 | V121: =IFERROR(INDEX('Guts-2'!$K$1:$K$30,MATCH(E121,'Guts-2'!$J$1:$J$30,0)),TRUE) -> TRUE | W121: =IF(V121=FALSE,"",IFERROR(CHOOSE('Guts-2'!$D$27,P121,Q121,R121,S121,T121,U121),"")) -> 691 | X121: 642 | Y121: =IFERROR(IF(INDEX('Auction-Rank'!$G$1:$O$961,MATCH($A121,'Auction-Rank'!$A$1:$A$961,0),'Guts-2'!$D$26)="","",INDEX('Auction-Rank'!$G$1:$O$961,MATCH($A121,'Auction-Rank'!$A$1:$A$961,0),'Guts-2'!$D$26)),"") -> 0 | Z121: =IF(V121=FALSE,"",IFERROR(IF(INDEX('Auction-Rank'!$G$1:$O$961,MATCH($A121,'Auction-Rank'!$A$1:$A$961,0),'Guts-2'!$D$26)="","",INDEX('Auction-Rank'!$G$1:$O$961,MATCH($A121,'Auction-Rank'!$A$1:$A$961,0),'Guts-2'!$D$26)),"")) -> 0 | AA121: =IF(Z121="","",IF(V121=FALSE,"",Z121*(SUMIF($Y$2:$Y$961,"<>""",$Y$2:$Y$961)/SUMIF($Z$2:$Z$961,"<>""",$Z$2:$Z$961)))) -> 0 | AB121: =IFERROR(IF(VLOOKUP(A122,'Name-Sort'!$D$2:$E$948,2,FALSE)="",A122,""),"") -> Nick Castellanos | AC121: =IFERROR(INDEX($AB$1:$AB$961,SMALL(IF($AB$1:$AB$961<>"",ROW($AB$1:$AB$961)),ROW(AB121))),"") -> Nick Castellanos
A122: Nick Castellanos | B122: casteni01 | C122: OF | D122: LF,RF | E122: CIN | F122: 28 | G122: 0.002511111111 | H122: 0.004722222222 | J122: 0.004166666667 | K122: 0.003944444444 | M122: 0.004166666667 | N122: 0.003251851852 | O122: =IFERROR(VLOOKUP(A122,'Import (Values)'!$B$2:$C$999,2,FALSE)/3120,"") ->  | P122: 131 | Q122: 86 | R122: 62 | S122: 84 | T122: 72 | V122: =IFERROR(INDEX('Guts-2'!$K$1:$K$30,MATCH(E122,'Guts-2'!$J$1:$J$30,0)),TRUE) -> TRUE | W122: =IF(V122=FALSE,"",IFERROR(CHOOSE('Guts-2'!$D$27,P122,Q122,R122,S122,T122,U122),"")) -> 72 | X122: 72 | Y122: =IFERROR(IF(INDEX('Auction-Rank'!$G$1:$O$961,MATCH($A122,'Auction-Rank'!$A$1:$A$961,0),'Guts-2'!$D$26)="","",INDEX('Auction-Rank'!$G$1:$O$961,MATCH($A122,'Auction-Rank'!$A$1:$A$961,0),'Guts-2'!$D$26)),"") -> 0.003251851852 | Z122: =IF(V122=FALSE,"",IFERROR(IF(INDEX('Auction-Rank'!$G$1:$O$961,MATCH($A122,'Auction-Rank'!$A$1:$A$961,0),'Guts-2'!$D$26)="","",INDEX('Auction-Rank'!$G$1:$O$961,MATCH($A122,'Auction-Rank'!$A$1:$A$961,0),'Guts-2'!$D$26)),"")) -> 0.003251851852 | AA122: =IF(Z122="","",IF(V122=FALSE,"",Z122*(SUMIF($Y$2:$Y$961,"<>""",$Y$2:$Y$961)/SUMIF($Z$2:$Z$961,"<>""",$Z$2:$Z$961)))) -> 0.003251851852 | AB122: =IFERROR(IF(VLOOKUP(A123,'Name-Sort'!$D$2:$E$948,2,FALSE)="",A123,""),"") -> Diego Castillo | AC122: =IFERROR(INDEX($AB$1:$AB$961,SMALL(IF($AB$1:$AB$961<>"",ROW($AB$1:$AB$961)),ROW(AB122))),"") -> Diego Castillo
A123: Diego Castillo | B123: castidi01 | C123: RP | E123: TB | F123: 26 | G123: 0.0005638888889 | J123: 0 | K123: 0.0004166666667 | M123: 0.001111111111 | N123: 0.0004183333333 | O123: =IFERROR(VLOOKUP(A123,'Import (Values)'!$B$2:$C$999,2,FALSE)/3120,"") ->  | P123: 239 | T123: 337 | V123: =IFERROR(INDEX('Guts-2'!$K$1:$K$30,MATCH(E123,'Guts-2'!$J$1:$J$30,0)),TRUE) -> TRUE | W123: =IF(V123=FALSE,"",IFERROR(CHOOSE('Guts-2'!$D$27,P123,Q123,R123,S123,T123,U123),"")) -> 337 | X123: 336 | Y123: =IFERROR(IF(INDEX('Auction-Rank'!$G$1:$O$961,MATCH($A123,'Auction-Rank'!$A$1:$A$961,0),'Guts-2'!$D$26)="","",INDEX('Auction-Rank'!$G$1:$O$961,MATCH($A123,'Auction-Rank'!$A$1:$A$961,0),'Guts-2'!$D$26)),"") -> 0.0004183333333 | Z123: =IF(V123=FALSE,"",IFERROR(IF(INDEX('Auction-Rank'!$G$1:$O$961,MATCH($A123,'Auction-Rank'!$A$1:$A$961,0),'Guts-2'!$D$26)="","",INDEX('Auction-Rank'!$G$1:$O$961,MATCH($A123,'Auction-Rank'!$A$1:$A$961,0),'Guts-2'!$D$26)),"")) -> 0.0004183333333 | AA123: =IF(Z123="","",IF(V123=FALSE,"",Z123*(SUMIF($Y$2:$Y$961,"<>""",$Y$2:$Y$961)/SUMIF($Z$2:$Z$961,"<>""",$Z$2:$Z$961)))) -> 0.0004183333333 | AB123: =IFERROR(IF(VLOOKUP(A124,'Name-Sort'!$D$2:$E$948,2,FALSE)="",A124,""),"") -> Luis Castillo | AC123: =IFERROR(INDEX($AB$1:$AB$961,SMALL(IF($AB$1:$AB$961<>"",ROW($AB$1:$AB$961)),ROW(AB123))),"") -> Luis Castillo
A124: Luis Castillo | B124: castilu02 | C124: SP | E124: CIN | F124: 27 | G124: 0.004044444444 | H124: 0.006666666667 | J124: 0.005 | K124: 0.00575 | M124: 0.003333333333 | N124: 0.004132407407 | O124: =IFERROR(VLOOKUP(A124,'Import (Values)'!$B$2:$C$999,2,FALSE)/3120,"") ->  | P124: 74 | Q124: 52 | R124: 117 | S124: 50 | T124: 48 | V124: =IFERROR(INDEX('Guts-2'!$K$1:$K$30,MATCH(E124,'Guts-2'!$J$1:$J$30,0)),TRUE) -> TRUE | W124: =IF(V124=FALSE,"",IFERROR(CHOOSE('Guts-2'!$D$27,P124,Q124,R124,S124,T124,U124),"")) -> 48 | X124: 48 | Y124: =IFERROR(IF(INDEX('Auction-Rank'!$G$1:$O$961,MATCH($A124,'Auction-Rank'!$A$1:$A$961,0),'Guts-2'!$D$26)="","",INDEX('Auction-Rank'!$G$1:$O$961,MATCH($A124,'Auction-Rank'!$A$1:$A$961,0),'Guts-2'!$D$26)),"") -> 0.004132407407 | Z124: =IF(V124=FALSE,"",IFERROR(IF(INDEX('Auction-Rank'!$G$1:$O$961,MATCH($A124,'Auction-Rank'!$A$1:$A$961,0),'Guts-2'!$D$26)="","",INDEX('Auction-Rank'!$G$1:$O$961,MATCH($A124,'Auction-Rank'!$A$1:$A$961,0),'Guts-2'!$D$26)),"")) -> 0.004132407407 | AA124: =IF(Z124="","",IF(V124=FALSE,"",Z124*(SUMIF($Y$2:$Y$961,"<>""",$Y$2:$Y$961)/SUMIF($Z$2:$Z$961,"<>""",$Z$2:$Z$961)))) -> 0.004132407407 | AB124: =IFERROR(IF(VLOOKUP(A125,'Name-Sort'!$D$2:$E$948,2,FALSE)="",A125,""),"") -> Welington Castillo | AC124: =IFERROR(INDEX($AB$1:$AB$961,SMALL(IF($AB$1:$AB$961<>"",ROW($AB$1:$AB$961)),ROW(AB124))),"") -> Welington Castillo
A125: Welington Castillo | B125: castiwe01 | C125: C | E125: WAS | F125: 32 | N125: 0 | O125: =IFERROR(VLOOKUP(A125,'Import (Values)'!$B$2:$C$999,2,FALSE)/3120,"") ->  | V125: =IFERROR(INDEX('Guts-2'!$K$1:$K$30,MATCH(E125,'Guts-2'!$J$1:$J$30,0)),TRUE) -> TRUE | W125: =IF(V125=FALSE,"",IFERROR(CHOOSE('Guts-2'!$D$27,P125,Q125,R125,S125,T125,U125),"")) ->  | Y125: =IFERROR(IF(INDEX('Auction-Rank'!$G$1:$O$961,MATCH($A125,'Auction-Rank'!$A$1:$A$961,0),'Guts-2'!$D$26)="","",INDEX('Auction-Rank'!$G$1:$O$961,MATCH($A125,'Auction-Rank'!$A$1:$A$961,0),'Guts-2'!$D$26)),"") -> 0 | Z125: =IF(V125=FALSE,"",IFERROR(IF(INDEX('Auction-Rank'!$G$1:$O$961,MATCH($A125,'Auction-Rank'!$A$1:$A$961,0),'Guts-2'!$D$26)="","",INDEX('Auction-Rank'!$G$1:$O$961,MATCH($A125,'Auction-Rank'!$A$1:$A$961,0),'Guts-2'!$D$26)),"")) -> 0 | AA125: =IF(Z125="","",IF(V125=FALSE,"",Z125*(SUMIF($Y$2:$Y$961,"<>""",$Y$2:$Y$961)/SUMIF($Z$2:$Z$961,"<>""",$Z$2:$Z$961)))) -> 0 | AB125: =IFERROR(IF(VLOOKUP(A126,'Name-Sort'!$D$2:$E$948,2,FALSE)="",A126,""),"") -> Harold Castro | AC125: =IFERROR(INDEX($AB$1:$AB$961,SMALL(IF($AB$1:$AB$961<>"",ROW($AB$1:$AB$961)),ROW(AB125))),"") -> Harold Castro
... 156 more rows

Sheet Guts-1 (hidden)
A1: =Settings!B6 -> AB | B1: =IF(Settings!C6=0,"",Settings!C6) -> -1 | C1: 3 | D1: =Settings!B24 -> W | E1: =IF(Settings!C24=0,"",Settings!C24) ->  | F1: 2 | I1: Stats or Points or Hide? | K1: =IF('Your Points Auction'!R7=O5,1,IF('Your Points Auction'!R7=O6,2,IF('Your Points Auction'!R7=O7,3,""))) -> 1 | L1: =MAX(COUNTIF(K2:K17,">"""),COUNTIF(K20:K34,">""")) -> 9 | N1: List | O1: List | P1: Pos | Q1: Sort by Original Projected Auction Value | R1: Show All Positions | S1: =IFERROR(INDEX($R$1:$R$24,SMALL(IF($R$1:$R$24<>"",ROW($R$1:$R$24)),ROW(B1))),"") -> Show All Positions
A2: =Settings!B8 -> Single | B2: =IF(Settings!C8=0,"",Settings!C8) ->  | C2: 6 | D2: =Settings!B25 -> L | E2: =IF(Settings!C25=0,"",Settings!C25) ->  | F2: 3 | I2: H1 | J2: =IF(Settings!C5=0,"",Settings!B5) ->  | K2: =IFERROR(INDEX($J$1:$J$18,SMALL(IF($J$1:$J$18<>"",ROW($J$1:$J$18)),ROW(A1))),"") -> AB | L2: =IF(K$1=2,1,IF(OR(K2="AVG",K2="OBP",K2="SLG",K2="OPS"),2,IF(K2="","",1))) -> 1 | M2: =IF(OR(K2="AVG",K2="OBP",K2="SLG",K2="OPS"),2,IF(K2="","",1)) -> 1 | N2: =IFERROR(INDEX($K$1:$K$34,SMALL(IF($K$1:$K$34<>"",ROW($K$1:$K$34)),ROW(B2))),"") -> AB | O2: Stats | P2: =IF('Guts-2'!$N$2>=ROW(P1),"C","") -> C | Q2: Sort by Projected Points | R2: =IF('Guts-2'!$N2>0,"Only Show: "&'Guts-2'!M2,"") -> Only Show: C | S2: =IFERROR(INDEX($R$1:$R$24,SMALL(IF($R$1:$R$24<>"",ROW($R$1:$R$24)),ROW(B2))),"") -> Only Show: C
A3: =Settings!B9 -> Double | B3: =IF(Settings!C9=0,"",Settings!C9) -> 2.9 | C3: 7 | D3: =Settings!B26 -> IP | E3: =IF(Settings!C26=0,"",Settings!C26) -> 7.4 | F3: 4 | I3: H2 | J3: =IF(Settings!C6=0,"",Settings!B6) -> AB | K3: =IFERROR(INDEX($J$1:$J$18,SMALL(IF($J$1:$J$18<>"",ROW($J$1:$J$18)),ROW(A2))),"") -> Hit | L3: =IF(K$1=2,1,IF(OR(K3="AVG",K3="OBP",K3="SLG",K3="OPS"),2,IF(K3="","",1))) -> 1 | M3: =IF(OR(K3="AVG",K3="OBP",K3="SLG",K3="OPS"),2,IF(K3="","",1)) -> 1 | N3: =IFERROR(INDEX($K$1:$K$34,SMALL(IF($K$1:$K$34<>"",ROW($K$1:$K$34)),ROW(B3))),"") -> Hit | O3: Ranks | P3: =IF('Guts-2'!$N$2>=ROW(P2),"C","") ->  | Q3: Sort by Expert Ranking | R3: =IF('Guts-2'!$N3>0,"Only Show: "&'Guts-2'!M3,"") -> Only Show: 1B | S3: =IFERROR(INDEX($R$1:$R$24,SMALL(IF($R$1:$R$24<>"",ROW($R$1:$R$24)),ROW(B3))),"") -> Only Show: 1B
A4: =Settings!B10 -> Triple | B4: =IF(Settings!C10=0,"",Settings!C10) -> 5.7 | C4: 8 | D4: =Settings!B27 -> Hit Allowed | E4: =IF(Settings!C27=0,"",Settings!C27) -> -2.6 | F4: 5 | I4: H3 | J4: =IF(Settings!C7=0,"",Settings!B7) -> Hit | K4: =IFERROR(INDEX($J$1:$J$18,SMALL(IF($J$1:$J$18<>"",ROW($J$1:$J$18)),ROW(A3))),"") -> Double | L4: 1 | M4: 1 | N4: =IFERROR(INDEX($K$1:$K$34,SMALL(IF($K$1:$K$34<>"",ROW($K$1:$K$34)),ROW(B4))),"") -> Double | O4: List | P4: =IF('Guts-2'!$N$2>=ROW(P3),"C","") ->  | Q4: Sort by Points Above Replacement | R4: =IF('Guts-2'!$N4>0,"Only Show: "&'Guts-2'!M4,"") -> Only Show: 2B | S4: =IFERROR(INDEX($R$1:$R$24,SMALL(IF($R$1:$R$24<>"",ROW($R$1:$R$24)),ROW(B4))),"") -> Only Show: 2B
A5: =Settings!B11 -> HR | B5: =IF(Settings!C11=0,"",Settings!C11) -> 9.4 | C5: 9 | D5: =Settings!B28 -> BB | E5: =IF(Settings!C28=0,"",Settings!C28) -> -3 | F5: 6 | I5: H4 | J5: =IF(Settings!C8=0,"",Settings!B8) ->  | K5: =IFERROR(INDEX($J$1:$J$18,SMALL(IF($J$1:$J$18<>"",ROW($J$1:$J$18)),ROW(A4))),"") -> Triple | L5: 1 | M5: 1 | N5: =IFERROR(INDEX($K$1:$K$34,SMALL(IF($K$1:$K$34<>"",ROW($K$1:$K$34)),ROW(B5))),"") -> Triple | O5: Show Basic Stats | P5: =IF('Guts-2'!$N$2>=ROW(P4),"C","") ->  | Q5: Sort by Points Per IP | R5: =IF('Guts-2'!$N5>0,"Only Show: "&'Guts-2'!M5,"") -> Only Show: 3B | S5: =IFERROR(INDEX($R$1:$R$24,SMALL(IF($R$1:$R$24<>"",ROW($R$1:$R$24)),ROW(B5))),"") -> Only Show: 3B
A6: =Settings!B12 -> BB | B6: =IF(Settings!C12=0,"",Settings!C12) -> 3 | C6: 13 | D6: =Settings!B29 -> K | E6: =IF(Settings!C29=0,"",Settings!C29) -> 2 | F6: 7 | I6: H5 | J6: =IF(Settings!C9=0,"",Settings!B9) -> Double | K6: =IFERROR(INDEX($J$1:$J$18,SMALL(IF($J$1:$J$18<>"",ROW($J$1:$J$18)),ROW(A5))),"") -> HR | L6: 1 | M6: 1 | N6: =IFERROR(INDEX($K$1:$K$34,SMALL(IF($K$1:$K$34<>"",ROW($K$1:$K$34)),ROW(B6))),"") -> HR | O6: Show Point Totals | P6: =IF('Guts-2'!$N$3>=ROW(P1),"1B","") -> 1B | Q6: Sort by Points Per PA | R6: =IF('Guts-2'!$N6>0,"Only Show: "&'Guts-2'!M6,"") -> Only Show: SS | S6: =IFERROR(INDEX($R$1:$R$24,SMALL(IF($R$1:$R$24<>"",ROW($R$1:$R$24)),ROW(B6))),"") -> Only Show: SS
A7: =Settings!B13 -> SB | B7: =IF(Settings!C13=0,"",Settings!C13) -> 1.9 | C7: 11 | D7: =Settings!B30 -> ER | E7: =IF(Settings!C30=0,"",Settings!C30) ->  | F7: 8 | I7: H6 | J7: =IF(Settings!C10=0,"",Settings!B10) -> Triple | K7: =IFERROR(INDEX($J$1:$J$18,SMALL(IF($J$1:$J$18<>"",ROW($J$1:$J$18)),ROW(A6))),"") -> BB | L7: 1 | M7: 1 | N7: =IFERROR(INDEX($K$1:$K$34,SMALL(IF($K$1:$K$34<>"",ROW($K$1:$K$34)),ROW(B7))),"") -> BB | O7: Show Neither | P7: =IF('Guts-2'!$N$3>=ROW(P2),"1B","") ->  | R7: =IF('Guts-2'!$N7>0,"Only Show: "&'Guts-2'!M7,"") ->  | S7: =IFERROR(INDEX($R$1:$R$24,SMALL(IF($R$1:$R$24<>"",ROW($R$1:$R$24)),ROW(B7))),"") -> Only Show: MI
A8: =Settings!B14 -> CS | B8: =IF(Settings!C14=0,"",Settings!C14) -> -2.8 | C8: 12 | D8: SV | E8: =IF(Settings!C31=0,"",Settings!C31) -> 5 | F8: 9 | I8: H7 | J8: =IF(Settings!C11=0,"",Settings!B11) -> HR | K8: =IFERROR(INDEX($J$1:$J$18,SMALL(IF($J$1:$J$18<>"",ROW($J$1:$J$18)),ROW(A7))),"") -> SB | L8: 1 | M8: 1 | N8: =IFERROR(INDEX($K$1:$K$34,SMALL(IF($K$1:$K$34<>"",ROW($K$1:$K$34)),ROW(B8))),"") -> SB | O8: List | P8: =IF('Guts-2'!$N$3>=ROW(P3),"1B","") ->  | R8: =IF('Guts-2'!$N8>0,"Only Show: "&'Guts-2'!M8,"") -> Only Show: MI | S8: =IFERROR(INDEX($R$1:$R$24,SMALL(IF($R$1:$R$24<>"",ROW($R$1:$R$24)),ROW(B8))),"") -> Only Show: OF
A9: =Settings!B15 -> K | B9: =IF(Settings!C15=0,"",Settings!C15) ->  | C9: 14 | D9: =Settings!B32 -> QS | E9: =IF(Settings!C32=0,"",Settings!C32) ->  | F9: 10 | I9: H8 | J9: =IF(Settings!C12=0,"",Settings!B12) -> BB | K9: =IFERROR(INDEX($J$1:$J$18,SMALL(IF($J$1:$J$18<>"",ROW($J$1:$J$18)),ROW(A8))),"") -> CS | L9: 1 | M9: 1 | N9: =IFERROR(INDEX($K$1:$K$34,SMALL(IF($K$1:$K$34<>"",ROW($K$1:$K$34)),ROW(B9))),"") -> CS | O9: Mixed (Standard) | P9: =IF('Guts-2'!$N$4>=ROW(P1),"2B","") -> 2B | R9: =IF('Guts-2'!$N9>0,"Only Show: "&'Guts-2'!M9,"") -> Only Show: OF | S9: =IFERROR(INDEX($R$1:$R$24,SMALL(IF($R$1:$R$24<>"",ROW($R$1:$R$24)),ROW(B9))),"") -> Only Show: DH
A10: =Settings!B16 -> R | B10: =IF(Settings!C16=0,"",Settings!C16) ->  | C10: 4 | D10: =Settings!B33 -> CG | E10: =IF(Settings!C33=0,"",Settings!C33) ->  | F10: 14 | I10: H9 | J10: =IF(Settings!C13=0,"",Settings!B13) -> SB | K10: =IFERROR(INDEX($J$1:$J$18,SMALL(IF($J$1:$J$18<>"",ROW($J$1:$J$18)),ROW(A9))),"") -> HBP | L10: 1 | M10: 1 | N10: =IFERROR(INDEX($K$1:$K$34,SMALL(IF($K$1:$K$34<>"",ROW($K$1:$K$34)),ROW(B10))),"") -> HBP | O10: AL-Only | P10: =IF('Guts-2'!$N$4>=ROW(P2),"2B","") ->  | R10: =IF('Guts-2'!$N10>0,"Only Show: "&'Guts-2'!M10,"") -> Only Show: DH | S10: =IFERROR(INDEX($R$1:$R$24,SMALL(IF($R$1:$R$24<>"",ROW($R$1:$R$24)),ROW(B10))),"") -> Only Show: SP
A11: =Settings!B17 -> RBI | B11: =IF(Settings!C17=0,"",Settings!C17) ->  | C11: 10 | D11: =Settings!B34 -> Shutout | E11: =IF(Settings!C34=0,"",Settings!C34) ->  | F11: 15 | I11: H10 | J11: =IF(Settings!C14=0,"",Settings!B14) -> CS | K11: =IFERROR(INDEX($J$1:$J$18,SMALL(IF($J$1:$J$18<>"",ROW($J$1:$J$18)),ROW(A10))),"") ->  | N11: =IFERROR(INDEX($K$1:$K$34,SMALL(IF($K$1:$K$34<>"",ROW($K$1:$K$34)),ROW(B11))),"") -> IP | O11: NL-Only | P11: =IF('Guts-2'!$N$4>=ROW(P3),"2B","") ->  | R11: Only Show: SP | S11: =IFERROR(INDEX($R$1:$R$24,SMALL(IF($R$1:$R$24<>"",ROW($R$1:$R$24)),ROW(B11))),"") -> Only Show: RP
A12: =Settings!B18 -> Errors | B12: =IF(Settings!C18=0,"",Settings!C18) ->  | C12: 15 | D12: =Settings!B35 -> Holds | E12: =IF(Settings!C35=0,"",Settings!C35) -> 4 | F12: 16 | I12: H11 | J12: =IF(Settings!C15=0,"",Settings!B15) ->  | K12: =IFERROR(INDEX($J$1:$J$18,SMALL(IF($J$1:$J$18<>"",ROW($J$1:$J$18)),ROW(A11))),"") ->  | N12: =IFERROR(INDEX($K$1:$K$34,SMALL(IF($K$1:$K$34<>"",ROW($K$1:$K$34)),ROW(B12))),"") -> Hit Allowed | O12: Specific Teams Only | P12: =IF('Guts-2'!$N$5>=ROW(P1),"3B","") -> 3B | R12: Only Show: RP | S12: =IFERROR(INDEX($R$1:$R$24,SMALL(IF($R$1:$R$24<>"",ROW($R$1:$R$24)),ROW(B12))),"") -> Only Show: P
A13: =Settings!B19 -> GIDP | B13: =IF(Settings!C19=0,"",Settings!C19) ->  | C13: 16 | D13: =Settings!B36 -> Game Started | E13: =IF(Settings!C36=0,"",Settings!C36) ->  | F13: 17 | I13: H12 | J13: =IF(Settings!C16=0,"",Settings!B16) ->  | K13: =IFERROR(INDEX($J$1:$J$18,SMALL(IF($J$1:$J$18<>"",ROW($J$1:$J$18)),ROW(A12))),"") ->  | N13: =IFERROR(INDEX($K$1:$K$34,SMALL(IF($K$1:$K$34<>"",ROW($K$1:$K$34)),ROW(B13))),"") -> BB | O13: Y | P13: =IF('Guts-2'!$N$5>=ROW(P2),"3B","") ->  | R13: Only Show: P | S13: =IFERROR(INDEX($R$1:$R$24,SMALL(IF($R$1:$R$24<>"",ROW($R$1:$R$24)),ROW(B13))),"") -> 
A14: HBP | B14: =IF(Settings!C20=0,"",Settings!C20) -> 3 | C14: 17 | D14: =Settings!B37 -> HRA | E14: =IF(Settings!C37=0,"",Settings!C37) -> -12.3 | F14: 18 | I14: H13 | J14: =IF(Settings!C17=0,"",Settings!B17) ->  | K14: =IFERROR(INDEX($J$1:$J$18,SMALL(IF($J$1:$J$18<>"",ROW($J$1:$J$18)),ROW(A13))),"") ->  | L14: =IF(K$1=2,1,IF(OR(K14="AVG",K14="OBP",K14="SLG",K14="OPS"),2,IF(K14="","",1))) ->  | M14: =IF(OR(K14="AVG",K14="OBP",K14="SLG",K14="OPS"),2,IF(K14="","",1)) ->  | N14: =IFERROR(INDEX($K$1:$K$34,SMALL(IF($K$1:$K$34<>"",ROW($K$1:$K$34)),ROW(B14))),"") -> K | O14: N | P14: =IF('Guts-2'!$N$5>=ROW(P3),"3B","") ->  | R14: =IF('Guts-2'!$N14>0,"Only Show: "&'Guts-2'!M14,"") ->  | S14: =IFERROR(INDEX($R$1:$R$24,SMALL(IF($R$1:$R$24<>"",ROW($R$1:$R$24)),ROW(#REF!))),"") -> 
A15: XBH | B15: =IF(Settings!C21=0,"",Settings!C21) ->  | C15: 18 | D15: Blown Save | E15: =IF(Settings!C38=0,"",Settings!C38) ->  | F15: 19 | I15: H14 | J15: =IF(Settings!C18=0,"",Settings!B18) ->  | K15: =IFERROR(INDEX($J$1:$J$18,SMALL(IF($J$1:$J$18<>"",ROW($J$1:$J$18)),ROW(A14))),"") ->  | N15: =IFERROR(INDEX($K$1:$K$34,SMALL(IF($K$1:$K$34<>"",ROW($K$1:$K$34)),ROW(B15))),"") -> SV | O15: Full | P15: =IF('Guts-2'!$N$6>=ROW(P1),"SS","") -> SS | R15: =IF('Guts-2'!$N15>0,"Only Show: "&'Guts-2'!M15,"") ->  | S15: =IFERROR(INDEX($R$1:$R$24,SMALL(IF($R$1:$R$24<>"",ROW($R$1:$R$24)),ROW(#REF!))),"") -> 
A16: PA | B16: =IF(Settings!C5=0,"",Settings!C5) ->  | C16: 2 | I16: H15 | J16: =IF(Settings!C19=0,"",Settings!B19) ->  | K16: =IFERROR(INDEX($J$1:$J$18,SMALL(IF($J$1:$J$18<>"",ROW($J$1:$J$18)),ROW(A15))),"") ->  | L16: =IF(K$1=2,1,IF(OR(K20="ERA",K20="WHIP"),4,IF(OR(K20="K/9",K20="K/BB"),3,IF(K20="BAA",2,IF(K20="","",1))))) -> 1 | M16: =IF(OR(K20="ERA",K20="WHIP"),4,IF(OR(K20="K/9",K20="K/BB"),3,IF(K20="BAA",2,IF(K20="","",1)))) -> 1 | N16: =IFERROR(INDEX($K$1:$K$34,SMALL(IF($K$1:$K$34<>"",ROW($K$1:$K$34)),ROW(B16))),"") -> Holds | O16: Half | P16: =IF('Guts-2'!$N$6>=ROW(P2),"SS","") ->  | R16: =IF('Guts-2'!$N16>0,"Only Show: "&'Guts-2'!M16,"") ->  | S16: =IFERROR(INDEX($R$1:$R$24,SMALL(IF($R$1:$R$24<>"",ROW($R$1:$R$24)),ROW(#REF!))),"") -> 
A17: Hit | B17: =IF(Settings!C7=0,"",Settings!C7) -> 5.6 | C17: 5 | I17: H16 | J17: =IF(Settings!C20=0,"",Settings!B20) -> HBP | K17: =IFERROR(INDEX($J$1:$J$18,SMALL(IF($J$1:$J$18<>"",ROW($J$1:$J$18)),ROW(A16))),"") ->  | L17: 1 | M17: =IF(OR(K21="ERA",K21="WHIP"),4,IF(OR(K21="K/9",K21="K/BB"),3,IF(K21="BAA",2,IF(K21="","",1)))) -> 1 | N17: =IFERROR(INDEX($K$1:$K$34,SMALL(IF($K$1:$K$34<>"",ROW($K$1:$K$34)),ROW(B17))),"") -> HRA | O17: Snake Draft | P17: =IF('Guts-2'!$N$6>=ROW(P3),"SS","") ->  | R17: =IF('Guts-2'!$N17>0,"Only Show: "&'Guts-2'!M17,"") ->  | S17: =IFERROR(INDEX($R$1:$R$24,SMALL(IF($R$1:$R$24<>"",ROW($R$1:$R$24)),ROW(#REF!))),"") -> 
I18: H17 | J18: =IF(Settings!C21=0,"",Settings!B21) ->  | K18: =IFERROR(INDEX($J$1:$J$18,SMALL(IF($J$1:$J$18<>"",ROW($J$1:$J$18)),ROW(A17))),"") ->  | L18: 1 | M18: 1 | N18: =IFERROR(INDEX($K$1:$K$34,SMALL(IF($K$1:$K$34<>"",ROW($K$1:$K$34)),ROW(B18))),"") ->  | O18: Same Order Every Round | P18: =IF('Guts-2'!$N$7>=ROW(P1),"CI","") -> 
L19: 1 | M19: 1 | N19: =IFERROR(INDEX($K$1:$K$34,SMALL(IF($K$1:$K$34<>"",ROW($K$1:$K$34)),ROW(B19))),"") ->  | O19: Show Drafted Players | P19: =IF('Guts-2'!$N$7>=ROW(P2),"CI","") -> 
I20: P1 | J20: =IF(Settings!C24=0,"",Settings!B24) ->  | K20: =IFERROR(INDEX($J$1:$J$34,SMALL(IF($J$1:$J$34<>"",ROW($J$1:$J$34)),COUNTIF(($K$2:$K$14),">""")+ROW(A1))),"") -> IP | L20: 1 | M20: 1 | N20: =IFERROR(INDEX($K$1:$K$34,SMALL(IF($K$1:$K$34<>"",ROW($K$1:$K$34)),ROW(B20))),"") ->  | O20: Hide Drafted Players | P20: =IF('Guts-2'!$N$7>=ROW(P3),"CI","") -> 
I21: P2 | J21: =IF(Settings!C25=0,"",Settings!B25) ->  | K21: =IFERROR(INDEX($J$1:$J$34,SMALL(IF($J$1:$J$34<>"",ROW($J$1:$J$34)),COUNTIF(($K$2:$K$14),">""")+ROW(A2))),"") -> Hit Allowed | L21: 1 | M21: 1 | N21: =IFERROR(INDEX($K$1:$K$34,SMALL(IF($K$1:$K$34<>"",ROW($K$1:$K$34)),ROW(B21))),"") ->  | O21: All Teams Have Same Budget | P21: =IF('Guts-2'!$N$8>=ROW(P1),"MI","") -> MI
I22: P3 | J22: =IF(Settings!C26=0,"",Settings!B26) -> IP | K22: =IFERROR(INDEX($J$1:$J$34,SMALL(IF($J$1:$J$34<>"",ROW($J$1:$J$34)),COUNTIF(($K$2:$K$14),">""")+ROW(A3))),"") -> BB | L22: 1 | M22: 1 | N22: =IFERROR(INDEX($K$1:$K$34,SMALL(IF($K$1:$K$34<>"",ROW($K$1:$K$34)),ROW(B22))),"") ->  | O22: Budgets Vary By Team | P22: =IF('Guts-2'!$N$8>=ROW(P2),"MI","") -> 
I23: P4 | J23: =IF(Settings!C27=0,"",Settings!B27) -> Hit Allowed | K23: =IFERROR(INDEX($J$1:$J$34,SMALL(IF($J$1:$J$34<>"",ROW($J$1:$J$34)),COUNTIF(($K$2:$K$14),">""")+ROW(A4))),"") -> K | N23: =IFERROR(INDEX($K$1:$K$34,SMALL(IF($K$1:$K$34<>"",ROW($K$1:$K$34)),ROW(B23))),"") ->  | O23: Values Adjusted By Position | P23: =IF('Guts-2'!$N$8>=ROW(P3),"MI","") -> 
I24: P5 | J24: =IF(Settings!C28=0,"",Settings!B28) -> BB | K24: =IFERROR(INDEX($J$1:$J$34,SMALL(IF($J$1:$J$34<>"",ROW($J$1:$J$34)),COUNTIF(($K$2:$K$14),">""")+ROW(A5))),"") -> SV | N24: =IFERROR(INDEX($K$1:$K$34,SMALL(IF($K$1:$K$34<>"",ROW($K$1:$K$34)),ROW(B24))),"") ->  | O24: Turn Off Position Adjustments | P24: =IF('Guts-2'!$N$17>=ROW(P1),"IF","") -> 
I25: P6 | J25: =IF(Settings!C29=0,"",Settings!B29) -> K | K25: =IFERROR(INDEX($J$1:$J$34,SMALL(IF($J$1:$J$34<>"",ROW($J$1:$J$34)),COUNTIF(($K$2:$K$14),">""")+ROW(A6))),"") -> Holds | N25: =IFERROR(INDEX($K$1:$K$34,SMALL(IF($K$1:$K$34<>"",ROW($K$1:$K$34)),ROW(B25))),"") ->  | P25: =IF('Guts-2'!$N$17>=ROW(P2),"IF","") -> 
A26: Budget Per Team | B26: =Settings!J6 -> 400 | I26: P7 | J26: =IF(Settings!C30=0,"",Settings!B30) ->  | K26: =IFERROR(INDEX($J$1:$J$34,SMALL(IF($J$1:$J$34<>"",ROW($J$1:$J$34)),COUNTIF(($K$2:$K$14),">""")+ROW(A7))),"") -> HRA | O26: Hot | P26: =IF('Guts-2'!$N$17>=ROW(P3),"IF","") -> 
A27: Players Per Team | B27: =Settings!F26 -> 40 | C27: =SUM('Guts-2'!N2:N17) -> 22 | I27: P8 | J27: =IF(Settings!C31=0,"",Settings!B31) -> SV | K27: =IFERROR(INDEX($J$1:$J$34,SMALL(IF($J$1:$J$34<>"",ROW($J$1:$J$34)),COUNTIF(($K$2:$K$14),">""")+ROW(A8))),"") ->  | O27: Cold | P27: =IF('Guts-2'!$N$17>=ROW(P4),"IF","") -> 
A28: Total League Money | B28: =IF(Settings!J8="All Teams Have Same Budget",Settings!J5*Settings!J6,SUM(Settings!K12:K35)) -> 4800 | I28: P9 | J28: =IF(Settings!C32=0,"",Settings!B32) ->  | K28: =IFERROR(INDEX($J$1:$J$34,SMALL(IF($J$1:$J$34<>"",ROW($J$1:$J$34)),COUNTIF(($K$2:$K$14),">""")+ROW(A9))),"") ->  | M28: =IF(OR(K32="ERA",K32="WHIP"),4,IF(OR(K32="K/9",K32="K/BB"),3,IF(K32="BAA",2,IF(K32="","",1)))) ->  | O28: Target | P28: =IF('Guts-2'!$N$17>=ROW(P5),"IF","") -> 
A29: Minimum Bid | B29: =Settings!J7 -> 1 | I29: P10 | J29: =IF(Settings!C33=0,"",Settings!B33) ->  | K29: =IFERROR(INDEX($J$1:$J$34,SMALL(IF($J$1:$J$34<>"",ROW($J$1:$J$34)),COUNTIF(($K$2:$K$14),">""")+ROW(A10))),"") ->  | M29: =IF(OR(K33="ERA",K33="WHIP"),4,IF(OR(K33="K/9",K33="K/BB"),3,IF(K33="BAA",2,IF(K33="","",1)))) ->  | O29: Avoid | P29: =IF('Guts-2'!$N$17>=ROW(P6),"IF","") -> 
A30: Minimum Amount To Spend | B30: =B27*'Guts-2'!N1*B29 -> 480 | I30: P11 | J30: =IF(Settings!C34=0,"",Settings!B34) ->  | K30: =IFERROR(INDEX($J$1:$J$34,SMALL(IF($J$1:$J$34<>"",ROW($J$1:$J$34)),COUNTIF(($K$2:$K$14),">""")+ROW(A11))),"") ->  | M30: =IF(OR(K34="ERA",K34="WHIP"),4,IF(OR(K34="K/9",K34="K/BB"),3,IF(K34="BAA",2,IF(K34="","",1)))) ->  | O30: Injury | P30: =IF('Guts-2'!$N$9>=ROW(P1),"OF","") -> OF
A31: Hitter Min | B31: ='Filtered-H'!Z18 -> 144 | I31: P12 | J31: =IF(Settings!C35=0,"",Settings!B35) -> Holds | K31: =IFERROR(INDEX($J$1:$J$34,SMALL(IF($J$1:$J$34<>"",ROW($J$1:$J$34)),COUNTIF(($K$2:$K$14),">""")+ROW(A12))),"") ->  | O31: Note | P31: =IF('Guts-2'!$N$9>=ROW(P2),"OF","") -> OF
A32: Pitcher Min | B32: ='Filtered-P'!X9 -> 120 | I32: P13 | J32: =IF(Settings!C36=0,"",Settings!B36) ->  | K32: =IFERROR(INDEX($J$1:$J$34,SMALL(IF($J$1:$J$34<>"",ROW($J$1:$J$34)),COUNTIF(($K$2:$K$14),">""")+ROW(A13))),"") ->  | O32: Sleeper | P32: =IF('Guts-2'!$N$9>=ROW(P3),"OF","") -> OF
A33: Bench Min | B33: =(B27*'Guts-2'!N1)-B31-B32 -> 216 | I33: P14 | J33: =IF(Settings!C37=0,"",Settings!B37) -> HRA | K33: =IFERROR(INDEX($J$1:$J$34,SMALL(IF($J$1:$J$34<>"",ROW($J$1:$J$34)),COUNTIF(($K$2:$K$14),">""")+ROW(A14))),"") ->  | O33: Bust | P33: =IF('Guts-2'!$N$9>=ROW(P4),"OF","") -> OF
A34: Money Above Min | B34: =B28-B30 -> 4320 | I34: P15 | J34: =IF(Settings!C38=0,"",Settings!B38) ->  | K34: =IFERROR(INDEX($J$1:$J$34,SMALL(IF($J$1:$J$34<>"",ROW($J$1:$J$34)),COUNTIF(($K$2:$K$14),">""")+ROW(A15))),"") ->  | O34: Sort drop-down by: Player Value | P34: =IF('Guts-2'!$N$9>=ROW(P5),"OF","") -> OF
A35: Hitter Split | B35: =Settings!N7*100 -> 70 | O35: Sort drop-down by: Last Name | P35: =IF('Guts-2'!$N$9>=ROW(P6),"OF","") -> 
A36: Pitcher Split | B36: =Settings!N8*100 -> 30 | P36: =IF('Guts-2'!$N$9>=ROW(P7),"OF","") -> 
A37: Inflation Options | B37: =IF(Settings!N5="Turn Off Position Adjustments",1,0) -> 0 | P37: =IF('Guts-2'!$N$9>=ROW(P8),"OF","") -> 
A38: Total Bench Players | B38: =Settings!F23*Settings!J5 -> 216 | P38: =IF('Guts-2'!$N$9>=ROW(P9),"OF","") -> 
A39: Additional Inflation | B39: =Settings!N6 -> 0 | P39: =IF('Guts-2'!$N$14>=ROW(P1),"LF","") -> 
P40: =IF('Guts-2'!$N$14>=ROW(P2),"LF","") -> 
P41: =IF('Guts-2'!$N$14>=ROW(P3),"LF","") -> 
P42: =IF('Guts-2'!$N$15>=ROW(P1),"CF","") -> 
P43: =IF('Guts-2'!$N$15>=ROW(P2),"CF","") -> 
P44: =IF('Guts-2'!$N$15>=ROW(P3),"CF","") -> 
P45: =IF('Guts-2'!$N$16>=ROW(P1),"RF","") -> 
P46: =IF('Guts-2'!$N$16>=ROW(P2),"RF","") -> 
P47: =IF('Guts-2'!$N$16>=ROW(P3),"RF","") -> 
P48: =IF('Guts-2'!$N$10>=ROW(P1),"DH","") -> DH
P49: =IF('Guts-2'!$N$10>=ROW(P2),"DH","") -> 
P50: =IF('Guts-2'!$N$10>=ROW(P3),"DH","") -> 
P51: =IF('Guts-2'!$N$10>=ROW(P4),"DH","") -> 
P52: =IF('Guts-2'!$N$10>=ROW(P5),"DH","") -> 
P53: =IF('Guts-2'!$N$10>=ROW(P6),"DH","") -> 
P54: =IF('Guts-2'!$N$11>=ROW(P1),"SP","") -> SP
P55: =IF('Guts-2'!$N$11>=ROW(P2),"SP","") -> SP
P56: =IF('Guts-2'!$N$11>=ROW(P3),"SP","") -> SP
P57: =IF('Guts-2'!$N$11>=ROW(P4),"SP","") -> SP
P58: =IF('Guts-2'!$N$11>=ROW(P5),"SP","") -> SP
P59: =IF('Guts-2'!$N$11>=ROW(P6),"SP","") -> 
P60: =IF('Guts-2'!$N$11>=ROW(P7),"SP","") -> 
P61: =IF('Guts-2'!$N$11>=ROW(P8),"SP","") -> 
P62: =IF('Guts-2'!$N$11>=ROW(P9),"SP","") -> 
P63: =IF('Guts-2'!$N$11>=ROW(P10),"SP","") -> 
P64: =IF('Guts-2'!$N$12>=ROW(P1),"RP","") -> RP
P65: =IF('Guts-2'!$N$12>=ROW(P2),"RP","") -> RP
P66: =IF('Guts-2'!$N$12>=ROW(P3),"RP","") -> RP
P67: =IF('Guts-2'!$N$12>=ROW(P4),"RP","") -> RP
P68: =IF('Guts-2'!$N$12>=ROW(P5),"RP","") -> RP
P69: =IF('Guts-2'!$N$12>=ROW(P6),"RP","") -> 
P70: =IF('Guts-2'!$N$12>=ROW(P7),"RP","") -> 
P71: =IF('Guts-2'!$N$12>=ROW(P8),"RP","") -> 
P72: =IF('Guts-2'!$N$12>=ROW(P9),"RP","") -> 
P73: =IF('Guts-2'!$N$12>=ROW(P10),"RP","") -> 
P74: =IF('Guts-2'!$N$13>=ROW(P1),"P","") -> 
P75: =IF('Guts-2'!$N$13>=ROW(P2),"P","") -> 
P76: =IF('Guts-2'!$N$13>=ROW(P3),"P","") -> 
P77: =IF('Guts-2'!$N$13>=ROW(P4),"P","") -> 
P78: =IF('Guts-2'!$N$13>=ROW(P5),"P","") -> 
P79: =IF('Guts-2'!$N$13>=ROW(P6),"P","") -> 
P80: =IF('Guts-2'!$N$13>=ROW(P7),"P","") -> 
P81: =IF('Guts-2'!$N$13>=ROW(P8),"P","") -> 
P82: =IF('Guts-2'!$N$13>=ROW(P9),"P","") -> 
P83: =IF('Guts-2'!$N$13>=ROW(P10),"P","") -> 
P84: =IF('Guts-2'!$N$13>=ROW(P11),"P","") -> 
P85: =IF('Guts-2'!$N$13>=ROW(P12),"P","") -> 
P86: =IF('Guts-2'!$N$13>=ROW(P13),"P","") -> 
P87: =IF('Guts-2'!$N$13>=ROW(P14),"P","") -> 
P88: =IF('Guts-2'!$N$13>=ROW(P15),"P","") -> 

Sheet Guts-2 (hidden)
D1: THE BAT | E1: Teams | F1: Starters | G1: THE BAT | H1: =IF(OR(Settings!$O$35<>100,Settings!$N$35<>100),0,Settings!N26) -> 20 | I1: =IF(OR(Settings!$O$35<>100,Settings!$N$35<>100),0,Settings!O26) -> 20 | J1: LAA | K1: =IF(OR(Settings!$Q$5="AL-Only",Settings!$Q$5="Mixed (Standard)"),TRUE,IF(Settings!$Q$5="Specific Teams Only",IF(Settings!S6="Y",TRUE,FALSE),FALSE)) -> TRUE | L1: C | M1: # of Teams | N1: =Settings!J5 -> 12 | P1: =IFERROR(INDEX($O$1:$O$19,SMALL(IF($O$1:$O$19<>"",ROW($O$1:$O$19)),ROW(O1))),"") -> C
A2: =IF($N$1>=ROW(A1),Settings!J12,#N/A) -> Team 1 | B2: CBS (Projected Value) | C2: ESPN - Points Rankings | D2: Clay Davenport | E2: 6 | F2: 0 | G2: Clay Davenport | H2: =IF(OR(Settings!$O$35<>100,Settings!$N$35<>100),0,Settings!N27) -> 20 | I2: =IF(OR(Settings!$O$35<>100,Settings!$N$35<>100),0,Settings!O27) -> 20 | J2: ARI | K2: =IF(OR(Settings!$Q$5="NL-Only",Settings!$Q$5="Mixed (Standard)"),TRUE,IF(Settings!$Q$5="Specific Teams Only",IF(Settings!S7="Y",TRUE,FALSE),FALSE)) -> TRUE | L2: 1B | M2: C | N2: =Settings!F5 -> 1 | O2: =IF(N2>0,M2,"") -> C | P2: =IFERROR(INDEX($O$1:$O$19,SMALL(IF($O$1:$O$19<>"",ROW($O$1:$O$19)),ROW(O2))),"") -> 1B
A3: =IF($N$1>=ROW(A2),Settings!J13,#N/A) -> Team 2 | C3: ESPN - E. Karabell | D3: Fangraphs - Depth Chart | E3: 7 | F3: 1 | G3: Fangraphs - Depth Chart | H3: =IF(OR(Settings!$O$35<>100,Settings!$N$35<>100),0,Settings!N28) -> 0 | I3: =IF(OR(Settings!$O$35<>100,Settings!$N$35<>100),0,Settings!O28) -> 0 | J3: ATL | K3: =IF(OR(Settings!$Q$5="NL-Only",Settings!$Q$5="Mixed (Standard)"),TRUE,IF(Settings!$Q$5="Specific Teams Only",IF(Settings!S8="Y",TRUE,FALSE),FALSE)) -> TRUE | L3: 2B | M3: 1B | N3: =Settings!F6 -> 1 | O3: =IF(N3>0,M3,"") -> 1B | P3: =IFERROR(INDEX($O$1:$O$19,SMALL(IF($O$1:$O$19<>"",ROW($O$1:$O$19)),ROW(O3))),"") -> 2B
A4: =IF($N$1>=ROW(A3),Settings!J14,#N/A) -> Team 3 | B4: Yahoo (Projected Value) | D4: Mr. Cheatsheet's Special Blend | E4: 8 | F4: 2 | G4: Fangraphs - Fan Projections | H4: =IF(OR(Settings!$O$35<>100,Settings!$N$35<>100),0,Settings!N29) -> 20 | I4: =IF(OR(Settings!$O$35<>100,Settings!$N$35<>100),0,Settings!O29) -> 20 | J4: BAL | K4: =IF(OR(Settings!$Q$5="AL-Only",Settings!$Q$5="Mixed (Standard)"),TRUE,IF(Settings!$Q$5="Specific Teams Only",IF(Settings!S9="Y",TRUE,FALSE),FALSE)) -> TRUE | L4: 3B | M4: 2B | N4: =Settings!F7 -> 1 | O4: 2B | P4: =IFERROR(INDEX($O$1:$O$19,SMALL(IF($O$1:$O$19<>"",ROW($O$1:$O$19)),ROW(O4))),"") -> 3B
A5: =IF($N$1>=ROW(A4),Settings!J15,#N/A) -> Team 4 | B5: Yahoo (Avg Mock Draft Value) | E5: 9 | F5: 3 | G5: Steamer | H5: =IF(OR(Settings!$O$35<>100,Settings!$N$35<>100),0,Settings!N30) -> 40 | I5: =IF(OR(Settings!$O$35<>100,Settings!$N$35<>100),0,Settings!O30) -> 40 | J5: BOS | K5: =IF(OR(Settings!$Q$5="AL-Only",Settings!$Q$5="Mixed (Standard)"),TRUE,IF(Settings!$Q$5="Specific Teams Only",IF(Settings!S10="Y",TRUE,FALSE),FALSE)) -> TRUE | L5: SS | M5: 3B | N5: =Settings!F8 -> 1 | O5: 3B | P5: =IFERROR(INDEX($O$1:$O$19,SMALL(IF($O$1:$O$19<>"",ROW($O$1:$O$19)),ROW(O5))),"") -> SS
A6: =IF($N$1>=ROW(A5),Settings!J16,#N/A) -> Team 5 | C6: RotoChamp | E6: 10 | F6: 4 | G6: Steamer - 600 PA | H6: =IF(OR(Settings!$O$35<>100,Settings!$N$35<>100),0,Settings!N31) -> 0 | I6: =IF(OR(Settings!$O$35<>100,Settings!$N$35<>100),0,Settings!O31) -> 0 | J6: CHC | K6: =IF(OR(Settings!$Q$5="NL-Only",Settings!$Q$5="Mixed (Standard)"),TRUE,IF(Settings!$Q$5="Specific Teams Only",IF(Settings!S11="Y",TRUE,FALSE),FALSE)) -> TRUE | L6: OF | M6: SS | N6: =Settings!F9 -> 1 | O6: SS | P6: =IFERROR(INDEX($O$1:$O$19,SMALL(IF($O$1:$O$19<>"",ROW($O$1:$O$19)),ROW(O6))),"") -> MI
A7: =IF($N$1>=ROW(A6),Settings!J17,#N/A) -> Team 6 | B7: FantasyPros (Projected Value) | C7: Yahoo Staff | D7: Steamer | E7: 11 | F7: 5 | G7: ZiPS | H7: =IF(OR(Settings!$O$35<>100,Settings!$N$35<>100),0,Settings!N32) -> 0 | I7: =IF(OR(Settings!$O$35<>100,Settings!$N$35<>100),0,Settings!O32) -> 0 | J7: CHW | K7: =IF(OR(Settings!$Q$5="AL-Only",Settings!$Q$5="Mixed (Standard)"),TRUE,IF(Settings!$Q$5="Specific Teams Only",IF(Settings!S12="Y",TRUE,FALSE),FALSE)) -> TRUE | L7: SP | M7: CI | N7: =Settings!F12 -> 0 | P7: =IFERROR(INDEX($O$1:$O$19,SMALL(IF($O$1:$O$19<>"",ROW($O$1:$O$19)),ROW(O7))),"") -> OF
A8: =IF($N$1>=ROW(A7),Settings!J18,#N/A) -> Team 7 | B8: Average of All Options | C8: FantasyPros Avg | D8: Steamer - 600 PA | E8: 12 | F8: 6 | J8: CIN | K8: =IF(OR(Settings!$Q$5="NL-Only",Settings!$Q$5="Mixed (Standard)"),TRUE,IF(Settings!$Q$5="Specific Teams Only",IF(Settings!S13="Y",TRUE,FALSE),FALSE)) -> TRUE | L8: RP | M8: MI | N8: =Settings!F13 -> 1 | O8: MI | P8: =IFERROR(INDEX($O$1:$O$19,SMALL(IF($O$1:$O$19<>"",ROW($O$1:$O$19)),ROW(O8))),"") -> DH
A9: =IF($N$1>=ROW(A8),Settings!J19,#N/A) -> Team 8 | B9: Imported Values | C9: =IFERROR(INDEX($C$1:$C$8,SMALL(IF($C$1:$C$8<>"",ROW($C$1:$C$8)),ROW(C1))),"") -> ESPN - Points Rankings | D9: ZiPS | E9: 13 | F9: 7 | J9: CLE | K9: =IF(OR(Settings!$Q$5="AL-Only",Settings!$Q$5="Mixed (Standard)"),TRUE,IF(Settings!$Q$5="Specific Teams Only",IF(Settings!S14="Y",TRUE,FALSE),FALSE)) -> TRUE | L9: DH | M9: OF | N9: =Settings!F10 -> 5 | O9: OF | P9: =IFERROR(INDEX($O$1:$O$19,SMALL(IF($O$1:$O$19<>"",ROW($O$1:$O$19)),ROW(O9))),"") -> SP
A10: =IF($N$1>=ROW(A9),Settings!J20,#N/A) -> Team 9 | C10: =IFERROR(INDEX($C$1:$C$8,SMALL(IF($C$1:$C$8<>"",ROW($C$1:$C$8)),ROW(C2))),"") -> ESPN - E. Karabell | D10: Import Your Own Projections | E10: 14 | F10: 8 | J10: COL | K10: =IF(OR(Settings!$Q$5="NL-Only",Settings!$Q$5="Mixed (Standard)"),TRUE,IF(Settings!$Q$5="Specific Teams Only",IF(Settings!S15="Y",TRUE,FALSE),FALSE)) -> TRUE | M10: DH | N10: =Settings!F11 -> 1 | O10: DH | P10: =IFERROR(INDEX($O$1:$O$19,SMALL(IF($O$1:$O$19<>"",ROW($O$1:$O$19)),ROW(O10))),"") -> RP
A11: =IF($N$1>=ROW(A10),Settings!J21,#N/A) -> Team 10 | B11: =IFERROR(INDEX($B$1:$B$10,SMALL(IF($B$1:$B$10<>"",ROW($B$1:$B$10)),ROW(B1))),"") -> CBS (Projected Value) | C11: =IFERROR(INDEX($C$1:$C$8,SMALL(IF($C$1:$C$8<>"",ROW($C$1:$C$8)),ROW(C3))),"") -> RotoChamp | D11: Your Own Custom Combination | E11: 15 | F11: 9 | J11: DET | K11: =IF(OR(Settings!$Q$5="AL-Only",Settings!$Q$5="Mixed (Standard)"),TRUE,IF(Settings!$Q$5="Specific Teams Only",IF(Settings!S16="Y",TRUE,FALSE),FALSE)) -> TRUE | M11: SP | N11: =Settings!F19 -> 5 | O11: SP | P11: =IFERROR(INDEX($O$1:$O$19,SMALL(IF($O$1:$O$19<>"",ROW($O$1:$O$19)),ROW(O11))),"") -> Bench
A12: =IF($N$1>=ROW(A11),Settings!J22,#N/A) -> Team 11 | B12: =IFERROR(INDEX($B$1:$B$10,SMALL(IF($B$1:$B$10<>"",ROW($B$1:$B$10)),ROW(B2))),"") -> Yahoo (Projected Value) | C12: =IFERROR(INDEX($C$1:$C$8,SMALL(IF($C$1:$C$8<>"",ROW($C$1:$C$8)),ROW(C4))),"") -> Yahoo Staff | E12: 16 | F12: 10 | J12: HOU | K12: =IF(OR(Settings!$Q$5="AL-Only",Settings!$Q$5="Mixed (Standard)"),TRUE,IF(Settings!$Q$5="Specific Teams Only",IF(Settings!S17="Y",TRUE,FALSE),FALSE)) -> TRUE | M12: RP | N12: =Settings!F20 -> 5 | O12: RP | P12: =IFERROR(INDEX($O$1:$O$19,SMALL(IF($O$1:$O$19<>"",ROW($O$1:$O$19)),ROW(O12))),"") -> 
A13: =IF($N$1>=ROW(A12),Settings!J23,#N/A) -> Team 12 | B13: =IFERROR(INDEX($B$1:$B$10,SMALL(IF($B$1:$B$10<>"",ROW($B$1:$B$10)),ROW(B3))),"") -> Yahoo (Avg Mock Draft Value) | C13: =IFERROR(INDEX($C$1:$C$8,SMALL(IF($C$1:$C$8<>"",ROW($C$1:$C$8)),ROW(C5))),"") -> FantasyPros Avg | E13: 17 | F13: 11 | J13: KC | K13: =IF(OR(Settings!$Q$5="AL-Only",Settings!$Q$5="Mixed (Standard)"),TRUE,IF(Settings!$Q$5="Specific Teams Only",IF(Settings!S18="Y",TRUE,FALSE),FALSE)) -> TRUE | M13: P | N13: =Settings!F21 -> 0 | P13: =IFERROR(INDEX($O$1:$O$19,SMALL(IF($O$1:$O$19<>"",ROW($O$1:$O$19)),ROW(O13))),"") -> 
A14: =IF($N$1>=ROW(A13),Settings!J24,#N/A) ->  | B14: =IFERROR(INDEX($B$1:$B$10,SMALL(IF($B$1:$B$10<>"",ROW($B$1:$B$10)),ROW(B4))),"") -> FantasyPros (Projected Value) | C14: =IFERROR(INDEX($C$1:$C$8,SMALL(IF($C$1:$C$8<>"",ROW($C$1:$C$8)),ROW(C6))),"") ->  | D14: =IFERROR(INDEX($D$1:$D$12,SMALL(IF($D$1:$D$12<>"",ROW($D$1:$D$12)),ROW(D1))),"") -> THE BAT | E14: 18 | F14: 12 | J14: LAD | K14: =IF(OR(Settings!$Q$5="NL-Only",Settings!$Q$5="Mixed (Standard)"),TRUE,IF(Settings!$Q$5="Specific Teams Only",IF(Settings!S19="Y",TRUE,FALSE),FALSE)) -> TRUE | M14: LF | N14: =Settings!F15 -> 0 | P14: =IFERROR(INDEX($O$1:$O$19,SMALL(IF($O$1:$O$19<>"",ROW($O$1:$O$19)),ROW(O14))),"") -> 
A15: =IF($N$1>=ROW(A14),Settings!J25,#N/A) ->  | B15: =IFERROR(INDEX($B$1:$B$10,SMALL(IF($B$1:$B$10<>"",ROW($B$1:$B$10)),ROW(B5))),"") -> Average of All Options | C15: =IFERROR(INDEX($C$1:$C$8,SMALL(IF($C$1:$C$8<>"",ROW($C$1:$C$8)),ROW(C7))),"") ->  | D15: =IFERROR(INDEX($D$1:$D$12,SMALL(IF($D$1:$D$12<>"",ROW($D$1:$D$12)),ROW(D2))),"") -> Clay Davenport | E15: 19 | F15: 13 | J15: MIA | K15: =IF(OR(Settings!$Q$5="NL-Only",Settings!$Q$5="Mixed (Standard)"),TRUE,IF(Settings!$Q$5="Specific Teams Only",IF(Settings!S20="Y",TRUE,FALSE),FALSE)) -> TRUE | M15: CF | N15: =Settings!F16 -> 0 | P15: =IFERROR(INDEX($O$1:$O$19,SMALL(IF($O$1:$O$19<>"",ROW($O$1:$O$19)),ROW(O15))),"") -> 
A16: =IF($N$1>=ROW(A15),Settings!J26,#N/A) ->  | B16: =IFERROR(INDEX($B$1:$B$10,SMALL(IF($B$1:$B$10<>"",ROW($B$1:$B$10)),ROW(B6))),"") -> Imported Values | C16: =IFERROR(INDEX($C$1:$C$8,SMALL(IF($C$1:$C$8<>"",ROW($C$1:$C$8)),ROW(C8))),"") ->  | D16: =IFERROR(INDEX($D$1:$D$12,SMALL(IF($D$1:$D$12<>"",ROW($D$1:$D$12)),ROW(D3))),"") -> Fangraphs - Depth Chart | E16: 20 | F16: 14 | J16: MIL | K16: =IF(OR(Settings!$Q$5="NL-Only",Settings!$Q$5="Mixed (Standard)"),TRUE,IF(Settings!$Q$5="Specific Teams Only",IF(Settings!S21="Y",TRUE,FALSE),FALSE)) -> TRUE | M16: RF | N16: =Settings!F17 -> 0 | P16: =IFERROR(INDEX($O$1:$O$19,SMALL(IF($O$1:$O$19<>"",ROW($O$1:$O$19)),ROW(O16))),"") -> 
A17: =IF($N$1>=ROW(A16),Settings!J27,#N/A) ->  | B17: =IFERROR(INDEX($B$1:$B$10,SMALL(IF($B$1:$B$10<>"",ROW($B$1:$B$10)),ROW(B7))),"") ->  | D17: =IFERROR(INDEX($D$1:$D$12,SMALL(IF($D$1:$D$12<>"",ROW($D$1:$D$12)),ROW(D4))),"") -> Mr. Cheatsheet's Special Blend | E17: 21 | F17: 15 | J17: MIN | K17: =IF(OR(Settings!$Q$5="AL-Only",Settings!$Q$5="Mixed (Standard)"),TRUE,IF(Settings!$Q$5="Specific Teams Only",IF(Settings!S22="Y",TRUE,FALSE),FALSE)) -> TRUE | M17: IF | N17: =Settings!F14 -> 0 | P17: =IFERROR(INDEX($O$1:$O$19,SMALL(IF($O$1:$O$19<>"",ROW($O$1:$O$19)),ROW(O17))),"") -> 
A18: =IF($N$1>=ROW(A17),Settings!J28,#N/A) ->  | B18: =IFERROR(INDEX($B$1:$B$10,SMALL(IF($B$1:$B$10<>"",ROW($B$1:$B$10)),ROW(B8))),"") ->  | D18: =IFERROR(INDEX($D$1:$D$12,SMALL(IF($D$1:$D$12<>"",ROW($D$1:$D$12)),ROW(D5))),"") -> Steamer | E18: 22 | F18: 16 | J18: NYM | K18: =IF(OR(Settings!$Q$5="NL-Only",Settings!$Q$5="Mixed (Standard)"),TRUE,IF(Settings!$Q$5="Specific Teams Only",IF(Settings!S23="Y",TRUE,FALSE),FALSE)) -> TRUE | O18: Bench | P18: =IFERROR(INDEX($O$1:$O$19,SMALL(IF($O$1:$O$19<>"",ROW($O$1:$O$19)),ROW(O18))),"") -> 
A19: =IF($N$1>=ROW(A18),Settings!J29,#N/A) ->  | B19: =IFERROR(INDEX($B$1:$B$10,SMALL(IF($B$1:$B$10<>"",ROW($B$1:$B$10)),ROW(B9))),"") ->  | D19: =IFERROR(INDEX($D$1:$D$12,SMALL(IF($D$1:$D$12<>"",ROW($D$1:$D$12)),ROW(D6))),"") -> Steamer - 600 PA | E19: 23 | F19: 17 | J19: NYY | K19: =IF(OR(Settings!$Q$5="AL-Only",Settings!$Q$5="Mixed (Standard)"),TRUE,IF(Settings!$Q$5="Specific Teams Only",IF(Settings!S24="Y",TRUE,FALSE),FALSE)) -> TRUE
A20: =IF($N$1>=ROW(A19),Settings!J30,#N/A) ->  | B20: =IFERROR(INDEX($B$1:$B$10,SMALL(IF($B$1:$B$10<>"",ROW($B$1:$B$10)),ROW(B10))),"") ->  | D20: =IFERROR(INDEX($D$1:$D$12,SMALL(IF($D$1:$D$12<>"",ROW($D$1:$D$12)),ROW(D7))),"") -> ZiPS | E20: 24 | F20: 18 | J20: OAK | K20: =IF(OR(Settings!$Q$5="AL-Only",Settings!$Q$5="Mixed (Standard)"),TRUE,IF(Settings!$Q$5="Specific Teams Only",IF(Settings!S25="Y",TRUE,FALSE),FALSE)) -> TRUE
A21: =IF($N$1>=ROW(A20),Settings!J31,#N/A) ->  | B21: =IFERROR(INDEX($B$1:$B$10,SMALL(IF($B$1:$B$10<>"",ROW($B$1:$B$10)),ROW(B11))),"") ->  | D21: =IFERROR(INDEX($D$1:$D$12,SMALL(IF($D$1:$D$12<>"",ROW($D$1:$D$12)),ROW(D8))),"") -> Import Your Own Projections | F21: 19 | J21: PHI | K21: =IF(OR(Settings!$Q$5="NL-Only",Settings!$Q$5="Mixed (Standard)"),TRUE,IF(Settings!$Q$5="Specific Teams Only",IF(Settings!S26="Y",TRUE,FALSE),FALSE)) -> TRUE
A22: =IF($N$1>=ROW(A21),Settings!J32,#N/A) ->  | D22: =IFERROR(INDEX($D$1:$D$12,SMALL(IF($D$1:$D$12<>"",ROW($D$1:$D$12)),ROW(D9))),"") -> Your Own Custom Combination | F22: 20 | J22: PIT | K22: =IF(OR(Settings!$Q$5="NL-Only",Settings!$Q$5="Mixed (Standard)"),TRUE,IF(Settings!$Q$5="Specific Teams Only",IF(Settings!S27="Y",TRUE,FALSE),FALSE)) -> TRUE
A23: =IF($N$1>=ROW(A22),Settings!J33,#N/A) ->  | D23: =IFERROR(INDEX($D$1:$D$12,SMALL(IF($D$1:$D$12<>"",ROW($D$1:$D$12)),ROW(D10))),"") ->  | F23: 21 | J23: SD | K23: =IF(OR(Settings!$Q$5="NL-Only",Settings!$Q$5="Mixed (Standard)"),TRUE,IF(Settings!$Q$5="Specific Teams Only",IF(Settings!S28="Y",TRUE,FALSE),FALSE)) -> TRUE
A24: =IF($N$1>=ROW(A23),Settings!J34,#N/A) ->  | D24: =IFERROR(INDEX($D$1:$D$12,SMALL(IF($D$1:$D$12<>"",ROW($D$1:$D$12)),ROW(D11))),"") ->  | F24: 22 | J24: SEA | K24: =IF(OR(Settings!$Q$5="AL-Only",Settings!$Q$5="Mixed (Standard)"),TRUE,IF(Settings!$Q$5="Specific Teams Only",IF(Settings!S29="Y",TRUE,FALSE),FALSE)) -> TRUE
A25: =IF($N$1>=ROW(A24),Settings!J35,#N/A) ->  | D25: =IFERROR(INDEX($D$1:$D$12,SMALL(IF($D$1:$D$12<>"",ROW($D$1:$D$12)),ROW(D12))),"") ->  | F25: 23 | J25: SF | K25: =IF(OR(Settings!$Q$5="NL-Only",Settings!$Q$5="Mixed (Standard)"),TRUE,IF(Settings!$Q$5="Specific Teams Only",IF(Settings!S30="Y",TRUE,FALSE),FALSE)) -> TRUE
A26: From Settings | B26: =Settings!N16 -> Average of All Options | C26: Auction Vl: | D26: =IF(B26="RotoChamp",1,IF(B26="CBS (Projected Value)",2,IF(B26="ESPN (Avg Mock Draft Value)",3,IF(B26="Yahoo (Projected Value)",4,IF(B26="Yahoo (Avg Mock Draft Value)",5,IF(B26="FantasyPros (Projected Value)",7,IF(B26="Average of All Options",8,IF(B26="Imported Values",9,"")))))))) -> 8 | F26: 24 | J26: STL | K26: =IF(OR(Settings!$Q$5="NL-Only",Settings!$Q$5="Mixed (Standard)"),TRUE,IF(Settings!$Q$5="Specific Teams Only",IF(Settings!S31="Y",TRUE,FALSE),FALSE)) -> TRUE
A27: For a List | B27: =Settings!N20 -> FantasyPros Avg | C27: Rankings: | D27: =IF(B27="RotoChamp",1,IF(B27="Yahoo Staff",2,IF(B27="ESPN - Points Rankings",3,IF(B27="ESPN - E. Karabell",4,IF(B27="FantasyPros Avg",5,IF(B27="Mr. Cheatsheet",6)))))) -> 5 | J27: TB | K27: =IF(OR(Settings!$Q$5="AL-Only",Settings!$Q$5="Mixed (Standard)"),TRUE,IF(Settings!$Q$5="Specific Teams Only",IF(Settings!S32="Y",TRUE,FALSE),FALSE)) -> TRUE
A28: Controlled by Formulas | B28: =Settings!N18 -> Mr. Cheatsheet's Special Blend | C28: Projections: | D28: =IF(B28="THE BAT",1,IF(B28="Steamer",2,IF(B28="Steamer - 600 PA",7,IF(B28="ZiPS",4,IF(B28="Fangraphs - Depth Chart",5,IF(B28="Your Own Custom Combination",8,IF(B28="Mr. Cheatsheet's Special Blend",9,IF(B28="Special Blend w/ Steamer Replacements",10,IF(B28="Fangraphs - Fan Projections",3,IF(B28="Clay Davenport",6,IF(B28="Import Your Own Projections",11,0))))))))))) -> 9 | J28: TEX | K28: =IF(OR(Settings!$Q$5="AL-Only",Settings!$Q$5="Mixed (Standard)"),TRUE,IF(Settings!$Q$5="Specific Teams Only",IF(Settings!S33="Y",TRUE,FALSE),FALSE)) -> TRUE
J29: TOR | K29: =IF(OR(Settings!$Q$5="AL-Only",Settings!$Q$5="Mixed (Standard)"),TRUE,IF(Settings!$Q$5="Specific Teams Only",IF(Settings!S34="Y",TRUE,FALSE),FALSE)) -> TRUE
J30: WAS | K30: =IF(OR(Settings!$Q$5="NL-Only",Settings!$Q$5="Mixed (Standard)"),TRUE,IF(Settings!$Q$5="Specific Teams Only",IF(Settings!S35="Y",TRUE,FALSE),FALSE)) -> TRUE

Sheet Name-Sort (hidden)
C1: ORDER | D1: PLAYERNAME | E1: Team | F1: Original Pos | G1: New Pos | H1: Pos to Use | I1: New Pos | J1: Show Team? | K1: Drafted | L1: Show or No | M1: Original Projected Auction Value | N1: Projected Points | O1: Expert Ranking | P1: Points Per IP | Q1: Points Per PA | R1: Pos.PtsRank | W1: Points Above Replacement
A2: =IFERROR(IF(VLOOKUP(ROW($A1),$C$2:$N$948,9,FALSE)=FALSE,VLOOKUP(ROW($A1),$C$2:$N$948,2,FALSE),""),"") -> Mike Trout | B2: =IFERROR(INDEX($A$1:$A$948,SMALL(IF($A$1:$A$948<>"",ROW($A$1:$A$948)),ROW(A1))),"") -> Mike Trout | C2: =IFERROR(IF(L2=FALSE,"",CHOOSE(MATCH(RIGHT('Your Points Auction'!$R$4,LEN('Your Points Auction'!$R$4)-8),$M$1:$W$1,0),1+SUMPRODUCT(($L$2:$L$949=TRUE)*($M$2:$M$949>M2))+COUNTIFS($L$2:L2,L2,$M$2:M2,M2)-1,1+SUMPRODUCT(($L$2:$L$949=TRUE)*($N$2:$N$949>N2))+COUNTIFS($L$2:L2,L2,$N$2:N2,N2)-1,1+SUMPRODUCT(($L$2:$L$949=TRUE)*($O$2:$O$949<O2))+COUNTIFS($L$2:L2,L2,$O$2:O2,O2)-1,1+SUMPRODUCT(($L$2:$L$949=TRUE)*($P$2:$P$949>P2))+COUNTIFS($L$2:L2,L2,$P$2:P2,P2)-1,1+SUMPRODUCT(($L$2:$L$949=TRUE)*($Q$2:$Q$949>Q2))+COUNTIFS($L$2:L2,L2,$Q$2:Q2,Q2)-1,,,,,,1+SUMPRODUCT(($L$2:$L$949=TRUE)*($W$2:$W$949>W2))+COUNTIFS($L$2:L2,L2,$W$2:W2,W2)-1,)),"") -> 480 | D2: Bryan Abreu | E2: =IFERROR(INDEX('Auction Log'!$C$4:$C$806,MATCH(D2,'Auction Log'!$B$4:$B$806,0)),"") ->  | F2: =IFERROR(INDEX('Auction-Rank'!$C$2:$C$961,MATCH(D2,'Auction-Rank'!$A$2:$A$961,0)),"") -> RP | G2: =IFERROR(IF(F2=I2,"",IF(INDEX('Your Points Auction'!$C$11:$C$634,MATCH(D2,'Your Points Auction'!$D$11:$D$634,0))="",IF(I2<>"",I2,""),INDEX('Your Points Auction'!$C$11:$C$634,MATCH(D2,'Your Points Auction'!$D$11:$D$634,0)))),"") ->  | H2: =IFERROR(IF(I2="",F2,IF(I2<>F2,I2,F2)),"") -> RP | J2: =INDEX('Auction-Rank'!$V$2:$V$961,MATCH(D2,'Auction-Rank'!$A$2:$A$961,0)) -> TRUE | K2: =IF(E2="",FALSE,TRUE) -> FALSE | L2: =IF(J2=FALSE,FALSE,IF(AND('Your Points Auction'!$R$6="Hide Drafted Players",K2=TRUE),FALSE,IF(OR('Your Points Auction'!$R$5="Show All Positions",AND('Your Points Auction'!$R$5="Only Show: C",H2="C"),AND('Your Points Auction'!$R$5="Only Show: 1B",H2="1B"),AND('Your Points Auction'!$R$5="Only Show: 2B",H2="2B"),AND('Your Points Auction'!$R$5="Only Show: 3B",H2="3B"),AND('Your Points Auction'!$R$5="Only Show: SS",H2="SS"),AND('Your Points Auction'!$R$5="Only Show: OF",H2="OF"),AND('Your Points Auction'!$R$5="Only Show: SP",H2="SP"),AND('Your Points Auction'!$R$5="Only Show: RP",H2="RP"),AND('Your Points Auction'!$R$5="Only Show: CI",OR(H2={"1B","3B"})),AND('Your Points Auction'!$R$5="Only Show: MI",OR(H2={"2B","SS"})),AND('Your Points Auction'!$R$5="Only Show: IF",OR(H2={"C","1B","2B","3B","SS"})),AND('Your Points Auction'!$R$5="Only Show: DH",OR(H2={"C","1B","2B","3B","SS","OF","DH"})),AND('Your Points Auction'!$R$5="Only Show: P",OR(H2={"SP","RP"})),AND('Your Points Auction'!$R$5="Only Show: LF",ISERROR(SEARCH("LF",VLOOKUP($D2,'Auction-Rank'!$A$2:$D$961,4,FALSE)))=FALSE),AND('Your Points Auction'!$R$5="Only Show: RF",ISERROR(SEARCH("RF",VLOOKUP($D2,'Auction-Rank'!$A$2:$D$961,4,FALSE)))=FALSE),AND('Your Points Auction'!$R$5="Only Show: CF",ISERROR(SEARCH("CF",VLOOKUP($D2,'Auction-Rank'!$A$2:$D$961,4,FALSE)))=FALSE)),TRUE,FALSE))) -> TRUE | M2: =IFERROR(IF(VLOOKUP($D2,'Inflation-Tracking'!$A$5:$AD$862,22,FALSE)="",-9999,VLOOKUP($D2,'Inflation-Tracking'!$A$5:$AD$862,22,FALSE)),-9999) -> 0 | N2: =IFERROR(IF(D2="Non-Ranked Player",-1001,IF(VLOOKUP($D2,'Starter Calc'!$B$2:$D$961,3,FALSE)="",-1000,VLOOKUP($D2,'Starter Calc'!$B$2:$D$961,3,FALSE))),0) -> 0 | O2: =IF(D2="Non-Ranked Player",10000,IFERROR(IF(VLOOKUP(D2,'Auction-Rank'!$A$2:$X$961,24,FALSE)="",9999,VLOOKUP(D2,'Auction-Rank'!$A$2:$X$961,24,FALSE)),9999)) -> 543 | P2: =IFERROR(IF($D2="Unlisted Player",-1001,IF(OR(H2="SP",H2="RP"),N2/VLOOKUP($D2,'Filtered-P'!$A$1:$AC$961,4,FALSE),-1000)),-1000) -> -1000 | Q2: =IFERROR(IF($D2="Unlisted Player",-1001,IF(OR(H2="SP",H2="RP"),-1000,N2/VLOOKUP($D2,'Filtered-H'!$A$1:$AE$961,2,FALSE))),-1000) -> -1000 | R2: =IF(H2="",#N/A,H2&"."&1+SUMPRODUCT(($H$2:$H$949=H2)*($N$2:$N$949>N2))+COUNTIFS($N$2:N2,N2,$H$2:H2,H2)-1) -> RP.138 | S2: =IF(H2="",#N/A,1+SUMPRODUCT(($H$2:$H$949=H2)*($N$2:$N$949>N2))+COUNTIFS($N$2:N2,N2,$H$2:H2,H2)-1) -> 138 | T2: =IF(D2="Non-Ranked Player",0,IF(VLOOKUP($D2,'Starter Calc'!$B$2:$D$961,3,FALSE)="",0,VLOOKUP($D2,'Starter Calc'!$B$2:$D$961,3,FALSE))) -> 0 | U2: =IFERROR(VLOOKUP(D2,'Starter Calc'!B$2:BZ$961,72,FALSE),"") -> Bench | V2: =IFERROR(ROUND(VLOOKUP($D2,'Inflation-Tracking'!$A$5:$AD$862,22,FALSE),0),-999) -> 0 | W2: =IFERROR(IF((OR($H2="RP",$H2="SP")),VLOOKUP(D2,'Filtered-P'!$A$2:$AS$999,13,FALSE),VLOOKUP(D2,'Filtered-H'!$A$2:$AT$999,21,FALSE)),-9999) -> -129.0871667
A3: Cody Bellinger | B3: =IFERROR(INDEX($A$1:$A$948,SMALL(IF($A$1:$A$948<>"",ROW($A$1:$A$948)),ROW(A2))),"") -> Cody Bellinger | C3: =IFERROR(IF(L3=FALSE,"",CHOOSE(MATCH(RIGHT('Your Points Auction'!$R$4,LEN('Your Points Auction'!$R$4)-8),$M$1:$W$1,0),1+SUMPRODUCT(($L$2:$L$949=TRUE)*($M$2:$M$949>M3))+COUNTIFS($L$2:L3,L3,$M$2:M3,M3)-1,1+SUMPRODUCT(($L$2:$L$949=TRUE)*($N$2:$N$949>N3))+COUNTIFS($L$2:L3,L3,$N$2:N3,N3)-1,1+SUMPRODUCT(($L$2:$L$949=TRUE)*($O$2:$O$949<O3))+COUNTIFS($L$2:L3,L3,$O$2:O3,O3)-1,1+SUMPRODUCT(($L$2:$L$949=TRUE)*($P$2:$P$949>P3))+COUNTIFS($L$2:L3,L3,$P$2:P3,P3)-1,1+SUMPRODUCT(($L$2:$L$949=TRUE)*($Q$2:$Q$949>Q3))+COUNTIFS($L$2:L3,L3,$Q$2:Q3,Q3)-1,,,,,,1+SUMPRODUCT(($L$2:$L$949=TRUE)*($W$2:$W$949>W3))+COUNTIFS($L$2:L3,L3,$W$2:W3,W3)-1,)),"") -> 94 | D3: Jose Abreu | E3: =IFERROR(INDEX('Auction Log'!$C$4:$C$806,MATCH(D3,'Auction Log'!$B$4:$B$806,0)),"") ->  | F3: =IFERROR(INDEX('Auction-Rank'!$C$2:$C$961,MATCH(D3,'Auction-Rank'!$A$2:$A$961,0)),"") -> 1B | G3: =IFERROR(IF(F3=I3,"",IF(INDEX('Your Points Auction'!$C$11:$C$634,MATCH(D3,'Your Points Auction'!$D$11:$D$634,0))="",IF(I3<>"",I3,""),INDEX('Your Points Auction'!$C$11:$C$634,MATCH(D3,'Your Points Auction'!$D$11:$D$634,0)))),"") ->  | H3: 1B | J3: =INDEX('Auction-Rank'!$V$2:$V$961,MATCH(D3,'Auction-Rank'!$A$2:$A$961,0)) -> TRUE | K3: =IF(E3="",FALSE,TRUE) -> FALSE | L3: =IF(J3=FALSE,FALSE,IF(AND('Your Points Auction'!$R$6="Hide Drafted Players",K3=TRUE),FALSE,IF(OR('Your Points Auction'!$R$5="Show All Positions",AND('Your Points Auction'!$R$5="Only Show: C",H3="C"),AND('Your Points Auction'!$R$5="Only Show: 1B",H3="1B"),AND('Your Points Auction'!$R$5="Only Show: 2B",H3="2B"),AND('Your Points Auction'!$R$5="Only Show: 3B",H3="3B"),AND('Your Points Auction'!$R$5="Only Show: SS",H3="SS"),AND('Your Points Auction'!$R$5="Only Show: OF",H3="OF"),AND('Your Points Auction'!$R$5="Only Show: SP",H3="SP"),AND('Your Points Auction'!$R$5="Only Show: RP",H3="RP"),AND('Your Points Auction'!$R$5="Only Show: CI",OR(H3={"1B","3B"})),AND('Your Points Auction'!$R$5="Only Show: MI",OR(H3={"2B","SS"})),AND('Your Points Auction'!$R$5="Only Show: IF",OR(H3={"C","1B","2B","3B","SS"})),AND('Your Points Auction'!$R$5="Only Show: DH",OR(H3={"C","1B","2B","3B","SS","OF","DH"})),AND('Your Points Auction'!$R$5="Only Show: P",OR(H3={"SP","RP"})),AND('Your Points Auction'!$R$5="Only Show: LF",ISERROR(SEARCH("LF",VLOOKUP($D3,'Auction-Rank'!$A$2:$D$961,4,FALSE)))=FALSE),AND('Your Points Auction'!$R$5="Only Show: RF",ISERROR(SEARCH("RF",VLOOKUP($D3,'Auction-Rank'!$A$2:$D$961,4,FALSE)))=FALSE),AND('Your Points Auction'!$R$5="Only Show: CF",ISERROR(SEARCH("CF",VLOOKUP($D3,'Auction-Rank'!$A$2:$D$961,4,FALSE)))=FALSE)),TRUE,FALSE))) -> TRUE | M3: =IFERROR(IF(VLOOKUP($D3,'Inflation-Tracking'!$A$5:$AD$862,22,FALSE)="",-9999,VLOOKUP($D3,'Inflation-Tracking'!$A$5:$AD$862,22,FALSE)),-9999) -> 19.89134614 | N3: =IFERROR(IF(D3="Non-Ranked Player",-1001,IF(VLOOKUP($D3,'Starter Calc'!$B$2:$D$961,3,FALSE)="",-1000,VLOOKUP($D3,'Starter Calc'!$B$2:$D$961,3,FALSE))),0) -> 309.9135545 | O3: =IF(D3="Non-Ranked Player",10000,IFERROR(IF(VLOOKUP(D3,'Auction-Rank'!$A$2:$X$961,24,FALSE)="",9999,VLOOKUP(D3,'Auction-Rank'!$A$2:$X$961,24,FALSE)),9999)) -> 59 | P3: =IFERROR(IF($D3="Unlisted Player",-1001,IF(OR(H3="SP",H3="RP"),N3/VLOOKUP($D3,'Filtered-P'!$A$1:$AC$961,4,FALSE),-1000)),-1000) -> -1000 | Q3: =IFERROR(IF($D3="Unlisted Player",-1001,IF(OR(H3="SP",H3="RP"),-1000,N3/VLOOKUP($D3,'Filtered-H'!$A$1:$AE$961,2,FALSE))),-1000) -> 1.317939845 | R3: =IF(H3="",#N/A,H3&"."&1+SUMPRODUCT(($H$2:$H$949=H3)*($N$2:$N$949>N3))+COUNTIFS($N$2:N3,N3,$H$2:H3,H3)-1) -> 1B.9 | S3: =IF(H3="",#N/A,1+SUMPRODUCT(($H$2:$H$949=H3)*($N$2:$N$949>N3))+COUNTIFS($N$2:N3,N3,$H$2:H3,H3)-1) -> 9 | T3: =IF(D3="Non-Ranked Player",0,IF(VLOOKUP($D3,'Starter Calc'!$B$2:$D$961,3,FALSE)="",0,VLOOKUP($D3,'Starter Calc'!$B$2:$D$961,3,FALSE))) -> 309.9135545 | U3: =IFERROR(VLOOKUP(D3,'Starter Calc'!B$2:BZ$961,72,FALSE),"") -> Bench | V3: =IFERROR(ROUND(VLOOKUP($D3,'Inflation-Tracking'!$A$5:$AD$862,22,FALSE),0),-999) -> 20 | W3: =IFERROR(IF((OR($H3="RP",$H3="SP")),VLOOKUP(D3,'Filtered-P'!$A$2:$AS$999,13,FALSE),VLOOKUP(D3,'Filtered-H'!$A$2:$AT$999,21,FALSE)),-9999) -> 47.29663483
A4: Juan Soto | B4: =IFERROR(INDEX($A$1:$A$948,SMALL(IF($A$1:$A$948<>"",ROW($A$1:$A$948)),ROW(A3))),"") -> Juan Soto | C4: =IFERROR(IF(L4=FALSE,"",CHOOSE(MATCH(RIGHT('Your Points Auction'!$R$4,LEN('Your Points Auction'!$R$4)-8),$M$1:$W$1,0),1+SUMPRODUCT(($L$2:$L$949=TRUE)*($M$2:$M$949>M4))+COUNTIFS($L$2:L4,L4,$M$2:M4,M4)-1,1+SUMPRODUCT(($L$2:$L$949=TRUE)*($N$2:$N$949>N4))+COUNTIFS($L$2:L4,L4,$N$2:N4,N4)-1,1+SUMPRODUCT(($L$2:$L$949=TRUE)*($O$2:$O$949<O4))+COUNTIFS($L$2:L4,L4,$O$2:O4,O4)-1,1+SUMPRODUCT(($L$2:$L$949=TRUE)*($P$2:$P$949>P4))+COUNTIFS($L$2:L4,L4,$P$2:P4,P4)-1,1+SUMPRODUCT(($L$2:$L$949=TRUE)*($Q$2:$Q$949>Q4))+COUNTIFS($L$2:L4,L4,$Q$2:Q4,Q4)-1,,,,,,1+SUMPRODUCT(($L$2:$L$949=TRUE)*($W$2:$W$949>W4))+COUNTIFS($L$2:L4,L4,$W$2:W4,W4)-1,)),"") -> 5 | D4: Ronald Acuna | E4: =IFERROR(INDEX('Auction Log'!$C$4:$C$806,MATCH(D4,'Auction Log'!$B$4:$B$806,0)),"") ->  | F4: =IFERROR(INDEX('Auction-Rank'!$C$2:$C$961,MATCH(D4,'Auction-Rank'!$A$2:$A$961,0)),"") -> OF | G4: =IFERROR(IF(F4=I4,"",IF(INDEX('Your Points Auction'!$C$11:$C$634,MATCH(D4,'Your Points Auction'!$D$11:$D$634,0))="",IF(I4<>"",I4,""),INDEX('Your Points Auction'!$C$11:$C$634,MATCH(D4,'Your Points Auction'!$D$11:$D$634,0)))),"") ->  | H4: OF | J4: =INDEX('Auction-Rank'!$V$2:$V$961,MATCH(D4,'Auction-Rank'!$A$2:$A$961,0)) -> TRUE | K4: FALSE | L4: =IF(J4=FALSE,FALSE,IF(AND('Your Points Auction'!$R$6="Hide Drafted Players",K4=TRUE),FALSE,IF(OR('Your Points Auction'!$R$5="Show All Positions",AND('Your Points Auction'!$R$5="Only Show: C",H4="C"),AND('Your Points Auction'!$R$5="Only Show: 1B",H4="1B"),AND('Your Points Auction'!$R$5="Only Show: 2B",H4="2B"),AND('Your Points Auction'!$R$5="Only Show: 3B",H4="3B"),AND('Your Points Auction'!$R$5="Only Show: SS",H4="SS"),AND('Your Points Auction'!$R$5="Only Show: OF",H4="OF"),AND('Your Points Auction'!$R$5="Only Show: SP",H4="SP"),AND('Your Points Auction'!$R$5="Only Show: RP",H4="RP"),AND('Your Points Auction'!$R$5="Only Show: CI",OR(H4={"1B","3B"})),AND('Your Points Auction'!$R$5="Only Show: MI",OR(H4={"2B","SS"})),AND('Your Points Auction'!$R$5="Only Show: IF",OR(H4={"C","1B","2B","3B","SS"})),AND('Your Points Auction'!$R$5="Only Show: DH",OR(H4={"C","1B","2B","3B","SS","OF","DH"})),AND('Your Points Auction'!$R$5="Only Show: P",OR(H4={"SP","RP"})),AND('Your Points Auction'!$R$5="Only Show: LF",ISERROR(SEARCH("LF",VLOOKUP($D4,'Auction-Rank'!$A$2:$D$961,4,FALSE)))=FALSE),AND('Your Points Auction'!$R$5="Only Show: RF",ISERROR(SEARCH("RF",VLOOKUP($D4,'Auction-Rank'!$A$2:$D$961,4,FALSE)))=FALSE),AND('Your Points Auction'!$R$5="Only Show: CF",ISERROR(SEARCH("CF",VLOOKUP($D4,'Auction-Rank'!$A$2:$D$961,4,FALSE)))=FALSE)),TRUE,FALSE))) -> TRUE | M4: =IFERROR(IF(VLOOKUP($D4,'Inflation-Tracking'!$A$5:$AD$862,22,FALSE)="",-9999,VLOOKUP($D4,'Inflation-Tracking'!$A$5:$AD$862,22,FALSE)),-9999) -> 69.87224556 | N4: =IFERROR(IF(D4="Non-Ranked Player",-1001,IF(VLOOKUP($D4,'Starter Calc'!$B$2:$D$961,3,FALSE)="",-1000,VLOOKUP($D4,'Starter Calc'!$B$2:$D$961,3,FALSE))),0) -> 393.9928829 | O4: =IF(D4="Non-Ranked Player",10000,IFERROR(IF(VLOOKUP(D4,'Auction-Rank'!$A$2:$X$961,24,FALSE)="",9999,VLOOKUP(D4,'Auction-Rank'!$A$2:$X$961,24,FALSE)),9999)) -> 1 | P4: =IFERROR(IF($D4="Unlisted Player",-1001,IF(OR(H4="SP",H4="RP"),N4/VLOOKUP($D4,'Filtered-P'!$A$1:$AC$961,4,FALSE),-1000)),-1000) -> -1000 | Q4: =IFERROR(IF($D4="Unlisted Player",-1001,IF(OR(H4="SP",H4="RP"),-1000,N4/VLOOKUP($D4,'Filtered-H'!$A$1:$AE$961,2,FALSE))),-1000) -> 1.586122717 | R4: =IF(H4="",#N/A,H4&"."&1+SUMPRODUCT(($H$2:$H$949=H4)*($N$2:$N$949>N4))+COUNTIFS($N$2:N4,N4,$H$2:H4,H4)-1) -> OF.5 | S4: =IF(H4="",#N/A,1+SUMPRODUCT(($H$2:$H$949=H4)*($N$2:$N$949>N4))+COUNTIFS($N$2:N4,N4,$H$2:H4,H4)-1) -> 5 | T4: =IF(D4="Non-Ranked Player",0,IF(VLOOKUP($D4,'Starter Calc'!$B$2:$D$961,3,FALSE)="",0,VLOOKUP($D4,'Starter Calc'!$B$2:$D$961,3,FALSE))) -> 393.9928829 | U4: =IFERROR(VLOOKUP(D4,'Starter Calc'!B$2:BZ$961,72,FALSE),"") -> Bench | V4: =IFERROR(ROUND(VLOOKUP($D4,'Inflation-Tracking'!$A$5:$AD$862,22,FALSE),0),-999) -> 70 | W4: =IFERROR(IF((OR($H4="RP",$H4="SP")),VLOOKUP(D4,'Filtered-P'!$A$2:$AS$999,13,FALSE),VLOOKUP(D4,'Filtered-H'!$A$2:$AT$999,21,FALSE)),-9999) -> 170.6164651
A5: Christian Yelich | B5: =IFERROR(INDEX($A$1:$A$948,SMALL(IF($A$1:$A$948<>"",ROW($A$1:$A$948)),ROW(A4))),"") -> Christian Yelich | C5: =IFERROR(IF(L5=FALSE,"",CHOOSE(MATCH(RIGHT('Your Points Auction'!$R$4,LEN('Your Points Auction'!$R$4)-8),$M$1:$W$1,0),1+SUMPRODUCT(($L$2:$L$949=TRUE)*($M$2:$M$949>M5))+COUNTIFS($L$2:L5,L5,$M$2:M5,M5)-1,1+SUMPRODUCT(($L$2:$L$949=TRUE)*($N$2:$N$949>N5))+COUNTIFS($L$2:L5,L5,$N$2:N5,N5)-1,1+SUMPRODUCT(($L$2:$L$949=TRUE)*($O$2:$O$949<O5))+COUNTIFS($L$2:L5,L5,$O$2:O5,O5)-1,1+SUMPRODUCT(($L$2:$L$949=TRUE)*($P$2:$P$949>P5))+COUNTIFS($L$2:L5,L5,$P$2:P5,P5)-1,1+SUMPRODUCT(($L$2:$L$949=TRUE)*($Q$2:$Q$949>Q5))+COUNTIFS($L$2:L5,L5,$Q$2:Q5,Q5)-1,,,,,,1+SUMPRODUCT(($L$2:$L$949=TRUE)*($W$2:$W$949>W5))+COUNTIFS($L$2:L5,L5,$W$2:W5,W5)-1,)),"") -> 208 | D5: Willy Adames | E5: =IFERROR(INDEX('Auction Log'!$C$4:$C$806,MATCH(D5,'Auction Log'!$B$4:$B$806,0)),"") ->  | F5: =IFERROR(INDEX('Auction-Rank'!$C$2:$C$961,MATCH(D5,'Auction-Rank'!$A$2:$A$961,0)),"") -> SS | G5: =IFERROR(IF(F5=I5,"",IF(INDEX('Your Points Auction'!$C$11:$C$634,MATCH(D5,'Your Points Auction'!$D$11:$D$634,0))="",IF(I5<>"",I5,""),INDEX('Your Points Auction'!$C$11:$C$634,MATCH(D5,'Your Points Auction'!$D$11:$D$634,0)))),"") ->  | H5: SS | J5: =INDEX('Auction-Rank'!$V$2:$V$961,MATCH(D5,'Auction-Rank'!$A$2:$A$961,0)) -> TRUE | K5: FALSE | L5: =IF(J5=FALSE,FALSE,IF(AND('Your Points Auction'!$R$6="Hide Drafted Players",K5=TRUE),FALSE,IF(OR('Your Points Auction'!$R$5="Show All Positions",AND('Your Points Auction'!$R$5="Only Show: C",H5="C"),AND('Your Points Auction'!$R$5="Only Show: 1B",H5="1B"),AND('Your Points Auction'!$R$5="Only Show: 2B",H5="2B"),AND('Your Points Auction'!$R$5="Only Show: 3B",H5="3B"),AND('Your Points Auction'!$R$5="Only Show: SS",H5="SS"),AND('Your Points Auction'!$R$5="Only Show: OF",H5="OF"),AND('Your Points Auction'!$R$5="Only Show: SP",H5="SP"),AND('Your Points Auction'!$R$5="Only Show: RP",H5="RP"),AND('Your Points Auction'!$R$5="Only Show: CI",OR(H5={"1B","3B"})),AND('Your Points Auction'!$R$5="Only Show: MI",OR(H5={"2B","SS"})),AND('Your Points Auction'!$R$5="Only Show: IF",OR(H5={"C","1B","2B","3B","SS"})),AND('Your Points Auction'!$R$5="Only Show: DH",OR(H5={"C","1B","2B","3B","SS","OF","DH"})),AND('Your Points Auction'!$R$5="Only Show: P",OR(H5={"SP","RP"})),AND('Your Points Auction'!$R$5="Only Show: LF",ISERROR(SEARCH("LF",VLOOKUP($D5,'Auction-Rank'!$A$2:$D$961,4,FALSE)))=FALSE),AND('Your Points Auction'!$R$5="Only Show: RF",ISERROR(SEARCH("RF",VLOOKUP($D5,'Auction-Rank'!$A$2:$D$961,4,FALSE)))=FALSE),AND('Your Points Auction'!$R$5="Only Show: CF",ISERROR(SEARCH("CF",VLOOKUP($D5,'Auction-Rank'!$A$2:$D$961,4,FALSE)))=FALSE)),TRUE,FALSE))) -> TRUE | M5: =IFERROR(IF(VLOOKUP($D5,'Inflation-Tracking'!$A$5:$AD$862,22,FALSE)="",-9999,VLOOKUP($D5,'Inflation-Tracking'!$A$5:$AD$862,22,FALSE)),-9999) -> 4.933487586 | N5: =IFERROR(IF(D5="Non-Ranked Player",-1001,IF(VLOOKUP($D5,'Starter Calc'!$B$2:$D$961,3,FALSE)="",-1000,VLOOKUP($D5,'Starter Calc'!$B$2:$D$961,3,FALSE))),0) -> 251.325228 | O5: =IF(D5="Non-Ranked Player",10000,IFERROR(IF(VLOOKUP(D5,'Auction-Rank'!$A$2:$X$961,24,FALSE)="",9999,VLOOKUP(D5,'Auction-Rank'!$A$2:$X$961,24,FALSE)),9999)) -> 270 | P5: =IFERROR(IF($D5="Unlisted Player",-1001,IF(OR(H5="SP",H5="RP"),N5/VLOOKUP($D5,'Filtered-P'!$A$1:$AC$961,4,FALSE),-1000)),-1000) -> -1000 | Q5: =IFERROR(IF($D5="Unlisted Player",-1001,IF(OR(H5="SP",H5="RP"),-1000,N5/VLOOKUP($D5,'Filtered-H'!$A$1:$AE$961,2,FALSE))),-1000) -> 1.115266155 | R5: =IF(H5="",#N/A,H5&"."&1+SUMPRODUCT(($H$2:$H$949=H5)*($N$2:$N$949>N5))+COUNTIFS($N$2:N5,N5,$H$2:H5,H5)-1) -> SS.17 | S5: =IF(H5="",#N/A,1+SUMPRODUCT(($H$2:$H$949=H5)*($N$2:$N$949>N5))+COUNTIFS($N$2:N5,N5,$H$2:H5,H5)-1) -> 17 | T5: =IF(D5="Non-Ranked Player",0,IF(VLOOKUP($D5,'Starter Calc'!$B$2:$D$961,3,FALSE)="",0,VLOOKUP($D5,'Starter Calc'!$B$2:$D$961,3,FALSE))) -> 251.325228 | U5: =IFERROR(VLOOKUP(D5,'Starter Calc'!B$2:BZ$961,72,FALSE),"") -> Bench | V5: =IFERROR(ROUND(VLOOKUP($D5,'Inflation-Tracking'!$A$5:$AD$862,22,FALSE),0),-999) -> 5 | W5: =IFERROR(IF((OR($H5="RP",$H5="SP")),VLOOKUP(D5,'Filtered-P'!$A$2:$AS$999,13,FALSE),VLOOKUP(D5,'Filtered-H'!$A$2:$AT$999,21,FALSE)),-9999) -> 10.3905247
A6: Ronald Acuna | B6: =IFERROR(INDEX($A$1:$A$948,SMALL(IF($A$1:$A$948<>"",ROW($A$1:$A$948)),ROW(A5))),"") -> Ronald Acuna | C6: =IFERROR(IF(L6=FALSE,"",CHOOSE(MATCH(RIGHT('Your Points Auction'!$R$4,LEN('Your Points Auction'!$R$4)-8),$M$1:$W$1,0),1+SUMPRODUCT(($L$2:$L$949=TRUE)*($M$2:$M$949>M6))+COUNTIFS($L$2:L6,L6,$M$2:M6,M6)-1,1+SUMPRODUCT(($L$2:$L$949=TRUE)*($N$2:$N$949>N6))+COUNTIFS($L$2:L6,L6,$N$2:N6,N6)-1,1+SUMPRODUCT(($L$2:$L$949=TRUE)*($O$2:$O$949<O6))+COUNTIFS($L$2:L6,L6,$O$2:O6,O6)-1,1+SUMPRODUCT(($L$2:$L$949=TRUE)*($P$2:$P$949>P6))+COUNTIFS($L$2:L6,L6,$P$2:P6,P6)-1,1+SUMPRODUCT(($L$2:$L$949=TRUE)*($Q$2:$Q$949>Q6))+COUNTIFS($L$2:L6,L6,$Q$2:Q6,Q6)-1,,,,,,1+SUMPRODUCT(($L$2:$L$949=TRUE)*($W$2:$W$949>W6))+COUNTIFS($L$2:L6,L6,$W$2:W6,W6)-1,)),"") -> 481 | D6: Matt Adams | E6: =IFERROR(INDEX('Auction Log'!$C$4:$C$806,MATCH(D6,'Auction Log'!$B$4:$B$806,0)),"") ->  | F6: =IFERROR(INDEX('Auction-Rank'!$C$2:$C$961,MATCH(D6,'Auction-Rank'!$A$2:$A$961,0)),"") -> 1B | G6: =IFERROR(IF(F6=I6,"",IF(INDEX('Your Points Auction'!$C$11:$C$634,MATCH(D6,'Your Points Auction'!$D$11:$D$634,0))="",IF(I6<>"",I6,""),INDEX('Your Points Auction'!$C$11:$C$634,MATCH(D6,'Your Points Auction'!$D$11:$D$634,0)))),"") ->  | H6: 1B | J6: =INDEX('Auction-Rank'!$V$2:$V$961,MATCH(D6,'Auction-Rank'!$A$2:$A$961,0)) -> TRUE | K6: FALSE | L6: =IF(J6=FALSE,FALSE,IF(AND('Your Points Auction'!$R$6="Hide Drafted Players",K6=TRUE),FALSE,IF(OR('Your Points Auction'!$R$5="Show All Positions",AND('Your Points Auction'!$R$5="Only Show: C",H6="C"),AND('Your Points Auction'!$R$5="Only Show: 1B",H6="1B"),AND('Your Points Auction'!$R$5="Only Show: 2B",H6="2B"),AND('Your Points Auction'!$R$5="Only Show: 3B",H6="3B"),AND('Your Points Auction'!$R$5="Only Show: SS",H6="SS"),AND('Your Points Auction'!$R$5="Only Show: OF",H6="OF"),AND('Your Points Auction'!$R$5="Only Show: SP",H6="SP"),AND('Your Points Auction'!$R$5="Only Show: RP",H6="RP"),AND('Your Points Auction'!$R$5="Only Show: CI",OR(H6={"1B","3B"})),AND('Your Points Auction'!$R$5="Only Show: MI",OR(H6={"2B","SS"})),AND('Your Points Auction'!$R$5="Only Show: IF",OR(H6={"C","1B","2B","3B","SS"})),AND('Your Points Auction'!$R$5="Only Show: DH",OR(H6={"C","1B","2B","3B","SS","OF","DH"})),AND('Your Points Auction'!$R$5="Only Show: P",OR(H6={"SP","RP"})),AND('Your Points Auction'!$R$5="Only Show: LF",ISERROR(SEARCH("LF",VLOOKUP($D6,'Auction-Rank'!$A$2:$D$961,4,FALSE)))=FALSE),AND('Your Points Auction'!$R$5="Only Show: RF",ISERROR(SEARCH("RF",VLOOKUP($D6,'Auction-Rank'!$A$2:$D$961,4,FALSE)))=FALSE),AND('Your Points Auction'!$R$5="Only Show: CF",ISERROR(SEARCH("CF",VLOOKUP($D6,'Auction-Rank'!$A$2:$D$961,4,FALSE)))=FALSE)),TRUE,FALSE))) -> TRUE | M6: =IFERROR(IF(VLOOKUP($D6,'Inflation-Tracking'!$A$5:$AD$862,22,FALSE)="",-9999,VLOOKUP($D6,'Inflation-Tracking'!$A$5:$AD$862,22,FALSE)),-9999) -> 0 | N6: =IFERROR(IF(D6="Non-Ranked Player",-1001,IF(VLOOKUP($D6,'Starter Calc'!$B$2:$D$961,3,FALSE)="",-1000,VLOOKUP($D6,'Starter Calc'!$B$2:$D$961,3,FALSE))),0) -> 0 | O6: =IF(D6="Non-Ranked Player",10000,IFERROR(IF(VLOOKUP(D6,'Auction-Rank'!$A$2:$X$961,24,FALSE)="",9999,VLOOKUP(D6,'Auction-Rank'!$A$2:$X$961,24,FALSE)),9999)) -> 648 | P6: =IFERROR(IF($D6="Unlisted Player",-1001,IF(OR(H6="SP",H6="RP"),N6/VLOOKUP($D6,'Filtered-P'!$A$1:$AC$961,4,FALSE),-1000)),-1000) -> -1000 | Q6: =IFERROR(IF($D6="Unlisted Player",-1001,IF(OR(H6="SP",H6="RP"),-1000,N6/VLOOKUP($D6,'Filtered-H'!$A$1:$AE$961,2,FALSE))),-1000) -> -1000 | R6: =IF(H6="",#N/A,H6&"."&1+SUMPRODUCT(($H$2:$H$949=H6)*($N$2:$N$949>N6))+COUNTIFS($N$2:N6,N6,$H$2:H6,H6)-1) -> 1B.41 | S6: =IF(H6="",#N/A,1+SUMPRODUCT(($H$2:$H$949=H6)*($N$2:$N$949>N6))+COUNTIFS($N$2:N6,N6,$H$2:H6,H6)-1) -> 41 | T6: =IF(D6="Non-Ranked Player",0,IF(VLOOKUP($D6,'Starter Calc'!$B$2:$D$961,3,FALSE)="",0,VLOOKUP($D6,'Starter Calc'!$B$2:$D$961,3,FALSE))) -> 0 | U6: =IFERROR(VLOOKUP(D6,'Starter Calc'!B$2:BZ$961,72,FALSE),"") -> Bench | V6: =IFERROR(ROUND(VLOOKUP($D6,'Inflation-Tracking'!$A$5:$AD$862,22,FALSE),0),-999) -> 0 | W6: =IFERROR(IF((OR($H6="RP",$H6="SP")),VLOOKUP(D6,'Filtered-P'!$A$2:$AS$999,13,FALSE),VLOOKUP(D6,'Filtered-H'!$A$2:$AT$999,21,FALSE)),-9999) -> -262.6169197
A7: Mookie Betts | B7: =IFERROR(INDEX($A$1:$A$948,SMALL(IF($A$1:$A$948<>"",ROW($A$1:$A$948)),ROW(A6))),"") -> Mookie Betts | C7: =IFERROR(IF(L7=FALSE,"",CHOOSE(MATCH(RIGHT('Your Points Auction'!$R$4,LEN('Your Points Auction'!$R$4)-8),$M$1:$W$1,0),1+SUMPRODUCT(($L$2:$L$949=TRUE)*($M$2:$M$949>M7))+COUNTIFS($L$2:L7,L7,$M$2:M7,M7)-1,1+SUMPRODUCT(($L$2:$L$949=TRUE)*($N$2:$N$949>N7))+COUNTIFS($L$2:L7,L7,$N$2:N7,N7)-1,1+SUMPRODUCT(($L$2:$L$949=TRUE)*($O$2:$O$949<O7))+COUNTIFS($L$2:L7,L7,$O$2:O7,O7)-1,1+SUMPRODUCT(($L$2:$L$949=TRUE)*($P$2:$P$949>P7))+COUNTIFS($L$2:L7,L7,$P$2:P7,P7)-1,1+SUMPRODUCT(($L$2:$L$949=TRUE)*($Q$2:$Q$949>Q7))+COUNTIFS($L$2:L7,L7,$Q$2:Q7,Q7)-1,,,,,,1+SUMPRODUCT(($L$2:$L$949=TRUE)*($W$2:$W$949>W7))+COUNTIFS($L$2:L7,L7,$W$2:W7,W7)-1,)),"") -> 263 | D7: Jo Adell | E7: =IFERROR(INDEX('Auction Log'!$C$4:$C$806,MATCH(D7,'Auction Log'!$B$4:$B$806,0)),"") ->  | F7: =IFERROR(INDEX('Auction-Rank'!$C$2:$C$961,MATCH(D7,'Auction-Rank'!$A$2:$A$961,0)),"") -> OF | G7: =IFERROR(IF(F7=I7,"",IF(INDEX('Your Points Auction'!$C$11:$C$634,MATCH(D7,'Your Points Auction'!$D$11:$D$634,0))="",IF(I7<>"",I7,""),INDEX('Your Points Auction'!$C$11:$C$634,MATCH(D7,'Your Points Auction'!$D$11:$D$634,0)))),"") ->  | H7: OF | J7: =INDEX('Auction-Rank'!$V$2:$V$961,MATCH(D7,'Auction-Rank'!$A$2:$A$961,0)) -> TRUE | K7: FALSE | L7: =IF(J7=FALSE,FALSE,IF(AND('Your Points Auction'!$R$6="Hide Drafted Players",K7=TRUE),FALSE,IF(OR('Your Points Auction'!$R$5="Show All Positions",AND('Your Points Auction'!$R$5="Only Show: C",H7="C"),AND('Your Points Auction'!$R$5="Only Show: 1B",H7="1B"),AND('Your Points Auction'!$R$5="Only Show: 2B",H7="2B"),AND('Your Points Auction'!$R$5="Only Show: 3B",H7="3B"),AND('Your Points Auction'!$R$5="Only Show: SS",H7="SS"),AND('Your Points Auction'!$R$5="Only Show: OF",H7="OF"),AND('Your Points Auction'!$R$5="Only Show: SP",H7="SP"),AND('Your Points Auction'!$R$5="Only Show: RP",H7="RP"),AND('Your Points Auction'!$R$5="Only Show: CI",OR(H7={"1B","3B"})),AND('Your Points Auction'!$R$5="Only Show: MI",OR(H7={"2B","SS"})),AND('Your Points Auction'!$R$5="Only Show: IF",OR(H7={"C","1B","2B","3B","SS"})),AND('Your Points Auction'!$R$5="Only Show: DH",OR(H7={"C","1B","2B","3B","SS","OF","DH"})),AND('Your Points Auction'!$R$5="Only Show: P",OR(H7={"SP","RP"})),AND('Your Points Auction'!$R$5="Only Show: LF",ISERROR(SEARCH("LF",VLOOKUP($D7,'Auction-Rank'!$A$2:$D$961,4,FALSE)))=FALSE),AND('Your Points Auction'!$R$5="Only Show: RF",ISERROR(SEARCH("RF",VLOOKUP($D7,'Auction-Rank'!$A$2:$D$961,4,FALSE)))=FALSE),AND('Your Points Auction'!$R$5="Only Show: CF",ISERROR(SEARCH("CF",VLOOKUP($D7,'Auction-Rank'!$A$2:$D$961,4,FALSE)))=FALSE)),TRUE,FALSE))) -> TRUE | M7: =IFERROR(IF(VLOOKUP($D7,'Inflation-Tracking'!$A$5:$AD$862,22,FALSE)="",-9999,VLOOKUP($D7,'Inflation-Tracking'!$A$5:$AD$862,22,FALSE)),-9999) -> 0.6817313288 | N7: =IFERROR(IF(D7="Non-Ranked Player",-1001,IF(VLOOKUP($D7,'Starter Calc'!$B$2:$D$961,3,FALSE)="",-1000,VLOOKUP($D7,'Starter Calc'!$B$2:$D$961,3,FALSE))),0) -> 164.9872484 | O7: =IF(D7="Non-Ranked Player",10000,IFERROR(IF(VLOOKUP(D7,'Auction-Rank'!$A$2:$X$961,24,FALSE)="",9999,VLOOKUP(D7,'Auction-Rank'!$A$2:$X$961,24,FALSE)),9999)) -> 321 | P7: =IFERROR(IF($D7="Unlisted Player",-1001,IF(OR(H7="SP",H7="RP"),N7/VLOOKUP($D7,'Filtered-P'!$A$1:$AC$961,4,FALSE),-1000)),-1000) -> -1000 | Q7: =IFERROR(IF($D7="Unlisted Player",-1001,IF(OR(H7="SP",H7="RP"),-1000,N7/VLOOKUP($D7,'Filtered-H'!$A$1:$AE$961,2,FALSE))),-1000) -> 1.127732388 | R7: =IF(H7="",#N/A,H7&"."&1+SUMPRODUCT(($H$2:$H$949=H7)*($N$2:$N$949>N7))+COUNTIFS($N$2:N7,N7,$H$2:H7,H7)-1) -> OF.100 | S7: =IF(H7="",#N/A,1+SUMPRODUCT(($H$2:$H$949=H7)*($N$2:$N$949>N7))+COUNTIFS($N$2:N7,N7,$H$2:H7,H7)-1) -> 100 | T7: =IF(D7="Non-Ranked Player",0,IF(VLOOKUP($D7,'Starter Calc'!$B$2:$D$961,3,FALSE)="",0,VLOOKUP($D7,'Starter Calc'!$B$2:$D$961,3,FALSE))) -> 164.9872484 | U7: =IFERROR(VLOOKUP(D7,'Starter Calc'!B$2:BZ$961,72,FALSE),"") -> Bench | V7: =IFERROR(ROUND(VLOOKUP($D7,'Inflation-Tracking'!$A$5:$AD$862,22,FALSE),0),-999) -> 1 | W7: =IFERROR(IF((OR($H7="RP",$H7="SP")),VLOOKUP(D7,'Filtered-P'!$A$2:$AS$999,13,FALSE),VLOOKUP(D7,'Filtered-H'!$A$2:$AT$999,21,FALSE)),-9999) -> -58.38916949
A8: Bryce Harper | B8: =IFERROR(INDEX($A$1:$A$948,SMALL(IF($A$1:$A$948<>"",ROW($A$1:$A$948)),ROW(A7))),"") -> Bryce Harper | C8: =IFERROR(IF(L8=FALSE,"",CHOOSE(MATCH(RIGHT('Your Points Auction'!$R$4,LEN('Your Points Auction'!$R$4)-8),$M$1:$W$1,0),1+SUMPRODUCT(($L$2:$L$949=TRUE)*($M$2:$M$949>M8))+COUNTIFS($L$2:L8,L8,$M$2:M8,M8)-1,1+SUMPRODUCT(($L$2:$L$949=TRUE)*($N$2:$N$949>N8))+COUNTIFS($L$2:L8,L8,$N$2:N8,N8)-1,1+SUMPRODUCT(($L$2:$L$949=TRUE)*($O$2:$O$949<O8))+COUNTIFS($L$2:L8,L8,$O$2:O8,O8)-1,1+SUMPRODUCT(($L$2:$L$949=TRUE)*($P$2:$P$949>P8))+COUNTIFS($L$2:L8,L8,$P$2:P8,P8)-1,1+SUMPRODUCT(($L$2:$L$949=TRUE)*($Q$2:$Q$949>Q8))+COUNTIFS($L$2:L8,L8,$Q$2:Q8,Q8)-1,,,,,,1+SUMPRODUCT(($L$2:$L$949=TRUE)*($W$2:$W$949>W8))+COUNTIFS($L$2:L8,L8,$W$2:W8,W8)-1,)),"") -> 482 | D8: Ehire Adrianza | E8: =IFERROR(INDEX('Auction Log'!$C$4:$C$806,MATCH(D8,'Auction Log'!$B$4:$B$806,0)),"") ->  | F8: =IFERROR(INDEX('Auction-Rank'!$C$2:$C$961,MATCH(D8,'Auction-Rank'!$A$2:$A$961,0)),"") -> SS | G8: =IFERROR(IF(F8=I8,"",IF(INDEX('Your Points Auction'!$C$11:$C$634,MATCH(D8,'Your Points Auction'!$D$11:$D$634,0))="",IF(I8<>"",I8,""),INDEX('Your Points Auction'!$C$11:$C$634,MATCH(D8,'Your Points Auction'!$D$11:$D$634,0)))),"") ->  | H8: SS | J8: =INDEX('Auction-Rank'!$V$2:$V$961,MATCH(D8,'Auction-Rank'!$A$2:$A$961,0)) -> TRUE | K8: FALSE | L8: =IF(J8=FALSE,FALSE,IF(AND('Your Points Auction'!$R$6="Hide Drafted Players",K8=TRUE),FALSE,IF(OR('Your Points Auction'!$R$5="Show All Positions",AND('Your Points Auction'!$R$5="Only Show: C",H8="C"),AND('Your Points Auction'!$R$5="Only Show: 1B",H8="1B"),AND('Your Points Auction'!$R$5="Only Show: 2B",H8="2B"),AND('Your Points Auction'!$R$5="Only Show: 3B",H8="3B"),AND('Your Points Auction'!$R$5="Only Show: SS",H8="SS"),AND('Your Points Auction'!$R$5="Only Show: OF",H8="OF"),AND('Your Points Auction'!$R$5="Only Show: SP",H8="SP"),AND('Your Points Auction'!$R$5="Only Show: RP",H8="RP"),AND('Your Points Auction'!$R$5="Only Show: CI",OR(H8={"1B","3B"})),AND('Your Points Auction'!$R$5="Only Show: MI",OR(H8={"2B","SS"})),AND('Your Points Auction'!$R$5="Only Show: IF",OR(H8={"C","1B","2B","3B","SS"})),AND('Your Points Auction'!$R$5="Only Show: DH",OR(H8={"C","1B","2B","3B","SS","OF","DH"})),AND('Your Points Auction'!$R$5="Only Show: P",OR(H8={"SP","RP"})),AND('Your Points Auction'!$R$5="Only Show: LF",ISERROR(SEARCH("LF",VLOOKUP($D8,'Auction-Rank'!$A$2:$D$961,4,FALSE)))=FALSE),AND('Your Points Auction'!$R$5="Only Show: RF",ISERROR(SEARCH("RF",VLOOKUP($D8,'Auction-Rank'!$A$2:$D$961,4,FALSE)))=FALSE),AND('Your Points Auction'!$R$5="Only Show: CF",ISERROR(SEARCH("CF",VLOOKUP($D8,'Auction-Rank'!$A$2:$D$961,4,FALSE)))=FALSE)),TRUE,FALSE))) -> TRUE | M8: =IFERROR(IF(VLOOKUP($D8,'Inflation-Tracking'!$A$5:$AD$862,22,FALSE)="",-9999,VLOOKUP($D8,'Inflation-Tracking'!$A$5:$AD$862,22,FALSE)),-9999) -> 0 | N8: =IFERROR(IF(D8="Non-Ranked Player",-1001,IF(VLOOKUP($D8,'Starter Calc'!$B$2:$D$961,3,FALSE)="",-1000,VLOOKUP($D8,'Starter Calc'!$B$2:$D$961,3,FALSE))),0) -> 67.05299451 | O8: =IF(D8="Non-Ranked Player",10000,IFERROR(IF(VLOOKUP(D8,'Auction-Rank'!$A$2:$X$961,24,FALSE)="",9999,VLOOKUP(D8,'Auction-Rank'!$A$2:$X$961,24,FALSE)),9999)) -> 624 | P8: =IFERROR(IF($D8="Unlisted Player",-1001,IF(OR(H8="SP",H8="RP"),N8/VLOOKUP($D8,'Filtered-P'!$A$1:$AC$961,4,FALSE),-1000)),-1000) -> -1000 | Q8: =IFERROR(IF($D8="Unlisted Player",-1001,IF(OR(H8="SP",H8="RP"),-1000,N8/VLOOKUP($D8,'Filtered-H'!$A$1:$AE$961,2,FALSE))),-1000) -> 1.120350785 | R8: =IF(H8="",#N/A,H8&"."&1+SUMPRODUCT(($H$2:$H$949=H8)*($N$2:$N$949>N8))+COUNTIFS($N$2:N8,N8,$H$2:H8,H8)-1) -> SS.47 | S8: =IF(H8="",#N/A,1+SUMPRODUCT(($H$2:$H$949=H8)*($N$2:$N$949>N8))+COUNTIFS($N$2:N8,N8,$H$2:H8,H8)-1) -> 47 | T8: =IF(D8="Non-Ranked Player",0,IF(VLOOKUP($D8,'Starter Calc'!$B$2:$D$961,3,FALSE)="",0,VLOOKUP($D8,'Starter Calc'!$B$2:$D$961,3,FALSE))) -> 67.05299451 | U8: =IFERROR(VLOOKUP(D8,'Starter Calc'!B$2:BZ$961,72,FALSE),"") -> Bench | V8: =IFERROR(ROUND(VLOOKUP($D8,'Inflation-Tracking'!$A$5:$AD$862,22,FALSE),0),-999) -> 0 | W8: =IFERROR(IF((OR($H8="RP",$H8="SP")),VLOOKUP(D8,'Filtered-P'!$A$2:$AS$999,13,FALSE),VLOOKUP(D8,'Filtered-H'!$A$2:$AT$999,21,FALSE)),-9999) -> -173.8817088
A9: Francisco Lindor | B9: =IFERROR(INDEX($A$1:$A$948,SMALL(IF($A$1:$A$948<>"",ROW($A$1:$A$948)),ROW(A8))),"") -> Francisco Lindor | C9: =IFERROR(IF(L9=FALSE,"",CHOOSE(MATCH(RIGHT('Your Points Auction'!$R$4,LEN('Your Points Auction'!$R$4)-8),$M$1:$W$1,0),1+SUMPRODUCT(($L$2:$L$949=TRUE)*($M$2:$M$949>M9))+COUNTIFS($L$2:L9,L9,$M$2:M9,M9)-1,1+SUMPRODUCT(($L$2:$L$949=TRUE)*($N$2:$N$949>N9))+COUNTIFS($L$2:L9,L9,$N$2:N9,N9)-1,1+SUMPRODUCT(($L$2:$L$949=TRUE)*($O$2:$O$949<O9))+COUNTIFS($L$2:L9,L9,$O$2:O9,O9)-1,1+SUMPRODUCT(($L$2:$L$949=TRUE)*($P$2:$P$949>P9))+COUNTIFS($L$2:L9,L9,$P$2:P9,P9)-1,1+SUMPRODUCT(($L$2:$L$949=TRUE)*($Q$2:$Q$949>Q9))+COUNTIFS($L$2:L9,L9,$Q$2:Q9,Q9)-1,,,,,,1+SUMPRODUCT(($L$2:$L$949=TRUE)*($W$2:$W$949>W9))+COUNTIFS($L$2:L9,L9,$W$2:W9,W9)-1,)),"") -> 483 | D9: Dario Agrazal | E9: =IFERROR(INDEX('Auction Log'!$C$4:$C$806,MATCH(D9,'Auction Log'!$B$4:$B$806,0)),"") ->  | F9: =IFERROR(INDEX('Auction-Rank'!$C$2:$C$961,MATCH(D9,'Auction-Rank'!$A$2:$A$961,0)),"") -> RP | G9: =IFERROR(IF(F9=I9,"",IF(INDEX('Your Points Auction'!$C$11:$C$634,MATCH(D9,'Your Points Auction'!$D$11:$D$634,0))="",IF(I9<>"",I9,""),INDEX('Your Points Auction'!$C$11:$C$634,MATCH(D9,'Your Points Auction'!$D$11:$D$634,0)))),"") ->  | H9: RP | J9: =INDEX('Auction-Rank'!$V$2:$V$961,MATCH(D9,'Auction-Rank'!$A$2:$A$961,0)) -> TRUE | K9: FALSE | L9: =IF(J9=FALSE,FALSE,IF(AND('Your Points Auction'!$R$6="Hide Drafted Players",K9=TRUE),FALSE,IF(OR('Your Points Auction'!$R$5="Show All Positions",AND('Your Points Auction'!$R$5="Only Show: C",H9="C"),AND('Your Points Auction'!$R$5="Only Show: 1B",H9="1B"),AND('Your Points Auction'!$R$5="Only Show: 2B",H9="2B"),AND('Your Points Auction'!$R$5="Only Show: 3B",H9="3B"),AND('Your Points Auction'!$R$5="Only Show: SS",H9="SS"),AND('Your Points Auction'!$R$5="Only Show: OF",H9="OF"),AND('Your Points Auction'!$R$5="Only Show: SP",H9="SP"),AND('Your Points Auction'!$R$5="Only Show: RP",H9="RP"),AND('Your Points Auction'!$R$5="Only Show: CI",OR(H9={"1B","3B"})),AND('Your Points Auction'!$R$5="Only Show: MI",OR(H9={"2B","SS"})),AND('Your Points Auction'!$R$5="Only Show: IF",OR(H9={"C","1B","2B","3B","SS"})),AND('Your Points Auction'!$R$5="Only Show: DH",OR(H9={"C","1B","2B","3B","SS","OF","DH"})),AND('Your Points Auction'!$R$5="Only Show: P",OR(H9={"SP","RP"})),AND('Your Points Auction'!$R$5="Only Show: LF",ISERROR(SEARCH("LF",VLOOKUP($D9,'Auction-Rank'!$A$2:$D$961,4,FALSE)))=FALSE),AND('Your Points Auction'!$R$5="Only Show: RF",ISERROR(SEARCH("RF",VLOOKUP($D9,'Auction-Rank'!$A$2:$D$961,4,FALSE)))=FALSE),AND('Your Points Auction'!$R$5="Only Show: CF",ISERROR(SEARCH("CF",VLOOKUP($D9,'Auction-Rank'!$A$2:$D$961,4,FALSE)))=FALSE)),TRUE,FALSE))) -> TRUE | M9: =IFERROR(IF(VLOOKUP($D9,'Inflation-Tracking'!$A$5:$AD$862,22,FALSE)="",-9999,VLOOKUP($D9,'Inflation-Tracking'!$A$5:$AD$862,22,FALSE)),-9999) -> 0 | N9: =IFERROR(IF(D9="Non-Ranked Player",-1001,IF(VLOOKUP($D9,'Starter Calc'!$B$2:$D$961,3,FALSE)="",-1000,VLOOKUP($D9,'Starter Calc'!$B$2:$D$961,3,FALSE))),0) -> 0 | O9: =IF(D9="Non-Ranked Player",10000,IFERROR(IF(VLOOKUP(D9,'Auction-Rank'!$A$2:$X$961,24,FALSE)="",9999,VLOOKUP(D9,'Auction-Rank'!$A$2:$X$961,24,FALSE)),9999)) -> 9999 | P9: =IFERROR(IF($D9="Unlisted Player",-1001,IF(OR(H9="SP",H9="RP"),N9/VLOOKUP($D9,'Filtered-P'!$A$1:$AC$961,4,FALSE),-1000)),-1000) -> -1000 | Q9: =IFERROR(IF($D9="Unlisted Player",-1001,IF(OR(H9="SP",H9="RP"),-1000,N9/VLOOKUP($D9,'Filtered-H'!$A$1:$AE$961,2,FALSE))),-1000) -> -1000 | R9: =IF(H9="",#N/A,H9&"."&1+SUMPRODUCT(($H$2:$H$949=H9)*($N$2:$N$949>N9))+COUNTIFS($N$2:N9,N9,$H$2:H9,H9)-1) -> RP.139 | S9: =IF(H9="",#N/A,1+SUMPRODUCT(($H$2:$H$949=H9)*($N$2:$N$949>N9))+COUNTIFS($N$2:N9,N9,$H$2:H9,H9)-1) -> 139 | T9: =IF(D9="Non-Ranked Player",0,IF(VLOOKUP($D9,'Starter Calc'!$B$2:$D$961,3,FALSE)="",0,VLOOKUP($D9,'Starter Calc'!$B$2:$D$961,3,FALSE))) -> 0 | U9: =IFERROR(VLOOKUP(D9,'Starter Calc'!B$2:BZ$961,72,FALSE),"") -> Bench | V9: =IFERROR(ROUND(VLOOKUP($D9,'Inflation-Tracking'!$A$5:$AD$862,22,FALSE),0),-999) -> 0 | W9: =IFERROR(IF((OR($H9="RP",$H9="SP")),VLOOKUP(D9,'Filtered-P'!$A$2:$AS$999,13,FALSE),VLOOKUP(D9,'Filtered-H'!$A$2:$AT$999,21,FALSE)),-9999) -> -129.0871667
A10: Alex Bregman | B10: =IFERROR(INDEX($A$1:$A$948,SMALL(IF($A$1:$A$948<>"",ROW($A$1:$A$948)),ROW(A9))),"") -> Alex Bregman | C10: =IFERROR(IF(L10=FALSE,"",CHOOSE(MATCH(RIGHT('Your Points Auction'!$R$4,LEN('Your Points Auction'!$R$4)-8),$M$1:$W$1,0),1+SUMPRODUCT(($L$2:$L$949=TRUE)*($M$2:$M$949>M10))+COUNTIFS($L$2:L10,L10,$M$2:M10,M10)-1,1+SUMPRODUCT(($L$2:$L$949=TRUE)*($N$2:$N$949>N10))+COUNTIFS($L$2:L10,L10,$N$2:N10,N10)-1,1+SUMPRODUCT(($L$2:$L$949=TRUE)*($O$2:$O$949<O10))+COUNTIFS($L$2:L10,L10,$O$2:O10,O10)-1,1+SUMPRODUCT(($L$2:$L$949=TRUE)*($P$2:$P$949>P10))+COUNTIFS($L$2:L10,L10,$P$2:P10,P10)-1,1+SUMPRODUCT(($L$2:$L$949=TRUE)*($Q$2:$Q$949>Q10))+COUNTIFS($L$2:L10,L10,$Q$2:Q10,Q10)-1,,,,,,1+SUMPRODUCT(($L$2:$L$949=TRUE)*($W$2:$W$949>W10))+COUNTIFS($L$2:L10,L10,$W$2:W10,W10)-1,)),"") -> 264 | D10: Jesus Aguilar | E10: =IFERROR(INDEX('Auction Log'!$C$4:$C$806,MATCH(D10,'Auction Log'!$B$4:$B$806,0)),"") ->  | F10: =IFERROR(INDEX('Auction-Rank'!$C$2:$C$961,MATCH(D10,'Auction-Rank'!$A$2:$A$961,0)),"") -> 1B | G10: =IFERROR(IF(F10=I10,"",IF(INDEX('Your Points Auction'!$C$11:$C$634,MATCH(D10,'Your Points Auction'!$D$11:$D$634,0))="",IF(I10<>"",I10,""),INDEX('Your Points Auction'!$C$11:$C$634,MATCH(D10,'Your Points Auction'!$D$11:$D$634,0)))),"") ->  | H10: 1B | J10: =INDEX('Auction-Rank'!$V$2:$V$961,MATCH(D10,'Auction-Rank'!$A$2:$A$961,0)) -> TRUE | K10: FALSE | L10: =IF(J10=FALSE,FALSE,IF(AND('Your Points Auction'!$R$6="Hide Drafted Players",K10=TRUE),FALSE,IF(OR('Your Points Auction'!$R$5="Show All Positions",AND('Your Points Auction'!$R$5="Only Show: C",H10="C"),AND('Your Points Auction'!$R$5="Only Show: 1B",H10="1B"),AND('Your Points Auction'!$R$5="Only Show: 2B",H10="2B"),AND('Your Points Auction'!$R$5="Only Show: 3B",H10="3B"),AND('Your Points Auction'!$R$5="Only Show: SS",H10="SS"),AND('Your Points Auction'!$R$5="Only Show: OF",H10="OF"),AND('Your Points Auction'!$R$5="Only Show: SP",H10="SP"),AND('Your Points Auction'!$R$5="Only Show: RP",H10="RP"),AND('Your Points Auction'!$R$5="Only Show: CI",OR(H10={"1B","3B"})),AND('Your Points Auction'!$R$5="Only Show: MI",OR(H10={"2B","SS"})),AND('Your Points Auction'!$R$5="Only Show: IF",OR(H10={"C","1B","2B","3B","SS"})),AND('Your Points Auction'!$R$5="Only Show: DH",OR(H10={"C","1B","2B","3B","SS","OF","DH"})),AND('Your Points Auction'!$R$5="Only Show: P",OR(H10={"SP","RP"})),AND('Your Points Auction'!$R$5="Only Show: LF",ISERROR(SEARCH("LF",VLOOKUP($D10,'Auction-Rank'!$A$2:$D$961,4,FALSE)))=FALSE),AND('Your Points Auction'!$R$5="Only Show: RF",ISERROR(SEARCH("RF",VLOOKUP($D10,'Auction-Rank'!$A$2:$D$961,4,FALSE)))=FALSE),AND('Your Points Auction'!$R$5="Only Show: CF",ISERROR(SEARCH("CF",VLOOKUP($D10,'Auction-Rank'!$A$2:$D$961,4,FALSE)))=FALSE)),TRUE,FALSE))) -> TRUE | M10: =IFERROR(IF(VLOOKUP($D10,'Inflation-Tracking'!$A$5:$AD$862,22,FALSE)="",-9999,VLOOKUP($D10,'Inflation-Tracking'!$A$5:$AD$862,22,FALSE)),-9999) -> 0.6817313288 | N10: =IFERROR(IF(D10="Non-Ranked Player",-1001,IF(VLOOKUP($D10,'Starter Calc'!$B$2:$D$961,3,FALSE)="",-1000,VLOOKUP($D10,'Starter Calc'!$B$2:$D$961,3,FALSE))),0) -> 182.0156927 | O10: =IF(D10="Non-Ranked Player",10000,IFERROR(IF(VLOOKUP(D10,'Auction-Rank'!$A$2:$X$961,24,FALSE)="",9999,VLOOKUP(D10,'Auction-Rank'!$A$2:$X$961,24,FALSE)),9999)) -> 330 | P10: =IFERROR(IF($D10="Unlisted Player",-1001,IF(OR(H10="SP",H10="RP"),N10/VLOOKUP($D10,'Filtered-P'!$A$1:$AC$961,4,FALSE),-1000)),-1000) -> -1000 | Q10: =IFERROR(IF($D10="Unlisted Player",-1001,IF(OR(H10="SP",H10="RP"),-1000,N10/VLOOKUP($D10,'Filtered-H'!$A$1:$AE$961,2,FALSE))),-1000) -> 1.154555615 | R10: =IF(H10="",#N/A,H10&"."&1+SUMPRODUCT(($H$2:$H$949=H10)*($N$2:$N$949>N10))+COUNTIFS($N$2:N10,N10,$H$2:H10,H10)-1) -> 1B.30 | S10: =IF(H10="",#N/A,1+SUMPRODUCT(($H$2:$H$949=H10)*($N$2:$N$949>N10))+COUNTIFS($N$2:N10,N10,$H$2:H10,H10)-1) -> 30 | T10: =IF(D10="Non-Ranked Player",0,IF(VLOOKUP($D10,'Starter Calc'!$B$2:$D$961,3,FALSE)="",0,VLOOKUP($D10,'Starter Calc'!$B$2:$D$961,3,FALSE))) -> 182.0156927 | U10: =IFERROR(VLOOKUP(D10,'Starter Calc'!B$2:BZ$961,72,FALSE),"") -> Bench | V10: =IFERROR(ROUND(VLOOKUP($D10,'Inflation-Tracking'!$A$5:$AD$862,22,FALSE),0),-999) -> 1 | W10: =IFERROR(IF((OR($H10="RP",$H10="SP")),VLOOKUP(D10,'Filtered-P'!$A$2:$AS$999,13,FALSE),VLOOKUP(D10,'Filtered-H'!$A$2:$AT$999,21,FALSE)),-9999) -> -80.60122696
A11: Nolan Arenado | B11: =IFERROR(INDEX($A$1:$A$948,SMALL(IF($A$1:$A$948<>"",ROW($A$1:$A$948)),ROW(A10))),"") -> Nolan Arenado | C11: =IFERROR(IF(L11=FALSE,"",CHOOSE(MATCH(RIGHT('Your Points Auction'!$R$4,LEN('Your Points Auction'!$R$4)-8),$M$1:$W$1,0),1+SUMPRODUCT(($L$2:$L$949=TRUE)*($M$2:$M$949>M11))+COUNTIFS($L$2:L11,L11,$M$2:M11,M11)-1,1+SUMPRODUCT(($L$2:$L$949=TRUE)*($N$2:$N$949>N11))+COUNTIFS($L$2:L11,L11,$N$2:N11,N11)-1,1+SUMPRODUCT(($L$2:$L$949=TRUE)*($O$2:$O$949<O11))+COUNTIFS($L$2:L11,L11,$O$2:O11,O11)-1,1+SUMPRODUCT(($L$2:$L$949=TRUE)*($P$2:$P$949>P11))+COUNTIFS($L$2:L11,L11,$P$2:P11,P11)-1,1+SUMPRODUCT(($L$2:$L$949=TRUE)*($Q$2:$Q$949>Q11))+COUNTIFS($L$2:L11,L11,$Q$2:Q11,Q11)-1,,,,,,1+SUMPRODUCT(($L$2:$L$949=TRUE)*($W$2:$W$949>W11))+COUNTIFS($L$2:L11,L11,$W$2:W11,W11)-1,)),"") -> 265 | D11: Nick Ahmed | E11: =IFERROR(INDEX('Auction Log'!$C$4:$C$806,MATCH(D11,'Auction Log'!$B$4:$B$806,0)),"") ->  | F11: =IFERROR(INDEX('Auction-Rank'!$C$2:$C$961,MATCH(D11,'Auction-Rank'!$A$2:$A$961,0)),"") -> SS | G11: =IFERROR(IF(F11=I11,"",IF(INDEX('Your Points Auction'!$C$11:$C$634,MATCH(D11,'Your Points Auction'!$D$11:$D$634,0))="",IF(I11<>"",I11,""),INDEX('Your Points Auction'!$C$11:$C$634,MATCH(D11,'Your Points Auction'!$D$11:$D$634,0)))),"") ->  | H11: SS | J11: =INDEX('Auction-Rank'!$V$2:$V$961,MATCH(D11,'Auction-Rank'!$A$2:$A$961,0)) -> TRUE | K11: FALSE | L11: =IF(J11=FALSE,FALSE,IF(AND('Your Points Auction'!$R$6="Hide Drafted Players",K11=TRUE),FALSE,IF(OR('Your Points Auction'!$R$5="Show All Positions",AND('Your Points Auction'!$R$5="Only Show: C",H11="C"),AND('Your Points Auction'!$R$5="Only Show: 1B",H11="1B"),AND('Your Points Auction'!$R$5="Only Show: 2B",H11="2B"),AND('Your Points Auction'!$R$5="Only Show: 3B",H11="3B"),AND('Your Points Auction'!$R$5="Only Show: SS",H11="SS"),AND('Your Points Auction'!$R$5="Only Show: OF",H11="OF"),AND('Your Points Auction'!$R$5="Only Show: SP",H11="SP"),AND('Your Points Auction'!$R$5="Only Show: RP",H11="RP"),AND('Your Points Auction'!$R$5="Only Show: CI",OR(H11={"1B","3B"})),AND('Your Points Auction'!$R$5="Only Show: MI",OR(H11={"2B","SS"})),AND('Your Points Auction'!$R$5="Only Show: IF",OR(H11={"C","1B","2B","3B","SS"})),AND('Your Points Auction'!$R$5="Only Show: DH",OR(H11={"C","1B","2B","3B","SS","OF","DH"})),AND('Your Points Auction'!$R$5="Only Show: P",OR(H11={"SP","RP"})),AND('Your Points Auction'!$R$5="Only Show: LF",ISERROR(SEARCH("LF",VLOOKUP($D11,'Auction-Rank'!$A$2:$D$961,4,FALSE)))=FALSE),AND('Your Points Auction'!$R$5="Only Show: RF",ISERROR(SEARCH("RF",VLOOKUP($D11,'Auction-Rank'!$A$2:$D$961,4,FALSE)))=FALSE),AND('Your Points Auction'!$R$5="Only Show: CF",ISERROR(SEARCH("CF",VLOOKUP($D11,'Auction-Rank'!$A$2:$D$961,4,FALSE)))=FALSE)),TRUE,FALSE))) -> TRUE | M11: =IFERROR(IF(VLOOKUP($D11,'Inflation-Tracking'!$A$5:$AD$862,22,FALSE)="",-9999,VLOOKUP($D11,'Inflation-Tracking'!$A$5:$AD$862,22,FALSE)),-9999) -> 0.6817313288 | N11: =IFERROR(IF(D11="Non-Ranked Player",-1001,IF(VLOOKUP($D11,'Starter Calc'!$B$2:$D$961,3,FALSE)="",-1000,VLOOKUP($D11,'Starter Calc'!$B$2:$D$961,3,FALSE))),0) -> 228.9998556 | O11: =IF(D11="Non-Ranked Player",10000,IFERROR(IF(VLOOKUP(D11,'Auction-Rank'!$A$2:$X$961,24,FALSE)="",9999,VLOOKUP(D11,'Auction-Rank'!$A$2:$X$961,24,FALSE)),9999)) -> 320 | P11: =IFERROR(IF($D11="Unlisted Player",-1001,IF(OR(H11="SP",H11="RP"),N11/VLOOKUP($D11,'Filtered-P'!$A$1:$AC$961,4,FALSE),-1000)),-1000) -> -1000 | Q11: =IFERROR(IF($D11="Unlisted Player",-1001,IF(OR(H11="SP",H11="RP"),-1000,N11/VLOOKUP($D11,'Filtered-H'!$A$1:$AE$961,2,FALSE))),-1000) -> 1.051181343 | R11: =IF(H11="",#N/A,H11&"."&1+SUMPRODUCT(($H$2:$H$949=H11)*($N$2:$N$949>N11))+COUNTIFS($N$2:N11,N11,$H$2:H11,H11)-1) -> SS.24 | S11: =IF(H11="",#N/A,1+SUMPRODUCT(($H$2:$H$949=H11)*($N$2:$N$949>N11))+COUNTIFS($N$2:N11,N11,$H$2:H11,H11)-1) -> 24 | T11: =IF(D11="Non-Ranked Player",0,IF(VLOOKUP($D11,'Starter Calc'!$B$2:$D$961,3,FALSE)="",0,VLOOKUP($D11,'Starter Calc'!$B$2:$D$961,3,FALSE))) -> 228.9998556 | U11: =IFERROR(VLOOKUP(D11,'Starter Calc'!B$2:BZ$961,72,FALSE),"") -> Bench | V11: =IFERROR(ROUND(VLOOKUP($D11,'Inflation-Tracking'!$A$5:$AD$862,22,FALSE),0),-999) -> 1 | W11: =IFERROR(IF((OR($H11="RP",$H11="SP")),VLOOKUP(D11,'Filtered-P'!$A$2:$AS$999,13,FALSE),VLOOKUP(D11,'Filtered-H'!$A$2:$AT$999,21,FALSE)),-9999) -> -11.93484778
A12: Trevor Story | B12: =IFERROR(INDEX($A$1:$A$948,SMALL(IF($A$1:$A$948<>"",ROW($A$1:$A$948)),ROW(A11))),"") -> Trevor Story | C12: =IFERROR(IF(L12=FALSE,"",CHOOSE(MATCH(RIGHT('Your Points Auction'!$R$4,LEN('Your Points Auction'!$R$4)-8),$M$1:$W$1,0),1+SUMPRODUCT(($L$2:$L$949=TRUE)*($M$2:$M$949>M12))+COUNTIFS($L$2:L12,L12,$M$2:M12,M12)-1,1+SUMPRODUCT(($L$2:$L$949=TRUE)*($N$2:$N$949>N12))+COUNTIFS($L$2:L12,L12,$N$2:N12,N12)-1,1+SUMPRODUCT(($L$2:$L$949=TRUE)*($O$2:$O$949<O12))+COUNTIFS($L$2:L12,L12,$O$2:O12,O12)-1,1+SUMPRODUCT(($L$2:$L$949=TRUE)*($P$2:$P$949>P12))+COUNTIFS($L$2:L12,L12,$P$2:P12,P12)-1,1+SUMPRODUCT(($L$2:$L$949=TRUE)*($Q$2:$Q$949>Q12))+COUNTIFS($L$2:L12,L12,$Q$2:Q12,Q12)-1,,,,,,1+SUMPRODUCT(($L$2:$L$949=TRUE)*($W$2:$W$949>W12))+COUNTIFS($L$2:L12,L12,$W$2:W12,W12)-1,)),"") -> 266 | D12: Shogo Akiyama | E12: =IFERROR(INDEX('Auction Log'!$C$4:$C$806,MATCH(D12,'Auction Log'!$B$4:$B$806,0)),"") ->  | F12: =IFERROR(INDEX('Auction-Rank'!$C$2:$C$961,MATCH(D12,'Auction-Rank'!$A$2:$A$961,0)),"") -> OF | G12: =IFERROR(IF(F12=I12,"",IF(INDEX('Your Points Auction'!$C$11:$C$634,MATCH(D12,'Your Points Auction'!$D$11:$D$634,0))="",IF(I12<>"",I12,""),INDEX('Your Points Auction'!$C$11:$C$634,MATCH(D12,'Your Points Auction'!$D$11:$D$634,0)))),"") ->  | H12: OF | J12: =INDEX('Auction-Rank'!$V$2:$V$961,MATCH(D12,'Auction-Rank'!$A$2:$A$961,0)) -> TRUE | K12: FALSE | L12: =IF(J12=FALSE,FALSE,IF(AND('Your Points Auction'!$R$6="Hide Drafted Players",K12=TRUE),FALSE,IF(OR('Your Points Auction'!$R$5="Show All Positions",AND('Your Points Auction'!$R$5="Only Show: C",H12="C"),AND('Your Points Auction'!$R$5="Only Show: 1B",H12="1B"),AND('Your Points Auction'!$R$5="Only Show: 2B",H12="2B"),AND('Your Points Auction'!$R$5="Only Show: 3B",H12="3B"),AND('Your Points Auction'!$R$5="Only Show: SS",H12="SS"),AND('Your Points Auction'!$R$5="Only Show: OF",H12="OF"),AND('Your Points Auction'!$R$5="Only Show: SP",H12="SP"),AND('Your Points Auction'!$R$5="Only Show: RP",H12="RP"),AND('Your Points Auction'!$R$5="Only Show: CI",OR(H12={"1B","3B"})),AND('Your Points Auction'!$R$5="Only Show: MI",OR(H12={"2B","SS"})),AND('Your Points Auction'!$R$5="Only Show: IF",OR(H12={"C","1B","2B","3B","SS"})),AND('Your Points Auction'!$R$5="Only Show: DH",OR(H12={"C","1B","2B","3B","SS","OF","DH"})),AND('Your Points Auction'!$R$5="Only Show: P",OR(H12={"SP","RP"})),AND('Your Points Auction'!$R$5="Only Show: LF",ISERROR(SEARCH("LF",VLOOKUP($D12,'Auction-Rank'!$A$2:$D$961,4,FALSE)))=FALSE),AND('Your Points Auction'!$R$5="Only Show: RF",ISERROR(SEARCH("RF",VLOOKUP($D12,'Auction-Rank'!$A$2:$D$961,4,FALSE)))=FALSE),AND('Your Points Auction'!$R$5="Only Show: CF",ISERROR(SEARCH("CF",VLOOKUP($D12,'Auction-Rank'!$A$2:$D$961,4,FALSE)))=FALSE)),TRUE,FALSE))) -> TRUE | M12: =IFERROR(IF(VLOOKUP($D12,'Inflation-Tracking'!$A$5:$AD$862,22,FALSE)="",-9999,VLOOKUP($D12,'Inflation-Tracking'!$A$5:$AD$862,22,FALSE)),-9999) -> 0.6817313288 | N12: =IFERROR(IF(D12="Non-Ranked Player",-1001,IF(VLOOKUP($D12,'Starter Calc'!$B$2:$D$961,3,FALSE)="",-1000,VLOOKUP($D12,'Starter Calc'!$B$2:$D$961,3,FALSE))),0) -> 260.7489023 | O12: =IF(D12="Non-Ranked Player",10000,IFERROR(IF(VLOOKUP(D12,'Auction-Rank'!$A$2:$X$961,24,FALSE)="",9999,VLOOKUP(D12,'Auction-Rank'!$A$2:$X$961,24,FALSE)),9999)) -> 233 | P12: =IFERROR(IF($D12="Unlisted Player",-1001,IF(OR(H12="SP",H12="RP"),N12/VLOOKUP($D12,'Filtered-P'!$A$1:$AC$961,4,FALSE),-1000)),-1000) -> -1000 | Q12: =IFERROR(IF($D12="Unlisted Player",-1001,IF(OR(H12="SP",H12="RP"),-1000,N12/VLOOKUP($D12,'Filtered-H'!$A$1:$AE$961,2,FALSE))),-1000) -> 1.192812911 | R12: =IF(H12="",#N/A,H12&"."&1+SUMPRODUCT(($H$2:$H$949=H12)*($N$2:$N$949>N12))+COUNTIFS($N$2:N12,N12,$H$2:H12,H12)-1) -> OF.31 | S12: =IF(H12="",#N/A,1+SUMPRODUCT(($H$2:$H$949=H12)*($N$2:$N$949>N12))+COUNTIFS($N$2:N12,N12,$H$2:H12,H12)-1) -> 31 | T12: =IF(D12="Non-Ranked Player",0,IF(VLOOKUP($D12,'Starter Calc'!$B$2:$D$961,3,FALSE)="",0,VLOOKUP($D12,'Starter Calc'!$B$2:$D$961,3,FALSE))) -> 260.7489023 | U12: =IFERROR(VLOOKUP(D12,'Starter Calc'!B$2:BZ$961,72,FALSE),"") -> Bench | V12: =IFERROR(ROUND(VLOOKUP($D12,'Inflation-Tracking'!$A$5:$AD$862,22,FALSE),0),-999) -> 1 | W12: =IFERROR(IF((OR($H12="RP",$H12="SP")),VLOOKUP(D12,'Filtered-P'!$A$2:$AS$999,13,FALSE),VLOOKUP(D12,'Filtered-H'!$A$2:$AT$999,21,FALSE)),-9999) -> 37.37248445
A13: J.D. Martinez | B13: =IFERROR(INDEX($A$1:$A$948,SMALL(IF($A$1:$A$948<>"",ROW($A$1:$A$948)),ROW(A12))),"") -> J.D. Martinez | C13: =IFERROR(IF(L13=FALSE,"",CHOOSE(MATCH(RIGHT('Your Points Auction'!$R$4,LEN('Your Points Auction'!$R$4)-8),$M$1:$W$1,0),1+SUMPRODUCT(($L$2:$L$949=TRUE)*($M$2:$M$949>M13))+COUNTIFS($L$2:L13,L13,$M$2:M13,M13)-1,1+SUMPRODUCT(($L$2:$L$949=TRUE)*($N$2:$N$949>N13))+COUNTIFS($L$2:L13,L13,$N$2:N13,N13)-1,1+SUMPRODUCT(($L$2:$L$949=TRUE)*($O$2:$O$949<O13))+COUNTIFS($L$2:L13,L13,$O$2:O13,O13)-1,1+SUMPRODUCT(($L$2:$L$949=TRUE)*($P$2:$P$949>P13))+COUNTIFS($L$2:L13,L13,$P$2:P13,P13)-1,1+SUMPRODUCT(($L$2:$L$949=TRUE)*($Q$2:$Q$949>Q13))+COUNTIFS($L$2:L13,L13,$Q$2:Q13,Q13)-1,,,,,,1+SUMPRODUCT(($L$2:$L$949=TRUE)*($W$2:$W$949>W13))+COUNTIFS($L$2:L13,L13,$W$2:W13,W13)-1,)),"") -> 267 | D13: Hanser Alberto | E13: =IFERROR(INDEX('Auction Log'!$C$4:$C$806,MATCH(D13,'Auction Log'!$B$4:$B$806,0)),"") ->  | F13: =IFERROR(INDEX('Auction-Rank'!$C$2:$C$961,MATCH(D13,'Auction-Rank'!$A$2:$A$961,0)),"") -> 2B | G13: =IFERROR(IF(F13=I13,"",IF(INDEX('Your Points Auction'!$C$11:$C$634,MATCH(D13,'Your Points Auction'!$D$11:$D$634,0))="",IF(I13<>"",I13,""),INDEX('Your Points Auction'!$C$11:$C$634,MATCH(D13,'Your Points Auction'!$D$11:$D$634,0)))),"") ->  | H13: 2B | J13: =INDEX('Auction-Rank'!$V$2:$V$961,MATCH(D13,'Auction-Rank'!$A$2:$A$961,0)) -> TRUE | K13: FALSE | L13: =IF(J13=FALSE,FALSE,IF(AND('Your Points Auction'!$R$6="Hide Drafted Players",K13=TRUE),FALSE,IF(OR('Your Points Auction'!$R$5="Show All Positions",AND('Your Points Auction'!$R$5="Only Show: C",H13="C"),AND('Your Points Auction'!$R$5="Only Show: 1B",H13="1B"),AND('Your Points Auction'!$R$5="Only Show: 2B",H13="2B"),AND('Your Points Auction'!$R$5="Only Show: 3B",H13="3B"),AND('Your Points Auction'!$R$5="Only Show: SS",H13="SS"),AND('Your Points Auction'!$R$5="Only Show: OF",H13="OF"),AND('Your Points Auction'!$R$5="Only Show: SP",H13="SP"),AND('Your Points Auction'!$R$5="Only Show: RP",H13="RP"),AND('Your Points Auction'!$R$5="Only Show: CI",OR(H13={"1B","3B"})),AND('Your Points Auction'!$R$5="Only Show: MI",OR(H13={"2B","SS"})),AND('Your Points Auction'!$R$5="Only Show: IF",OR(H13={"C","1B","2B","3B","SS"})),AND('Your Points Auction'!$R$5="Only Show: DH",OR(H13={"C","1B","2B","3B","SS","OF","DH"})),AND('Your Points Auction'!$R$5="Only Show: P",OR(H13={"SP","RP"})),AND('Your Points Auction'!$R$5="Only Show: LF",ISERROR(SEARCH("LF",VLOOKUP($D13,'Auction-Rank'!$A$2:$D$961,4,FALSE)))=FALSE),AND('Your Points Auction'!$R$5="Only Show: RF",ISERROR(SEARCH("RF",VLOOKUP($D13,'Auction-Rank'!$A$2:$D$961,4,FALSE)))=FALSE),AND('Your Points Auction'!$R$5="Only Show: CF",ISERROR(SEARCH("CF",VLOOKUP($D13,'Auction-Rank'!$A$2:$D$961,4,FALSE)))=FALSE)),TRUE,FALSE))) -> TRUE | M13: =IFERROR(IF(VLOOKUP($D13,'Inflation-Tracking'!$A$5:$AD$862,22,FALSE)="",-9999,VLOOKUP($D13,'Inflation-Tracking'!$A$5:$AD$862,22,FALSE)),-9999) -> 0.6817313288 | N13: =IFERROR(IF(D13="Non-Ranked Player",-1001,IF(VLOOKUP($D13,'Starter Calc'!$B$2:$D$961,3,FALSE)="",-1000,VLOOKUP($D13,'Starter Calc'!$B$2:$D$961,3,FALSE))),0) -> 213.4263141 | O13: =IF(D13="Non-Ranked Player",10000,IFERROR(IF(VLOOKUP(D13,'Auction-Rank'!$A$2:$X$961,24,FALSE)="",9999,VLOOKUP(D13,'Auction-Rank'!$A$2:$X$961,24,FALSE)),9999)) -> 333 | P13: =IFERROR(IF($D13="Unlisted Player",-1001,IF(OR(H13="SP",H13="RP"),N13/VLOOKUP($D13,'Filtered-P'!$A$1:$AC$961,4,FALSE),-1000)),-1000) -> -1000 | Q13: =IFERROR(IF($D13="Unlisted Player",-1001,IF(OR(H13="SP",H13="RP"),-1000,N13/VLOOKUP($D13,'Filtered-H'!$A$1:$AE$961,2,FALSE))),-1000) -> 1.007916477 | R13: =IF(H13="",#N/A,H13&"."&1+SUMPRODUCT(($H$2:$H$949=H13)*($N$2:$N$949>N13))+COUNTIFS($N$2:N13,N13,$H$2:H13,H13)-1) -> 2B.21 | S13: =IF(H13="",#N/A,1+SUMPRODUCT(($H$2:$H$949=H13)*($N$2:$N$949>N13))+COUNTIFS($N$2:N13,N13,$H$2:H13,H13)-1) -> 21 | T13: =IF(D13="Non-Ranked Player",0,IF(VLOOKUP($D13,'Starter Calc'!$B$2:$D$961,3,FALSE)="",0,VLOOKUP($D13,'Starter Calc'!$B$2:$D$961,3,FALSE))) -> 213.4263141 | U13: =IFERROR(VLOOKUP(D13,'Starter Calc'!B$2:BZ$961,72,FALSE),"") -> Bench | V13: =IFERROR(ROUND(VLOOKUP($D13,'Inflation-Tracking'!$A$5:$AD$862,22,FALSE),0),-999) -> 1 | W13: =IFERROR(IF((OR($H13="RP",$H13="SP")),VLOOKUP(D13,'Filtered-P'!$A$2:$AS$999,13,FALSE),VLOOKUP(D13,'Filtered-H'!$A$2:$AT$999,21,FALSE)),-9999) -> -27.86915633
A14: Freddie Freeman | B14: =IFERROR(INDEX($A$1:$A$948,SMALL(IF($A$1:$A$948<>"",ROW($A$1:$A$948)),ROW(A13))),"") -> Freddie Freeman | C14: =IFERROR(IF(L14=FALSE,"",CHOOSE(MATCH(RIGHT('Your Points Auction'!$R$4,LEN('Your Points Auction'!$R$4)-8),$M$1:$W$1,0),1+SUMPRODUCT(($L$2:$L$949=TRUE)*($M$2:$M$949>M14))+COUNTIFS($L$2:L14,L14,$M$2:M14,M14)-1,1+SUMPRODUCT(($L$2:$L$949=TRUE)*($N$2:$N$949>N14))+COUNTIFS($L$2:L14,L14,$N$2:N14,N14)-1,1+SUMPRODUCT(($L$2:$L$949=TRUE)*($O$2:$O$949<O14))+COUNTIFS($L$2:L14,L14,$O$2:O14,O14)-1,1+SUMPRODUCT(($L$2:$L$949=TRUE)*($P$2:$P$949>P14))+COUNTIFS($L$2:L14,L14,$P$2:P14,P14)-1,1+SUMPRODUCT(($L$2:$L$949=TRUE)*($Q$2:$Q$949>Q14))+COUNTIFS($L$2:L14,L14,$Q$2:Q14,Q14)-1,,,,,,1+SUMPRODUCT(($L$2:$L$949=TRUE)*($W$2:$W$949>W14))+COUNTIFS($L$2:L14,L14,$W$2:W14,W14)-1,)),"") -> 21 | D14: Ozzie Albies | E14: =IFERROR(INDEX('Auction Log'!$C$4:$C$806,MATCH(D14,'Auction Log'!$B$4:$B$806,0)),"") ->  | F14: =IFERROR(INDEX('Auction-Rank'!$C$2:$C$961,MATCH(D14,'Auction-Rank'!$A$2:$A$961,0)),"") -> 2B | G14: =IFERROR(IF(F14=I14,"",IF(INDEX('Your Points Auction'!$C$11:$C$634,MATCH(D14,'Your Points Auction'!$D$11:$D$634,0))="",IF(I14<>"",I14,""),INDEX('Your Points Auction'!$C$11:$C$634,MATCH(D14,'Your Points Auction'!$D$11:$D$634,0)))),"") ->  | H14: 2B | J14: =INDEX('Auction-Rank'!$V$2:$V$961,MATCH(D14,'Auction-Rank'!$A$2:$A$961,0)) -> TRUE | K14: FALSE | L14: =IF(J14=FALSE,FALSE,IF(AND('Your Points Auction'!$R$6="Hide Drafted Players",K14=TRUE),FALSE,IF(OR('Your Points Auction'!$R$5="Show All Positions",AND('Your Points Auction'!$R$5="Only Show: C",H14="C"),AND('Your Points Auction'!$R$5="Only Show: 1B",H14="1B"),AND('Your Points Auction'!$R$5="Only Show: 2B",H14="2B"),AND('Your Points Auction'!$R$5="Only Show: 3B",H14="3B"),AND('Your Points Auction'!$R$5="Only Show: SS",H14="SS"),AND('Your Points Auction'!$R$5="Only Show: OF",H14="OF"),AND('Your Points Auction'!$R$5="Only Show: SP",H14="SP"),AND('Your Points Auction'!$R$5="Only Show: RP",H14="RP"),AND('Your Points Auction'!$R$5="Only Show: CI",OR(H14={"1B","3B"})),AND('Your Points Auction'!$R$5="Only Show: MI",OR(H14={"2B","SS"})),AND('Your Points Auction'!$R$5="Only Show: IF",OR(H14={"C","1B","2B","3B","SS"})),AND('Your Points Auction'!$R$5="Only Show: DH",OR(H14={"C","1B","2B","3B","SS","OF","DH"})),AND('Your Points Auction'!$R$5="Only Show: P",OR(H14={"SP","RP"})),AND('Your Points Auction'!$R$5="Only Show: LF",ISERROR(SEARCH("LF",VLOOKUP($D14,'Auction-Rank'!$A$2:$D$961,4,FALSE)))=FALSE),AND('Your Points Auction'!$R$5="Only Show: RF",ISERROR(SEARCH("RF",VLOOKUP($D14,'Auction-Rank'!$A$2:$D$961,4,FALSE)))=FALSE),AND('Your Points Auction'!$R$5="Only Show: CF",ISERROR(SEARCH("CF",VLOOKUP($D14,'Auction-Rank'!$A$2:$D$961,4,FALSE)))=FALSE)),TRUE,FALSE))) -> TRUE | M14: =IFERROR(IF(VLOOKUP($D14,'Inflation-Tracking'!$A$5:$AD$862,22,FALSE)="",-9999,VLOOKUP($D14,'Inflation-Tracking'!$A$5:$AD$862,22,FALSE)),-9999) -> 41.14740444 | N14: =IFERROR(IF(D14="Non-Ranked Player",-1001,IF(VLOOKUP($D14,'Starter Calc'!$B$2:$D$961,3,FALSE)="",-1000,VLOOKUP($D14,'Starter Calc'!$B$2:$D$961,3,FALSE))),0) -> 341.0380102 | O14: =IF(D14="Non-Ranked Player",10000,IFERROR(IF(VLOOKUP(D14,'Auction-Rank'!$A$2:$X$961,24,FALSE)="",9999,VLOOKUP(D14,'Auction-Rank'!$A$2:$X$961,24,FALSE)),9999)) -> 32 | P14: =IFERROR(IF($D14="Unlisted Player",-1001,IF(OR(H14="SP",H14="RP"),N14/VLOOKUP($D14,'Filtered-P'!$A$1:$AC$961,4,FALSE),-1000)),-1000) -> -1000 | Q14: =IFERROR(IF($D14="Unlisted Player",-1001,IF(OR(H14="SP",H14="RP"),-1000,N14/VLOOKUP($D14,'Filtered-H'!$A$1:$AE$961,2,FALSE))),-1000) -> 1.393698448 | R14: =IF(H14="",#N/A,H14&"."&1+SUMPRODUCT(($H$2:$H$949=H14)*($N$2:$N$949>N14))+COUNTIFS($N$2:N14,N14,$H$2:H14,H14)-1) -> 2B.1 | S14: =IF(H14="",#N/A,1+SUMPRODUCT(($H$2:$H$949=H14)*($N$2:$N$949>N14))+COUNTIFS($N$2:N14,N14,$H$2:H14,H14)-1) -> 1 | T14: =IF(D14="Non-Ranked Player",0,IF(VLOOKUP($D14,'Starter Calc'!$B$2:$D$961,3,FALSE)="",0,VLOOKUP($D14,'Starter Calc'!$B$2:$D$961,3,FALSE))) -> 341.0380102 | U14: =IFERROR(VLOOKUP(D14,'Starter Calc'!B$2:BZ$961,72,FALSE),"") -> Bench | V14: =IFERROR(ROUND(VLOOKUP($D14,'Inflation-Tracking'!$A$5:$AD$862,22,FALSE),0),-999) -> 41 | W14: =IFERROR(IF((OR($H14="RP",$H14="SP")),VLOOKUP(D14,'Filtered-P'!$A$2:$AS$999,13,FALSE),VLOOKUP(D14,'Filtered-H'!$A$2:$AT$999,21,FALSE)),-9999) -> 99.74253983
A15: Gerrit Cole | B15: =IFERROR(INDEX($A$1:$A$948,SMALL(IF($A$1:$A$948<>"",ROW($A$1:$A$948)),ROW(A14))),"") -> Gerrit Cole | C15: =IFERROR(IF(L15=FALSE,"",CHOOSE(MATCH(RIGHT('Your Points Auction'!$R$4,LEN('Your Points Auction'!$R$4)-8),$M$1:$W$1,0),1+SUMPRODUCT(($L$2:$L$949=TRUE)*($M$2:$M$949>M15))+COUNTIFS($L$2:L15,L15,$M$2:M15,M15)-1,1+SUMPRODUCT(($L$2:$L$949=TRUE)*($N$2:$N$949>N15))+COUNTIFS($L$2:L15,L15,$N$2:N15,N15)-1,1+SUMPRODUCT(($L$2:$L$949=TRUE)*($O$2:$O$949<O15))+COUNTIFS($L$2:L15,L15,$O$2:O15,O15)-1,1+SUMPRODUCT(($L$2:$L$949=TRUE)*($P$2:$P$949>P15))+COUNTIFS($L$2:L15,L15,$P$2:P15,P15)-1,1+SUMPRODUCT(($L$2:$L$949=TRUE)*($Q$2:$Q$949>Q15))+COUNTIFS($L$2:L15,L15,$Q$2:Q15,Q15)-1,,,,,,1+SUMPRODUCT(($L$2:$L$949=TRUE)*($W$2:$W$949>W15))+COUNTIFS($L$2:L15,L15,$W$2:W15,W15)-1,)),"") -> 414 | D15: Sandy Alcantara | E15: =IFERROR(INDEX('Auction Log'!$C$4:$C$806,MATCH(D15,'Auction Log'!$B$4:$B$806,0)),"") ->  | F15: =IFERROR(INDEX('Auction-Rank'!$C$2:$C$961,MATCH(D15,'Auction-Rank'!$A$2:$A$961,0)),"") -> SP | G15: =IFERROR(IF(F15=I15,"",IF(INDEX('Your Points Auction'!$C$11:$C$634,MATCH(D15,'Your Points Auction'!$D$11:$D$634,0))="",IF(I15<>"",I15,""),INDEX('Your Points Auction'!$C$11:$C$634,MATCH(D15,'Your Points Auction'!$D$11:$D$634,0)))),"") ->  | H15: SP | J15: =INDEX('Auction-Rank'!$V$2:$V$961,MATCH(D15,'Auction-Rank'!$A$2:$A$961,0)) -> TRUE | K15: FALSE | L15: =IF(J15=FALSE,FALSE,IF(AND('Your Points Auction'!$R$6="Hide Drafted Players",K15=TRUE),FALSE,IF(OR('Your Points Auction'!$R$5="Show All Positions",AND('Your Points Auction'!$R$5="Only Show: C",H15="C"),AND('Your Points Auction'!$R$5="Only Show: 1B",H15="1B"),AND('Your Points Auction'!$R$5="Only Show: 2B",H15="2B"),AND('Your Points Auction'!$R$5="Only Show: 3B",H15="3B"),AND('Your Points Auction'!$R$5="Only Show: SS",H15="SS"),AND('Your Points Auction'!$R$5="Only Show: OF",H15="OF"),AND('Your Points Auction'!$R$5="Only Show: SP",H15="SP"),AND('Your Points Auction'!$R$5="Only Show: RP",H15="RP"),AND('Your Points Auction'!$R$5="Only Show: CI",OR(H15={"1B","3B"})),AND('Your Points Auction'!$R$5="Only Show: MI",OR(H15={"2B","SS"})),AND('Your Points Auction'!$R$5="Only Show: IF",OR(H15={"C","1B","2B","3B","SS"})),AND('Your Points Auction'!$R$5="Only Show: DH",OR(H15={"C","1B","2B","3B","SS","OF","DH"})),AND('Your Points Auction'!$R$5="Only Show: P",OR(H15={"SP","RP"})),AND('Your Points Auction'!$R$5="Only Show: LF",ISERROR(SEARCH("LF",VLOOKUP($D15,'Auction-Rank'!$A$2:$D$961,4,FALSE)))=FALSE),AND('Your Points Auction'!$R$5="Only Show: RF",ISERROR(SEARCH("RF",VLOOKUP($D15,'Auction-Rank'!$A$2:$D$961,4,FALSE)))=FALSE),AND('Your Points Auction'!$R$5="Only Show: CF",ISERROR(SEARCH("CF",VLOOKUP($D15,'Auction-Rank'!$A$2:$D$961,4,FALSE)))=FALSE)),TRUE,FALSE))) -> TRUE | M15: =IFERROR(IF(VLOOKUP($D15,'Inflation-Tracking'!$A$5:$AD$862,22,FALSE)="",-9999,VLOOKUP($D15,'Inflation-Tracking'!$A$5:$AD$862,22,FALSE)),-9999) -> 0.4463278881 | N15: =IFERROR(IF(D15="Non-Ranked Player",-1001,IF(VLOOKUP($D15,'Starter Calc'!$B$2:$D$961,3,FALSE)="",-1000,VLOOKUP($D15,'Starter Calc'!$B$2:$D$961,3,FALSE))),0) -> 211.906957 | O15: =IF(D15="Non-Ranked Player",10000,IFERROR(IF(VLOOKUP(D15,'Auction-Rank'!$A$2:$X$961,24,FALSE)="",9999,VLOOKUP(D15,'Auction-Rank'!$A$2:$X$961,24,FALSE)),9999)) -> 257 | P15: =IFERROR(IF($D15="Unlisted Player",-1001,IF(OR(H15="SP",H15="RP"),N15/VLOOKUP($D15,'Filtered-P'!$A$1:$AC$961,4,FALSE),-1000)),-1000) -> 3.21071147 | Q15: =IFERROR(IF($D15="Unlisted Player",-1001,IF(OR(H15="SP",H15="RP"),-1000,N15/VLOOKUP($D15,'Filtered-H'!$A$1:$AE$961,2,FALSE))),-1000) -> -1000 | R15: =IF(H15="",#N/A,H15&"."&1+SUMPRODUCT(($H$2:$H$949=H15)*($N$2:$N$949>N15))+COUNTIFS($N$2:N15,N15,$H$2:H15,H15)-1) -> SP.66 | S15: =IF(H15="",#N/A,1+SUMPRODUCT(($H$2:$H$949=H15)*($N$2:$N$949>N15))+COUNTIFS($N$2:N15,N15,$H$2:H15,H15)-1) -> 66 | T15: =IF(D15="Non-Ranked Player",0,IF(VLOOKUP($D15,'Starter Calc'!$B$2:$D$961,3,FALSE)="",0,VLOOKUP($D15,'Starter Calc'!$B$2:$D$961,3,FALSE))) -> 211.906957 | U15: =IFERROR(VLOOKUP(D15,'Starter Calc'!B$2:BZ$961,72,FALSE),"") -> Bench | V15: =IFERROR(ROUND(VLOOKUP($D15,'Inflation-Tracking'!$A$5:$AD$862,22,FALSE),0),-999) -> 0 | W15: =IFERROR(IF((OR($H15="RP",$H15="SP")),VLOOKUP(D15,'Filtered-P'!$A$2:$AS$999,13,FALSE),VLOOKUP(D15,'Filtered-H'!$A$2:$AT$999,21,FALSE)),-9999) -> -4.663720807
A16: J.T. Realmuto | B16: =IFERROR(INDEX($A$1:$A$948,SMALL(IF($A$1:$A$948<>"",ROW($A$1:$A$948)),ROW(A15))),"") -> J.T. Realmuto | C16: =IFERROR(IF(L16=FALSE,"",CHOOSE(MATCH(RIGHT('Your Points Auction'!$R$4,LEN('Your Points Auction'!$R$4)-8),$M$1:$W$1,0),1+SUMPRODUCT(($L$2:$L$949=TRUE)*($M$2:$M$949>M16))+COUNTIFS($L$2:L16,L16,$M$2:M16,M16)-1,1+SUMPRODUCT(($L$2:$L$949=TRUE)*($N$2:$N$949>N16))+COUNTIFS($L$2:L16,L16,$N$2:N16,N16)-1,1+SUMPRODUCT(($L$2:$L$949=TRUE)*($O$2:$O$949<O16))+COUNTIFS($L$2:L16,L16,$O$2:O16,O16)-1,1+SUMPRODUCT(($L$2:$L$949=TRUE)*($P$2:$P$949>P16))+COUNTIFS($L$2:L16,L16,$P$2:P16,P16)-1,1+SUMPRODUCT(($L$2:$L$949=TRUE)*($Q$2:$Q$949>Q16))+COUNTIFS($L$2:L16,L16,$Q$2:Q16,Q16)-1,,,,,,1+SUMPRODUCT(($L$2:$L$949=TRUE)*($W$2:$W$949>W16))+COUNTIFS($L$2:L16,L16,$W$2:W16,W16)-1,)),"") -> 268 | D16: Jorge Alfaro | E16: =IFERROR(INDEX('Auction Log'!$C$4:$C$806,MATCH(D16,'Auction Log'!$B$4:$B$806,0)),"") ->  | F16: =IFERROR(INDEX('Auction-Rank'!$C$2:$C$961,MATCH(D16,'Auction-Rank'!$A$2:$A$961,0)),"") -> C | G16: =IFERROR(IF(F16=I16,"",IF(INDEX('Your Points Auction'!$C$11:$C$634,MATCH(D16,'Your Points Auction'!$D$11:$D$634,0))="",IF(I16<>"",I16,""),INDEX('Your Points Auction'!$C$11:$C$634,MATCH(D16,'Your Points Auction'!$D$11:$D$634,0)))),"") ->  | H16: C | J16: =INDEX('Auction-Rank'!$V$2:$V$961,MATCH(D16,'Auction-Rank'!$A$2:$A$961,0)) -> TRUE | K16: FALSE | L16: =IF(J16=FALSE,FALSE,IF(AND('Your Points Auction'!$R$6="Hide Drafted Players",K16=TRUE),FALSE,IF(OR('Your Points Auction'!$R$5="Show All Positions",AND('Your Points Auction'!$R$5="Only Show: C",H16="C"),AND('Your Points Auction'!$R$5="Only Show: 1B",H16="1B"),AND('Your Points Auction'!$R$5="Only Show: 2B",H16="2B"),AND('Your Points Auction'!$R$5="Only Show: 3B",H16="3B"),AND('Your Points Auction'!$R$5="Only Show: SS",H16="SS"),AND('Your Points Auction'!$R$5="Only Show: OF",H16="OF"),AND('Your Points Auction'!$R$5="Only Show: SP",H16="SP"),AND('Your Points Auction'!$R$5="Only Show: RP",H16="RP"),AND('Your Points Auction'!$R$5="Only Show: CI",OR(H16={"1B","3B"})),AND('Your Points Auction'!$R$5="Only Show: MI",OR(H16={"2B","SS"})),AND('Your Points Auction'!$R$5="Only Show: IF",OR(H16={"C","1B","2B","3B","SS"})),AND('Your Points Auction'!$R$5="Only Show: DH",OR(H16={"C","1B","2B","3B","SS","OF","DH"})),AND('Your Points Auction'!$R$5="Only Show: P",OR(H16={"SP","RP"})),AND('Your Points Auction'!$R$5="Only Show: LF",ISERROR(SEARCH("LF",VLOOKUP($D16,'Auction-Rank'!$A$2:$D$961,4,FALSE)))=FALSE),AND('Your Points Auction'!$R$5="Only Show: RF",ISERROR(SEARCH("RF",VLOOKUP($D16,'Auction-Rank'!$A$2:$D$961,4,FALSE)))=FALSE),AND('Your Points Auction'!$R$5="Only Show: CF",ISERROR(SEARCH("CF",VLOOKUP($D16,'Auction-Rank'!$A$2:$D$961,4,FALSE)))=FALSE)),TRUE,FALSE))) -> TRUE | M16: =IFERROR(IF(VLOOKUP($D16,'Inflation-Tracking'!$A$5:$AD$862,22,FALSE)="",-9999,VLOOKUP($D16,'Inflation-Tracking'!$A$5:$AD$862,22,FALSE)),-9999) -> 0.6817313288 | N16: =IFERROR(IF(D16="Non-Ranked Player",-1001,IF(VLOOKUP($D16,'Starter Calc'!$B$2:$D$961,3,FALSE)="",-1000,VLOOKUP($D16,'Starter Calc'!$B$2:$D$961,3,FALSE))),0) -> 154.9932414 | O16: =IF(D16="Non-Ranked Player",10000,IFERROR(IF(VLOOKUP(D16,'Auction-Rank'!$A$2:$X$961,24,FALSE)="",9999,VLOOKUP(D16,'Auction-Rank'!$A$2:$X$961,24,FALSE)),9999)) -> 287 | P16: =IFERROR(IF($D16="Unlisted Player",-1001,IF(OR(H16="SP",H16="RP"),N16/VLOOKUP($D16,'Filtered-P'!$A$1:$AC$961,4,FALSE),-1000)),-1000) -> -1000 | Q16: =IFERROR(IF($D16="Unlisted Player",-1001,IF(OR(H16="SP",H16="RP"),-1000,N16/VLOOKUP($D16,'Filtered-H'!$A$1:$AE$961,2,FALSE))),-1000) -> 0.9609004428 | R16: =IF(H16="",#N/A,H16&"."&1+SUMPRODUCT(($H$2:$H$949=H16)*($N$2:$N$949>N16))+COUNTIFS($N$2:N16,N16,$H$2:H16,H16)-1) -> C.17 | S16: =IF(H16="",#N/A,1+SUMPRODUCT(($H$2:$H$949=H16)*($N$2:$N$949>N16))+COUNTIFS($N$2:N16,N16,$H$2:H16,H16)-1) -> 17 | T16: =IF(D16="Non-Ranked Player",0,IF(VLOOKUP($D16,'Starter Calc'!$B$2:$D$961,3,FALSE)="",0,VLOOKUP($D16,'Starter Calc'!$B$2:$D$961,3,FALSE))) -> 154.9932414 | U16: =IFERROR(VLOOKUP(D16,'Starter Calc'!B$2:BZ$961,72,FALSE),"") -> Bench | V16: =IFERROR(ROUND(VLOOKUP($D16,'Inflation-Tracking'!$A$5:$AD$862,22,FALSE),0),-999) -> 1 | W16: =IFERROR(IF((OR($H16="RP",$H16="SP")),VLOOKUP(D16,'Filtered-P'!$A$2:$AS$999,13,FALSE),VLOOKUP(D16,'Filtered-H'!$A$2:$AT$999,21,FALSE)),-9999) -> -9.708463004
A17: George Springer | B17: =IFERROR(INDEX($A$1:$A$948,SMALL(IF($A$1:$A$948<>"",ROW($A$1:$A$948)),ROW(A16))),"") -> George Springer | C17: =IFERROR(IF(L17=FALSE,"",CHOOSE(MATCH(RIGHT('Your Points Auction'!$R$4,LEN('Your Points Auction'!$R$4)-8),$M$1:$W$1,0),1+SUMPRODUCT(($L$2:$L$949=TRUE)*($M$2:$M$949>M17))+COUNTIFS($L$2:L17,L17,$M$2:M17,M17)-1,1+SUMPRODUCT(($L$2:$L$949=TRUE)*($N$2:$N$949>N17))+COUNTIFS($L$2:L17,L17,$N$2:N17,N17)-1,1+SUMPRODUCT(($L$2:$L$949=TRUE)*($O$2:$O$949<O17))+COUNTIFS($L$2:L17,L17,$O$2:O17,O17)-1,1+SUMPRODUCT(($L$2:$L$949=TRUE)*($P$2:$P$949>P17))+COUNTIFS($L$2:L17,L17,$P$2:P17,P17)-1,1+SUMPRODUCT(($L$2:$L$949=TRUE)*($Q$2:$Q$949>Q17))+COUNTIFS($L$2:L17,L17,$Q$2:Q17,Q17)-1,,,,,,1+SUMPRODUCT(($L$2:$L$949=TRUE)*($W$2:$W$949>W17))+COUNTIFS($L$2:L17,L17,$W$2:W17,W17)-1,)),"") -> 484 | D17: Kolby Allard | E17: =IFERROR(INDEX('Auction Log'!$C$4:$C$806,MATCH(D17,'Auction Log'!$B$4:$B$806,0)),"") ->  | F17: =IFERROR(INDEX('Auction-Rank'!$C$2:$C$961,MATCH(D17,'Auction-Rank'!$A$2:$A$961,0)),"") -> SP | G17: =IFERROR(IF(F17=I17,"",IF(INDEX('Your Points Auction'!$C$11:$C$634,MATCH(D17,'Your Points Auction'!$D$11:$D$634,0))="",IF(I17<>"",I17,""),INDEX('Your Points Auction'!$C$11:$C$634,MATCH(D17,'Your Points Auction'!$D$11:$D$634,0)))),"") ->  | H17: SP | J17: =INDEX('Auction-Rank'!$V$2:$V$961,MATCH(D17,'Auction-Rank'!$A$2:$A$961,0)) -> TRUE | K17: FALSE | L17: =IF(J17=FALSE,FALSE,IF(AND('Your Points Auction'!$R$6="Hide Drafted Players",K17=TRUE),FALSE,IF(OR('Your Points Auction'!$R$5="Show All Positions",AND('Your Points Auction'!$R$5="Only Show: C",H17="C"),AND('Your Points Auction'!$R$5="Only Show: 1B",H17="1B"),AND('Your Points Auction'!$R$5="Only Show: 2B",H17="2B"),AND('Your Points Auction'!$R$5="Only Show: 3B",H17="3B"),AND('Your Points Auction'!$R$5="Only Show: SS",H17="SS"),AND('Your Points Auction'!$R$5="Only Show: OF",H17="OF"),AND('Your Points Auction'!$R$5="Only Show: SP",H17="SP"),AND('Your Points Auction'!$R$5="Only Show: RP",H17="RP"),AND('Your Points Auction'!$R$5="Only Show: CI",OR(H17={"1B","3B"})),AND('Your Points Auction'!$R$5="Only Show: MI",OR(H17={"2B","SS"})),AND('Your Points Auction'!$R$5="Only Show: IF",OR(H17={"C","1B","2B","3B","SS"})),AND('Your Points Auction'!$R$5="Only Show: DH",OR(H17={"C","1B","2B","3B","SS","OF","DH"})),AND('Your Points Auction'!$R$5="Only Show: P",OR(H17={"SP","RP"})),AND('Your Points Auction'!$R$5="Only Show: LF",ISERROR(SEARCH("LF",VLOOKUP($D17,'Auction-Rank'!$A$2:$D$961,4,FALSE)))=FALSE),AND('Your Points Auction'!$R$5="Only Show: RF",ISERROR(SEARCH("RF",VLOOKUP($D17,'Auction-Rank'!$A$2:$D$961,4,FALSE)))=FALSE),AND('Your Points Auction'!$R$5="Only Show: CF",ISERROR(SEARCH("CF",VLOOKUP($D17,'Auction-Rank'!$A$2:$D$961,4,FALSE)))=FALSE)),TRUE,FALSE))) -> TRUE | M17: =IFERROR(IF(VLOOKUP($D17,'Inflation-Tracking'!$A$5:$AD$862,22,FALSE)="",-9999,VLOOKUP($D17,'Inflation-Tracking'!$A$5:$AD$862,22,FALSE)),-9999) -> 0 | N17: =IFERROR(IF(D17="Non-Ranked Player",-1001,IF(VLOOKUP($D17,'Starter Calc'!$B$2:$D$961,3,FALSE)="",-1000,VLOOKUP($D17,'Starter Calc'!$B$2:$D$961,3,FALSE))),0) -> 71.66026534 | O17: =IF(D17="Non-Ranked Player",10000,IFERROR(IF(VLOOKUP(D17,'Auction-Rank'!$A$2:$X$961,24,FALSE)="",9999,VLOOKUP(D17,'Auction-Rank'!$A$2:$X$961,24,FALSE)),9999)) -> 633 | P17: =IFERROR(IF($D17="Unlisted Player",-1001,IF(OR(H17="SP",H17="RP"),N17/VLOOKUP($D17,'Filtered-P'!$A$1:$AC$961,4,FALSE),-1000)),-1000) -> 2.756164051 | Q17: =IFERROR(IF($D17="Unlisted Player",-1001,IF(OR(H17="SP",H17="RP"),-1000,N17/VLOOKUP($D17,'Filtered-H'!$A$1:$AE$961,2,FALSE))),-1000) -> -1000 | R17: =IF(H17="",#N/A,H17&"."&1+SUMPRODUCT(($H$2:$H$949=H17)*($N$2:$N$949>N17))+COUNTIFS($N$2:N17,N17,$H$2:H17,H17)-1) -> SP.146 | S17: =IF(H17="",#N/A,1+SUMPRODUCT(($H$2:$H$949=H17)*($N$2:$N$949>N17))+COUNTIFS($N$2:N17,N17,$H$2:H17,H17)-1) -> 146 | T17: =IF(D17="Non-Ranked Player",0,IF(VLOOKUP($D17,'Starter Calc'!$B$2:$D$961,3,FALSE)="",0,VLOOKUP($D17,'Starter Calc'!$B$2:$D$961,3,FALSE))) -> 71.66026534 | U17: =IFERROR(VLOOKUP(D17,'Starter Calc'!B$2:BZ$961,72,FALSE),"") -> Bench | V17: =IFERROR(ROUND(VLOOKUP($D17,'Inflation-Tracking'!$A$5:$AD$862,22,FALSE),0),-999) -> 0 | W17: =IFERROR(IF((OR($H17="RP",$H17="SP")),VLOOKUP(D17,'Filtered-P'!$A$2:$AS$999,13,FALSE),VLOOKUP(D17,'Filtered-H'!$A$2:$AT$999,21,FALSE)),-9999) -> -144.9104125
A18: Rafael Devers | B18: =IFERROR(INDEX($A$1:$A$948,SMALL(IF($A$1:$A$948<>"",ROW($A$1:$A$948)),ROW(A17))),"") -> Rafael Devers | C18: =IFERROR(IF(L18=FALSE,"",CHOOSE(MATCH(RIGHT('Your Points Auction'!$R$4,LEN('Your Points Auction'!$R$4)-8),$M$1:$W$1,0),1+SUMPRODUCT(($L$2:$L$949=TRUE)*($M$2:$M$949>M18))+COUNTIFS($L$2:L18,L18,$M$2:M18,M18)-1,1+SUMPRODUCT(($L$2:$L$949=TRUE)*($N$2:$N$949>N18))+COUNTIFS($L$2:L18,L18,$N$2:N18,N18)-1,1+SUMPRODUCT(($L$2:$L$949=TRUE)*($O$2:$O$949<O18))+COUNTIFS($L$2:L18,L18,$O$2:O18,O18)-1,1+SUMPRODUCT(($L$2:$L$949=TRUE)*($P$2:$P$949>P18))+COUNTIFS($L$2:L18,L18,$P$2:P18,P18)-1,1+SUMPRODUCT(($L$2:$L$949=TRUE)*($Q$2:$Q$949>Q18))+COUNTIFS($L$2:L18,L18,$Q$2:Q18,Q18)-1,,,,,,1+SUMPRODUCT(($L$2:$L$949=TRUE)*($W$2:$W$949>W18))+COUNTIFS($L$2:L18,L18,$W$2:W18,W18)-1,)),"") -> 485 | D18: Austin Allen | E18: =IFERROR(INDEX('Auction Log'!$C$4:$C$806,MATCH(D18,'Auction Log'!$B$4:$B$806,0)),"") ->  | F18: =IFERROR(INDEX('Auction-Rank'!$C$2:$C$961,MATCH(D18,'Auction-Rank'!$A$2:$A$961,0)),"") -> C | G18: =IFERROR(IF(F18=I18,"",IF(INDEX('Your Points Auction'!$C$11:$C$634,MATCH(D18,'Your Points Auction'!$D$11:$D$634,0))="",IF(I18<>"",I18,""),INDEX('Your Points Auction'!$C$11:$C$634,MATCH(D18,'Your Points Auction'!$D$11:$D$634,0)))),"") ->  | H18: C | J18: =INDEX('Auction-Rank'!$V$2:$V$961,MATCH(D18,'Auction-Rank'!$A$2:$A$961,0)) -> TRUE | K18: FALSE | L18: =IF(J18=FALSE,FALSE,IF(AND('Your Points Auction'!$R$6="Hide Drafted Players",K18=TRUE),FALSE,IF(OR('Your Points Auction'!$R$5="Show All Positions",AND('Your Points Auction'!$R$5="Only Show: C",H18="C"),AND('Your Points Auction'!$R$5="Only Show: 1B",H18="1B"),AND('Your Points Auction'!$R$5="Only Show: 2B",H18="2B"),AND('Your Points Auction'!$R$5="Only Show: 3B",H18="3B"),AND('Your Points Auction'!$R$5="Only Show: SS",H18="SS"),AND('Your Points Auction'!$R$5="Only Show: OF",H18="OF"),AND('Your Points Auction'!$R$5="Only Show: SP",H18="SP"),AND('Your Points Auction'!$R$5="Only Show: RP",H18="RP"),AND('Your Points Auction'!$R$5="Only Show: CI",OR(H18={"1B","3B"})),AND('Your Points Auction'!$R$5="Only Show: MI",OR(H18={"2B","SS"})),AND('Your Points Auction'!$R$5="Only Show: IF",OR(H18={"C","1B","2B","3B","SS"})),AND('Your Points Auction'!$R$5="Only Show: DH",OR(H18={"C","1B","2B","3B","SS","OF","DH"})),AND('Your Points Auction'!$R$5="Only Show: P",OR(H18={"SP","RP"})),AND('Your Points Auction'!$R$5="Only Show: LF",ISERROR(SEARCH("LF",VLOOKUP($D18,'Auction-Rank'!$A$2:$D$961,4,FALSE)))=FALSE),AND('Your Points Auction'!$R$5="Only Show: RF",ISERROR(SEARCH("RF",VLOOKUP($D18,'Auction-Rank'!$A$2:$D$961,4,FALSE)))=FALSE),AND('Your Points Auction'!$R$5="Only Show: CF",ISERROR(SEARCH("CF",VLOOKUP($D18,'Auction-Rank'!$A$2:$D$961,4,FALSE)))=FALSE)),TRUE,FALSE))) -> TRUE | M18: =IFERROR(IF(VLOOKUP($D18,'Inflation-Tracking'!$A$5:$AD$862,22,FALSE)="",-9999,VLOOKUP($D18,'Inflation-Tracking'!$A$5:$AD$862,22,FALSE)),-9999) -> 0 | N18: =IFERROR(IF(D18="Non-Ranked Player",-1001,IF(VLOOKUP($D18,'Starter Calc'!$B$2:$D$961,3,FALSE)="",-1000,VLOOKUP($D18,'Starter Calc'!$B$2:$D$961,3,FALSE))),0) -> 105.8050984 | O18: =IF(D18="Non-Ranked Player",10000,IFERROR(IF(VLOOKUP(D18,'Auction-Rank'!$A$2:$X$961,24,FALSE)="",9999,VLOOKUP(D18,'Auction-Rank'!$A$2:$X$961,24,FALSE)),9999)) -> 668 | P18: =IFERROR(IF($D18="Unlisted Player",-1001,IF(OR(H18="SP",H18="RP"),N18/VLOOKUP($D18,'Filtered-P'!$A$1:$AC$961,4,FALSE),-1000)),-1000) -> -1000 | Q18: =IFERROR(IF($D18="Unlisted Player",-1001,IF(OR(H18="SP",H18="RP"),-1000,N18/VLOOKUP($D18,'Filtered-H'!$A$1:$AE$961,2,FALSE))),-1000) -> 0.9958126907 | R18: =IF(H18="",#N/A,H18&"."&1+SUMPRODUCT(($H$2:$H$949=H18)*($N$2:$N$949>N18))+COUNTIFS($N$2:N18,N18,$H$2:H18,H18)-1) -> C.39 | S18: =IF(H18="",#N/A,1+SUMPRODUCT(($H$2:$H$949=H18)*($N$2:$N$949>N18))+COUNTIFS($N$2:N18,N18,$H$2:H18,H18)-1) -> 39 | T18: =IF(D18="Non-Ranked Player",0,IF(VLOOKUP($D18,'Starter Calc'!$B$2:$D$961,3,FALSE)="",0,VLOOKUP($D18,'Starter Calc'!$B$2:$D$961,3,FALSE))) -> 105.8050984 | U18: =IFERROR(VLOOKUP(D18,'Starter Calc'!B$2:BZ$961,72,FALSE),"") -> Bench | V18: =IFERROR(ROUND(VLOOKUP($D18,'Inflation-Tracking'!$A$5:$AD$862,22,FALSE),0),-999) -> 0 | W18: =IFERROR(IF((OR($H18="RP",$H18="SP")),VLOOKUP(D18,'Filtered-P'!$A$2:$AS$999,13,FALSE),VLOOKUP(D18,'Filtered-H'!$A$2:$AT$999,21,FALSE)),-9999) -> -58.89660604
A19: Xander Bogaerts | B19: =IFERROR(INDEX($A$1:$A$948,SMALL(IF($A$1:$A$948<>"",ROW($A$1:$A$948)),ROW(A18))),"") -> Xander Bogaerts | C19: =IFERROR(IF(L19=FALSE,"",CHOOSE(MATCH(RIGHT('Your Points Auction'!$R$4,LEN('Your Points Auction'!$R$4)-8),$M$1:$W$1,0),1+SUMPRODUCT(($L$2:$L$949=TRUE)*($M$2:$M$949>M19))+COUNTIFS($L$2:L19,L19,$M$2:M19,M19)-1,1+SUMPRODUCT(($L$2:$L$949=TRUE)*($N$2:$N$949>N19))+COUNTIFS($L$2:L19,L19,$N$2:N19,N19)-1,1+SUMPRODUCT(($L$2:$L$949=TRUE)*($O$2:$O$949<O19))+COUNTIFS($L$2:L19,L19,$O$2:O19,O19)-1,1+SUMPRODUCT(($L$2:$L$949=TRUE)*($P$2:$P$949>P19))+COUNTIFS($L$2:L19,L19,$P$2:P19,P19)-1,1+SUMPRODUCT(($L$2:$L$949=TRUE)*($Q$2:$Q$949>Q19))+COUNTIFS($L$2:L19,L19,$Q$2:Q19,Q19)-1,,,,,,1+SUMPRODUCT(($L$2:$L$949=TRUE)*($W$2:$W$949>W19))+COUNTIFS($L$2:L19,L19,$W$2:W19,W19)-1,)),"") -> 486 | D19: Greg Allen | E19: =IFERROR(INDEX('Auction Log'!$C$4:$C$806,MATCH(D19,'Auction Log'!$B$4:$B$806,0)),"") ->  | F19: =IFERROR(INDEX('Auction-Rank'!$C$2:$C$961,MATCH(D19,'Auction-Rank'!$A$2:$A$961,0)),"") -> OF | G19: =IFERROR(IF(F19=I19,"",IF(INDEX('Your Points Auction'!$C$11:$C$634,MATCH(D19,'Your Points Auction'!$D$11:$D$634,0))="",IF(I19<>"",I19,""),INDEX('Your Points Auction'!$C$11:$C$634,MATCH(D19,'Your Points Auction'!$D$11:$D$634,0)))),"") ->  | H19: OF | J19: =INDEX('Auction-Rank'!$V$2:$V$961,MATCH(D19,'Auction-Rank'!$A$2:$A$961,0)) -> TRUE | K19: FALSE | L19: =IF(J19=FALSE,FALSE,IF(AND('Your Points Auction'!$R$6="Hide Drafted Players",K19=TRUE),FALSE,IF(OR('Your Points Auction'!$R$5="Show All Positions",AND('Your Points Auction'!$R$5="Only Show: C",H19="C"),AND('Your Points Auction'!$R$5="Only Show: 1B",H19="1B"),AND('Your Points Auction'!$R$5="Only Show: 2B",H19="2B"),AND('Your Points Auction'!$R$5="Only Show: 3B",H19="3B"),AND('Your Points Auction'!$R$5="Only Show: SS",H19="SS"),AND('Your Points Auction'!$R$5="Only Show: OF",H19="OF"),AND('Your Points Auction'!$R$5="Only Show: SP",H19="SP"),AND('Your Points Auction'!$R$5="Only Show: RP",H19="RP"),AND('Your Points Auction'!$R$5="Only Show: CI",OR(H19={"1B","3B"})),AND('Your Points Auction'!$R$5="Only Show: MI",OR(H19={"2B","SS"})),AND('Your Points Auction'!$R$5="Only Show: IF",OR(H19={"C","1B","2B","3B","SS"})),AND('Your Points Auction'!$R$5="Only Show: DH",OR(H19={"C","1B","2B","3B","SS","OF","DH"})),AND('Your Points Auction'!$R$5="Only Show: P",OR(H19={"SP","RP"})),AND('Your Points Auction'!$R$5="Only Show: LF",ISERROR(SEARCH("LF",VLOOKUP($D19,'Auction-Rank'!$A$2:$D$961,4,FALSE)))=FALSE),AND('Your Points Auction'!$R$5="Only Show: RF",ISERROR(SEARCH("RF",VLOOKUP($D19,'Auction-Rank'!$A$2:$D$961,4,FALSE)))=FALSE),AND('Your Points Auction'!$R$5="Only Show: CF",ISERROR(SEARCH("CF",VLOOKUP($D19,'Auction-Rank'!$A$2:$D$961,4,FALSE)))=FALSE)),TRUE,FALSE))) -> TRUE | M19: =IFERROR(IF(VLOOKUP($D19,'Inflation-Tracking'!$A$5:$AD$862,22,FALSE)="",-9999,VLOOKUP($D19,'Inflation-Tracking'!$A$5:$AD$862,22,FALSE)),-9999) -> 0 | N19: =IFERROR(IF(D19="Non-Ranked Player",-1001,IF(VLOOKUP($D19,'Starter Calc'!$B$2:$D$961,3,FALSE)="",-1000,VLOOKUP($D19,'Starter Calc'!$B$2:$D$961,3,FALSE))),0) -> 100.8588619 | O19: =IF(D19="Non-Ranked Player",10000,IFERROR(IF(VLOOKUP(D19,'Auction-Rank'!$A$2:$X$961,24,FALSE)="",9999,VLOOKUP(D19,'Auction-Rank'!$A$2:$X$961,24,FALSE)),9999)) -> 637 | P19: =IFERROR(IF($D19="Unlisted Player",-1001,IF(OR(H19="SP",H19="RP"),N19/VLOOKUP($D19,'Filtered-P'!$A$1:$AC$961,4,FALSE),-1000)),-1000) -> -1000 | Q19: =IFERROR(IF($D19="Unlisted Player",-1001,IF(OR(H19="SP",H19="RP"),-1000,N19/VLOOKUP($D19,'Filtered-H'!$A$1:$AE$961,2,FALSE))),-1000) -> 1.008588619 | R19: =IF(H19="",#N/A,H19&"."&1+SUMPRODUCT(($H$2:$H$949=H19)*($N$2:$N$949>N19))+COUNTIFS($N$2:N19,N19,$H$2:H19,H19)-1) -> OF.137 | S19: =IF(H19="",#N/A,1+SUMPRODUCT(($H$2:$H$949=H19)*($N$2:$N$949>N19))+COUNTIFS($N$2:N19,N19,$H$2:H19,H19)-1) -> 137 | T19: =IF(D19="Non-Ranked Player",0,IF(VLOOKUP($D19,'Starter Calc'!$B$2:$D$961,3,FALSE)="",0,VLOOKUP($D19,'Starter Calc'!$B$2:$D$961,3,FALSE))) -> 100.8588619 | U19: =IFERROR(VLOOKUP(D19,'Starter Calc'!B$2:BZ$961,72,FALSE),"") -> Bench | V19: =IFERROR(ROUND(VLOOKUP($D19,'Inflation-Tracking'!$A$5:$AD$862,22,FALSE),0),-999) -> 0 | W19: =IFERROR(IF((OR($H19="RP",$H19="SP")),VLOOKUP(D19,'Filtered-P'!$A$2:$AS$999,13,FALSE),VLOOKUP(D19,'Filtered-H'!$A$2:$AT$999,21,FALSE)),-9999) -> -122.517556
A20: Charlie Blackmon | B20: =IFERROR(INDEX($A$1:$A$948,SMALL(IF($A$1:$A$948<>"",ROW($A$1:$A$948)),ROW(A19))),"") -> Charlie Blackmon | C20: =IFERROR(IF(L20=FALSE,"",CHOOSE(MATCH(RIGHT('Your Points Auction'!$R$4,LEN('Your Points Auction'!$R$4)-8),$M$1:$W$1,0),1+SUMPRODUCT(($L$2:$L$949=TRUE)*($M$2:$M$949>M20))+COUNTIFS($L$2:L20,L20,$M$2:M20,M20)-1,1+SUMPRODUCT(($L$2:$L$949=TRUE)*($N$2:$N$949>N20))+COUNTIFS($L$2:L20,L20,$N$2:N20,N20)-1,1+SUMPRODUCT(($L$2:$L$949=TRUE)*($O$2:$O$949<O20))+COUNTIFS($L$2:L20,L20,$O$2:O20,O20)-1,1+SUMPRODUCT(($L$2:$L$949=TRUE)*($P$2:$P$949>P20))+COUNTIFS($L$2:L20,L20,$P$2:P20,P20)-1,1+SUMPRODUCT(($L$2:$L$949=TRUE)*($Q$2:$Q$949>Q20))+COUNTIFS($L$2:L20,L20,$Q$2:Q20,Q20)-1,,,,,,1+SUMPRODUCT(($L$2:$L$949=TRUE)*($W$2:$W$949>W20))+COUNTIFS($L$2:L20,L20,$W$2:W20,W20)-1,)),"") -> 487 | D20: Logan Allen | E20: =IFERROR(INDEX('Auction Log'!$C$4:$C$806,MATCH(D20,'Auction Log'!$B$4:$B$806,0)),"") ->  | F20: =IFERROR(INDEX('Auction-Rank'!$C$2:$C$961,MATCH(D20,'Auction-Rank'!$A$2:$A$961,0)),"") -> RP | G20: =IFERROR(IF(F20=I20,"",IF(INDEX('Your Points Auction'!$C$11:$C$634,MATCH(D20,'Your Points Auction'!$D$11:$D$634,0))="",IF(I20<>"",I20,""),INDEX('Your Points Auction'!$C$11:$C$634,MATCH(D20,'Your Points Auction'!$D$11:$D$634,0)))),"") ->  | H20: RP | J20: =INDEX('Auction-Rank'!$V$2:$V$961,MATCH(D20,'Auction-Rank'!$A$2:$A$961,0)) -> TRUE | K20: FALSE | L20: =IF(J20=FALSE,FALSE,IF(AND('Your Points Auction'!$R$6="Hide Drafted Players",K20=TRUE),FALSE,IF(OR('Your Points Auction'!$R$5="Show All Positions",AND('Your Points Auction'!$R$5="Only Show: C",H20="C"),AND('Your Points Auction'!$R$5="Only Show: 1B",H20="1B"),AND('Your Points Auction'!$R$5="Only Show: 2B",H20="2B"),AND('Your Points Auction'!$R$5="Only Show: 3B",H20="3B"),AND('Your Points Auction'!$R$5="Only Show: SS",H20="SS"),AND('Your Points Auction'!$R$5="Only Show: OF",H20="OF"),AND('Your Points Auction'!$R$5="Only Show: SP",H20="SP"),AND('Your Points Auction'!$R$5="Only Show: RP",H20="RP"),AND('Your Points Auction'!$R$5="Only Show: CI",OR(H20={"1B","3B"})),AND('Your Points Auction'!$R$5="Only Show: MI",OR(H20={"2B","SS"})),AND('Your Points Auction'!$R$5="Only Show: IF",OR(H20={"C","1B","2B","3B","SS"})),AND('Your Points Auction'!$R$5="Only Show: DH",OR(H20={"C","1B","2B","3B","SS","OF","DH"})),AND('Your Points Auction'!$R$5="Only Show: P",OR(H20={"SP","RP"})),AND('Your Points Auction'!$R$5="Only Show: LF",ISERROR(SEARCH("LF",VLOOKUP($D20,'Auction-Rank'!$A$2:$D$961,4,FALSE)))=FALSE),AND('Your Points Auction'!$R$5="Only Show: RF",ISERROR(SEARCH("RF",VLOOKUP($D20,'Auction-Rank'!$A$2:$D$961,4,FALSE)))=FALSE),AND('Your Points Auction'!$R$5="Only Show: CF",ISERROR(SEARCH("CF",VLOOKUP($D20,'Auction-Rank'!$A$2:$D$961,4,FALSE)))=FALSE)),TRUE,FALSE))) -> TRUE | M20: =IFERROR(IF(VLOOKUP($D20,'Inflation-Tracking'!$A$5:$AD$862,22,FALSE)="",-9999,VLOOKUP($D20,'Inflation-Tracking'!$A$5:$AD$862,22,FALSE)),-9999) -> 0 | N20: =IFERROR(IF(D20="Non-Ranked Player",-1001,IF(VLOOKUP($D20,'Starter Calc'!$B$2:$D$961,3,FALSE)="",-1000,VLOOKUP($D20,'Starter Calc'!$B$2:$D$961,3,FALSE))),0) -> 93.64801862 | O20: =IF(D20="Non-Ranked Player",10000,IFERROR(IF(VLOOKUP(D20,'Auction-Rank'!$A$2:$X$961,24,FALSE)="",9999,VLOOKUP(D20,'Auction-Rank'!$A$2:$X$961,24,FALSE)),9999)) -> 625 | P20: =IFERROR(IF($D20="Unlisted Player",-1001,IF(OR(H20="SP",H20="RP"),N20/VLOOKUP($D20,'Filtered-P'!$A$1:$AC$961,4,FALSE),-1000)),-1000) -> 2.837818746 | Q20: =IFERROR(IF($D20="Unlisted Player",-1001,IF(OR(H20="SP",H20="RP"),-1000,N20/VLOOKUP($D20,'Filtered-H'!$A$1:$AE$961,2,FALSE))),-1000) -> -1000 | R20: =IF(H20="",#N/A,H20&"."&1+SUMPRODUCT(($H$2:$H$949=H20)*($N$2:$N$949>N20))+COUNTIFS($N$2:N20,N20,$H$2:H20,H20)-1) -> RP.111 | S20: =IF(H20="",#N/A,1+SUMPRODUCT(($H$2:$H$949=H20)*($N$2:$N$949>N20))+COUNTIFS($N$2:N20,N20,$H$2:H20,H20)-1) -> 111 | T20: =IF(D20="Non-Ranked Player",0,IF(VLOOKUP($D20,'Starter Calc'!$B$2:$D$961,3,FALSE)="",0,VLOOKUP($D20,'Starter Calc'!$B$2:$D$961,3,FALSE))) -> 93.64801862 | U20: =IFERROR(VLOOKUP(D20,'Starter Calc'!B$2:BZ$961,72,FALSE),"") -> Bench | V20: =IFERROR(ROUND(VLOOKUP($D20,'Inflation-Tracking'!$A$5:$AD$862,22,FALSE),0),-999) -> 0 | W20: =IFERROR(IF((OR($H20="RP",$H20="SP")),VLOOKUP(D20,'Filtered-P'!$A$2:$AS$999,13,FALSE),VLOOKUP(D20,'Filtered-H'!$A$2:$AT$999,21,FALSE)),-9999) -> -35.43914805
A21: Giancarlo Stanton | B21: =IFERROR(INDEX($A$1:$A$948,SMALL(IF($A$1:$A$948<>"",ROW($A$1:$A$948)),ROW(A20))),"") -> Giancarlo Stanton | C21: =IFERROR(IF(L21=FALSE,"",CHOOSE(MATCH(RIGHT('Your Points Auction'!$R$4,LEN('Your Points Auction'!$R$4)-8),$M$1:$W$1,0),1+SUMPRODUCT(($L$2:$L$949=TRUE)*($M$2:$M$949>M21))+COUNTIFS($L$2:L21,L21,$M$2:M21,M21)-1,1+SUMPRODUCT(($L$2:$L$949=TRUE)*($N$2:$N$949>N21))+COUNTIFS($L$2:L21,L21,$N$2:N21,N21)-1,1+SUMPRODUCT(($L$2:$L$949=TRUE)*($O$2:$O$949<O21))+COUNTIFS($L$2:L21,L21,$O$2:O21,O21)-1,1+SUMPRODUCT(($L$2:$L$949=TRUE)*($P$2:$P$949>P21))+COUNTIFS($L$2:L21,L21,$P$2:P21,P21)-1,1+SUMPRODUCT(($L$2:$L$949=TRUE)*($Q$2:$Q$949>Q21))+COUNTIFS($L$2:L21,L21,$Q$2:Q21,Q21)-1,,,,,,1+SUMPRODUCT(($L$2:$L$949=TRUE)*($W$2:$W$949>W21))+COUNTIFS($L$2:L21,L21,$W$2:W21,W21)-1,)),"") -> 269 | D21: Albert Almora | E21: =IFERROR(INDEX('Auction Log'!$C$4:$C$806,MATCH(D21,'Auction Log'!$B$4:$B$806,0)),"") ->  | F21: =IFERROR(INDEX('Auction-Rank'!$C$2:$C$961,MATCH(D21,'Auction-Rank'!$A$2:$A$961,0)),"") -> OF | G21: =IFERROR(IF(F21=I21,"",IF(INDEX('Your Points Auction'!$C$11:$C$634,MATCH(D21,'Your Points Auction'!$D$11:$D$634,0))="",IF(I21<>"",I21,""),INDEX('Your Points Auction'!$C$11:$C$634,MATCH(D21,'Your Points Auction'!$D$11:$D$634,0)))),"") ->  | H21: OF | J21: =INDEX('Auction-Rank'!$V$2:$V$961,MATCH(D21,'Auction-Rank'!$A$2:$A$961,0)) -> TRUE | K21: FALSE | L21: =IF(J21=FALSE,FALSE,IF(AND('Your Points Auction'!$R$6="Hide Drafted Players",K21=TRUE),FALSE,IF(OR('Your Points Auction'!$R$5="Show All Positions",AND('Your Points Auction'!$R$5="Only Show: C",H21="C"),AND('Your Points Auction'!$R$5="Only Show: 1B",H21="1B"),AND('Your Points Auction'!$R$5="Only Show: 2B",H21="2B"),AND('Your Points Auction'!$R$5="Only Show: 3B",H21="3B"),AND('Your Points Auction'!$R$5="Only Show: SS",H21="SS"),AND('Your Points Auction'!$R$5="Only Show: OF",H21="OF"),AND('Your Points Auction'!$R$5="Only Show: SP",H21="SP"),AND('Your Points Auction'!$R$5="Only Show: RP",H21="RP"),AND('Your Points Auction'!$R$5="Only Show: CI",OR(H21={"1B","3B"})),AND('Your Points Auction'!$R$5="Only Show: MI",OR(H21={"2B","SS"})),AND('Your Points Auction'!$R$5="Only Show: IF",OR(H21={"C","1B","2B","3B","SS"})),AND('Your Points Auction'!$R$5="Only Show: DH",OR(H21={"C","1B","2B","3B","SS","OF","DH"})),AND('Your Points Auction'!$R$5="Only Show: P",OR(H21={"SP","RP"})),AND('Your Points Auction'!$R$5="Only Show: LF",ISERROR(SEARCH("LF",VLOOKUP($D21,'Auction-Rank'!$A$2:$D$961,4,FALSE)))=FALSE),AND('Your Points Auction'!$R$5="Only Show: RF",ISERROR(SEARCH("RF",VLOOKUP($D21,'Auction-Rank'!$A$2:$D$961,4,FALSE)))=FALSE),AND('Your Points Auction'!$R$5="Only Show: CF",ISERROR(SEARCH("CF",VLOOKUP($D21,'Auction-Rank'!$A$2:$D$961,4,FALSE)))=FALSE)),TRUE,FALSE))) -> TRUE | M21: =IFERROR(IF(VLOOKUP($D21,'Inflation-Tracking'!$A$5:$AD$862,22,FALSE)="",-9999,VLOOKUP($D21,'Inflation-Tracking'!$A$5:$AD$862,22,FALSE)),-9999) -> 0.6817313288 | N21: =IFERROR(IF(D21="Non-Ranked Player",-1001,IF(VLOOKUP($D21,'Starter Calc'!$B$2:$D$961,3,FALSE)="",-1000,VLOOKUP($D21,'Starter Calc'!$B$2:$D$961,3,FALSE))),0) -> 145.5580782 | O21: =IF(D21="Non-Ranked Player",10000,IFERROR(IF(VLOOKUP(D21,'Auction-Rank'!$A$2:$X$961,24,FALSE)="",9999,VLOOKUP(D21,'Auction-Rank'!$A$2:$X$961,24,FALSE)),9999)) -> 666 | P21: =IFERROR(IF($D21="Unlisted Player",-1001,IF(OR(H21="SP",H21="RP"),N21/VLOOKUP($D21,'Filtered-P'!$A$1:$AC$961,4,FALSE),-1000)),-1000) -> -1000 | Q21: =IFERROR(IF($D21="Unlisted Player",-1001,IF(OR(H21="SP",H21="RP"),-1000,N21/VLOOKUP($D21,'Filtered-H'!$A$1:$AE$961,2,FALSE))),-1000) -> 1.054004911 | R21: =IF(H21="",#N/A,H21&"."&1+SUMPRODUCT(($H$2:$H$949=H21)*($N$2:$N$949>N21))+COUNTIFS($N$2:N21,N21,$H$2:H21,H21)-1) -> OF.113 | S21: =IF(H21="",#N/A,1+SUMPRODUCT(($H$2:$H$949=H21)*($N$2:$N$949>N21))+COUNTIFS($N$2:N21,N21,$H$2:H21,H21)-1) -> 113 | T21: =IF(D21="Non-Ranked Player",0,IF(VLOOKUP($D21,'Starter Calc'!$B$2:$D$961,3,FALSE)="",0,VLOOKUP($D21,'Starter Calc'!$B$2:$D$961,3,FALSE))) -> 145.5580782 | U21: =IFERROR(VLOOKUP(D21,'Starter Calc'!B$2:BZ$961,72,FALSE),"") -> Bench | V21: =IFERROR(ROUND(VLOOKUP($D21,'Inflation-Tracking'!$A$5:$AD$862,22,FALSE),0),-999) -> 1 | W21: =IFERROR(IF((OR($H21="RP",$H21="SP")),VLOOKUP(D21,'Filtered-P'!$A$2:$AS$999,13,FALSE),VLOOKUP(D21,'Filtered-H'!$A$2:$AT$999,21,FALSE)),-9999) -> -77.81833961
A22: Ozzie Albies | B22: =IFERROR(INDEX($A$1:$A$948,SMALL(IF($A$1:$A$948<>"",ROW($A$1:$A$948)),ROW(A21))),"") -> Ozzie Albies | C22: =IFERROR(IF(L22=FALSE,"",CHOOSE(MATCH(RIGHT('Your Points Auction'!$R$4,LEN('Your Points Auction'!$R$4)-8),$M$1:$W$1,0),1+SUMPRODUCT(($L$2:$L$949=TRUE)*($M$2:$M$949>M22))+COUNTIFS($L$2:L22,L22,$M$2:M22,M22)-1,1+SUMPRODUCT(($L$2:$L$949=TRUE)*($N$2:$N$949>N22))+COUNTIFS($L$2:L22,L22,$N$2:N22,N22)-1,1+SUMPRODUCT(($L$2:$L$949=TRUE)*($O$2:$O$949<O22))+COUNTIFS($L$2:L22,L22,$O$2:O22,O22)-1,1+SUMPRODUCT(($L$2:$L$949=TRUE)*($P$2:$P$949>P22))+COUNTIFS($L$2:L22,L22,$P$2:P22,P22)-1,1+SUMPRODUCT(($L$2:$L$949=TRUE)*($Q$2:$Q$949>Q22))+COUNTIFS($L$2:L22,L22,$Q$2:Q22,Q22)-1,,,,,,1+SUMPRODUCT(($L$2:$L$949=TRUE)*($W$2:$W$949>W22))+COUNTIFS($L$2:L22,L22,$W$2:W22,W22)-1,)),"") -> 29 | D22: Pete Alonso | E22: =IFERROR(INDEX('Auction Log'!$C$4:$C$806,MATCH(D22,'Auction Log'!$B$4:$B$806,0)),"") ->  | F22: =IFERROR(INDEX('Auction-Rank'!$C$2:$C$961,MATCH(D22,'Auction-Rank'!$A$2:$A$961,0)),"") -> 1B | G22: =IFERROR(IF(F22=I22,"",IF(INDEX('Your Points Auction'!$C$11:$C$634,MATCH(D22,'Your Points Auction'!$D$11:$D$634,0))="",IF(I22<>"",I22,""),INDEX('Your Points Auction'!$C$11:$C$634,MATCH(D22,'Your Points Auction'!$D$11:$D$634,0)))),"") ->  | H22: 1B | J22: =INDEX('Auction-Rank'!$V$2:$V$961,MATCH(D22,'Auction-Rank'!$A$2:$A$961,0)) -> TRUE | K22: FALSE | L22: =IF(J22=FALSE,FALSE,IF(AND('Your Points Auction'!$R$6="Hide Drafted Players",K22=TRUE),FALSE,IF(OR('Your Points Auction'!$R$5="Show All Positions",AND('Your Points Auction'!$R$5="Only Show: C",H22="C"),AND('Your Points Auction'!$R$5="Only Show: 1B",H22="1B"),AND('Your Points Auction'!$R$5="Only Show: 2B",H22="2B"),AND('Your Points Auction'!$R$5="Only Show: 3B",H22="3B"),AND('Your Points Auction'!$R$5="Only Show: SS",H22="SS"),AND('Your Points Auction'!$R$5="Only Show: OF",H22="OF"),AND('Your Points Auction'!$R$5="Only Show: SP",H22="SP"),AND('Your Points Auction'!$R$5="Only Show: RP",H22="RP"),AND('Your Points Auction'!$R$5="Only Show: CI",OR(H22={"1B","3B"})),AND('Your Points Auction'!$R$5="Only Show: MI",OR(H22={"2B","SS"})),AND('Your Points Auction'!$R$5="Only Show: IF",OR(H22={"C","1B","2B","3B","SS"})),AND('Your Points Auction'!$R$5="Only Show: DH",OR(H22={"C","1B","2B","3B","SS","OF","DH"})),AND('Your Points Auction'!$R$5="Only Show: P",OR(H22={"SP","RP"})),AND('Your Points Auction'!$R$5="Only Show: LF",ISERROR(SEARCH("LF",VLOOKUP($D22,'Auction-Rank'!$A$2:$D$961,4,FALSE)))=FALSE),AND('Your Points Auction'!$R$5="Only Show: RF",ISERROR(SEARCH("RF",VLOOKUP($D22,'Auction-Rank'!$A$2:$D$961,4,FALSE)))=FALSE),AND('Your Points Auction'!$R$5="Only Show: CF",ISERROR(SEARCH("CF",VLOOKUP($D22,'Auction-Rank'!$A$2:$D$961,4,FALSE)))=FALSE)),TRUE,FALSE))) -> TRUE | M22: =IFERROR(IF(VLOOKUP($D22,'Inflation-Tracking'!$A$5:$AD$862,22,FALSE)="",-9999,VLOOKUP($D22,'Inflation-Tracking'!$A$5:$AD$862,22,FALSE)),-9999) -> 38.58029869 | N22: =IFERROR(IF(D22="Non-Ranked Player",-1001,IF(VLOOKUP($D22,'Starter Calc'!$B$2:$D$961,3,FALSE)="",-1000,VLOOKUP($D22,'Starter Calc'!$B$2:$D$961,3,FALSE))),0) -> 356.0255389 | O22: =IF(D22="Non-Ranked Player",10000,IFERROR(IF(VLOOKUP(D22,'Auction-Rank'!$A$2:$X$961,24,FALSE)="",9999,VLOOKUP(D22,'Auction-Rank'!$A$2:$X$961,24,FALSE)),9999)) -> 35 | P22: =IFERROR(IF($D22="Unlisted Player",-1001,IF(OR(H22="SP",H22="RP"),N22/VLOOKUP($D22,'Filtered-P'!$A$1:$AC$961,4,FALSE),-1000)),-1000) -> -1000 | Q22: =IFERROR(IF($D22="Unlisted Player",-1001,IF(OR(H22="SP",H22="RP"),-1000,N22/VLOOKUP($D22,'Filtered-H'!$A$1:$AE$961,2,FALSE))),-1000) -> 1.500634516 | R22: =IF(H22="",#N/A,H22&"."&1+SUMPRODUCT(($H$2:$H$949=H22)*($N$2:$N$949>N22))+COUNTIFS($N$2:N22,N22,$H$2:H22,H22)-1) -> 1B.2 | S22: =IF(H22="",#N/A,1+SUMPRODUCT(($H$2:$H$949=H22)*($N$2:$N$949>N22))+COUNTIFS($N$2:N22,N22,$H$2:H22,H22)-1) -> 2 | T22: =IF(D22="Non-Ranked Player",0,IF(VLOOKUP($D22,'Starter Calc'!$B$2:$D$961,3,FALSE)="",0,VLOOKUP($D22,'Starter Calc'!$B$2:$D$961,3,FALSE))) -> 356.0255389 | U22: =IFERROR(VLOOKUP(D22,'Starter Calc'!B$2:BZ$961,72,FALSE),"") -> Bench | V22: =IFERROR(ROUND(VLOOKUP($D22,'Inflation-Tracking'!$A$5:$AD$862,22,FALSE),0),-999) -> 39 | W22: =IFERROR(IF((OR($H22="RP",$H22="SP")),VLOOKUP(D22,'Filtered-P'!$A$2:$AS$999,13,FALSE),VLOOKUP(D22,'Filtered-H'!$A$2:$AT$999,21,FALSE)),-9999) -> 93.40861928
A23: Ketel Marte | B23: =IFERROR(INDEX($A$1:$A$948,SMALL(IF($A$1:$A$948<>"",ROW($A$1:$A$948)),ROW(A22))),"") -> Ketel Marte | C23: =IFERROR(IF(L23=FALSE,"",CHOOSE(MATCH(RIGHT('Your Points Auction'!$R$4,LEN('Your Points Auction'!$R$4)-8),$M$1:$W$1,0),1+SUMPRODUCT(($L$2:$L$949=TRUE)*($M$2:$M$949>M23))+COUNTIFS($L$2:L23,L23,$M$2:M23,M23)-1,1+SUMPRODUCT(($L$2:$L$949=TRUE)*($N$2:$N$949>N23))+COUNTIFS($L$2:L23,L23,$N$2:N23,N23)-1,1+SUMPRODUCT(($L$2:$L$949=TRUE)*($O$2:$O$949<O23))+COUNTIFS($L$2:L23,L23,$O$2:O23,O23)-1,1+SUMPRODUCT(($L$2:$L$949=TRUE)*($P$2:$P$949>P23))+COUNTIFS($L$2:L23,L23,$P$2:P23,P23)-1,1+SUMPRODUCT(($L$2:$L$949=TRUE)*($Q$2:$Q$949>Q23))+COUNTIFS($L$2:L23,L23,$Q$2:Q23,Q23)-1,,,,,,1+SUMPRODUCT(($L$2:$L$949=TRUE)*($W$2:$W$949>W23))+COUNTIFS($L$2:L23,L23,$W$2:W23,W23)-1,)),"") -> 488 | D23: Yonder Alonso | E23: =IFERROR(INDEX('Auction Log'!$C$4:$C$806,MATCH(D23,'Auction Log'!$B$4:$B$806,0)),"") ->  | F23: =IFERROR(INDEX('Auction-Rank'!$C$2:$C$961,MATCH(D23,'Auction-Rank'!$A$2:$A$961,0)),"") -> 1B | G23: =IFERROR(IF(F23=I23,"",IF(INDEX('Your Points Auction'!$C$11:$C$634,MATCH(D23,'Your Points Auction'!$D$11:$D$634,0))="",IF(I23<>"",I23,""),INDEX('Your Points Auction'!$C$11:$C$634,MATCH(D23,'Your Points Auction'!$D$11:$D$634,0)))),"") ->  | H23: 1B | J23: =INDEX('Auction-Rank'!$V$2:$V$961,MATCH(D23,'Auction-Rank'!$A$2:$A$961,0)) -> TRUE | K23: FALSE | L23: =IF(J23=FALSE,FALSE,IF(AND('Your Points Auction'!$R$6="Hide Drafted Players",K23=TRUE),FALSE,IF(OR('Your Points Auction'!$R$5="Show All Positions",AND('Your Points Auction'!$R$5="Only Show: C",H23="C"),AND('Your Points Auction'!$R$5="Only Show: 1B",H23="1B"),AND('Your Points Auction'!$R$5="Only Show: 2B",H23="2B"),AND('Your Points Auction'!$R$5="Only Show: 3B",H23="3B"),AND('Your Points Auction'!$R$5="Only Show: SS",H23="SS"),AND('Your Points Auction'!$R$5="Only Show: OF",H23="OF"),AND('Your Points Auction'!$R$5="Only Show: SP",H23="SP"),AND('Your Points Auction'!$R$5="Only Show: RP",H23="RP"),AND('Your Points Auction'!$R$5="Only Show: CI",OR(H23={"1B","3B"})),AND('Your Points Auction'!$R$5="Only Show: MI",OR(H23={"2B","SS"})),AND('Your Points Auction'!$R$5="Only Show: IF",OR(H23={"C","1B","2B","3B","SS"})),AND('Your Points Auction'!$R$5="Only Show: DH",OR(H23={"C","1B","2B","3B","SS","OF","DH"})),AND('Your Points Auction'!$R$5="Only Show: P",OR(H23={"SP","RP"})),AND('Your Points Auction'!$R$5="Only Show: LF",ISERROR(SEARCH("LF",VLOOKUP($D23,'Auction-Rank'!$A$2:$D$961,4,FALSE)))=FALSE),AND('Your Points Auction'!$R$5="Only Show: RF",ISERROR(SEARCH("RF",VLOOKUP($D23,'Auction-Rank'!$A$2:$D$961,4,FALSE)))=FALSE),AND('Your Points Auction'!$R$5="Only Show: CF",ISERROR(SEARCH("CF",VLOOKUP($D23,'Auction-Rank'!$A$2:$D$961,4,FALSE)))=FALSE)),TRUE,FALSE))) -> TRUE | M23: =IFERROR(IF(VLOOKUP($D23,'Inflation-Tracking'!$A$5:$AD$862,22,FALSE)="",-9999,VLOOKUP($D23,'Inflation-Tracking'!$A$5:$AD$862,22,FALSE)),-9999) -> 0 | N23: =IFERROR(IF(D23="Non-Ranked Player",-1001,IF(VLOOKUP($D23,'Starter Calc'!$B$2:$D$961,3,FALSE)="",-1000,VLOOKUP($D23,'Starter Calc'!$B$2:$D$961,3,FALSE))),0) -> 91.72844523 | O23: =IF(D23="Non-Ranked Player",10000,IFERROR(IF(VLOOKUP(D23,'Auction-Rank'!$A$2:$X$961,24,FALSE)="",9999,VLOOKUP(D23,'Auction-Rank'!$A$2:$X$961,24,FALSE)),9999)) -> 686 | P23: =IFERROR(IF($D23="Unlisted Player",-1001,IF(OR(H23="SP",H23="RP"),N23/VLOOKUP($D23,'Filtered-P'!$A$1:$AC$961,4,FALSE),-1000)),-1000) -> -1000 | Q23: =IFERROR(IF($D23="Unlisted Player",-1001,IF(OR(H23="SP",H23="RP"),-1000,N23/VLOOKUP($D23,'Filtered-H'!$A$1:$AE$961,2,FALSE))),-1000) -> 1.22549693 | R23: =IF(H23="",#N/A,H23&"."&1+SUMPRODUCT(($H$2:$H$949=H23)*($N$2:$N$949>N23))+COUNTIFS($N$2:N23,N23,$H$2:H23,H23)-1) -> 1B.39 | S23: =IF(H23="",#N/A,1+SUMPRODUCT(($H$2:$H$949=H23)*($N$2:$N$949>N23))+COUNTIFS($N$2:N23,N23,$H$2:H23,H23)-1) -> 39 | T23: =IF(D23="Non-Ranked Player",0,IF(VLOOKUP($D23,'Starter Calc'!$B$2:$D$961,3,FALSE)="",0,VLOOKUP($D23,'Starter Calc'!$B$2:$D$961,3,FALSE))) -> 91.72844523 | U23: =IFERROR(VLOOKUP(D23,'Starter Calc'!B$2:BZ$961,72,FALSE),"") -> Bench | V23: =IFERROR(ROUND(VLOOKUP($D23,'Inflation-Tracking'!$A$5:$AD$862,22,FALSE),0),-999) -> 0 | W23: =IFERROR(IF((OR($H23="RP",$H23="SP")),VLOOKUP(D23,'Filtered-P'!$A$2:$AS$999,13,FALSE),VLOOKUP(D23,'Filtered-H'!$A$2:$AT$999,21,FALSE)),-9999) -> -170.8884744
A24: Jose Ramirez | B24: =IFERROR(INDEX($A$1:$A$948,SMALL(IF($A$1:$A$948<>"",ROW($A$1:$A$948)),ROW(A23))),"") -> Jose Ramirez | C24: =IFERROR(IF(L24=FALSE,"",CHOOSE(MATCH(RIGHT('Your Points Auction'!$R$4,LEN('Your Points Auction'!$R$4)-8),$M$1:$W$1,0),1+SUMPRODUCT(($L$2:$L$949=TRUE)*($M$2:$M$949>M24))+COUNTIFS($L$2:L24,L24,$M$2:M24,M24)-1,1+SUMPRODUCT(($L$2:$L$949=TRUE)*($N$2:$N$949>N24))+COUNTIFS($L$2:L24,L24,$N$2:N24,N24)-1,1+SUMPRODUCT(($L$2:$L$949=TRUE)*($O$2:$O$949<O24))+COUNTIFS($L$2:L24,L24,$O$2:O24,O24)-1,1+SUMPRODUCT(($L$2:$L$949=TRUE)*($P$2:$P$949>P24))+COUNTIFS($L$2:L24,L24,$P$2:P24,P24)-1,1+SUMPRODUCT(($L$2:$L$949=TRUE)*($Q$2:$Q$949>Q24))+COUNTIFS($L$2:L24,L24,$Q$2:Q24,Q24)-1,,,,,,1+SUMPRODUCT(($L$2:$L$949=TRUE)*($W$2:$W$949>W24))+COUNTIFS($L$2:L24,L24,$W$2:W24,W24)-1,)),"") -> 33 | D24: Jose Altuve | E24: =IFERROR(INDEX('Auction Log'!$C$4:$C$806,MATCH(D24,'Auction Log'!$B$4:$B$806,0)),"") ->  | F24: =IFERROR(INDEX('Auction-Rank'!$C$2:$C$961,MATCH(D24,'Auction-Rank'!$A$2:$A$961,0)),"") -> 2B | G24: =IFERROR(IF(F24=I24,"",IF(INDEX('Your Points Auction'!$C$11:$C$634,MATCH(D24,'Your Points Auction'!$D$11:$D$634,0))="",IF(I24<>"",I24,""),INDEX('Your Points Auction'!$C$11:$C$634,MATCH(D24,'Your Points Auction'!$D$11:$D$634,0)))),"") ->  | H24: 2B | J24: =INDEX('Auction-Rank'!$V$2:$V$961,MATCH(D24,'Auction-Rank'!$A$2:$A$961,0)) -> TRUE | K24: FALSE | L24: =IF(J24=FALSE,FALSE,IF(AND('Your Points Auction'!$R$6="Hide Drafted Players",K24=TRUE),FALSE,IF(OR('Your Points Auction'!$R$5="Show All Positions",AND('Your Points Auction'!$R$5="Only Show: C",H24="C"),AND('Your Points Auction'!$R$5="Only Show: 1B",H24="1B"),AND('Your Points Auction'!$R$5="Only Show: 2B",H24="2B"),AND('Your Points Auction'!$R$5="Only Show: 3B",H24="3B"),AND('Your Points Auction'!$R$5="Only Show: SS",H24="SS"),AND('Your Points Auction'!$R$5="Only Show: OF",H24="OF"),AND('Your Points Auction'!$R$5="Only Show: SP",H24="SP"),AND('Your Points Auction'!$R$5="Only Show: RP",H24="RP"),AND('Your Points Auction'!$R$5="Only Show: CI",OR(H24={"1B","3B"})),AND('Your Points Auction'!$R$5="Only Show: MI",OR(H24={"2B","SS"})),AND('Your Points Auction'!$R$5="Only Show: IF",OR(H24={"C","1B","2B","3B","SS"})),AND('Your Points Auction'!$R$5="Only Show: DH",OR(H24={"C","1B","2B","3B","SS","OF","DH"})),AND('Your Points Auction'!$R$5="Only Show: P",OR(H24={"SP","RP"})),AND('Your Points Auction'!$R$5="Only Show: LF",ISERROR(SEARCH("LF",VLOOKUP($D24,'Auction-Rank'!$A$2:$D$961,4,FALSE)))=FALSE),AND('Your Points Auction'!$R$5="Only Show: RF",ISERROR(SEARCH("RF",VLOOKUP($D24,'Auction-Rank'!$A$2:$D$961,4,FALSE)))=FALSE),AND('Your Points Auction'!$R$5="Only Show: CF",ISERROR(SEARCH("CF",VLOOKUP($D24,'Auction-Rank'!$A$2:$D$961,4,FALSE)))=FALSE)),TRUE,FALSE))) -> TRUE | M24: =IFERROR(IF(VLOOKUP($D24,'Inflation-Tracking'!$A$5:$AD$862,22,FALSE)="",-9999,VLOOKUP($D24,'Inflation-Tracking'!$A$5:$AD$862,22,FALSE)),-9999) -> 37.98736533 | N24: =IFERROR(IF(D24="Non-Ranked Player",-1001,IF(VLOOKUP($D24,'Starter Calc'!$B$2:$D$961,3,FALSE)="",-1000,VLOOKUP($D24,'Starter Calc'!$B$2:$D$961,3,FALSE))),0) -> 333.241122 | O24: =IF(D24="Non-Ranked Player",10000,IFERROR(IF(VLOOKUP(D24,'Auction-Rank'!$A$2:$X$961,24,FALSE)="",9999,VLOOKUP(D24,'Auction-Rank'!$A$2:$X$961,24,FALSE)),9999)) -> 29 | P24: =IFERROR(IF($D24="Unlisted Player",-1001,IF(OR(H24="SP",H24="RP"),N24/VLOOKUP($D24,'Filtered-P'!$A$1:$AC$961,4,FALSE),-1000)),-1000) -> -1000 | Q24: =IFERROR(IF($D24="Unlisted Player",-1001,IF(OR(H24="SP",H24="RP"),-1000,N24/VLOOKUP($D24,'Filtered-H'!$A$1:$AE$961,2,FALSE))),-1000) -> 1.431755626 | R24: =IF(H24="",#N/A,H24&"."&1+SUMPRODUCT(($H$2:$H$949=H24)*($N$2:$N$949>N24))+COUNTIFS($N$2:N24,N24,$H$2:H24,H24)-1) -> 2B.3 | S24: =IF(H24="",#N/A,1+SUMPRODUCT(($H$2:$H$949=H24)*($N$2:$N$949>N24))+COUNTIFS($N$2:N24,N24,$H$2:H24,H24)-1) -> 3 | T24: =IF(D24="Non-Ranked Player",0,IF(VLOOKUP($D24,'Starter Calc'!$B$2:$D$961,3,FALSE)="",0,VLOOKUP($D24,'Starter Calc'!$B$2:$D$961,3,FALSE))) -> 333.241122 | U24: =IFERROR(VLOOKUP(D24,'Starter Calc'!B$2:BZ$961,72,FALSE),"") -> Bench | V24: =IFERROR(ROUND(VLOOKUP($D24,'Inflation-Tracking'!$A$5:$AD$862,22,FALSE),0),-999) -> 38 | W24: =IFERROR(IF((OR($H24="RP",$H24="SP")),VLOOKUP(D24,'Filtered-P'!$A$2:$AS$999,13,FALSE),VLOOKUP(D24,'Filtered-H'!$A$2:$AT$999,21,FALSE)),-9999) -> 91.94565157
A25: Manny Machado | B25: =IFERROR(INDEX($A$1:$A$948,SMALL(IF($A$1:$A$948<>"",ROW($A$1:$A$948)),ROW(A24))),"") -> Manny Machado | C25: =IFERROR(IF(L25=FALSE,"",CHOOSE(MATCH(RIGHT('Your Points Auction'!$R$4,LEN('Your Points Auction'!$R$4)-8),$M$1:$W$1,0),1+SUMPRODUCT(($L$2:$L$949=TRUE)*($M$2:$M$949>M25))+COUNTIFS($L$2:L25,L25,$M$2:M25,M25)-1,1+SUMPRODUCT(($L$2:$L$949=TRUE)*($N$2:$N$949>N25))+COUNTIFS($L$2:L25,L25,$N$2:N25,N25)-1,1+SUMPRODUCT(($L$2:$L$949=TRUE)*($O$2:$O$949<O25))+COUNTIFS($L$2:L25,L25,$O$2:O25,O25)-1,1+SUMPRODUCT(($L$2:$L$949=TRUE)*($P$2:$P$949>P25))+COUNTIFS($L$2:L25,L25,$P$2:P25,P25)-1,1+SUMPRODUCT(($L$2:$L$949=TRUE)*($Q$2:$Q$949>Q25))+COUNTIFS($L$2:L25,L25,$Q$2:Q25,Q25)-1,,,,,,1+SUMPRODUCT(($L$2:$L$949=TRUE)*($W$2:$W$949>W25))+COUNTIFS($L$2:L25,L25,$W$2:W25,W25)-1,)),"") -> 489 | D25: Jose Alvarado | E25: =IFERROR(INDEX('Auction Log'!$C$4:$C$806,MATCH(D25,'Auction Log'!$B$4:$B$806,0)),"") ->  | F25: =IFERROR(INDEX('Auction-Rank'!$C$2:$C$961,MATCH(D25,'Auction-Rank'!$A$2:$A$961,0)),"") -> RP | G25: =IFERROR(IF(F25=I25,"",IF(INDEX('Your Points Auction'!$C$11:$C$634,MATCH(D25,'Your Points Auction'!$D$11:$D$634,0))="",IF(I25<>"",I25,""),INDEX('Your Points Auction'!$C$11:$C$634,MATCH(D25,'Your Points Auction'!$D$11:$D$634,0)))),"") ->  | H25: RP | J25: =INDEX('Auction-Rank'!$V$2:$V$961,MATCH(D25,'Auction-Rank'!$A$2:$A$961,0)) -> TRUE | K25: FALSE | L25: =IF(J25=FALSE,FALSE,IF(AND('Your Points Auction'!$R$6="Hide Drafted Players",K25=TRUE),FALSE,IF(OR('Your Points Auction'!$R$5="Show All Positions",AND('Your Points Auction'!$R$5="Only Show: C",H25="C"),AND('Your Points Auction'!$R$5="Only Show: 1B",H25="1B"),AND('Your Points Auction'!$R$5="Only Show: 2B",H25="2B"),AND('Your Points Auction'!$R$5="Only Show: 3B",H25="3B"),AND('Your Points Auction'!$R$5="Only Show: SS",H25="SS"),AND('Your Points Auction'!$R$5="Only Show: OF",H25="OF"),AND('Your Points Auction'!$R$5="Only Show: SP",H25="SP"),AND('Your Points Auction'!$R$5="Only Show: RP",H25="RP"),AND('Your Points Auction'!$R$5="Only Show: CI",OR(H25={"1B","3B"})),AND('Your Points Auction'!$R$5="Only Show: MI",OR(H25={"2B","SS"})),AND('Your Points Auction'!$R$5="Only Show: IF",OR(H25={"C","1B","2B","3B","SS"})),AND('Your Points Auction'!$R$5="Only Show: DH",OR(H25={"C","1B","2B","3B","SS","OF","DH"})),AND('Your Points Auction'!$R$5="Only Show: P",OR(H25={"SP","RP"})),AND('Your Points Auction'!$R$5="Only Show: LF",ISERROR(SEARCH("LF",VLOOKUP($D25,'Auction-Rank'!$A$2:$D$961,4,FALSE)))=FALSE),AND('Your Points Auction'!$R$5="Only Show: RF",ISERROR(SEARCH("RF",VLOOKUP($D25,'Auction-Rank'!$A$2:$D$961,4,FALSE)))=FALSE),AND('Your Points Auction'!$R$5="Only Show: CF",ISERROR(SEARCH("CF",VLOOKUP($D25,'Auction-Rank'!$A$2:$D$961,4,FALSE)))=FALSE)),TRUE,FALSE))) -> TRUE | M25: =IFERROR(IF(VLOOKUP($D25,'Inflation-Tracking'!$A$5:$AD$862,22,FALSE)="",-9999,VLOOKUP($D25,'Inflation-Tracking'!$A$5:$AD$862,22,FALSE)),-9999) -> 0 | N25: =IFERROR(IF(D25="Non-Ranked Player",-1001,IF(VLOOKUP($D25,'Starter Calc'!$B$2:$D$961,3,FALSE)="",-1000,VLOOKUP($D25,'Starter Calc'!$B$2:$D$961,3,FALSE))),0) -> 111.3798983 | O25: =IF(D25="Non-Ranked Player",10000,IFERROR(IF(VLOOKUP(D25,'Auction-Rank'!$A$2:$X$961,24,FALSE)="",9999,VLOOKUP(D25,'Auction-Rank'!$A$2:$X$961,24,FALSE)),9999)) -> 365 | P25: =IFERROR(IF($D25="Unlisted Player",-1001,IF(OR(H25="SP",H25="RP"),N25/VLOOKUP($D25,'Filtered-P'!$A$1:$AC$961,4,FALSE),-1000)),-1000) -> 5.568994915 | Q25: =IFERROR(IF($D25="Unlisted Player",-1001,IF(OR(H25="SP",H25="RP"),-1000,N25/VLOOKUP($D25,'Filtered-H'!$A$1:$AE$961,2,FALSE))),-1000) -> -1000 | R25: =IF(H25="",#N/A,H25&"."&1+SUMPRODUCT(($H$2:$H$949=H25)*($N$2:$N$949>N25))+COUNTIFS($N$2:N25,N25,$H$2:H25,H25)-1) -> RP.81 | S25: =IF(H25="",#N/A,1+SUMPRODUCT(($H$2:$H$949=H25)*($N$2:$N$949>N25))+COUNTIFS($N$2:N25,N25,$H$2:H25,H25)-1) -> 81 | T25: =IF(D25="Non-Ranked Player",0,IF(VLOOKUP($D25,'Starter Calc'!$B$2:$D$961,3,FALSE)="",0,VLOOKUP($D25,'Starter Calc'!$B$2:$D$961,3,FALSE))) -> 111.3798983 | U25: =IFERROR(VLOOKUP(D25,'Starter Calc'!B$2:BZ$961,72,FALSE),"") -> Bench | V25: =IFERROR(ROUND(VLOOKUP($D25,'Inflation-Tracking'!$A$5:$AD$862,22,FALSE),0),-999) -> 0 | W25: =IFERROR(IF((OR($H25="RP",$H25="SP")),VLOOKUP(D25,'Filtered-P'!$A$2:$AS$999,13,FALSE),VLOOKUP(D25,'Filtered-H'!$A$2:$AT$999,21,FALSE)),-9999) -> -17.70726836
A26: Marcell Ozuna | B26: =IFERROR(INDEX($A$1:$A$948,SMALL(IF($A$1:$A$948<>"",ROW($A$1:$A$948)),ROW(A25))),"") -> Marcell Ozuna | C26: =IFERROR(IF(L26=FALSE,"",CHOOSE(MATCH(RIGHT('Your Points Auction'!$R$4,LEN('Your Points Auction'!$R$4)-8),$M$1:$W$1,0),1+SUMPRODUCT(($L$2:$L$949=TRUE)*($M$2:$M$949>M26))+COUNTIFS($L$2:L26,L26,$M$2:M26,M26)-1,1+SUMPRODUCT(($L$2:$L$949=TRUE)*($N$2:$N$949>N26))+COUNTIFS($L$2:L26,L26,$N$2:N26,N26)-1,1+SUMPRODUCT(($L$2:$L$949=TRUE)*($O$2:$O$949<O26))+COUNTIFS($L$2:L26,L26,$O$2:O26,O26)-1,1+SUMPRODUCT(($L$2:$L$949=TRUE)*($P$2:$P$949>P26))+COUNTIFS($L$2:L26,L26,$P$2:P26,P26)-1,1+SUMPRODUCT(($L$2:$L$949=TRUE)*($Q$2:$Q$949>Q26))+COUNTIFS($L$2:L26,L26,$Q$2:Q26,Q26)-1,,,,,,1+SUMPRODUCT(($L$2:$L$949=TRUE)*($W$2:$W$949>W26))+COUNTIFS($L$2:L26,L26,$W$2:W26,W26)-1,)),"") -> 71 | D26: Yordan Alvarez | E26: =IFERROR(INDEX('Auction Log'!$C$4:$C$806,MATCH(D26,'Auction Log'!$B$4:$B$806,0)),"") ->  | F26: =IFERROR(INDEX('Auction-Rank'!$C$2:$C$961,MATCH(D26,'Auction-Rank'!$A$2:$A$961,0)),"") -> DH | G26: =IFERROR(IF(F26=I26,"",IF(INDEX('Your Points Auction'!$C$11:$C$634,MATCH(D26,'Your Points Auction'!$D$11:$D$634,0))="",IF(I26<>"",I26,""),INDEX('Your Points Auction'!$C$11:$C$634,MATCH(D26,'Your Points Auction'!$D$11:$D$634,0)))),"") ->  | H26: DH | J26: =INDEX('Auction-Rank'!$V$2:$V$961,MATCH(D26,'Auction-Rank'!$A$2:$A$961,0)) -> TRUE | K26: FALSE | L26: =IF(J26=FALSE,FALSE,IF(AND('Your Points Auction'!$R$6="Hide Drafted Players",K26=TRUE),FALSE,IF(OR('Your Points Auction'!$R$5="Show All Positions",AND('Your Points Auction'!$R$5="Only Show: C",H26="C"),AND('Your Points Auction'!$R$5="Only Show: 1B",H26="1B"),AND('Your Points Auction'!$R$5="Only Show: 2B",H26="2B"),AND('Your Points Auction'!$R$5="Only Show: 3B",H26="3B"),AND('Your Points Auction'!$R$5="Only Show: SS",H26="SS"),AND('Your Points Auction'!$R$5="Only Show: OF",H26="OF"),AND('Your Points Auction'!$R$5="Only Show: SP",H26="SP"),AND('Your Points Auction'!$R$5="Only Show: RP",H26="RP"),AND('Your Points Auction'!$R$5="Only Show: CI",OR(H26={"1B","3B"})),AND('Your Points Auction'!$R$5="Only Show: MI",OR(H26={"2B","SS"})),AND('Your Points Auction'!$R$5="Only Show: IF",OR(H26={"C","1B","2B","3B","SS"})),AND('Your Points Auction'!$R$5="Only Show: DH",OR(H26={"C","1B","2B","3B","SS","OF","DH"})),AND('Your Points Auction'!$R$5="Only Show: P",OR(H26={"SP","RP"})),AND('Your Points Auction'!$R$5="Only Show: LF",ISERROR(SEARCH("LF",VLOOKUP($D26,'Auction-Rank'!$A$2:$D$961,4,FALSE)))=FALSE),AND('Your Points Auction'!$R$5="Only Show: RF",ISERROR(SEARCH("RF",VLOOKUP($D26,'Auction-Rank'!$A$2:$D$961,4,FALSE)))=FALSE),AND('Your Points Auction'!$R$5="Only Show: CF",ISERROR(SEARCH("CF",VLOOKUP($D26,'Auction-Rank'!$A$2:$D$961,4,FALSE)))=FALSE)),TRUE,FALSE))) -> TRUE | M26: =IFERROR(IF(VLOOKUP($D26,'Inflation-Tracking'!$A$5:$AD$862,22,FALSE)="",-9999,VLOOKUP($D26,'Inflation-Tracking'!$A$5:$AD$862,22,FALSE)),-9999) -> 24.7475566 | N26: =IFERROR(IF(D26="Non-Ranked Player",-1001,IF(VLOOKUP($D26,'Starter Calc'!$B$2:$D$961,3,FALSE)="",-1000,VLOOKUP($D26,'Starter Calc'!$B$2:$D$961,3,FALSE))),0) -> 321.8954727 | O26: =IF(D26="Non-Ranked Player",10000,IFERROR(IF(VLOOKUP(D26,'Auction-Rank'!$A$2:$X$961,24,FALSE)="",9999,VLOOKUP(D26,'Auction-Rank'!$A$2:$X$961,24,FALSE)),9999)) -> 49 | P26: =IFERROR(IF($D26="Unlisted Player",-1001,IF(OR(H26="SP",H26="RP"),N26/VLOOKUP($D26,'Filtered-P'!$A$1:$AC$961,4,FALSE),-1000)),-1000) -> -1000 | Q26: =IFERROR(IF($D26="Unlisted Player",-1001,IF(OR(H26="SP",H26="RP"),-1000,N26/VLOOKUP($D26,'Filtered-H'!$A$1:$AE$961,2,FALSE))),-1000) -> 1.593936483 | R26: =IF(H26="",#N/A,H26&"."&1+SUMPRODUCT(($H$2:$H$949=H26)*($N$2:$N$949>N26))+COUNTIFS($N$2:N26,N26,$H$2:H26,H26)-1) -> DH.2 | S26: =IF(H26="",#N/A,1+SUMPRODUCT(($H$2:$H$949=H26)*($N$2:$N$949>N26))+COUNTIFS($N$2:N26,N26,$H$2:H26,H26)-1) -> 2 | T26: =IF(D26="Non-Ranked Player",0,IF(VLOOKUP($D26,'Starter Calc'!$B$2:$D$961,3,FALSE)="",0,VLOOKUP($D26,'Starter Calc'!$B$2:$D$961,3,FALSE))) -> 321.8954727 | U26: =IFERROR(VLOOKUP(D26,'Starter Calc'!B$2:BZ$961,72,FALSE),"") -> Bench | V26: =IFERROR(ROUND(VLOOKUP($D26,'Inflation-Tracking'!$A$5:$AD$862,22,FALSE),0),-999) -> 25 | W26: =IFERROR(IF((OR($H26="RP",$H26="SP")),VLOOKUP(D26,'Filtered-P'!$A$2:$AS$999,13,FALSE),VLOOKUP(D26,'Filtered-H'!$A$2:$AT$999,21,FALSE)),-9999) -> 59.27855307
